Workbook

Sheet Couverture
B11: DISCLAIMER
B31: RESSOURCES
B36: INTRODUCTION
B52: PERIMETRE DU MODELE
B63: Structure du modèle
B101: PARTENAIRES DU PROJET

Sheet Definition de scénario
A1: Définition des scénarios
J2: Aire urbaine | K2: Catégorie
F3: Scénario: | G3: Ambition limitée | J3: Agadir-Ida-Ou-Tanane-Inezgane- Ait Melloul | K3: =INDEX('Evolution Urbaine'!$E$10:$F$34,MATCH(J3,'Evolution Urbaine'!$F$10:$F$34,0),1) -> II
A5: Développement des infrastructures
B7: Infrastructure piétonne qualitative (% moyen du réseau routier total)
C8: Catégorie | D8: Année de mise en place | E8: Objectif initial | F8: Objectif 2050
A9: C | C9: I | D9: =IF($G$3='Reference scenarios'!$K$1,'Reference scenarios'!K4,IF($G$3='Reference scenarios'!$R$1,'Reference scenarios'!R4,IF($G$3='Reference scenarios'!$Y$1,'Reference scenarios'!Y4,NA()))) -> 2030 | E9: ='Reference scenarios'!D4 -> 0.431 | F9: ='Reference scenarios'!E4 -> 0.431 | K9: 4 | R9: 4
C10: II | D10: =IF($G$3='Reference scenarios'!$K$1,'Reference scenarios'!K5,IF($G$3='Reference scenarios'!$R$1,'Reference scenarios'!R5,IF($G$3='Reference scenarios'!$Y$1,'Reference scenarios'!Y5,NA()))) -> 2030 | E10: ='Reference scenarios'!$D$5 -> 0.44 | F10: ='Reference scenarios'!$E$5 -> 0.44 | K10: 5 | R10: 5
C11: III | D11: =IF($G$3='Reference scenarios'!$K$1,'Reference scenarios'!K6,IF($G$3='Reference scenarios'!$R$1,'Reference scenarios'!R6,IF($G$3='Reference scenarios'!$Y$1,'Reference scenarios'!Y6,NA()))) -> 2030 | E11: =IF($G$3='Reference scenarios'!$K$1,'Reference scenarios'!L6,IF($G$3='Reference scenarios'!$R$1,'Reference scenarios'!S6,IF($G$3='Reference scenarios'!$Y$1,'Reference scenarios'!Z6,NA()))) -> 0.44 | F11: ='Reference scenarios'!$E$6 -> 0.44 | K11: 6 | R11: 6
C12: IV | D12: =IF($G$3='Reference scenarios'!$K$1,'Reference scenarios'!K7,IF($G$3='Reference scenarios'!$R$1,'Reference scenarios'!R7,IF($G$3='Reference scenarios'!$Y$1,'Reference scenarios'!Y7,NA()))) -> 2030 | E12: ='Reference scenarios'!$D$7 -> 0.26 | F12: ='Reference scenarios'!$E$7 -> 0.26 | K12: 7 | R12: 7
B14: Couloirs vélos (taille moyenne du réseau en km)
C15: Catégorie | D15: Année de mise en place | E15: Objectif initial | F15: Objectif 2050
C16: I | D16: =IF($G$3='Reference scenarios'!$K$1,'Reference scenarios'!K8,IF($G$3='Reference scenarios'!$R$1,'Reference scenarios'!R8,IF($G$3='Reference scenarios'!$Y$1,'Reference scenarios'!Y8,NA()))) -> 2025 | E16: ='Reference scenarios'!D8 -> 0 | F16: ='Reference scenarios'!E8 -> 0 | K16: 8 | R16: 9
C17: II | D17: =IF($G$3='Reference scenarios'!$K$1,'Reference scenarios'!K9,IF($G$3='Reference scenarios'!$R$1,'Reference scenarios'!R9,IF($G$3='Reference scenarios'!$Y$1,'Reference scenarios'!Y9,NA()))) -> 2025 | E17: =IF($G$3='Reference scenarios'!$K$1,'Reference scenarios'!L9,IF($G$3='Reference scenarios'!$R$1,'Reference scenarios'!S9,IF($G$3='Reference scenarios'!$Y$1,'Reference scenarios'!Z9,NA()))) -> 0 | F17: =IF($G$3='Reference scenarios'!$K$1,'Reference scenarios'!M9,IF($G$3='Reference scenarios'!$R$1,'Reference scenarios'!T9,IF($G$3='Reference scenarios'!$Y$1,'Reference scenarios'!AA9,NA()))) -> 0 | K17: 9 | R17: 10
A18: C | C18: III | D18: =IF($G$3='Reference scenarios'!$K$1,'Reference scenarios'!K10,IF($G$3='Reference scenarios'!$R$1,'Reference scenarios'!R10,IF($G$3='Reference scenarios'!$Y$1,'Reference scenarios'!Y10,NA()))) -> 2025 | E18: =IF($G$3='Reference scenarios'!$K$1,'Reference scenarios'!L10,IF($G$3='Reference scenarios'!$R$1,'Reference scenarios'!S10,IF($G$3='Reference scenarios'!$Y$1,'Reference scenarios'!Z10,NA()))) -> 0 | F18: =IF($G$3='Reference scenarios'!$K$1,'Reference scenarios'!M10,IF($G$3='Reference scenarios'!$R$1,'Reference scenarios'!T10,IF($G$3='Reference scenarios'!$Y$1,'Reference scenarios'!AA10,NA()))) -> 0 | K18: 10 | R18: 11
C19: IV | D19: =IF($G$3='Reference scenarios'!$K$1,'Reference scenarios'!K11,IF($G$3='Reference scenarios'!$R$1,'Reference scenarios'!R11,IF($G$3='Reference scenarios'!$Y$1,'Reference scenarios'!Y11,NA()))) -> 2025 | E19: ='Reference scenarios'!$D$11 -> 0 | F19: =IF($G$3='Reference scenarios'!$K$1,'Reference scenarios'!M11,IF($G$3='Reference scenarios'!$R$1,'Reference scenarios'!T11,IF($G$3='Reference scenarios'!$Y$1,'Reference scenarios'!AA11,NA()))) -> 0 | K19: 11 | R19: 12
B21: Réseau BHNS (taille totale du réseau en km) | L21: Densité correspondante (km par km²)
C22: Catégorie | D22: Aire urbaine | E22: Valeur pour 2025 | F22: Valeur pour 2030 | G22: Valeur pour 2035 | H22: Valeur pour 2040 | I22: Valeur pour 2045 | J22: Valeur pour 2050 | L22: Valeur pour 2025 | M22: Valeur pour 2030 | N22: Valeur pour 2035 | O22: Valeur pour 2040 | P22: Valeur pour 2045 | Q22: Valeur pour 2050
C23: =ROMAN(1) -> I | D23: Grand Casablanca | E23: =IF($G$3='Reference scenarios'!$K$1,'Reference scenarios'!K13,IF($G$3='Reference scenarios'!$R$1,'Reference scenarios'!R13,IF($G$3='Reference scenarios'!$Y$1,'Reference scenarios'!Y13,NA()))) -> 24 | F23: =IF($G$3='Reference scenarios'!$K$1,'Reference scenarios'!L13,IF($G$3='Reference scenarios'!$R$1,'Reference scenarios'!S13,IF($G$3='Reference scenarios'!$Y$1,'Reference scenarios'!Z13,NA()))) -> 24 | G23: =IF($G$3='Reference scenarios'!$K$1,'Reference scenarios'!M13,IF($G$3='Reference scenarios'!$R$1,'Reference scenarios'!T13,IF($G$3='Reference scenarios'!$Y$1,'Reference scenarios'!AA13,NA()))) -> 24 | H23: =IF($G$3='Reference scenarios'!$K$1,'Reference scenarios'!N13,IF($G$3='Reference scenarios'!$R$1,'Reference scenarios'!U13,IF($G$3='Reference scenarios'!$Y$1,'Reference scenarios'!AB13,NA()))) -> 24 | I23: =IF($G$3='Reference scenarios'!$K$1,'Reference scenarios'!O13,IF($G$3='Reference scenarios'!$R$1,'Reference scenarios'!V13,IF($G$3='Reference scenarios'!$Y$1,'Reference scenarios'!AC13,NA()))) -> 24 | J23: =IF($G$3='Reference scenarios'!$K$1,'Reference scenarios'!P13,IF($G$3='Reference scenarios'!$R$1,'Reference scenarios'!W13,IF($G$3='Reference scenarios'!$Y$1,'Reference scenarios'!AD13,NA()))) -> 24 | K23: 13 | L23: =E23/'Evolution Urbaine'!I94 -> 0.01730966449 | M23: =F23/'Evolution Urbaine'!J94 -> 0.01651987827 | N23: =G23/'Evolution Urbaine'!K94 -> 0.01552702582 | O23: =H23/'Evolution Urbaine'!L94 -> 0.01473910676 | P23: =I23/'Evolution Urbaine'!M94 -> 0.0141160025 | Q23: =J23/'Evolution Urbaine'!N94 -> 0.01362198268 | R23: 15
C24: =ROMAN(1) -> I | D24: Rabat-Salé-Skhirate-Temara | E24: =IF($G$3='Reference scenarios'!$K$1,'Reference scenarios'!K14,IF($G$3='Reference scenarios'!$R$1,'Reference scenarios'!R14,IF($G$3='Reference scenarios'!$Y$1,'Reference scenarios'!Y14,NA()))) -> 0 | F24: =IF($G$3='Reference scenarios'!$K$1,'Reference scenarios'!L14,IF($G$3='Reference scenarios'!$R$1,'Reference scenarios'!S14,IF($G$3='Reference scenarios'!$Y$1,'Reference scenarios'!Z14,NA()))) -> 45 | G24: =IF($G$3='Reference scenarios'!$K$1,'Reference scenarios'!M14,IF($G$3='Reference scenarios'!$R$1,'Reference scenarios'!T14,IF($G$3='Reference scenarios'!$Y$1,'Reference scenarios'!AA14,NA()))) -> 45 | H24: =IF($G$3='Reference scenarios'!$K$1,'Reference scenarios'!N14,IF($G$3='Reference scenarios'!$R$1,'Reference scenarios'!U14,IF($G$3='Reference scenarios'!$Y$1,'Reference scenarios'!AB14,NA()))) -> 100 | I24: =IF($G$3='Reference scenarios'!$K$1,'Reference scenarios'!O14,IF($G$3='Reference scenarios'!$R$1,'Reference scenarios'!V14,IF($G$3='Reference scenarios'!$Y$1,'Reference scenarios'!AC14,NA()))) -> 100 | J24: =IF($G$3='Reference scenarios'!$K$1,'Reference scenarios'!P14,IF($G$3='Reference scenarios'!$R$1,'Reference scenarios'!W14,IF($G$3='Reference scenarios'!$Y$1,'Reference scenarios'!AD14,NA()))) -> 100 | K24: 14 | L24: =E24/'Evolution Urbaine'!I95 -> 0 | M24: =F24/'Evolution Urbaine'!J95 -> 0.04566749534 | N24: =G24/'Evolution Urbaine'!K95 -> 0.04343647959 | O24: =H24/'Evolution Urbaine'!L95 -> 0.09272375037 | P24: =I24/'Evolution Urbaine'!M95 -> 0.08986644151 | Q24: =J24/'Evolution Urbaine'!N95 -> 0.08775909499 | R24: 16
C25: =ROMAN(2) -> II | D25: Fès | E25: =IF($G$3='Reference scenarios'!$K$1,'Reference scenarios'!K15,IF($G$3='Reference scenarios'!$R$1,'Reference scenarios'!R15,IF($G$3='Reference scenarios'!$Y$1,'Reference scenarios'!Y15,NA()))) -> 0 | F25: =IF($G$3='Reference scenarios'!$K$1,'Reference scenarios'!L15,IF($G$3='Reference scenarios'!$R$1,'Reference scenarios'!S15,IF($G$3='Reference scenarios'!$Y$1,'Reference scenarios'!Z15,NA()))) -> 0 | G25: =IF($G$3='Reference scenarios'!$K$1,'Reference scenarios'!M15,IF($G$3='Reference scenarios'!$R$1,'Reference scenarios'!T15,IF($G$3='Reference scenarios'!$Y$1,'Reference scenarios'!AA15,NA()))) -> 0 | H25: =IF($G$3='Reference scenarios'!$K$1,'Reference scenarios'!N15,IF($G$3='Reference scenarios'!$R$1,'Reference scenarios'!U15,IF($G$3='Reference scenarios'!$Y$1,'Reference scenarios'!AB15,NA()))) -> 0 | I25: =IF($G$3='Reference scenarios'!$K$1,'Reference scenarios'!O15,IF($G$3='Reference scenarios'!$R$1,'Reference scenarios'!V15,IF($G$3='Reference scenarios'!$Y$1,'Reference scenarios'!AC15,NA()))) -> 0 | J25: =IF($G$3='Reference scenarios'!$K$1,'Reference scenarios'!P15,IF($G$3='Reference scenarios'!$R$1,'Reference scenarios'!W15,IF($G$3='Reference scenarios'!$Y$1,'Reference scenarios'!AD15,NA()))) -> 0 | K25: 15 | L25: =E25/'Evolution Urbaine'!I96 -> 0 | M25: =F25/'Evolution Urbaine'!J96 -> 0 | N25: =G25/'Evolution Urbaine'!K96 -> 0 | O25: =H25/'Evolution Urbaine'!L96 -> 0 | P25: =I25/'Evolution Urbaine'!M96 -> 0 | Q25: =J25/'Evolution Urbaine'!N96 -> 0 | R25: 17
C26: =ROMAN(2) -> II | D26: Agadir-Ida-Ou-Tanane-Inezgane- Ait Melloul | E26: =IF($G$3='Reference scenarios'!$K$1,'Reference scenarios'!K16,IF($G$3='Reference scenarios'!$R$1,'Reference scenarios'!R16,IF($G$3='Reference scenarios'!$Y$1,'Reference scenarios'!Y16,NA()))) -> 15.5 | F26: =IF($G$3='Reference scenarios'!$K$1,'Reference scenarios'!L16,IF($G$3='Reference scenarios'!$R$1,'Reference scenarios'!S16,IF($G$3='Reference scenarios'!$Y$1,'Reference scenarios'!Z16,NA()))) -> 47.5 | G26: =IF($G$3='Reference scenarios'!$K$1,'Reference scenarios'!M16,IF($G$3='Reference scenarios'!$R$1,'Reference scenarios'!T16,IF($G$3='Reference scenarios'!$Y$1,'Reference scenarios'!AA16,NA()))) -> 47.5 | H26: =IF($G$3='Reference scenarios'!$K$1,'Reference scenarios'!N16,IF($G$3='Reference scenarios'!$R$1,'Reference scenarios'!U16,IF($G$3='Reference scenarios'!$Y$1,'Reference scenarios'!AB16,NA()))) -> 47.5 | I26: =IF($G$3='Reference scenarios'!$K$1,'Reference scenarios'!O16,IF($G$3='Reference scenarios'!$R$1,'Reference scenarios'!V16,IF($G$3='Reference scenarios'!$Y$1,'Reference scenarios'!AC16,NA()))) -> 47.5 | J26: =IF($G$3='Reference scenarios'!$K$1,'Reference scenarios'!P16,IF($G$3='Reference scenarios'!$R$1,'Reference scenarios'!W16,IF($G$3='Reference scenarios'!$Y$1,'Reference scenarios'!AD16,NA()))) -> 47.5 | K26: 16 | L26: =E26/'Evolution Urbaine'!I97 -> 0.01355179531 | M26: =F26/'Evolution Urbaine'!J97 -> 0.03786241839 | N26: =G26/'Evolution Urbaine'!K97 -> 0.03391904097 | O26: =H26/'Evolution Urbaine'!L97 -> 0.03068882322 | P26: =I26/'Evolution Urbaine'!M97 -> 0.02801396483 | Q26: =J26/'Evolution Urbaine'!N97 -> 0.02576659064 | R26: 18
C27: =ROMAN(2) -> II | D27: Tanger-Assilah | E27: =IF($G$3='Reference scenarios'!$K$1,'Reference scenarios'!K17,IF($G$3='Reference scenarios'!$R$1,'Reference scenarios'!R17,IF($G$3='Reference scenarios'!$Y$1,'Reference scenarios'!Y17,NA()))) -> 21 | F27: =IF($G$3='Reference scenarios'!$K$1,'Reference scenarios'!L17,IF($G$3='Reference scenarios'!$R$1,'Reference scenarios'!S17,IF($G$3='Reference scenarios'!$Y$1,'Reference scenarios'!Z17,NA()))) -> 37.2 | G27: =IF($G$3='Reference scenarios'!$K$1,'Reference scenarios'!M17,IF($G$3='Reference scenarios'!$R$1,'Reference scenarios'!T17,IF($G$3='Reference scenarios'!$Y$1,'Reference scenarios'!AA17,NA()))) -> 37.2 | H27: =IF($G$3='Reference scenarios'!$K$1,'Reference scenarios'!N17,IF($G$3='Reference scenarios'!$R$1,'Reference scenarios'!U17,IF($G$3='Reference scenarios'!$Y$1,'Reference scenarios'!AB17,NA()))) -> 37.2 | I27: =IF($G$3='Reference scenarios'!$K$1,'Reference scenarios'!O17,IF($G$3='Reference scenarios'!$R$1,'Reference scenarios'!V17,IF($G$3='Reference scenarios'!$Y$1,'Reference scenarios'!AC17,NA()))) -> 37.2 | J27: =IF($G$3='Reference scenarios'!$K$1,'Reference scenarios'!P17,IF($G$3='Reference scenarios'!$R$1,'Reference scenarios'!W17,IF($G$3='Reference scenarios'!$Y$1,'Reference scenarios'!AD17,NA()))) -> 37.2 | K27: 17 | L27: =E27/'Evolution Urbaine'!I98 -> 0.02743134708 | M27: =F27/'Evolution Urbaine'!J98 -> 0.04522662802 | N27: =G27/'Evolution Urbaine'!K98 -> 0.04134823745 | O27: =H27/'Evolution Urbaine'!L98 -> 0.03817871007 | P27: =I27/'Evolution Urbaine'!M98 -> 0.03556666734 | Q27: =J27/'Evolution Urbaine'!N98 -> 0.03338513448 | R27: 19
C28: =ROMAN(2) -> II | D28: Marrakech | E28: =IF($G$3='Reference scenarios'!$K$1,'Reference scenarios'!K18,IF($G$3='Reference scenarios'!$R$1,'Reference scenarios'!R18,IF($G$3='Reference scenarios'!$Y$1,'Reference scenarios'!Y18,NA()))) -> 8 | F28: =IF($G$3='Reference scenarios'!$K$1,'Reference scenarios'!L18,IF($G$3='Reference scenarios'!$R$1,'Reference scenarios'!S18,IF($G$3='Reference scenarios'!$Y$1,'Reference scenarios'!Z18,NA()))) -> 34 | G28: =IF($G$3='Reference scenarios'!$K$1,'Reference scenarios'!M18,IF($G$3='Reference scenarios'!$R$1,'Reference scenarios'!T18,IF($G$3='Reference scenarios'!$Y$1,'Reference scenarios'!AA18,NA()))) -> 34 | H28: =IF($G$3='Reference scenarios'!$K$1,'Reference scenarios'!N18,IF($G$3='Reference scenarios'!$R$1,'Reference scenarios'!U18,IF($G$3='Reference scenarios'!$Y$1,'Reference scenarios'!AB18,NA()))) -> 34 | I28: =IF($G$3='Reference scenarios'!$K$1,'Reference scenarios'!O18,IF($G$3='Reference scenarios'!$R$1,'Reference scenarios'!V18,IF($G$3='Reference scenarios'!$Y$1,'Reference scenarios'!AC18,NA()))) -> 34 | J28: =IF($G$3='Reference scenarios'!$K$1,'Reference scenarios'!P18,IF($G$3='Reference scenarios'!$R$1,'Reference scenarios'!W18,IF($G$3='Reference scenarios'!$Y$1,'Reference scenarios'!AD18,NA()))) -> 34 | K28: 18 | L28: =E28/'Evolution Urbaine'!I99 -> 0.008455768704 | M28: =F28/'Evolution Urbaine'!J99 -> 0.03561612696 | N28: =G28/'Evolution Urbaine'!K99 -> 0.03465266565 | O28: =H28/'Evolution Urbaine'!L99 -> 0.03405085823 | P28: =I28/'Evolution Urbaine'!M99 -> 0.03375803425 | Q28: =J28/'Evolution Urbaine'!N99 -> 0.03372207356 | R28: 20
C29: =ROMAN(3) -> III | D29: Meknès (Mun.) | E29: =IF($G$3='Reference scenarios'!$K$1,'Reference scenarios'!K19,IF($G$3='Reference scenarios'!$R$1,'Reference scenarios'!R19,IF($G$3='Reference scenarios'!$Y$1,'Reference scenarios'!Y19,NA()))) -> 0 | F29: =IF($G$3='Reference scenarios'!$K$1,'Reference scenarios'!L19,IF($G$3='Reference scenarios'!$R$1,'Reference scenarios'!S19,IF($G$3='Reference scenarios'!$Y$1,'Reference scenarios'!Z19,NA()))) -> 0 | G29: =IF($G$3='Reference scenarios'!$K$1,'Reference scenarios'!M19,IF($G$3='Reference scenarios'!$R$1,'Reference scenarios'!T19,IF($G$3='Reference scenarios'!$Y$1,'Reference scenarios'!AA19,NA()))) -> 0 | H29: =IF($G$3='Reference scenarios'!$K$1,'Reference scenarios'!N19,IF($G$3='Reference scenarios'!$R$1,'Reference scenarios'!U19,IF($G$3='Reference scenarios'!$Y$1,'Reference scenarios'!AB19,NA()))) -> 0 | I29: =IF($G$3='Reference scenarios'!$K$1,'Reference scenarios'!O19,IF($G$3='Reference scenarios'!$R$1,'Reference scenarios'!V19,IF($G$3='Reference scenarios'!$Y$1,'Reference scenarios'!AC19,NA()))) -> 0 | J29: =IF($G$3='Reference scenarios'!$K$1,'Reference scenarios'!P19,IF($G$3='Reference scenarios'!$R$1,'Reference scenarios'!W19,IF($G$3='Reference scenarios'!$Y$1,'Reference scenarios'!AD19,NA()))) -> 0 | K29: 19 | L29: =E29/'Evolution Urbaine'!I100 -> 0 | M29: =F29/'Evolution Urbaine'!J100 -> 0 | N29: =G29/'Evolution Urbaine'!K100 -> 0 | O29: =H29/'Evolution Urbaine'!L100 -> 0 | P29: =I29/'Evolution Urbaine'!M100 -> 0 | Q29: =J29/'Evolution Urbaine'!N100 -> 0 | R29: 21
C30: III | D30: Kenitra | E30: =IF($G$3='Reference scenarios'!$K$1,'Reference scenarios'!K20,IF($G$3='Reference scenarios'!$R$1,'Reference scenarios'!R20,IF($G$3='Reference scenarios'!$Y$1,'Reference scenarios'!Y20,NA()))) -> 0 | F30: =IF($G$3='Reference scenarios'!$K$1,'Reference scenarios'!L20,IF($G$3='Reference scenarios'!$R$1,'Reference scenarios'!S20,IF($G$3='Reference scenarios'!$Y$1,'Reference scenarios'!Z20,NA()))) -> 0 | G30: =IF($G$3='Reference scenarios'!$K$1,'Reference scenarios'!M20,IF($G$3='Reference scenarios'!$R$1,'Reference scenarios'!T20,IF($G$3='Reference scenarios'!$Y$1,'Reference scenarios'!AA20,NA()))) -> 0 | H30: =IF($G$3='Reference scenarios'!$K$1,'Reference scenarios'!N20,IF($G$3='Reference scenarios'!$R$1,'Reference scenarios'!U20,IF($G$3='Reference scenarios'!$Y$1,'Reference scenarios'!AB20,NA()))) -> 0 | I30: =IF($G$3='Reference scenarios'!$K$1,'Reference scenarios'!O20,IF($G$3='Reference scenarios'!$R$1,'Reference scenarios'!V20,IF($G$3='Reference scenarios'!$Y$1,'Reference scenarios'!AC20,NA()))) -> 0 | J30: =IF($G$3='Reference scenarios'!$K$1,'Reference scenarios'!P20,IF($G$3='Reference scenarios'!$R$1,'Reference scenarios'!W20,IF($G$3='Reference scenarios'!$Y$1,'Reference scenarios'!AD20,NA()))) -> 0 | K30: 20 | L30: =E30/'Evolution Urbaine'!I101 -> 0 | M30: =F30/'Evolution Urbaine'!J101 -> 0 | N30: =G30/'Evolution Urbaine'!K101 -> 0 | O30: =H30/'Evolution Urbaine'!L101 -> 0 | P30: =I30/'Evolution Urbaine'!M101 -> 0 | Q30: =J30/'Evolution Urbaine'!N101 -> 0 | R30: 22
C31: III | D31: Oujda-Angad (Mun.) | E31: =IF($G$3='Reference scenarios'!$K$1,'Reference scenarios'!K21,IF($G$3='Reference scenarios'!$R$1,'Reference scenarios'!R21,IF($G$3='Reference scenarios'!$Y$1,'Reference scenarios'!Y21,NA()))) -> 0 | F31: =IF($G$3='Reference scenarios'!$K$1,'Reference scenarios'!L21,IF($G$3='Reference scenarios'!$R$1,'Reference scenarios'!S21,IF($G$3='Reference scenarios'!$Y$1,'Reference scenarios'!Z21,NA()))) -> 0 | G31: =IF($G$3='Reference scenarios'!$K$1,'Reference scenarios'!M21,IF($G$3='Reference scenarios'!$R$1,'Reference scenarios'!T21,IF($G$3='Reference scenarios'!$Y$1,'Reference scenarios'!AA21,NA()))) -> 0 | H31: =IF($G$3='Reference scenarios'!$K$1,'Reference scenarios'!N21,IF($G$3='Reference scenarios'!$R$1,'Reference scenarios'!U21,IF($G$3='Reference scenarios'!$Y$1,'Reference scenarios'!AB21,NA()))) -> 0 | I31: =IF($G$3='Reference scenarios'!$K$1,'Reference scenarios'!O21,IF($G$3='Reference scenarios'!$R$1,'Reference scenarios'!V21,IF($G$3='Reference scenarios'!$Y$1,'Reference scenarios'!AC21,NA()))) -> 0 | J31: =IF($G$3='Reference scenarios'!$K$1,'Reference scenarios'!P21,IF($G$3='Reference scenarios'!$R$1,'Reference scenarios'!W21,IF($G$3='Reference scenarios'!$Y$1,'Reference scenarios'!AD21,NA()))) -> 0 | K31: 21 | L31: =E31/'Evolution Urbaine'!I102 -> 0 | M31: =F31/'Evolution Urbaine'!J102 -> 0 | N31: =G31/'Evolution Urbaine'!K102 -> 0 | O31: =H31/'Evolution Urbaine'!L102 -> 0 | P31: =I31/'Evolution Urbaine'!M102 -> 0 | Q31: =J31/'Evolution Urbaine'!N102 -> 0 | R31: 23
C32: III | D32: Nador (Mun.) | E32: =IF($G$3='Reference scenarios'!$K$1,'Reference scenarios'!K22,IF($G$3='Reference scenarios'!$R$1,'Reference scenarios'!R22,IF($G$3='Reference scenarios'!$Y$1,'Reference scenarios'!Y22,NA()))) -> 0 | F32: =IF($G$3='Reference scenarios'!$K$1,'Reference scenarios'!L22,IF($G$3='Reference scenarios'!$R$1,'Reference scenarios'!S22,IF($G$3='Reference scenarios'!$Y$1,'Reference scenarios'!Z22,NA()))) -> 0 | G32: =IF($G$3='Reference scenarios'!$K$1,'Reference scenarios'!M22,IF($G$3='Reference scenarios'!$R$1,'Reference scenarios'!T22,IF($G$3='Reference scenarios'!$Y$1,'Reference scenarios'!AA22,NA()))) -> 0 | H32: =IF($G$3='Reference scenarios'!$K$1,'Reference scenarios'!N22,IF($G$3='Reference scenarios'!$R$1,'Reference scenarios'!U22,IF($G$3='Reference scenarios'!$Y$1,'Reference scenarios'!AB22,NA()))) -> 0 | I32: =IF($G$3='Reference scenarios'!$K$1,'Reference scenarios'!O22,IF($G$3='Reference scenarios'!$R$1,'Reference scenarios'!V22,IF($G$3='Reference scenarios'!$Y$1,'Reference scenarios'!AC22,NA()))) -> 0 | J32: =IF($G$3='Reference scenarios'!$K$1,'Reference scenarios'!P22,IF($G$3='Reference scenarios'!$R$1,'Reference scenarios'!W22,IF($G$3='Reference scenarios'!$Y$1,'Reference scenarios'!AD22,NA()))) -> 0 | K32: 22 | L32: =E32/'Evolution Urbaine'!I103 -> 0 | M32: =F32/'Evolution Urbaine'!J103 -> 0 | N32: =G32/'Evolution Urbaine'!K103 -> 0 | O32: =H32/'Evolution Urbaine'!L103 -> 0 | P32: =I32/'Evolution Urbaine'!M103 -> 0 | Q32: =J32/'Evolution Urbaine'!N103 -> 0 | R32: 24
C33: III | D33: Tétouan (Mun.) | E33: =IF($G$3='Reference scenarios'!$K$1,'Reference scenarios'!K23,IF($G$3='Reference scenarios'!$R$1,'Reference scenarios'!R23,IF($G$3='Reference scenarios'!$Y$1,'Reference scenarios'!Y23,NA()))) -> 0 | F33: =IF($G$3='Reference scenarios'!$K$1,'Reference scenarios'!L23,IF($G$3='Reference scenarios'!$R$1,'Reference scenarios'!S23,IF($G$3='Reference scenarios'!$Y$1,'Reference scenarios'!Z23,NA()))) -> 0 | G33: =IF($G$3='Reference scenarios'!$K$1,'Reference scenarios'!M23,IF($G$3='Reference scenarios'!$R$1,'Reference scenarios'!T23,IF($G$3='Reference scenarios'!$Y$1,'Reference scenarios'!AA23,NA()))) -> 0 | H33: =IF($G$3='Reference scenarios'!$K$1,'Reference scenarios'!N23,IF($G$3='Reference scenarios'!$R$1,'Reference scenarios'!U23,IF($G$3='Reference scenarios'!$Y$1,'Reference scenarios'!AB23,NA()))) -> 0 | I33: =IF($G$3='Reference scenarios'!$K$1,'Reference scenarios'!O23,IF($G$3='Reference scenarios'!$R$1,'Reference scenarios'!V23,IF($G$3='Reference scenarios'!$Y$1,'Reference scenarios'!AC23,NA()))) -> 0 | J33: =IF($G$3='Reference scenarios'!$K$1,'Reference scenarios'!P23,IF($G$3='Reference scenarios'!$R$1,'Reference scenarios'!W23,IF($G$3='Reference scenarios'!$Y$1,'Reference scenarios'!AD23,NA()))) -> 0 | K33: 23 | L33: =E33/'Evolution Urbaine'!I104 -> 0 | M33: =F33/'Evolution Urbaine'!J104 -> 0 | N33: =G33/'Evolution Urbaine'!K104 -> 0 | O33: =H33/'Evolution Urbaine'!L104 -> 0 | P33: =I33/'Evolution Urbaine'!M104 -> 0 | Q33: =J33/'Evolution Urbaine'!N104 -> 0 | R33: 25
C34: III | D34: Khouribga (Mun.) | E34: =IF($G$3='Reference scenarios'!$K$1,'Reference scenarios'!K24,IF($G$3='Reference scenarios'!$R$1,'Reference scenarios'!R24,IF($G$3='Reference scenarios'!$Y$1,'Reference scenarios'!Y24,NA()))) -> 0 | F34: =IF($G$3='Reference scenarios'!$K$1,'Reference scenarios'!L24,IF($G$3='Reference scenarios'!$R$1,'Reference scenarios'!S24,IF($G$3='Reference scenarios'!$Y$1,'Reference scenarios'!Z24,NA()))) -> 0 | G34: =IF($G$3='Reference scenarios'!$K$1,'Reference scenarios'!M24,IF($G$3='Reference scenarios'!$R$1,'Reference scenarios'!T24,IF($G$3='Reference scenarios'!$Y$1,'Reference scenarios'!AA24,NA()))) -> 0 | H34: =IF($G$3='Reference scenarios'!$K$1,'Reference scenarios'!N24,IF($G$3='Reference scenarios'!$R$1,'Reference scenarios'!U24,IF($G$3='Reference scenarios'!$Y$1,'Reference scenarios'!AB24,NA()))) -> 0 | I34: =IF($G$3='Reference scenarios'!$K$1,'Reference scenarios'!O24,IF($G$3='Reference scenarios'!$R$1,'Reference scenarios'!V24,IF($G$3='Reference scenarios'!$Y$1,'Reference scenarios'!AC24,NA()))) -> 0 | J34: =IF($G$3='Reference scenarios'!$K$1,'Reference scenarios'!P24,IF($G$3='Reference scenarios'!$R$1,'Reference scenarios'!W24,IF($G$3='Reference scenarios'!$Y$1,'Reference scenarios'!AD24,NA()))) -> 0 | K34: 24 | L34: =E34/'Evolution Urbaine'!I105 -> 0 | M34: =F34/'Evolution Urbaine'!J105 -> 0 | N34: =G34/'Evolution Urbaine'!K105 -> 0 | O34: =H34/'Evolution Urbaine'!L105 -> 0 | P34: =I34/'Evolution Urbaine'!M105 -> 0 | Q34: =J34/'Evolution Urbaine'!N105 -> 0 | R34: 26
C35: III | D35: El Jadida (Mun.) | E35: =IF($G$3='Reference scenarios'!$K$1,'Reference scenarios'!K25,IF($G$3='Reference scenarios'!$R$1,'Reference scenarios'!R25,IF($G$3='Reference scenarios'!$Y$1,'Reference scenarios'!Y25,NA()))) -> 0 | F35: =IF($G$3='Reference scenarios'!$K$1,'Reference scenarios'!L25,IF($G$3='Reference scenarios'!$R$1,'Reference scenarios'!S25,IF($G$3='Reference scenarios'!$Y$1,'Reference scenarios'!Z25,NA()))) -> 0 | G35: =IF($G$3='Reference scenarios'!$K$1,'Reference scenarios'!M25,IF($G$3='Reference scenarios'!$R$1,'Reference scenarios'!T25,IF($G$3='Reference scenarios'!$Y$1,'Reference scenarios'!AA25,NA()))) -> 0 | H35: =IF($G$3='Reference scenarios'!$K$1,'Reference scenarios'!N25,IF($G$3='Reference scenarios'!$R$1,'Reference scenarios'!U25,IF($G$3='Reference scenarios'!$Y$1,'Reference scenarios'!AB25,NA()))) -> 0 | I35: =IF($G$3='Reference scenarios'!$K$1,'Reference scenarios'!O25,IF($G$3='Reference scenarios'!$R$1,'Reference scenarios'!V25,IF($G$3='Reference scenarios'!$Y$1,'Reference scenarios'!AC25,NA()))) -> 0 | J35: =IF($G$3='Reference scenarios'!$K$1,'Reference scenarios'!P25,IF($G$3='Reference scenarios'!$R$1,'Reference scenarios'!W25,IF($G$3='Reference scenarios'!$Y$1,'Reference scenarios'!AD25,NA()))) -> 0 | K35: 25 | L35: =E35/'Evolution Urbaine'!I106 -> 0 | M35: =F35/'Evolution Urbaine'!J106 -> 0 | N35: =G35/'Evolution Urbaine'!K106 -> 0 | O35: =H35/'Evolution Urbaine'!L106 -> 0 | P35: =I35/'Evolution Urbaine'!M106 -> 0 | Q35: =J35/'Evolution Urbaine'!N106 -> 0 | R35: 27
C36: III | D36: Berrechid (Mun.) | E36: =IF($G$3='Reference scenarios'!$K$1,'Reference scenarios'!K26,IF($G$3='Reference scenarios'!$R$1,'Reference scenarios'!R26,IF($G$3='Reference scenarios'!$Y$1,'Reference scenarios'!Y26,NA()))) -> 0 | F36: =IF($G$3='Reference scenarios'!$K$1,'Reference scenarios'!L26,IF($G$3='Reference scenarios'!$R$1,'Reference scenarios'!S26,IF($G$3='Reference scenarios'!$Y$1,'Reference scenarios'!Z26,NA()))) -> 0 | G36: =IF($G$3='Reference scenarios'!$K$1,'Reference scenarios'!M26,IF($G$3='Reference scenarios'!$R$1,'Reference scenarios'!T26,IF($G$3='Reference scenarios'!$Y$1,'Reference scenarios'!AA26,NA()))) -> 0 | H36: =IF($G$3='Reference scenarios'!$K$1,'Reference scenarios'!N26,IF($G$3='Reference scenarios'!$R$1,'Reference scenarios'!U26,IF($G$3='Reference scenarios'!$Y$1,'Reference scenarios'!AB26,NA()))) -> 0 | I36: =IF($G$3='Reference scenarios'!$K$1,'Reference scenarios'!O26,IF($G$3='Reference scenarios'!$R$1,'Reference scenarios'!V26,IF($G$3='Reference scenarios'!$Y$1,'Reference scenarios'!AC26,NA()))) -> 0 | J36: =IF($G$3='Reference scenarios'!$K$1,'Reference scenarios'!P26,IF($G$3='Reference scenarios'!$R$1,'Reference scenarios'!W26,IF($G$3='Reference scenarios'!$Y$1,'Reference scenarios'!AD26,NA()))) -> 0 | K36: 26 | L36: =E36/'Evolution Urbaine'!I107 -> 0 | M36: =F36/'Evolution Urbaine'!J107 -> 0 | N36: =G36/'Evolution Urbaine'!K107 -> 0 | O36: =H36/'Evolution Urbaine'!L107 -> 0 | P36: =I36/'Evolution Urbaine'!M107 -> 0 | Q36: =J36/'Evolution Urbaine'!N107 -> 0 | R36: 28
C37: III | D37: Safi (Mun.) | E37: =IF($G$3='Reference scenarios'!$K$1,'Reference scenarios'!K27,IF($G$3='Reference scenarios'!$R$1,'Reference scenarios'!R27,IF($G$3='Reference scenarios'!$Y$1,'Reference scenarios'!Y27,NA()))) -> 0 | F37: =IF($G$3='Reference scenarios'!$K$1,'Reference scenarios'!L27,IF($G$3='Reference scenarios'!$R$1,'Reference scenarios'!S27,IF($G$3='Reference scenarios'!$Y$1,'Reference scenarios'!Z27,NA()))) -> 0 | G37: =IF($G$3='Reference scenarios'!$K$1,'Reference scenarios'!M27,IF($G$3='Reference scenarios'!$R$1,'Reference scenarios'!T27,IF($G$3='Reference scenarios'!$Y$1,'Reference scenarios'!AA27,NA()))) -> 0 | H37: =IF($G$3='Reference scenarios'!$K$1,'Reference scenarios'!N27,IF($G$3='Reference scenarios'!$R$1,'Reference scenarios'!U27,IF($G$3='Reference scenarios'!$Y$1,'Reference scenarios'!AB27,NA()))) -> 0 | I37: =IF($G$3='Reference scenarios'!$K$1,'Reference scenarios'!O27,IF($G$3='Reference scenarios'!$R$1,'Reference scenarios'!V27,IF($G$3='Reference scenarios'!$Y$1,'Reference scenarios'!AC27,NA()))) -> 0 | J37: =IF($G$3='Reference scenarios'!$K$1,'Reference scenarios'!P27,IF($G$3='Reference scenarios'!$R$1,'Reference scenarios'!W27,IF($G$3='Reference scenarios'!$Y$1,'Reference scenarios'!AD27,NA()))) -> 0 | K37: 27 | L37: =E37/'Evolution Urbaine'!I108 -> 0 | M37: =F37/'Evolution Urbaine'!J108 -> 0 | N37: =G37/'Evolution Urbaine'!K108 -> 0 | O37: =H37/'Evolution Urbaine'!L108 -> 0 | P37: =I37/'Evolution Urbaine'!M108 -> 0 | Q37: =J37/'Evolution Urbaine'!N108 -> 0 | R37: 29
C38: III | D38: Béni Mellal (Mun.) | E38: =IF($G$3='Reference scenarios'!$K$1,'Reference scenarios'!K28,IF($G$3='Reference scenarios'!$R$1,'Reference scenarios'!R28,IF($G$3='Reference scenarios'!$Y$1,'Reference scenarios'!Y28,NA()))) -> 0 | F38: =IF($G$3='Reference scenarios'!$K$1,'Reference scenarios'!L28,IF($G$3='Reference scenarios'!$R$1,'Reference scenarios'!S28,IF($G$3='Reference scenarios'!$Y$1,'Reference scenarios'!Z28,NA()))) -> 0 | G38: =IF($G$3='Reference scenarios'!$K$1,'Reference scenarios'!M28,IF($G$3='Reference scenarios'!$R$1,'Reference scenarios'!T28,IF($G$3='Reference scenarios'!$Y$1,'Reference scenarios'!AA28,NA()))) -> 0 | H38: =IF($G$3='Reference scenarios'!$K$1,'Reference scenarios'!N28,IF($G$3='Reference scenarios'!$R$1,'Reference scenarios'!U28,IF($G$3='Reference scenarios'!$Y$1,'Reference scenarios'!AB28,NA()))) -> 0 | I38: =IF($G$3='Reference scenarios'!$K$1,'Reference scenarios'!O28,IF($G$3='Reference scenarios'!$R$1,'Reference scenarios'!V28,IF($G$3='Reference scenarios'!$Y$1,'Reference scenarios'!AC28,NA()))) -> 0 | J38: =IF($G$3='Reference scenarios'!$K$1,'Reference scenarios'!P28,IF($G$3='Reference scenarios'!$R$1,'Reference scenarios'!W28,IF($G$3='Reference scenarios'!$Y$1,'Reference scenarios'!AD28,NA()))) -> 0 | K38: 28 | L38: =E38/'Evolution Urbaine'!I109 -> 0 | M38: =F38/'Evolution Urbaine'!J109 -> 0 | N38: =G38/'Evolution Urbaine'!K109 -> 0 | O38: =H38/'Evolution Urbaine'!L109 -> 0 | P38: =I38/'Evolution Urbaine'!M109 -> 0 | Q38: =J38/'Evolution Urbaine'!N109 -> 0 | R38: 30
C39: =ROMAN(4) -> IV | D39: Khémisset (Mun.) | E39: =IF($G$3='Reference scenarios'!$K$1,'Reference scenarios'!K29,IF($G$3='Reference scenarios'!$R$1,'Reference scenarios'!R29,IF($G$3='Reference scenarios'!$Y$1,'Reference scenarios'!Y29,NA()))) -> 0 | F39: =IF($G$3='Reference scenarios'!$K$1,'Reference scenarios'!L29,IF($G$3='Reference scenarios'!$R$1,'Reference scenarios'!S29,IF($G$3='Reference scenarios'!$Y$1,'Reference scenarios'!Z29,NA()))) -> 0 | G39: =IF($G$3='Reference scenarios'!$K$1,'Reference scenarios'!M29,IF($G$3='Reference scenarios'!$R$1,'Reference scenarios'!T29,IF($G$3='Reference scenarios'!$Y$1,'Reference scenarios'!AA29,NA()))) -> 0 | H39: =IF($G$3='Reference scenarios'!$K$1,'Reference scenarios'!N29,IF($G$3='Reference scenarios'!$R$1,'Reference scenarios'!U29,IF($G$3='Reference scenarios'!$Y$1,'Reference scenarios'!AB29,NA()))) -> 0 | I39: =IF($G$3='Reference scenarios'!$K$1,'Reference scenarios'!O29,IF($G$3='Reference scenarios'!$R$1,'Reference scenarios'!V29,IF($G$3='Reference scenarios'!$Y$1,'Reference scenarios'!AC29,NA()))) -> 0 | J39: =IF($G$3='Reference scenarios'!$K$1,'Reference scenarios'!P29,IF($G$3='Reference scenarios'!$R$1,'Reference scenarios'!W29,IF($G$3='Reference scenarios'!$Y$1,'Reference scenarios'!AD29,NA()))) -> 0 | K39: 29 | L39: =E39/'Evolution Urbaine'!I110 -> 0 | M39: =F39/'Evolution Urbaine'!J110 -> 0 | N39: =G39/'Evolution Urbaine'!K110 -> 0 | O39: =H39/'Evolution Urbaine'!L110 -> 0 | P39: =I39/'Evolution Urbaine'!M110 -> 0 | Q39: =J39/'Evolution Urbaine'!N110 -> 0 | R39: 31
C40: IV | D40: Larache (Mun.) | E40: =IF($G$3='Reference scenarios'!$K$1,'Reference scenarios'!K30,IF($G$3='Reference scenarios'!$R$1,'Reference scenarios'!R30,IF($G$3='Reference scenarios'!$Y$1,'Reference scenarios'!Y30,NA()))) -> 0 | F40: =IF($G$3='Reference scenarios'!$K$1,'Reference scenarios'!L30,IF($G$3='Reference scenarios'!$R$1,'Reference scenarios'!S30,IF($G$3='Reference scenarios'!$Y$1,'Reference scenarios'!Z30,NA()))) -> 0 | G40: =IF($G$3='Reference scenarios'!$K$1,'Reference scenarios'!M30,IF($G$3='Reference scenarios'!$R$1,'Reference scenarios'!T30,IF($G$3='Reference scenarios'!$Y$1,'Reference scenarios'!AA30,NA()))) -> 0 | H40: =IF($G$3='Reference scenarios'!$K$1,'Reference scenarios'!N30,IF($G$3='Reference scenarios'!$R$1,'Reference scenarios'!U30,IF($G$3='Reference scenarios'!$Y$1,'Reference scenarios'!AB30,NA()))) -> 0 | I40: =IF($G$3='Reference scenarios'!$K$1,'Reference scenarios'!O30,IF($G$3='Reference scenarios'!$R$1,'Reference scenarios'!V30,IF($G$3='Reference scenarios'!$Y$1,'Reference scenarios'!AC30,NA()))) -> 0 | J40: =IF($G$3='Reference scenarios'!$K$1,'Reference scenarios'!P30,IF($G$3='Reference scenarios'!$R$1,'Reference scenarios'!W30,IF($G$3='Reference scenarios'!$Y$1,'Reference scenarios'!AD30,NA()))) -> 0 | K40: 30 | L40: =E40/'Evolution Urbaine'!I111 -> 0 | M40: =F40/'Evolution Urbaine'!J111 -> 0 | N40: =G40/'Evolution Urbaine'!K111 -> 0 | O40: =H40/'Evolution Urbaine'!L111 -> 0 | P40: =I40/'Evolution Urbaine'!M111 -> 0 | Q40: =J40/'Evolution Urbaine'!N111 -> 0 | R40: 32
C41: IV | D41: Laayoune (Mun.) | E41: =IF($G$3='Reference scenarios'!$K$1,'Reference scenarios'!K31,IF($G$3='Reference scenarios'!$R$1,'Reference scenarios'!R31,IF($G$3='Reference scenarios'!$Y$1,'Reference scenarios'!Y31,NA()))) -> 0 | F41: =IF($G$3='Reference scenarios'!$K$1,'Reference scenarios'!L31,IF($G$3='Reference scenarios'!$R$1,'Reference scenarios'!S31,IF($G$3='Reference scenarios'!$Y$1,'Reference scenarios'!Z31,NA()))) -> 0 | G41: =IF($G$3='Reference scenarios'!$K$1,'Reference scenarios'!M31,IF($G$3='Reference scenarios'!$R$1,'Reference scenarios'!T31,IF($G$3='Reference scenarios'!$Y$1,'Reference scenarios'!AA31,NA()))) -> 0 | H41: =IF($G$3='Reference scenarios'!$K$1,'Reference scenarios'!N31,IF($G$3='Reference scenarios'!$R$1,'Reference scenarios'!U31,IF($G$3='Reference scenarios'!$Y$1,'Reference scenarios'!AB31,NA()))) -> 0 | I41: =IF($G$3='Reference scenarios'!$K$1,'Reference scenarios'!O31,IF($G$3='Reference scenarios'!$R$1,'Reference scenarios'!V31,IF($G$3='Reference scenarios'!$Y$1,'Reference scenarios'!AC31,NA()))) -> 0 | J41: =IF($G$3='Reference scenarios'!$K$1,'Reference scenarios'!P31,IF($G$3='Reference scenarios'!$R$1,'Reference scenarios'!W31,IF($G$3='Reference scenarios'!$Y$1,'Reference scenarios'!AD31,NA()))) -> 0 | K41: 31 | L41: =E41/'Evolution Urbaine'!I112 -> 0 | M41: =F41/'Evolution Urbaine'!J112 -> 0 | N41: =G41/'Evolution Urbaine'!K112 -> 0 | O41: =H41/'Evolution Urbaine'!L112 -> 0 | P41: =I41/'Evolution Urbaine'!M112 -> 0 | Q41: =J41/'Evolution Urbaine'!N112 -> 0 | R41: 33
C42: IV | D42: Khenifra (Mun.) | E42: =IF($G$3='Reference scenarios'!$K$1,'Reference scenarios'!K32,IF($G$3='Reference scenarios'!$R$1,'Reference scenarios'!R32,IF($G$3='Reference scenarios'!$Y$1,'Reference scenarios'!Y32,NA()))) -> 0 | F42: =IF($G$3='Reference scenarios'!$K$1,'Reference scenarios'!L32,IF($G$3='Reference scenarios'!$R$1,'Reference scenarios'!S32,IF($G$3='Reference scenarios'!$Y$1,'Reference scenarios'!Z32,NA()))) -> 0 | G42: =IF($G$3='Reference scenarios'!$K$1,'Reference scenarios'!M32,IF($G$3='Reference scenarios'!$R$1,'Reference scenarios'!T32,IF($G$3='Reference scenarios'!$Y$1,'Reference scenarios'!AA32,NA()))) -> 0 | H42: =IF($G$3='Reference scenarios'!$K$1,'Reference scenarios'!N32,IF($G$3='Reference scenarios'!$R$1,'Reference scenarios'!U32,IF($G$3='Reference scenarios'!$Y$1,'Reference scenarios'!AB32,NA()))) -> 0 | I42: =IF($G$3='Reference scenarios'!$K$1,'Reference scenarios'!O32,IF($G$3='Reference scenarios'!$R$1,'Reference scenarios'!V32,IF($G$3='Reference scenarios'!$Y$1,'Reference scenarios'!AC32,NA()))) -> 0 | J42: =IF($G$3='Reference scenarios'!$K$1,'Reference scenarios'!P32,IF($G$3='Reference scenarios'!$R$1,'Reference scenarios'!W32,IF($G$3='Reference scenarios'!$Y$1,'Reference scenarios'!AD32,NA()))) -> 0 | K42: 32 | L42: =E42/'Evolution Urbaine'!I113 -> 0 | M42: =F42/'Evolution Urbaine'!J113 -> 0 | N42: =G42/'Evolution Urbaine'!K113 -> 0 | O42: =H42/'Evolution Urbaine'!L113 -> 0 | P42: =I42/'Evolution Urbaine'!M113 -> 0 | Q42: =J42/'Evolution Urbaine'!N113 -> 0 | R42: 34
C43: IV | D43: Settat (Mun.) | E43: =IF($G$3='Reference scenarios'!$K$1,'Reference scenarios'!K33,IF($G$3='Reference scenarios'!$R$1,'Reference scenarios'!R33,IF($G$3='Reference scenarios'!$Y$1,'Reference scenarios'!Y33,NA()))) -> 0 | F43: =IF($G$3='Reference scenarios'!$K$1,'Reference scenarios'!L33,IF($G$3='Reference scenarios'!$R$1,'Reference scenarios'!S33,IF($G$3='Reference scenarios'!$Y$1,'Reference scenarios'!Z33,NA()))) -> 0 | G43: =IF($G$3='Reference scenarios'!$K$1,'Reference scenarios'!M33,IF($G$3='Reference scenarios'!$R$1,'Reference scenarios'!T33,IF($G$3='Reference scenarios'!$Y$1,'Reference scenarios'!AA33,NA()))) -> 0 | H43: =IF($G$3='Reference scenarios'!$K$1,'Reference scenarios'!N33,IF($G$3='Reference scenarios'!$R$1,'Reference scenarios'!U33,IF($G$3='Reference scenarios'!$Y$1,'Reference scenarios'!AB33,NA()))) -> 0 | I43: =IF($G$3='Reference scenarios'!$K$1,'Reference scenarios'!O33,IF($G$3='Reference scenarios'!$R$1,'Reference scenarios'!V33,IF($G$3='Reference scenarios'!$Y$1,'Reference scenarios'!AC33,NA()))) -> 0 | J43: =IF($G$3='Reference scenarios'!$K$1,'Reference scenarios'!P33,IF($G$3='Reference scenarios'!$R$1,'Reference scenarios'!W33,IF($G$3='Reference scenarios'!$Y$1,'Reference scenarios'!AD33,NA()))) -> 0 | K43: 33 | L43: =E43/'Evolution Urbaine'!I114 -> 0 | M43: =F43/'Evolution Urbaine'!J114 -> 0 | N43: =G43/'Evolution Urbaine'!K114 -> 0 | O43: =H43/'Evolution Urbaine'!L114 -> 0 | P43: =I43/'Evolution Urbaine'!M114 -> 0 | Q43: =J43/'Evolution Urbaine'!N114 -> 0 | R43: 35
C44: IV | D44: Fquih Ben Salah (Mun.) | E44: =IF($G$3='Reference scenarios'!$K$1,'Reference scenarios'!K34,IF($G$3='Reference scenarios'!$R$1,'Reference scenarios'!R34,IF($G$3='Reference scenarios'!$Y$1,'Reference scenarios'!Y34,NA()))) -> 0 | F44: =IF($G$3='Reference scenarios'!$K$1,'Reference scenarios'!L34,IF($G$3='Reference scenarios'!$R$1,'Reference scenarios'!S34,IF($G$3='Reference scenarios'!$Y$1,'Reference scenarios'!Z34,NA()))) -> 0 | G44: =IF($G$3='Reference scenarios'!$K$1,'Reference scenarios'!M34,IF($G$3='Reference scenarios'!$R$1,'Reference scenarios'!T34,IF($G$3='Reference scenarios'!$Y$1,'Reference scenarios'!AA34,NA()))) -> 0 | H44: =IF($G$3='Reference scenarios'!$K$1,'Reference scenarios'!N34,IF($G$3='Reference scenarios'!$R$1,'Reference scenarios'!U34,IF($G$3='Reference scenarios'!$Y$1,'Reference scenarios'!AB34,NA()))) -> 0 | I44: =IF($G$3='Reference scenarios'!$K$1,'Reference scenarios'!O34,IF($G$3='Reference scenarios'!$R$1,'Reference scenarios'!V34,IF($G$3='Reference scenarios'!$Y$1,'Reference scenarios'!AC34,NA()))) -> 0 | J44: =IF($G$3='Reference scenarios'!$K$1,'Reference scenarios'!P34,IF($G$3='Reference scenarios'!$R$1,'Reference scenarios'!W34,IF($G$3='Reference scenarios'!$Y$1,'Reference scenarios'!AD34,NA()))) -> 0 | K44: 34 | L44: =E44/'Evolution Urbaine'!I115 -> 0 | M44: =F44/'Evolution Urbaine'!J115 -> 0 | N44: =G44/'Evolution Urbaine'!K115 -> 0 | O44: =H44/'Evolution Urbaine'!L115 -> 0 | P44: =I44/'Evolution Urbaine'!M115 -> 0 | Q44: =J44/'Evolution Urbaine'!N115 -> 0 | R44: 36
C45: IV | D45: Taza (Mun.) | E45: =IF($G$3='Reference scenarios'!$K$1,'Reference scenarios'!K35,IF($G$3='Reference scenarios'!$R$1,'Reference scenarios'!R35,IF($G$3='Reference scenarios'!$Y$1,'Reference scenarios'!Y35,NA()))) -> 0 | F45: =IF($G$3='Reference scenarios'!$K$1,'Reference scenarios'!L35,IF($G$3='Reference scenarios'!$R$1,'Reference scenarios'!S35,IF($G$3='Reference scenarios'!$Y$1,'Reference scenarios'!Z35,NA()))) -> 0 | G45: =IF($G$3='Reference scenarios'!$K$1,'Reference scenarios'!M35,IF($G$3='Reference scenarios'!$R$1,'Reference scenarios'!T35,IF($G$3='Reference scenarios'!$Y$1,'Reference scenarios'!AA35,NA()))) -> 0 | H45: =IF($G$3='Reference scenarios'!$K$1,'Reference scenarios'!N35,IF($G$3='Reference scenarios'!$R$1,'Reference scenarios'!U35,IF($G$3='Reference scenarios'!$Y$1,'Reference scenarios'!AB35,NA()))) -> 0 | I45: =IF($G$3='Reference scenarios'!$K$1,'Reference scenarios'!O35,IF($G$3='Reference scenarios'!$R$1,'Reference scenarios'!V35,IF($G$3='Reference scenarios'!$Y$1,'Reference scenarios'!AC35,NA()))) -> 0 | J45: =IF($G$3='Reference scenarios'!$K$1,'Reference scenarios'!P35,IF($G$3='Reference scenarios'!$R$1,'Reference scenarios'!W35,IF($G$3='Reference scenarios'!$Y$1,'Reference scenarios'!AD35,NA()))) -> 0 | K45: 35 | L45: =E45/'Evolution Urbaine'!I116 -> 0 | M45: =F45/'Evolution Urbaine'!J116 -> 0 | N45: =G45/'Evolution Urbaine'!K116 -> 0 | O45: =H45/'Evolution Urbaine'!L116 -> 0 | P45: =I45/'Evolution Urbaine'!M116 -> 0 | Q45: =J45/'Evolution Urbaine'!N116 -> 0 | R45: 37
C46: IV | D46: Berkane | E46: =IF($G$3='Reference scenarios'!$K$1,'Reference scenarios'!K36,IF($G$3='Reference scenarios'!$R$1,'Reference scenarios'!R36,IF($G$3='Reference scenarios'!$Y$1,'Reference scenarios'!Y36,NA()))) -> 0 | F46: =IF($G$3='Reference scenarios'!$K$1,'Reference scenarios'!L36,IF($G$3='Reference scenarios'!$R$1,'Reference scenarios'!S36,IF($G$3='Reference scenarios'!$Y$1,'Reference scenarios'!Z36,NA()))) -> 0 | G46: =IF($G$3='Reference scenarios'!$K$1,'Reference scenarios'!M36,IF($G$3='Reference scenarios'!$R$1,'Reference scenarios'!T36,IF($G$3='Reference scenarios'!$Y$1,'Reference scenarios'!AA36,NA()))) -> 0 | H46: =IF($G$3='Reference scenarios'!$K$1,'Reference scenarios'!N36,IF($G$3='Reference scenarios'!$R$1,'Reference scenarios'!U36,IF($G$3='Reference scenarios'!$Y$1,'Reference scenarios'!AB36,NA()))) -> 0 | I46: =IF($G$3='Reference scenarios'!$K$1,'Reference scenarios'!O36,IF($G$3='Reference scenarios'!$R$1,'Reference scenarios'!V36,IF($G$3='Reference scenarios'!$Y$1,'Reference scenarios'!AC36,NA()))) -> 0 | J46: =IF($G$3='Reference scenarios'!$K$1,'Reference scenarios'!P36,IF($G$3='Reference scenarios'!$R$1,'Reference scenarios'!W36,IF($G$3='Reference scenarios'!$Y$1,'Reference scenarios'!AD36,NA()))) -> 0 | K46: 36 | L46: =E46/'Evolution Urbaine'!I117 -> 0 | M46: =F46/'Evolution Urbaine'!J117 -> 0 | N46: =G46/'Evolution Urbaine'!K117 -> 0 | O46: =H46/'Evolution Urbaine'!L117 -> 0 | P46: =I46/'Evolution Urbaine'!M117 -> 0 | Q46: =J46/'Evolution Urbaine'!N117 -> 0 | R46: 38
C47: IV | D47: Errachidia | E47: =IF($G$3='Reference scenarios'!$K$1,'Reference scenarios'!K37,IF($G$3='Reference scenarios'!$R$1,'Reference scenarios'!R37,IF($G$3='Reference scenarios'!$Y$1,'Reference scenarios'!Y37,NA()))) -> 0 | F47: =IF($G$3='Reference scenarios'!$K$1,'Reference scenarios'!L37,IF($G$3='Reference scenarios'!$R$1,'Reference scenarios'!S37,IF($G$3='Reference scenarios'!$Y$1,'Reference scenarios'!Z37,NA()))) -> 0 | G47: =IF($G$3='Reference scenarios'!$K$1,'Reference scenarios'!M37,IF($G$3='Reference scenarios'!$R$1,'Reference scenarios'!T37,IF($G$3='Reference scenarios'!$Y$1,'Reference scenarios'!AA37,NA()))) -> 0 | H47: =IF($G$3='Reference scenarios'!$K$1,'Reference scenarios'!N37,IF($G$3='Reference scenarios'!$R$1,'Reference scenarios'!U37,IF($G$3='Reference scenarios'!$Y$1,'Reference scenarios'!AB37,NA()))) -> 0 | I47: =IF($G$3='Reference scenarios'!$K$1,'Reference scenarios'!O37,IF($G$3='Reference scenarios'!$R$1,'Reference scenarios'!V37,IF($G$3='Reference scenarios'!$Y$1,'Reference scenarios'!AC37,NA()))) -> 0 | J47: =IF($G$3='Reference scenarios'!$K$1,'Reference scenarios'!P37,IF($G$3='Reference scenarios'!$R$1,'Reference scenarios'!W37,IF($G$3='Reference scenarios'!$Y$1,'Reference scenarios'!AD37,NA()))) -> 0 | K47: 37 | L47: =E47/'Evolution Urbaine'!I118 -> 0 | M47: =F47/'Evolution Urbaine'!J118 -> 0 | N47: =G47/'Evolution Urbaine'!K118 -> 0 | O47: =H47/'Evolution Urbaine'!L118 -> 0 | P47: =I47/'Evolution Urbaine'!M118 -> 0 | Q47: =J47/'Evolution Urbaine'!N118 -> 0 | R47: 39
B49: Réseau de Tram (taille totale du réseau en km) | L49: Densité correspondante (km par km²)
C50: Catégorie | D50: Aire urbaine | E50: Valeur pour 2025 | F50: Valeur pour 2030 | G50: Valeur pour 2035 | H50: Valeur pour 2040 | I50: Valeur pour 2045 | J50: Valeur pour 2050 | L50: Valeur pour 2025 | M50: Valeur pour 2030 | N50: Valeur pour 2035 | O50: Valeur pour 2040 | P50: Valeur pour 2045 | Q50: Valeur pour 2050
C51: =ROMAN(1) -> I | D51: Grand Casablanca | E51: =IF($G$3='Reference scenarios'!$K$1,'Reference scenarios'!K38,IF($G$3='Reference scenarios'!$R$1,'Reference scenarios'!R38,IF($G$3='Reference scenarios'!$Y$1,'Reference scenarios'!Y38,NA()))) -> 71 | F51: =IF($G$3='Reference scenarios'!$K$1,'Reference scenarios'!L38,IF($G$3='Reference scenarios'!$R$1,'Reference scenarios'!S38,IF($G$3='Reference scenarios'!$Y$1,'Reference scenarios'!Z38,NA()))) -> 71 | G51: =IF($G$3='Reference scenarios'!$K$1,'Reference scenarios'!M38,IF($G$3='Reference scenarios'!$R$1,'Reference scenarios'!T38,IF($G$3='Reference scenarios'!$Y$1,'Reference scenarios'!AA38,NA()))) -> 71 | H51: =IF($G$3='Reference scenarios'!$K$1,'Reference scenarios'!N38,IF($G$3='Reference scenarios'!$R$1,'Reference scenarios'!U38,IF($G$3='Reference scenarios'!$Y$1,'Reference scenarios'!AB38,NA()))) -> 71 | I51: =IF($G$3='Reference scenarios'!$K$1,'Reference scenarios'!O38,IF($G$3='Reference scenarios'!$R$1,'Reference scenarios'!V38,IF($G$3='Reference scenarios'!$Y$1,'Reference scenarios'!AC38,NA()))) -> 71 | J51: =IF($G$3='Reference scenarios'!$K$1,'Reference scenarios'!P38,IF($G$3='Reference scenarios'!$R$1,'Reference scenarios'!W38,IF($G$3='Reference scenarios'!$Y$1,'Reference scenarios'!AD38,NA()))) -> 71 | K51: 38 | L51: =E51/'Evolution Urbaine'!I94 -> 0.05120775746 | M51: =F51/'Evolution Urbaine'!J94 -> 0.04887130653 | N51: =G51/'Evolution Urbaine'!K94 -> 0.04593411806 | O51: =H51/'Evolution Urbaine'!L94 -> 0.04360319084 | P51: =I51/'Evolution Urbaine'!M94 -> 0.04175984074 | Q51: =J51/'Evolution Urbaine'!N94 -> 0.04029836542 | R51: 50
C52: =ROMAN(1) -> I | D52: Rabat-Salé-Skhirate-Temara | E52: =IF($G$3='Reference scenarios'!$K$1,'Reference scenarios'!K39,IF($G$3='Reference scenarios'!$R$1,'Reference scenarios'!R39,IF($G$3='Reference scenarios'!$Y$1,'Reference scenarios'!Y39,NA()))) -> 26.6 | F52: =IF($G$3='Reference scenarios'!$K$1,'Reference scenarios'!L39,IF($G$3='Reference scenarios'!$R$1,'Reference scenarios'!S39,IF($G$3='Reference scenarios'!$Y$1,'Reference scenarios'!Z39,NA()))) -> 60 | G52: =IF($G$3='Reference scenarios'!$K$1,'Reference scenarios'!M39,IF($G$3='Reference scenarios'!$R$1,'Reference scenarios'!T39,IF($G$3='Reference scenarios'!$Y$1,'Reference scenarios'!AA39,NA()))) -> 60 | H52: =IF($G$3='Reference scenarios'!$K$1,'Reference scenarios'!N39,IF($G$3='Reference scenarios'!$R$1,'Reference scenarios'!U39,IF($G$3='Reference scenarios'!$Y$1,'Reference scenarios'!AB39,NA()))) -> 91 | I52: =IF($G$3='Reference scenarios'!$K$1,'Reference scenarios'!O39,IF($G$3='Reference scenarios'!$R$1,'Reference scenarios'!V39,IF($G$3='Reference scenarios'!$Y$1,'Reference scenarios'!AC39,NA()))) -> 91 | J52: =IF($G$3='Reference scenarios'!$K$1,'Reference scenarios'!P39,IF($G$3='Reference scenarios'!$R$1,'Reference scenarios'!W39,IF($G$3='Reference scenarios'!$Y$1,'Reference scenarios'!AD39,NA()))) -> 91 | K52: 39 | L52: =E52/'Evolution Urbaine'!I95 -> 0.02799013799 | M52: =F52/'Evolution Urbaine'!J95 -> 0.06088999379 | N52: =G52/'Evolution Urbaine'!K95 -> 0.05791530612 | O52: =H52/'Evolution Urbaine'!L95 -> 0.08437861284 | P52: =I52/'Evolution Urbaine'!M95 -> 0.08177846177 | Q52: =J52/'Evolution Urbaine'!N95 -> 0.07986077644 | R52: 51
C53: =ROMAN(2) -> II | D53: Fès | E53: =IF($G$3='Reference scenarios'!$K$1,'Reference scenarios'!K40,IF($G$3='Reference scenarios'!$R$1,'Reference scenarios'!R40,IF($G$3='Reference scenarios'!$Y$1,'Reference scenarios'!Y40,NA()))) -> 0 | F53: =IF($G$3='Reference scenarios'!$K$1,'Reference scenarios'!L40,IF($G$3='Reference scenarios'!$R$1,'Reference scenarios'!S40,IF($G$3='Reference scenarios'!$Y$1,'Reference scenarios'!Z40,NA()))) -> 0 | G53: =IF($G$3='Reference scenarios'!$K$1,'Reference scenarios'!M40,IF($G$3='Reference scenarios'!$R$1,'Reference scenarios'!T40,IF($G$3='Reference scenarios'!$Y$1,'Reference scenarios'!AA40,NA()))) -> 0 | H53: =IF($G$3='Reference scenarios'!$K$1,'Reference scenarios'!N40,IF($G$3='Reference scenarios'!$R$1,'Reference scenarios'!U40,IF($G$3='Reference scenarios'!$Y$1,'Reference scenarios'!AB40,NA()))) -> 0 | I53: =IF($G$3='Reference scenarios'!$K$1,'Reference scenarios'!O40,IF($G$3='Reference scenarios'!$R$1,'Reference scenarios'!V40,IF($G$3='Reference scenarios'!$Y$1,'Reference scenarios'!AC40,NA()))) -> 0 | J53: =IF($G$3='Reference scenarios'!$K$1,'Reference scenarios'!P40,IF($G$3='Reference scenarios'!$R$1,'Reference scenarios'!W40,IF($G$3='Reference scenarios'!$Y$1,'Reference scenarios'!AD40,NA()))) -> 0 | K53: 40 | L53: =E53/'Evolution Urbaine'!I96 -> 0 | M53: =F53/'Evolution Urbaine'!J96 -> 0 | N53: =G53/'Evolution Urbaine'!K96 -> 0 | O53: =H53/'Evolution Urbaine'!L96 -> 0 | P53: =I53/'Evolution Urbaine'!M96 -> 0 | Q53: =J53/'Evolution Urbaine'!N96 -> 0 | R53: 52
C54: =ROMAN(2) -> II | D54: Agadir-Ida-Ou-Tanane-Inezgane- Ait Melloul | E54: =IF($G$3='Reference scenarios'!$K$1,'Reference scenarios'!K41,IF($G$3='Reference scenarios'!$R$1,'Reference scenarios'!R41,IF($G$3='Reference scenarios'!$Y$1,'Reference scenarios'!Y41,NA()))) -> 0 | F54: =IF($G$3='Reference scenarios'!$K$1,'Reference scenarios'!L41,IF($G$3='Reference scenarios'!$R$1,'Reference scenarios'!S41,IF($G$3='Reference scenarios'!$Y$1,'Reference scenarios'!Z41,NA()))) -> 0 | G54: =IF($G$3='Reference scenarios'!$K$1,'Reference scenarios'!M41,IF($G$3='Reference scenarios'!$R$1,'Reference scenarios'!T41,IF($G$3='Reference scenarios'!$Y$1,'Reference scenarios'!AA41,NA()))) -> 0 | H54: =IF($G$3='Reference scenarios'!$K$1,'Reference scenarios'!N41,IF($G$3='Reference scenarios'!$R$1,'Reference scenarios'!U41,IF($G$3='Reference scenarios'!$Y$1,'Reference scenarios'!AB41,NA()))) -> 0 | I54: =IF($G$3='Reference scenarios'!$K$1,'Reference scenarios'!O41,IF($G$3='Reference scenarios'!$R$1,'Reference scenarios'!V41,IF($G$3='Reference scenarios'!$Y$1,'Reference scenarios'!AC41,NA()))) -> 0 | J54: =IF($G$3='Reference scenarios'!$K$1,'Reference scenarios'!P41,IF($G$3='Reference scenarios'!$R$1,'Reference scenarios'!W41,IF($G$3='Reference scenarios'!$Y$1,'Reference scenarios'!AD41,NA()))) -> 0 | K54: 41 | L54: =E54/'Evolution Urbaine'!I97 -> 0 | M54: =F54/'Evolution Urbaine'!J97 -> 0 | N54: =G54/'Evolution Urbaine'!K97 -> 0 | O54: =H54/'Evolution Urbaine'!L97 -> 0 | P54: =I54/'Evolution Urbaine'!M97 -> 0 | Q54: =J54/'Evolution Urbaine'!N97 -> 0 | R54: 53
C55: =ROMAN(2) -> II | D55: Tanger-Assilah | E55: =IF($G$3='Reference scenarios'!$K$1,'Reference scenarios'!K42,IF($G$3='Reference scenarios'!$R$1,'Reference scenarios'!R42,IF($G$3='Reference scenarios'!$Y$1,'Reference scenarios'!Y42,NA()))) -> 0 | F55: =IF($G$3='Reference scenarios'!$K$1,'Reference scenarios'!L42,IF($G$3='Reference scenarios'!$R$1,'Reference scenarios'!S42,IF($G$3='Reference scenarios'!$Y$1,'Reference scenarios'!Z42,NA()))) -> 0 | G55: =IF($G$3='Reference scenarios'!$K$1,'Reference scenarios'!M42,IF($G$3='Reference scenarios'!$R$1,'Reference scenarios'!T42,IF($G$3='Reference scenarios'!$Y$1,'Reference scenarios'!AA42,NA()))) -> 0 | H55: =IF($G$3='Reference scenarios'!$K$1,'Reference scenarios'!N42,IF($G$3='Reference scenarios'!$R$1,'Reference scenarios'!U42,IF($G$3='Reference scenarios'!$Y$1,'Reference scenarios'!AB42,NA()))) -> 0 | I55: =IF($G$3='Reference scenarios'!$K$1,'Reference scenarios'!O42,IF($G$3='Reference scenarios'!$R$1,'Reference scenarios'!V42,IF($G$3='Reference scenarios'!$Y$1,'Reference scenarios'!AC42,NA()))) -> 0 | J55: =IF($G$3='Reference scenarios'!$K$1,'Reference scenarios'!P42,IF($G$3='Reference scenarios'!$R$1,'Reference scenarios'!W42,IF($G$3='Reference scenarios'!$Y$1,'Reference scenarios'!AD42,NA()))) -> 0 | K55: 42 | L55: =E55/'Evolution Urbaine'!I98 -> 0 | M55: =F55/'Evolution Urbaine'!J98 -> 0 | N55: =G55/'Evolution Urbaine'!K98 -> 0 | O55: =H55/'Evolution Urbaine'!L98 -> 0 | P55: =I55/'Evolution Urbaine'!M98 -> 0 | Q55: =J55/'Evolution Urbaine'!N98 -> 0 | R55: 54
C56: =ROMAN(2) -> II | D56: Marrakech | E56: =IF($G$3='Reference scenarios'!$K$1,'Reference scenarios'!K43,IF($G$3='Reference scenarios'!$R$1,'Reference scenarios'!R43,IF($G$3='Reference scenarios'!$Y$1,'Reference scenarios'!Y43,NA()))) -> 0 | F56: =IF($G$3='Reference scenarios'!$K$1,'Reference scenarios'!L43,IF($G$3='Reference scenarios'!$R$1,'Reference scenarios'!S43,IF($G$3='Reference scenarios'!$Y$1,'Reference scenarios'!Z43,NA()))) -> 0 | G56: =IF($G$3='Reference scenarios'!$K$1,'Reference scenarios'!M43,IF($G$3='Reference scenarios'!$R$1,'Reference scenarios'!T43,IF($G$3='Reference scenarios'!$Y$1,'Reference scenarios'!AA43,NA()))) -> 0 | H56: =IF($G$3='Reference scenarios'!$K$1,'Reference scenarios'!N43,IF($G$3='Reference scenarios'!$R$1,'Reference scenarios'!U43,IF($G$3='Reference scenarios'!$Y$1,'Reference scenarios'!AB43,NA()))) -> 0 | I56: =IF($G$3='Reference scenarios'!$K$1,'Reference scenarios'!O43,IF($G$3='Reference scenarios'!$R$1,'Reference scenarios'!V43,IF($G$3='Reference scenarios'!$Y$1,'Reference scenarios'!AC43,NA()))) -> 0 | J56: =IF($G$3='Reference scenarios'!$K$1,'Reference scenarios'!P43,IF($G$3='Reference scenarios'!$R$1,'Reference scenarios'!W43,IF($G$3='Reference scenarios'!$Y$1,'Reference scenarios'!AD43,NA()))) -> 0 | K56: 43 | L56: =E56/'Evolution Urbaine'!I99 -> 0 | M56: =F56/'Evolution Urbaine'!J99 -> 0 | N56: =G56/'Evolution Urbaine'!K99 -> 0 | O56: =H56/'Evolution Urbaine'!L99 -> 0 | P56: =I56/'Evolution Urbaine'!M99 -> 0 | Q56: =J56/'Evolution Urbaine'!N99 -> 0 | R56: 55
C57: =ROMAN(3) -> III | D57: Meknès (Mun.) | E57: =IF($G$3='Reference scenarios'!$K$1,'Reference scenarios'!K44,IF($G$3='Reference scenarios'!$R$1,'Reference scenarios'!R44,IF($G$3='Reference scenarios'!$Y$1,'Reference scenarios'!Y44,NA()))) -> 0 | F57: =IF($G$3='Reference scenarios'!$K$1,'Reference scenarios'!L44,IF($G$3='Reference scenarios'!$R$1,'Reference scenarios'!S44,IF($G$3='Reference scenarios'!$Y$1,'Reference scenarios'!Z44,NA()))) -> 0 | G57: =IF($G$3='Reference scenarios'!$K$1,'Reference scenarios'!M44,IF($G$3='Reference scenarios'!$R$1,'Reference scenarios'!T44,IF($G$3='Reference scenarios'!$Y$1,'Reference scenarios'!AA44,NA()))) -> 0 | H57: =IF($G$3='Reference scenarios'!$K$1,'Reference scenarios'!N44,IF($G$3='Reference scenarios'!$R$1,'Reference scenarios'!U44,IF($G$3='Reference scenarios'!$Y$1,'Reference scenarios'!AB44,NA()))) -> 0 | I57: =IF($G$3='Reference scenarios'!$K$1,'Reference scenarios'!O44,IF($G$3='Reference scenarios'!$R$1,'Reference scenarios'!V44,IF($G$3='Reference scenarios'!$Y$1,'Reference scenarios'!AC44,NA()))) -> 0 | J57: =IF($G$3='Reference scenarios'!$K$1,'Reference scenarios'!P44,IF($G$3='Reference scenarios'!$R$1,'Reference scenarios'!W44,IF($G$3='Reference scenarios'!$Y$1,'Reference scenarios'!AD44,NA()))) -> 0 | K57: 44 | L57: =E57/'Evolution Urbaine'!I100 -> 0 | M57: =F57/'Evolution Urbaine'!J100 -> 0 | N57: =G57/'Evolution Urbaine'!K100 -> 0 | O57: =H57/'Evolution Urbaine'!L100 -> 0 | P57: =I57/'Evolution Urbaine'!M100 -> 0 | Q57: =J57/'Evolution Urbaine'!N100 -> 0 | R57: 56
C58: III | D58: Kenitra | E58: =IF($G$3='Reference scenarios'!$K$1,'Reference scenarios'!K45,IF($G$3='Reference scenarios'!$R$1,'Reference scenarios'!R45,IF($G$3='Reference scenarios'!$Y$1,'Reference scenarios'!Y45,NA()))) -> 0 | F58: =IF($G$3='Reference scenarios'!$K$1,'Reference scenarios'!L45,IF($G$3='Reference scenarios'!$R$1,'Reference scenarios'!S45,IF($G$3='Reference scenarios'!$Y$1,'Reference scenarios'!Z45,NA()))) -> 0 | G58: =IF($G$3='Reference scenarios'!$K$1,'Reference scenarios'!M45,IF($G$3='Reference scenarios'!$R$1,'Reference scenarios'!T45,IF($G$3='Reference scenarios'!$Y$1,'Reference scenarios'!AA45,NA()))) -> 0 | H58: =IF($G$3='Reference scenarios'!$K$1,'Reference scenarios'!N45,IF($G$3='Reference scenarios'!$R$1,'Reference scenarios'!U45,IF($G$3='Reference scenarios'!$Y$1,'Reference scenarios'!AB45,NA()))) -> 0 | I58: =IF($G$3='Reference scenarios'!$K$1,'Reference scenarios'!O45,IF($G$3='Reference scenarios'!$R$1,'Reference scenarios'!V45,IF($G$3='Reference scenarios'!$Y$1,'Reference scenarios'!AC45,NA()))) -> 0 | J58: =IF($G$3='Reference scenarios'!$K$1,'Reference scenarios'!P45,IF($G$3='Reference scenarios'!$R$1,'Reference scenarios'!W45,IF($G$3='Reference scenarios'!$Y$1,'Reference scenarios'!AD45,NA()))) -> 0 | K58: 45 | L58: =E58/'Evolution Urbaine'!I101 -> 0 | M58: =F58/'Evolution Urbaine'!J101 -> 0 | N58: =G58/'Evolution Urbaine'!K101 -> 0 | O58: =H58/'Evolution Urbaine'!L101 -> 0 | P58: =I58/'Evolution Urbaine'!M101 -> 0 | Q58: =J58/'Evolution Urbaine'!N101 -> 0 | R58: 57
C59: III | D59: Oujda-Angad (Mun.) | E59: =IF($G$3='Reference scenarios'!$K$1,'Reference scenarios'!K46,IF($G$3='Reference scenarios'!$R$1,'Reference scenarios'!R46,IF($G$3='Reference scenarios'!$Y$1,'Reference scenarios'!Y46,NA()))) -> 0 | F59: =IF($G$3='Reference scenarios'!$K$1,'Reference scenarios'!L46,IF($G$3='Reference scenarios'!$R$1,'Reference scenarios'!S46,IF($G$3='Reference scenarios'!$Y$1,'Reference scenarios'!Z46,NA()))) -> 0 | G59: =IF($G$3='Reference scenarios'!$K$1,'Reference scenarios'!M46,IF($G$3='Reference scenarios'!$R$1,'Reference scenarios'!T46,IF($G$3='Reference scenarios'!$Y$1,'Reference scenarios'!AA46,NA()))) -> 0 | H59: =IF($G$3='Reference scenarios'!$K$1,'Reference scenarios'!N46,IF($G$3='Reference scenarios'!$R$1,'Reference scenarios'!U46,IF($G$3='Reference scenarios'!$Y$1,'Reference scenarios'!AB46,NA()))) -> 0 | I59: =IF($G$3='Reference scenarios'!$K$1,'Reference scenarios'!O46,IF($G$3='Reference scenarios'!$R$1,'Reference scenarios'!V46,IF($G$3='Reference scenarios'!$Y$1,'Reference scenarios'!AC46,NA()))) -> 0 | J59: =IF($G$3='Reference scenarios'!$K$1,'Reference scenarios'!P46,IF($G$3='Reference scenarios'!$R$1,'Reference scenarios'!W46,IF($G$3='Reference scenarios'!$Y$1,'Reference scenarios'!AD46,NA()))) -> 0 | K59: 46 | L59: =E59/'Evolution Urbaine'!I102 -> 0 | M59: =F59/'Evolution Urbaine'!J102 -> 0 | N59: =G59/'Evolution Urbaine'!K102 -> 0 | O59: =H59/'Evolution Urbaine'!L102 -> 0 | P59: =I59/'Evolution Urbaine'!M102 -> 0 | Q59: =J59/'Evolution Urbaine'!N102 -> 0 | R59: 58
C60: III | D60: Nador (Mun.) | E60: =IF($G$3='Reference scenarios'!$K$1,'Reference scenarios'!K47,IF($G$3='Reference scenarios'!$R$1,'Reference scenarios'!R47,IF($G$3='Reference scenarios'!$Y$1,'Reference scenarios'!Y47,NA()))) -> 0 | F60: =IF($G$3='Reference scenarios'!$K$1,'Reference scenarios'!L47,IF($G$3='Reference scenarios'!$R$1,'Reference scenarios'!S47,IF($G$3='Reference scenarios'!$Y$1,'Reference scenarios'!Z47,NA()))) -> 0 | G60: =IF($G$3='Reference scenarios'!$K$1,'Reference scenarios'!M47,IF($G$3='Reference scenarios'!$R$1,'Reference scenarios'!T47,IF($G$3='Reference scenarios'!$Y$1,'Reference scenarios'!AA47,NA()))) -> 0 | H60: =IF($G$3='Reference scenarios'!$K$1,'Reference scenarios'!N47,IF($G$3='Reference scenarios'!$R$1,'Reference scenarios'!U47,IF($G$3='Reference scenarios'!$Y$1,'Reference scenarios'!AB47,NA()))) -> 0 | I60: =IF($G$3='Reference scenarios'!$K$1,'Reference scenarios'!O47,IF($G$3='Reference scenarios'!$R$1,'Reference scenarios'!V47,IF($G$3='Reference scenarios'!$Y$1,'Reference scenarios'!AC47,NA()))) -> 0 | J60: =IF($G$3='Reference scenarios'!$K$1,'Reference scenarios'!P47,IF($G$3='Reference scenarios'!$R$1,'Reference scenarios'!W47,IF($G$3='Reference scenarios'!$Y$1,'Reference scenarios'!AD47,NA()))) -> 0 | K60: 47 | L60: =E60/'Evolution Urbaine'!I103 -> 0 | M60: =F60/'Evolution Urbaine'!J103 -> 0 | N60: =G60/'Evolution Urbaine'!K103 -> 0 | O60: =H60/'Evolution Urbaine'!L103 -> 0 | P60: =I60/'Evolution Urbaine'!M103 -> 0 | Q60: =J60/'Evolution Urbaine'!N103 -> 0 | R60: 59
C61: III | D61: Tétouan (Mun.) | E61: =IF($G$3='Reference scenarios'!$K$1,'Reference scenarios'!K48,IF($G$3='Reference scenarios'!$R$1,'Reference scenarios'!R48,IF($G$3='Reference scenarios'!$Y$1,'Reference scenarios'!Y48,NA()))) -> 0 | F61: =IF($G$3='Reference scenarios'!$K$1,'Reference scenarios'!L48,IF($G$3='Reference scenarios'!$R$1,'Reference scenarios'!S48,IF($G$3='Reference scenarios'!$Y$1,'Reference scenarios'!Z48,NA()))) -> 0 | G61: =IF($G$3='Reference scenarios'!$K$1,'Reference scenarios'!M48,IF($G$3='Reference scenarios'!$R$1,'Reference scenarios'!T48,IF($G$3='Reference scenarios'!$Y$1,'Reference scenarios'!AA48,NA()))) -> 0 | H61: =IF($G$3='Reference scenarios'!$K$1,'Reference scenarios'!N48,IF($G$3='Reference scenarios'!$R$1,'Reference scenarios'!U48,IF($G$3='Reference scenarios'!$Y$1,'Reference scenarios'!AB48,NA()))) -> 0 | I61: =IF($G$3='Reference scenarios'!$K$1,'Reference scenarios'!O48,IF($G$3='Reference scenarios'!$R$1,'Reference scenarios'!V48,IF($G$3='Reference scenarios'!$Y$1,'Reference scenarios'!AC48,NA()))) -> 0 | J61: =IF($G$3='Reference scenarios'!$K$1,'Reference scenarios'!P48,IF($G$3='Reference scenarios'!$R$1,'Reference scenarios'!W48,IF($G$3='Reference scenarios'!$Y$1,'Reference scenarios'!AD48,NA()))) -> 0 | K61: 48 | L61: =E61/'Evolution Urbaine'!I104 -> 0 | M61: =F61/'Evolution Urbaine'!J104 -> 0 | N61: =G61/'Evolution Urbaine'!K104 -> 0 | O61: =H61/'Evolution Urbaine'!L104 -> 0 | P61: =I61/'Evolution Urbaine'!M104 -> 0 | Q61: =J61/'Evolution Urbaine'!N104 -> 0 | R61: 60
C62: III | D62: Khouribga (Mun.) | E62: =IF($G$3='Reference scenarios'!$K$1,'Reference scenarios'!K49,IF($G$3='Reference scenarios'!$R$1,'Reference scenarios'!R49,IF($G$3='Reference scenarios'!$Y$1,'Reference scenarios'!Y49,NA()))) -> 0 | F62: =IF($G$3='Reference scenarios'!$K$1,'Reference scenarios'!L49,IF($G$3='Reference scenarios'!$R$1,'Reference scenarios'!S49,IF($G$3='Reference scenarios'!$Y$1,'Reference scenarios'!Z49,NA()))) -> 0 | G62: =IF($G$3='Reference scenarios'!$K$1,'Reference scenarios'!M49,IF($G$3='Reference scenarios'!$R$1,'Reference scenarios'!T49,IF($G$3='Reference scenarios'!$Y$1,'Reference scenarios'!AA49,NA()))) -> 0 | H62: =IF($G$3='Reference scenarios'!$K$1,'Reference scenarios'!N49,IF($G$3='Reference scenarios'!$R$1,'Reference scenarios'!U49,IF($G$3='Reference scenarios'!$Y$1,'Reference scenarios'!AB49,NA()))) -> 0 | I62: =IF($G$3='Reference scenarios'!$K$1,'Reference scenarios'!O49,IF($G$3='Reference scenarios'!$R$1,'Reference scenarios'!V49,IF($G$3='Reference scenarios'!$Y$1,'Reference scenarios'!AC49,NA()))) -> 0 | J62: =IF($G$3='Reference scenarios'!$K$1,'Reference scenarios'!P49,IF($G$3='Reference scenarios'!$R$1,'Reference scenarios'!W49,IF($G$3='Reference scenarios'!$Y$1,'Reference scenarios'!AD49,NA()))) -> 0 | K62: 49 | L62: =E62/'Evolution Urbaine'!I105 -> 0 | M62: =F62/'Evolution Urbaine'!J105 -> 0 | N62: =G62/'Evolution Urbaine'!K105 -> 0 | O62: =H62/'Evolution Urbaine'!L105 -> 0 | P62: =I62/'Evolution Urbaine'!M105 -> 0 | Q62: =J62/'Evolution Urbaine'!N105 -> 0 | R62: 61
C63: III | D63: El Jadida (Mun.) | E63: =IF($G$3='Reference scenarios'!$K$1,'Reference scenarios'!K50,IF($G$3='Reference scenarios'!$R$1,'Reference scenarios'!R50,IF($G$3='Reference scenarios'!$Y$1,'Reference scenarios'!Y50,NA()))) -> 0 | F63: =IF($G$3='Reference scenarios'!$K$1,'Reference scenarios'!L50,IF($G$3='Reference scenarios'!$R$1,'Reference scenarios'!S50,IF($G$3='Reference scenarios'!$Y$1,'Reference scenarios'!Z50,NA()))) -> 0 | G63: =IF($G$3='Reference scenarios'!$K$1,'Reference scenarios'!M50,IF($G$3='Reference scenarios'!$R$1,'Reference scenarios'!T50,IF($G$3='Reference scenarios'!$Y$1,'Reference scenarios'!AA50,NA()))) -> 0 | H63: =IF($G$3='Reference scenarios'!$K$1,'Reference scenarios'!N50,IF($G$3='Reference scenarios'!$R$1,'Reference scenarios'!U50,IF($G$3='Reference scenarios'!$Y$1,'Reference scenarios'!AB50,NA()))) -> 0 | I63: =IF($G$3='Reference scenarios'!$K$1,'Reference scenarios'!O50,IF($G$3='Reference scenarios'!$R$1,'Reference scenarios'!V50,IF($G$3='Reference scenarios'!$Y$1,'Reference scenarios'!AC50,NA()))) -> 0 | J63: =IF($G$3='Reference scenarios'!$K$1,'Reference scenarios'!P50,IF($G$3='Reference scenarios'!$R$1,'Reference scenarios'!W50,IF($G$3='Reference scenarios'!$Y$1,'Reference scenarios'!AD50,NA()))) -> 0 | K63: 50 | L63: =E63/'Evolution Urbaine'!I106 -> 0 | M63: =F63/'Evolution Urbaine'!J106 -> 0 | N63: =G63/'Evolution Urbaine'!K106 -> 0 | O63: =H63/'Evolution Urbaine'!L106 -> 0 | P63: =I63/'Evolution Urbaine'!M106 -> 0 | Q63: =J63/'Evolution Urbaine'!N106 -> 0 | R63: 62
C64: III | D64: Berrechid (Mun.) | E64: =IF($G$3='Reference scenarios'!$K$1,'Reference scenarios'!K51,IF($G$3='Reference scenarios'!$R$1,'Reference scenarios'!R51,IF($G$3='Reference scenarios'!$Y$1,'Reference scenarios'!Y51,NA()))) -> 0 | F64: =IF($G$3='Reference scenarios'!$K$1,'Reference scenarios'!L51,IF($G$3='Reference scenarios'!$R$1,'Reference scenarios'!S51,IF($G$3='Reference scenarios'!$Y$1,'Reference scenarios'!Z51,NA()))) -> 0 | G64: =IF($G$3='Reference scenarios'!$K$1,'Reference scenarios'!M51,IF($G$3='Reference scenarios'!$R$1,'Reference scenarios'!T51,IF($G$3='Reference scenarios'!$Y$1,'Reference scenarios'!AA51,NA()))) -> 0 | H64: =IF($G$3='Reference scenarios'!$K$1,'Reference scenarios'!N51,IF($G$3='Reference scenarios'!$R$1,'Reference scenarios'!U51,IF($G$3='Reference scenarios'!$Y$1,'Reference scenarios'!AB51,NA()))) -> 0 | I64: =IF($G$3='Reference scenarios'!$K$1,'Reference scenarios'!O51,IF($G$3='Reference scenarios'!$R$1,'Reference scenarios'!V51,IF($G$3='Reference scenarios'!$Y$1,'Reference scenarios'!AC51,NA()))) -> 0 | J64: =IF($G$3='Reference scenarios'!$K$1,'Reference scenarios'!P51,IF($G$3='Reference scenarios'!$R$1,'Reference scenarios'!W51,IF($G$3='Reference scenarios'!$Y$1,'Reference scenarios'!AD51,NA()))) -> 0 | K64: 51 | L64: =E64/'Evolution Urbaine'!I107 -> 0 | M64: =F64/'Evolution Urbaine'!J107 -> 0 | N64: =G64/'Evolution Urbaine'!K107 -> 0 | O64: =H64/'Evolution Urbaine'!L107 -> 0 | P64: =I64/'Evolution Urbaine'!M107 -> 0 | Q64: =J64/'Evolution Urbaine'!N107 -> 0 | R64: 63
C65: III | D65: Safi (Mun.) | E65: =IF($G$3='Reference scenarios'!$K$1,'Reference scenarios'!K52,IF($G$3='Reference scenarios'!$R$1,'Reference scenarios'!R52,IF($G$3='Reference scenarios'!$Y$1,'Reference scenarios'!Y52,NA()))) -> 0 | F65: =IF($G$3='Reference scenarios'!$K$1,'Reference scenarios'!L52,IF($G$3='Reference scenarios'!$R$1,'Reference scenarios'!S52,IF($G$3='Reference scenarios'!$Y$1,'Reference scenarios'!Z52,NA()))) -> 0 | G65: =IF($G$3='Reference scenarios'!$K$1,'Reference scenarios'!M52,IF($G$3='Reference scenarios'!$R$1,'Reference scenarios'!T52,IF($G$3='Reference scenarios'!$Y$1,'Reference scenarios'!AA52,NA()))) -> 0 | H65: =IF($G$3='Reference scenarios'!$K$1,'Reference scenarios'!N52,IF($G$3='Reference scenarios'!$R$1,'Reference scenarios'!U52,IF($G$3='Reference scenarios'!$Y$1,'Reference scenarios'!AB52,NA()))) -> 0 | I65: =IF($G$3='Reference scenarios'!$K$1,'Reference scenarios'!O52,IF($G$3='Reference scenarios'!$R$1,'Reference scenarios'!V52,IF($G$3='Reference scenarios'!$Y$1,'Reference scenarios'!AC52,NA()))) -> 0 | J65: =IF($G$3='Reference scenarios'!$K$1,'Reference scenarios'!P52,IF($G$3='Reference scenarios'!$R$1,'Reference scenarios'!W52,IF($G$3='Reference scenarios'!$Y$1,'Reference scenarios'!AD52,NA()))) -> 0 | K65: 52 | L65: =E65/'Evolution Urbaine'!I108 -> 0 | M65: =F65/'Evolution Urbaine'!J108 -> 0 | N65: =G65/'Evolution Urbaine'!K108 -> 0 | O65: =H65/'Evolution Urbaine'!L108 -> 0 | P65: =I65/'Evolution Urbaine'!M108 -> 0 | Q65: =J65/'Evolution Urbaine'!N108 -> 0 | R65: 64
C66: III | D66: Béni Mellal (Mun.) | E66: =IF($G$3='Reference scenarios'!$K$1,'Reference scenarios'!K53,IF($G$3='Reference scenarios'!$R$1,'Reference scenarios'!R53,IF($G$3='Reference scenarios'!$Y$1,'Reference scenarios'!Y53,NA()))) -> 0 | F66: =IF($G$3='Reference scenarios'!$K$1,'Reference scenarios'!L53,IF($G$3='Reference scenarios'!$R$1,'Reference scenarios'!S53,IF($G$3='Reference scenarios'!$Y$1,'Reference scenarios'!Z53,NA()))) -> 0 | G66: =IF($G$3='Reference scenarios'!$K$1,'Reference scenarios'!M53,IF($G$3='Reference scenarios'!$R$1,'Reference scenarios'!T53,IF($G$3='Reference scenarios'!$Y$1,'Reference scenarios'!AA53,NA()))) -> 0 | H66: =IF($G$3='Reference scenarios'!$K$1,'Reference scenarios'!N53,IF($G$3='Reference scenarios'!$R$1,'Reference scenarios'!U53,IF($G$3='Reference scenarios'!$Y$1,'Reference scenarios'!AB53,NA()))) -> 0 | I66: =IF($G$3='Reference scenarios'!$K$1,'Reference scenarios'!O53,IF($G$3='Reference scenarios'!$R$1,'Reference scenarios'!V53,IF($G$3='Reference scenarios'!$Y$1,'Reference scenarios'!AC53,NA()))) -> 0 | J66: =IF($G$3='Reference scenarios'!$K$1,'Reference scenarios'!P53,IF($G$3='Reference scenarios'!$R$1,'Reference scenarios'!W53,IF($G$3='Reference scenarios'!$Y$1,'Reference scenarios'!AD53,NA()))) -> 0 | K66: 53 | L66: =E66/'Evolution Urbaine'!I109 -> 0 | M66: =F66/'Evolution Urbaine'!J109 -> 0 | N66: =G66/'Evolution Urbaine'!K109 -> 0 | O66: =H66/'Evolution Urbaine'!L109 -> 0 | P66: =I66/'Evolution Urbaine'!M109 -> 0 | Q66: =J66/'Evolution Urbaine'!N109 -> 0 | R66: 65
C67: =ROMAN(4) -> IV | D67: Khémisset (Mun.) | E67: =IF($G$3='Reference scenarios'!$K$1,'Reference scenarios'!K54,IF($G$3='Reference scenarios'!$R$1,'Reference scenarios'!R54,IF($G$3='Reference scenarios'!$Y$1,'Reference scenarios'!Y54,NA()))) -> 0 | F67: =IF($G$3='Reference scenarios'!$K$1,'Reference scenarios'!L54,IF($G$3='Reference scenarios'!$R$1,'Reference scenarios'!S54,IF($G$3='Reference scenarios'!$Y$1,'Reference scenarios'!Z54,NA()))) -> 0 | G67: =IF($G$3='Reference scenarios'!$K$1,'Reference scenarios'!M54,IF($G$3='Reference scenarios'!$R$1,'Reference scenarios'!T54,IF($G$3='Reference scenarios'!$Y$1,'Reference scenarios'!AA54,NA()))) -> 0 | H67: =IF($G$3='Reference scenarios'!$K$1,'Reference scenarios'!N54,IF($G$3='Reference scenarios'!$R$1,'Reference scenarios'!U54,IF($G$3='Reference scenarios'!$Y$1,'Reference scenarios'!AB54,NA()))) -> 0 | I67: =IF($G$3='Reference scenarios'!$K$1,'Reference scenarios'!O54,IF($G$3='Reference scenarios'!$R$1,'Reference scenarios'!V54,IF($G$3='Reference scenarios'!$Y$1,'Reference scenarios'!AC54,NA()))) -> 0 | J67: =IF($G$3='Reference scenarios'!$K$1,'Reference scenarios'!P54,IF($G$3='Reference scenarios'!$R$1,'Reference scenarios'!W54,IF($G$3='Reference scenarios'!$Y$1,'Reference scenarios'!AD54,NA()))) -> 0 | K67: 54 | L67: =E67/'Evolution Urbaine'!I110 -> 0 | M67: =F67/'Evolution Urbaine'!J110 -> 0 | N67: =G67/'Evolution Urbaine'!K110 -> 0 | O67: =H67/'Evolution Urbaine'!L110 -> 0 | P67: =I67/'Evolution Urbaine'!M110 -> 0 | Q67: =J67/'Evolution Urbaine'!N110 -> 0 | R67: 66
C68: IV | D68: Larache (Mun.) | E68: =IF($G$3='Reference scenarios'!$K$1,'Reference scenarios'!K55,IF($G$3='Reference scenarios'!$R$1,'Reference scenarios'!R55,IF($G$3='Reference scenarios'!$Y$1,'Reference scenarios'!Y55,NA()))) -> 0 | F68: =IF($G$3='Reference scenarios'!$K$1,'Reference scenarios'!L55,IF($G$3='Reference scenarios'!$R$1,'Reference scenarios'!S55,IF($G$3='Reference scenarios'!$Y$1,'Reference scenarios'!Z55,NA()))) -> 0 | G68: =IF($G$3='Reference scenarios'!$K$1,'Reference scenarios'!M55,IF($G$3='Reference scenarios'!$R$1,'Reference scenarios'!T55,IF($G$3='Reference scenarios'!$Y$1,'Reference scenarios'!AA55,NA()))) -> 0 | H68: =IF($G$3='Reference scenarios'!$K$1,'Reference scenarios'!N55,IF($G$3='Reference scenarios'!$R$1,'Reference scenarios'!U55,IF($G$3='Reference scenarios'!$Y$1,'Reference scenarios'!AB55,NA()))) -> 0 | I68: =IF($G$3='Reference scenarios'!$K$1,'Reference scenarios'!O55,IF($G$3='Reference scenarios'!$R$1,'Reference scenarios'!V55,IF($G$3='Reference scenarios'!$Y$1,'Reference scenarios'!AC55,NA()))) -> 0 | J68: =IF($G$3='Reference scenarios'!$K$1,'Reference scenarios'!P55,IF($G$3='Reference scenarios'!$R$1,'Reference scenarios'!W55,IF($G$3='Reference scenarios'!$Y$1,'Reference scenarios'!AD55,NA()))) -> 0 | K68: 55 | L68: =E68/'Evolution Urbaine'!I111 -> 0 | M68: =F68/'Evolution Urbaine'!J111 -> 0 | N68: =G68/'Evolution Urbaine'!K111 -> 0 | O68: =H68/'Evolution Urbaine'!L111 -> 0 | P68: =I68/'Evolution Urbaine'!M111 -> 0 | Q68: =J68/'Evolution Urbaine'!N111 -> 0 | R68: 67
C69: IV | D69: Laayoune (Mun.) | E69: =IF($G$3='Reference scenarios'!$K$1,'Reference scenarios'!K56,IF($G$3='Reference scenarios'!$R$1,'Reference scenarios'!R56,IF($G$3='Reference scenarios'!$Y$1,'Reference scenarios'!Y56,NA()))) -> 0 | F69: =IF($G$3='Reference scenarios'!$K$1,'Reference scenarios'!L56,IF($G$3='Reference scenarios'!$R$1,'Reference scenarios'!S56,IF($G$3='Reference scenarios'!$Y$1,'Reference scenarios'!Z56,NA()))) -> 0 | G69: =IF($G$3='Reference scenarios'!$K$1,'Reference scenarios'!M56,IF($G$3='Reference scenarios'!$R$1,'Reference scenarios'!T56,IF($G$3='Reference scenarios'!$Y$1,'Reference scenarios'!AA56,NA()))) -> 0 | H69: =IF($G$3='Reference scenarios'!$K$1,'Reference scenarios'!N56,IF($G$3='Reference scenarios'!$R$1,'Reference scenarios'!U56,IF($G$3='Reference scenarios'!$Y$1,'Reference scenarios'!AB56,NA()))) -> 0 | I69: =IF($G$3='Reference scenarios'!$K$1,'Reference scenarios'!O56,IF($G$3='Reference scenarios'!$R$1,'Reference scenarios'!V56,IF($G$3='Reference scenarios'!$Y$1,'Reference scenarios'!AC56,NA()))) -> 0 | J69: =IF($G$3='Reference scenarios'!$K$1,'Reference scenarios'!P56,IF($G$3='Reference scenarios'!$R$1,'Reference scenarios'!W56,IF($G$3='Reference scenarios'!$Y$1,'Reference scenarios'!AD56,NA()))) -> 0 | K69: 56 | L69: =E69/'Evolution Urbaine'!I112 -> 0 | M69: =F69/'Evolution Urbaine'!J112 -> 0 | N69: =G69/'Evolution Urbaine'!K112 -> 0 | O69: =H69/'Evolution Urbaine'!L112 -> 0 | P69: =I69/'Evolution Urbaine'!M112 -> 0 | Q69: =J69/'Evolution Urbaine'!N112 -> 0 | R69: 68
C70: IV | D70: Khenifra (Mun.) | E70: =IF($G$3='Reference scenarios'!$K$1,'Reference scenarios'!K57,IF($G$3='Reference scenarios'!$R$1,'Reference scenarios'!R57,IF($G$3='Reference scenarios'!$Y$1,'Reference scenarios'!Y57,NA()))) -> 0 | F70: =IF($G$3='Reference scenarios'!$K$1,'Reference scenarios'!L57,IF($G$3='Reference scenarios'!$R$1,'Reference scenarios'!S57,IF($G$3='Reference scenarios'!$Y$1,'Reference scenarios'!Z57,NA()))) -> 0 | G70: =IF($G$3='Reference scenarios'!$K$1,'Reference scenarios'!M57,IF($G$3='Reference scenarios'!$R$1,'Reference scenarios'!T57,IF($G$3='Reference scenarios'!$Y$1,'Reference scenarios'!AA57,NA()))) -> 0 | H70: =IF($G$3='Reference scenarios'!$K$1,'Reference scenarios'!N57,IF($G$3='Reference scenarios'!$R$1,'Reference scenarios'!U57,IF($G$3='Reference scenarios'!$Y$1,'Reference scenarios'!AB57,NA()))) -> 0 | I70: =IF($G$3='Reference scenarios'!$K$1,'Reference scenarios'!O57,IF($G$3='Reference scenarios'!$R$1,'Reference scenarios'!V57,IF($G$3='Reference scenarios'!$Y$1,'Reference scenarios'!AC57,NA()))) -> 0 | J70: =IF($G$3='Reference scenarios'!$K$1,'Reference scenarios'!P57,IF($G$3='Reference scenarios'!$R$1,'Reference scenarios'!W57,IF($G$3='Reference scenarios'!$Y$1,'Reference scenarios'!AD57,NA()))) -> 0 | K70: 57 | L70: =E70/'Evolution Urbaine'!I113 -> 0 | M70: =F70/'Evolution Urbaine'!J113 -> 0 | N70: =G70/'Evolution Urbaine'!K113 -> 0 | O70: =H70/'Evolution Urbaine'!L113 -> 0 | P70: =I70/'Evolution Urbaine'!M113 -> 0 | Q70: =J70/'Evolution Urbaine'!N113 -> 0 | R70: 69
C71: IV | D71: Settat (Mun.) | E71: =IF($G$3='Reference scenarios'!$K$1,'Reference scenarios'!K58,IF($G$3='Reference scenarios'!$R$1,'Reference scenarios'!R58,IF($G$3='Reference scenarios'!$Y$1,'Reference scenarios'!Y58,NA()))) -> 0 | F71: =IF($G$3='Reference scenarios'!$K$1,'Reference scenarios'!L58,IF($G$3='Reference scenarios'!$R$1,'Reference scenarios'!S58,IF($G$3='Reference scenarios'!$Y$1,'Reference scenarios'!Z58,NA()))) -> 0 | G71: =IF($G$3='Reference scenarios'!$K$1,'Reference scenarios'!M58,IF($G$3='Reference scenarios'!$R$1,'Reference scenarios'!T58,IF($G$3='Reference scenarios'!$Y$1,'Reference scenarios'!AA58,NA()))) -> 0 | H71: =IF($G$3='Reference scenarios'!$K$1,'Reference scenarios'!N58,IF($G$3='Reference scenarios'!$R$1,'Reference scenarios'!U58,IF($G$3='Reference scenarios'!$Y$1,'Reference scenarios'!AB58,NA()))) -> 0 | I71: =IF($G$3='Reference scenarios'!$K$1,'Reference scenarios'!O58,IF($G$3='Reference scenarios'!$R$1,'Reference scenarios'!V58,IF($G$3='Reference scenarios'!$Y$1,'Reference scenarios'!AC58,NA()))) -> 0 | J71: =IF($G$3='Reference scenarios'!$K$1,'Reference scenarios'!P58,IF($G$3='Reference scenarios'!$R$1,'Reference scenarios'!W58,IF($G$3='Reference scenarios'!$Y$1,'Reference scenarios'!AD58,NA()))) -> 0 | K71: 58 | L71: =E71/'Evolution Urbaine'!I114 -> 0 | M71: =F71/'Evolution Urbaine'!J114 -> 0 | N71: =G71/'Evolution Urbaine'!K114 -> 0 | O71: =H71/'Evolution Urbaine'!L114 -> 0 | P71: =I71/'Evolution Urbaine'!M114 -> 0 | Q71: =J71/'Evolution Urbaine'!N114 -> 0 | R71: 70
C72: IV | D72: Fquih Ben Salah (Mun.) | E72: =IF($G$3='Reference scenarios'!$K$1,'Reference scenarios'!K59,IF($G$3='Reference scenarios'!$R$1,'Reference scenarios'!R59,IF($G$3='Reference scenarios'!$Y$1,'Reference scenarios'!Y59,NA()))) -> 0 | F72: =IF($G$3='Reference scenarios'!$K$1,'Reference scenarios'!L59,IF($G$3='Reference scenarios'!$R$1,'Reference scenarios'!S59,IF($G$3='Reference scenarios'!$Y$1,'Reference scenarios'!Z59,NA()))) -> 0 | G72: =IF($G$3='Reference scenarios'!$K$1,'Reference scenarios'!M59,IF($G$3='Reference scenarios'!$R$1,'Reference scenarios'!T59,IF($G$3='Reference scenarios'!$Y$1,'Reference scenarios'!AA59,NA()))) -> 0 | H72: =IF($G$3='Reference scenarios'!$K$1,'Reference scenarios'!N59,IF($G$3='Reference scenarios'!$R$1,'Reference scenarios'!U59,IF($G$3='Reference scenarios'!$Y$1,'Reference scenarios'!AB59,NA()))) -> 0 | I72: =IF($G$3='Reference scenarios'!$K$1,'Reference scenarios'!O59,IF($G$3='Reference scenarios'!$R$1,'Reference scenarios'!V59,IF($G$3='Reference scenarios'!$Y$1,'Reference scenarios'!AC59,NA()))) -> 0 | J72: =IF($G$3='Reference scenarios'!$K$1,'Reference scenarios'!P59,IF($G$3='Reference scenarios'!$R$1,'Reference scenarios'!W59,IF($G$3='Reference scenarios'!$Y$1,'Reference scenarios'!AD59,NA()))) -> 0 | K72: 59 | L72: =E72/'Evolution Urbaine'!I115 -> 0 | M72: =F72/'Evolution Urbaine'!J115 -> 0 | N72: =G72/'Evolution Urbaine'!K115 -> 0 | O72: =H72/'Evolution Urbaine'!L115 -> 0 | P72: =I72/'Evolution Urbaine'!M115 -> 0 | Q72: =J72/'Evolution Urbaine'!N115 -> 0 | R72: 71
C73: IV | D73: Taza (Mun.) | E73: =IF($G$3='Reference scenarios'!$K$1,'Reference scenarios'!K60,IF($G$3='Reference scenarios'!$R$1,'Reference scenarios'!R60,IF($G$3='Reference scenarios'!$Y$1,'Reference scenarios'!Y60,NA()))) -> 0 | F73: =IF($G$3='Reference scenarios'!$K$1,'Reference scenarios'!L60,IF($G$3='Reference scenarios'!$R$1,'Reference scenarios'!S60,IF($G$3='Reference scenarios'!$Y$1,'Reference scenarios'!Z60,NA()))) -> 0 | G73: =IF($G$3='Reference scenarios'!$K$1,'Reference scenarios'!M60,IF($G$3='Reference scenarios'!$R$1,'Reference scenarios'!T60,IF($G$3='Reference scenarios'!$Y$1,'Reference scenarios'!AA60,NA()))) -> 0 | H73: =IF($G$3='Reference scenarios'!$K$1,'Reference scenarios'!N60,IF($G$3='Reference scenarios'!$R$1,'Reference scenarios'!U60,IF($G$3='Reference scenarios'!$Y$1,'Reference scenarios'!AB60,NA()))) -> 0 | I73: =IF($G$3='Reference scenarios'!$K$1,'Reference scenarios'!O60,IF($G$3='Reference scenarios'!$R$1,'Reference scenarios'!V60,IF($G$3='Reference scenarios'!$Y$1,'Reference scenarios'!AC60,NA()))) -> 0 | J73: =IF($G$3='Reference scenarios'!$K$1,'Reference scenarios'!P60,IF($G$3='Reference scenarios'!$R$1,'Reference scenarios'!W60,IF($G$3='Reference scenarios'!$Y$1,'Reference scenarios'!AD60,NA()))) -> 0 | K73: 60 | L73: =E73/'Evolution Urbaine'!I116 -> 0 | M73: =F73/'Evolution Urbaine'!J116 -> 0 | N73: =G73/'Evolution Urbaine'!K116 -> 0 | O73: =H73/'Evolution Urbaine'!L116 -> 0 | P73: =I73/'Evolution Urbaine'!M116 -> 0 | Q73: =J73/'Evolution Urbaine'!N116 -> 0 | R73: 72
C74: IV | D74: Berkane | E74: =IF($G$3='Reference scenarios'!$K$1,'Reference scenarios'!K61,IF($G$3='Reference scenarios'!$R$1,'Reference scenarios'!R61,IF($G$3='Reference scenarios'!$Y$1,'Reference scenarios'!Y61,NA()))) -> 0 | F74: =IF($G$3='Reference scenarios'!$K$1,'Reference scenarios'!L61,IF($G$3='Reference scenarios'!$R$1,'Reference scenarios'!S61,IF($G$3='Reference scenarios'!$Y$1,'Reference scenarios'!Z61,NA()))) -> 0 | G74: =IF($G$3='Reference scenarios'!$K$1,'Reference scenarios'!M61,IF($G$3='Reference scenarios'!$R$1,'Reference scenarios'!T61,IF($G$3='Reference scenarios'!$Y$1,'Reference scenarios'!AA61,NA()))) -> 0 | H74: =IF($G$3='Reference scenarios'!$K$1,'Reference scenarios'!N61,IF($G$3='Reference scenarios'!$R$1,'Reference scenarios'!U61,IF($G$3='Reference scenarios'!$Y$1,'Reference scenarios'!AB61,NA()))) -> 0 | I74: =IF($G$3='Reference scenarios'!$K$1,'Reference scenarios'!O61,IF($G$3='Reference scenarios'!$R$1,'Reference scenarios'!V61,IF($G$3='Reference scenarios'!$Y$1,'Reference scenarios'!AC61,NA()))) -> 0 | J74: =IF($G$3='Reference scenarios'!$K$1,'Reference scenarios'!P61,IF($G$3='Reference scenarios'!$R$1,'Reference scenarios'!W61,IF($G$3='Reference scenarios'!$Y$1,'Reference scenarios'!AD61,NA()))) -> 0 | K74: 61 | L74: =E74/'Evolution Urbaine'!I117 -> 0 | M74: =F74/'Evolution Urbaine'!J117 -> 0 | N74: =G74/'Evolution Urbaine'!K117 -> 0 | O74: =H74/'Evolution Urbaine'!L117 -> 0 | P74: =I74/'Evolution Urbaine'!M117 -> 0 | Q74: =J74/'Evolution Urbaine'!N117 -> 0 | R74: 73
C75: IV | D75: Errachidia | E75: =IF($G$3='Reference scenarios'!$K$1,'Reference scenarios'!K62,IF($G$3='Reference scenarios'!$R$1,'Reference scenarios'!R62,IF($G$3='Reference scenarios'!$Y$1,'Reference scenarios'!Y62,NA()))) -> 0 | F75: =IF($G$3='Reference scenarios'!$K$1,'Reference scenarios'!L62,IF($G$3='Reference scenarios'!$R$1,'Reference scenarios'!S62,IF($G$3='Reference scenarios'!$Y$1,'Reference scenarios'!Z62,NA()))) -> 0 | G75: =IF($G$3='Reference scenarios'!$K$1,'Reference scenarios'!M62,IF($G$3='Reference scenarios'!$R$1,'Reference scenarios'!T62,IF($G$3='Reference scenarios'!$Y$1,'Reference scenarios'!AA62,NA()))) -> 0 | H75: =IF($G$3='Reference scenarios'!$K$1,'Reference scenarios'!N62,IF($G$3='Reference scenarios'!$R$1,'Reference scenarios'!U62,IF($G$3='Reference scenarios'!$Y$1,'Reference scenarios'!AB62,NA()))) -> 0 | I75: =IF($G$3='Reference scenarios'!$K$1,'Reference scenarios'!O62,IF($G$3='Reference scenarios'!$R$1,'Reference scenarios'!V62,IF($G$3='Reference scenarios'!$Y$1,'Reference scenarios'!AC62,NA()))) -> 0 | J75: =IF($G$3='Reference scenarios'!$K$1,'Reference scenarios'!P62,IF($G$3='Reference scenarios'!$R$1,'Reference scenarios'!W62,IF($G$3='Reference scenarios'!$Y$1,'Reference scenarios'!AD62,NA()))) -> 0 | K75: 62 | L75: =E75/'Evolution Urbaine'!I118 -> 0 | M75: =F75/'Evolution Urbaine'!J118 -> 0 | N75: =G75/'Evolution Urbaine'!K118 -> 0 | O75: =H75/'Evolution Urbaine'!L118 -> 0 | P75: =I75/'Evolution Urbaine'!M118 -> 0 | Q75: =J75/'Evolution Urbaine'!N118 -> 0 | R75: 74
B77: Réseau de RER (taille totale du réseau en km) | L77: Densité correspondante (km par km²)
C78: Catégorie | D78: Aire urbaine | E78: Valeur pour 2025 | F78: Valeur pour 2030 | G78: Valeur pour 2035 | H78: Valeur pour 2040 | I78: Valeur pour 2045 | J78: Valeur pour 2050 | L78: Valeur pour 2025 | M78: Valeur pour 2030 | N78: Valeur pour 2035 | O78: Valeur pour 2040 | P78: Valeur pour 2045 | Q78: Valeur pour 2050
C79: =ROMAN(1) -> I | D79: Grand Casablanca | E79: =IF($G$3='Reference scenarios'!$K$1,'Reference scenarios'!K63,IF($G$3='Reference scenarios'!$R$1,'Reference scenarios'!R63,IF($G$3='Reference scenarios'!$Y$1,'Reference scenarios'!Y63,NA()))) -> 0 | F79: =IF($G$3='Reference scenarios'!$K$1,'Reference scenarios'!L63,IF($G$3='Reference scenarios'!$R$1,'Reference scenarios'!S63,IF($G$3='Reference scenarios'!$Y$1,'Reference scenarios'!Z63,NA()))) -> 131 | G79: =IF($G$3='Reference scenarios'!$K$1,'Reference scenarios'!M63,IF($G$3='Reference scenarios'!$R$1,'Reference scenarios'!T63,IF($G$3='Reference scenarios'!$Y$1,'Reference scenarios'!AA63,NA()))) -> 131 | H79: =IF($G$3='Reference scenarios'!$K$1,'Reference scenarios'!N63,IF($G$3='Reference scenarios'!$R$1,'Reference scenarios'!U63,IF($G$3='Reference scenarios'!$Y$1,'Reference scenarios'!AB63,NA()))) -> 131 | I79: =IF($G$3='Reference scenarios'!$K$1,'Reference scenarios'!O63,IF($G$3='Reference scenarios'!$R$1,'Reference scenarios'!V63,IF($G$3='Reference scenarios'!$Y$1,'Reference scenarios'!AC63,NA()))) -> 131 | J79: =IF($G$3='Reference scenarios'!$K$1,'Reference scenarios'!P63,IF($G$3='Reference scenarios'!$R$1,'Reference scenarios'!W63,IF($G$3='Reference scenarios'!$Y$1,'Reference scenarios'!AD63,NA()))) -> 131 | K79: 63 | L79: =E79/'Evolution Urbaine'!I94 -> 0 | M79: =F79/'Evolution Urbaine'!J94 -> 0.0901710022 | N79: =G79/'Evolution Urbaine'!K94 -> 0.08475168261 | O79: =H79/'Evolution Urbaine'!L94 -> 0.08045095774 | P79: =I79/'Evolution Urbaine'!M94 -> 0.07704984699 | Q79: =J79/'Evolution Urbaine'!N94 -> 0.07435332212 | R79: 85
C80: =ROMAN(1) -> I | D80: Rabat-Salé-Skhirate-Temara | E80: =IF($G$3='Reference scenarios'!$K$1,'Reference scenarios'!K64,IF($G$3='Reference scenarios'!$R$1,'Reference scenarios'!R64,IF($G$3='Reference scenarios'!$Y$1,'Reference scenarios'!Y64,NA()))) -> 0 | F80: =IF($G$3='Reference scenarios'!$K$1,'Reference scenarios'!L64,IF($G$3='Reference scenarios'!$R$1,'Reference scenarios'!S64,IF($G$3='Reference scenarios'!$Y$1,'Reference scenarios'!Z64,NA()))) -> 66 | G80: =IF($G$3='Reference scenarios'!$K$1,'Reference scenarios'!M64,IF($G$3='Reference scenarios'!$R$1,'Reference scenarios'!T64,IF($G$3='Reference scenarios'!$Y$1,'Reference scenarios'!AA64,NA()))) -> 66 | H80: =IF($G$3='Reference scenarios'!$K$1,'Reference scenarios'!N64,IF($G$3='Reference scenarios'!$R$1,'Reference scenarios'!U64,IF($G$3='Reference scenarios'!$Y$1,'Reference scenarios'!AB64,NA()))) -> 66 | I80: =IF($G$3='Reference scenarios'!$K$1,'Reference scenarios'!O64,IF($G$3='Reference scenarios'!$R$1,'Reference scenarios'!V64,IF($G$3='Reference scenarios'!$Y$1,'Reference scenarios'!AC64,NA()))) -> 66 | J80: =IF($G$3='Reference scenarios'!$K$1,'Reference scenarios'!P64,IF($G$3='Reference scenarios'!$R$1,'Reference scenarios'!W64,IF($G$3='Reference scenarios'!$Y$1,'Reference scenarios'!AD64,NA()))) -> 66 | K80: 64 | L80: =E80/'Evolution Urbaine'!I95 -> 0 | M80: =F80/'Evolution Urbaine'!J95 -> 0.06697899317 | N80: =G80/'Evolution Urbaine'!K95 -> 0.06370683673 | O80: =H80/'Evolution Urbaine'!L95 -> 0.06119767525 | P80: =I80/'Evolution Urbaine'!M95 -> 0.0593118514 | Q80: =J80/'Evolution Urbaine'!N95 -> 0.05792100269 | R80: 86
C81: =ROMAN(2) -> II | D81: Fès | E81: =IF($G$3='Reference scenarios'!$K$1,'Reference scenarios'!K65,IF($G$3='Reference scenarios'!$R$1,'Reference scenarios'!R65,IF($G$3='Reference scenarios'!$Y$1,'Reference scenarios'!Y65,NA()))) -> 0 | F81: =IF($G$3='Reference scenarios'!$K$1,'Reference scenarios'!L65,IF($G$3='Reference scenarios'!$R$1,'Reference scenarios'!S65,IF($G$3='Reference scenarios'!$Y$1,'Reference scenarios'!Z65,NA()))) -> 0 | G81: =IF($G$3='Reference scenarios'!$K$1,'Reference scenarios'!M65,IF($G$3='Reference scenarios'!$R$1,'Reference scenarios'!T65,IF($G$3='Reference scenarios'!$Y$1,'Reference scenarios'!AA65,NA()))) -> 0 | H81: =IF($G$3='Reference scenarios'!$K$1,'Reference scenarios'!N65,IF($G$3='Reference scenarios'!$R$1,'Reference scenarios'!U65,IF($G$3='Reference scenarios'!$Y$1,'Reference scenarios'!AB65,NA()))) -> 0 | I81: =IF($G$3='Reference scenarios'!$K$1,'Reference scenarios'!O65,IF($G$3='Reference scenarios'!$R$1,'Reference scenarios'!V65,IF($G$3='Reference scenarios'!$Y$1,'Reference scenarios'!AC65,NA()))) -> 0 | J81: =IF($G$3='Reference scenarios'!$K$1,'Reference scenarios'!P65,IF($G$3='Reference scenarios'!$R$1,'Reference scenarios'!W65,IF($G$3='Reference scenarios'!$Y$1,'Reference scenarios'!AD65,NA()))) -> 0 | K81: 65 | L81: =E81/'Evolution Urbaine'!I96 -> 0 | M81: =F81/'Evolution Urbaine'!J96 -> 0 | N81: =G81/'Evolution Urbaine'!K96 -> 0 | O81: =H81/'Evolution Urbaine'!L96 -> 0 | P81: =I81/'Evolution Urbaine'!M96 -> 0 | Q81: =J81/'Evolution Urbaine'!N96 -> 0 | R81: 87
C82: =ROMAN(2) -> II | D82: Agadir-Ida-Ou-Tanane-Inezgane- Ait Melloul | E82: =IF($G$3='Reference scenarios'!$K$1,'Reference scenarios'!K66,IF($G$3='Reference scenarios'!$R$1,'Reference scenarios'!R66,IF($G$3='Reference scenarios'!$Y$1,'Reference scenarios'!Y66,NA()))) -> 0 | F82: =IF($G$3='Reference scenarios'!$K$1,'Reference scenarios'!L66,IF($G$3='Reference scenarios'!$R$1,'Reference scenarios'!S66,IF($G$3='Reference scenarios'!$Y$1,'Reference scenarios'!Z66,NA()))) -> 0 | G82: =IF($G$3='Reference scenarios'!$K$1,'Reference scenarios'!M66,IF($G$3='Reference scenarios'!$R$1,'Reference scenarios'!T66,IF($G$3='Reference scenarios'!$Y$1,'Reference scenarios'!AA66,NA()))) -> 0 | H82: =IF($G$3='Reference scenarios'!$K$1,'Reference scenarios'!N66,IF($G$3='Reference scenarios'!$R$1,'Reference scenarios'!U66,IF($G$3='Reference scenarios'!$Y$1,'Reference scenarios'!AB66,NA()))) -> 0 | I82: =IF($G$3='Reference scenarios'!$K$1,'Reference scenarios'!O66,IF($G$3='Reference scenarios'!$R$1,'Reference scenarios'!V66,IF($G$3='Reference scenarios'!$Y$1,'Reference scenarios'!AC66,NA()))) -> 0 | J82: =IF($G$3='Reference scenarios'!$K$1,'Reference scenarios'!P66,IF($G$3='Reference scenarios'!$R$1,'Reference scenarios'!W66,IF($G$3='Reference scenarios'!$Y$1,'Reference scenarios'!AD66,NA()))) -> 0 | K82: 66 | L82: =E82/'Evolution Urbaine'!I97 -> 0 | M82: =F82/'Evolution Urbaine'!J97 -> 0 | N82: =G82/'Evolution Urbaine'!K97 -> 0 | O82: =H82/'Evolution Urbaine'!L97 -> 0 | P82: =I82/'Evolution Urbaine'!M97 -> 0 | Q82: =J82/'Evolution Urbaine'!N97 -> 0 | R82: 88
C83: =ROMAN(2) -> II | D83: Tanger-Assilah | E83: =IF($G$3='Reference scenarios'!$K$1,'Reference scenarios'!K67,IF($G$3='Reference scenarios'!$R$1,'Reference scenarios'!R67,IF($G$3='Reference scenarios'!$Y$1,'Reference scenarios'!Y67,NA()))) -> 0 | F83: =IF($G$3='Reference scenarios'!$K$1,'Reference scenarios'!L67,IF($G$3='Reference scenarios'!$R$1,'Reference scenarios'!S67,IF($G$3='Reference scenarios'!$Y$1,'Reference scenarios'!Z67,NA()))) -> 0 | G83: =IF($G$3='Reference scenarios'!$K$1,'Reference scenarios'!M67,IF($G$3='Reference scenarios'!$R$1,'Reference scenarios'!T67,IF($G$3='Reference scenarios'!$Y$1,'Reference scenarios'!AA67,NA()))) -> 0 | H83: =IF($G$3='Reference scenarios'!$K$1,'Reference scenarios'!N67,IF($G$3='Reference scenarios'!$R$1,'Reference scenarios'!U67,IF($G$3='Reference scenarios'!$Y$1,'Reference scenarios'!AB67,NA()))) -> 0 | I83: =IF($G$3='Reference scenarios'!$K$1,'Reference scenarios'!O67,IF($G$3='Reference scenarios'!$R$1,'Reference scenarios'!V67,IF($G$3='Reference scenarios'!$Y$1,'Reference scenarios'!AC67,NA()))) -> 0 | J83: =IF($G$3='Reference scenarios'!$K$1,'Reference scenarios'!P67,IF($G$3='Reference scenarios'!$R$1,'Reference scenarios'!W67,IF($G$3='Reference scenarios'!$Y$1,'Reference scenarios'!AD67,NA()))) -> 0 | K83: 67 | L83: =E83/'Evolution Urbaine'!I98 -> 0 | M83: =F83/'Evolution Urbaine'!J98 -> 0 | N83: =G83/'Evolution Urbaine'!K98 -> 0 | O83: =H83/'Evolution Urbaine'!L98 -> 0 | P83: =I83/'Evolution Urbaine'!M98 -> 0 | Q83: =J83/'Evolution Urbaine'!N98 -> 0 | R83: 89
C84: =ROMAN(2) -> II | D84: Marrakech | E84: =IF($G$3='Reference scenarios'!$K$1,'Reference scenarios'!K68,IF($G$3='Reference scenarios'!$R$1,'Reference scenarios'!R68,IF($G$3='Reference scenarios'!$Y$1,'Reference scenarios'!Y68,NA()))) -> 0 | F84: =IF($G$3='Reference scenarios'!$K$1,'Reference scenarios'!L68,IF($G$3='Reference scenarios'!$R$1,'Reference scenarios'!S68,IF($G$3='Reference scenarios'!$Y$1,'Reference scenarios'!Z68,NA()))) -> 0 | G84: =IF($G$3='Reference scenarios'!$K$1,'Reference scenarios'!M68,IF($G$3='Reference scenarios'!$R$1,'Reference scenarios'!T68,IF($G$3='Reference scenarios'!$Y$1,'Reference scenarios'!AA68,NA()))) -> 0 | H84: =IF($G$3='Reference scenarios'!$K$1,'Reference scenarios'!N68,IF($G$3='Reference scenarios'!$R$1,'Reference scenarios'!U68,IF($G$3='Reference scenarios'!$Y$1,'Reference scenarios'!AB68,NA()))) -> 0 | I84: =IF($G$3='Reference scenarios'!$K$1,'Reference scenarios'!O68,IF($G$3='Reference scenarios'!$R$1,'Reference scenarios'!V68,IF($G$3='Reference scenarios'!$Y$1,'Reference scenarios'!AC68,NA()))) -> 0 | J84: =IF($G$3='Reference scenarios'!$K$1,'Reference scenarios'!P68,IF($G$3='Reference scenarios'!$R$1,'Reference scenarios'!W68,IF($G$3='Reference scenarios'!$Y$1,'Reference scenarios'!AD68,NA()))) -> 0 | K84: 68 | L84: =E84/'Evolution Urbaine'!I99 -> 0 | M84: =F84/'Evolution Urbaine'!J99 -> 0 | N84: =G84/'Evolution Urbaine'!K99 -> 0 | O84: =H84/'Evolution Urbaine'!L99 -> 0 | P84: =I84/'Evolution Urbaine'!M99 -> 0 | Q84: =J84/'Evolution Urbaine'!N99 -> 0 | R84: 90
C85: =ROMAN(3) -> III | D85: Meknès (Mun.) | E85: =IF($G$3='Reference scenarios'!$K$1,'Reference scenarios'!K69,IF($G$3='Reference scenarios'!$R$1,'Reference scenarios'!R69,IF($G$3='Reference scenarios'!$Y$1,'Reference scenarios'!Y69,NA()))) -> 0 | F85: =IF($G$3='Reference scenarios'!$K$1,'Reference scenarios'!L69,IF($G$3='Reference scenarios'!$R$1,'Reference scenarios'!S69,IF($G$3='Reference scenarios'!$Y$1,'Reference scenarios'!Z69,NA()))) -> 0 | G85: =IF($G$3='Reference scenarios'!$K$1,'Reference scenarios'!M69,IF($G$3='Reference scenarios'!$R$1,'Reference scenarios'!T69,IF($G$3='Reference scenarios'!$Y$1,'Reference scenarios'!AA69,NA()))) -> 0 | H85: =IF($G$3='Reference scenarios'!$K$1,'Reference scenarios'!N69,IF($G$3='Reference scenarios'!$R$1,'Reference scenarios'!U69,IF($G$3='Reference scenarios'!$Y$1,'Reference scenarios'!AB69,NA()))) -> 0 | I85: =IF($G$3='Reference scenarios'!$K$1,'Reference scenarios'!O69,IF($G$3='Reference scenarios'!$R$1,'Reference scenarios'!V69,IF($G$3='Reference scenarios'!$Y$1,'Reference scenarios'!AC69,NA()))) -> 0 | J85: =IF($G$3='Reference scenarios'!$K$1,'Reference scenarios'!P69,IF($G$3='Reference scenarios'!$R$1,'Reference scenarios'!W69,IF($G$3='Reference scenarios'!$Y$1,'Reference scenarios'!AD69,NA()))) -> 0 | K85: 69 | L85: =E85/'Evolution Urbaine'!I100 -> 0 | M85: =F85/'Evolution Urbaine'!J100 -> 0 | N85: =G85/'Evolution Urbaine'!K100 -> 0 | O85: =H85/'Evolution Urbaine'!L100 -> 0 | P85: =I85/'Evolution Urbaine'!M100 -> 0 | Q85: =J85/'Evolution Urbaine'!N100 -> 0 | R85: 91
C86: III | D86: Kenitra | E86: =IF($G$3='Reference scenarios'!$K$1,'Reference scenarios'!K70,IF($G$3='Reference scenarios'!$R$1,'Reference scenarios'!R70,IF($G$3='Reference scenarios'!$Y$1,'Reference scenarios'!Y70,NA()))) -> 0 | F86: =IF($G$3='Reference scenarios'!$K$1,'Reference scenarios'!L70,IF($G$3='Reference scenarios'!$R$1,'Reference scenarios'!S70,IF($G$3='Reference scenarios'!$Y$1,'Reference scenarios'!Z70,NA()))) -> 0 | G86: =IF($G$3='Reference scenarios'!$K$1,'Reference scenarios'!M70,IF($G$3='Reference scenarios'!$R$1,'Reference scenarios'!T70,IF($G$3='Reference scenarios'!$Y$1,'Reference scenarios'!AA70,NA()))) -> 0 | H86: =IF($G$3='Reference scenarios'!$K$1,'Reference scenarios'!N70,IF($G$3='Reference scenarios'!$R$1,'Reference scenarios'!U70,IF($G$3='Reference scenarios'!$Y$1,'Reference scenarios'!AB70,NA()))) -> 0 | I86: =IF($G$3='Reference scenarios'!$K$1,'Reference scenarios'!O70,IF($G$3='Reference scenarios'!$R$1,'Reference scenarios'!V70,IF($G$3='Reference scenarios'!$Y$1,'Reference scenarios'!AC70,NA()))) -> 0 | J86: =IF($G$3='Reference scenarios'!$K$1,'Reference scenarios'!P70,IF($G$3='Reference scenarios'!$R$1,'Reference scenarios'!W70,IF($G$3='Reference scenarios'!$Y$1,'Reference scenarios'!AD70,NA()))) -> 0 | K86: 70 | L86: =E86/'Evolution Urbaine'!I101 -> 0 | M86: =F86/'Evolution Urbaine'!J101 -> 0 | N86: =G86/'Evolution Urbaine'!K101 -> 0 | O86: =H86/'Evolution Urbaine'!L101 -> 0 | P86: =I86/'Evolution Urbaine'!M101 -> 0 | Q86: =J86/'Evolution Urbaine'!N101 -> 0 | R86: 92
C87: III | D87: Oujda-Angad (Mun.) | E87: =IF($G$3='Reference scenarios'!$K$1,'Reference scenarios'!K71,IF($G$3='Reference scenarios'!$R$1,'Reference scenarios'!R71,IF($G$3='Reference scenarios'!$Y$1,'Reference scenarios'!Y71,NA()))) -> 0 | F87: =IF($G$3='Reference scenarios'!$K$1,'Reference scenarios'!L71,IF($G$3='Reference scenarios'!$R$1,'Reference scenarios'!S71,IF($G$3='Reference scenarios'!$Y$1,'Reference scenarios'!Z71,NA()))) -> 0 | G87: =IF($G$3='Reference scenarios'!$K$1,'Reference scenarios'!M71,IF($G$3='Reference scenarios'!$R$1,'Reference scenarios'!T71,IF($G$3='Reference scenarios'!$Y$1,'Reference scenarios'!AA71,NA()))) -> 0 | H87: =IF($G$3='Reference scenarios'!$K$1,'Reference scenarios'!N71,IF($G$3='Reference scenarios'!$R$1,'Reference scenarios'!U71,IF($G$3='Reference scenarios'!$Y$1,'Reference scenarios'!AB71,NA()))) -> 0 | I87: =IF($G$3='Reference scenarios'!$K$1,'Reference scenarios'!O71,IF($G$3='Reference scenarios'!$R$1,'Reference scenarios'!V71,IF($G$3='Reference scenarios'!$Y$1,'Reference scenarios'!AC71,NA()))) -> 0 | J87: =IF($G$3='Reference scenarios'!$K$1,'Reference scenarios'!P71,IF($G$3='Reference scenarios'!$R$1,'Reference scenarios'!W71,IF($G$3='Reference scenarios'!$Y$1,'Reference scenarios'!AD71,NA()))) -> 0 | K87: 71 | L87: =E87/'Evolution Urbaine'!I102 -> 0 | M87: =F87/'Evolution Urbaine'!J102 -> 0 | N87: =G87/'Evolution Urbaine'!K102 -> 0 | O87: =H87/'Evolution Urbaine'!L102 -> 0 | P87: =I87/'Evolution Urbaine'!M102 -> 0 | Q87: =J87/'Evolution Urbaine'!N102 -> 0 | R87: 93
C88: III | D88: Nador (Mun.) | E88: =IF($G$3='Reference scenarios'!$K$1,'Reference scenarios'!K72,IF($G$3='Reference scenarios'!$R$1,'Reference scenarios'!R72,IF($G$3='Reference scenarios'!$Y$1,'Reference scenarios'!Y72,NA()))) -> 0 | F88: ='Reference scenarios'!$F$72 -> 0 | G88: =IF($G$3='Reference scenarios'!$K$1,'Reference scenarios'!M72,IF($G$3='Reference scenarios'!$R$1,'Reference scenarios'!T72,IF($G$3='Reference scenarios'!$Y$1,'Reference scenarios'!AA72,NA()))) -> 0 | H88: =IF($G$3='Reference scenarios'!$K$1,'Reference scenarios'!N72,IF($G$3='Reference scenarios'!$R$1,'Reference scenarios'!U72,IF($G$3='Reference scenarios'!$Y$1,'Reference scenarios'!AB72,NA()))) -> 0 | I88: =IF($G$3='Reference scenarios'!$K$1,'Reference scenarios'!O72,IF($G$3='Reference scenarios'!$R$1,'Reference scenarios'!V72,IF($G$3='Reference scenarios'!$Y$1,'Reference scenarios'!AC72,NA()))) -> 0 | J88: =IF($G$3='Reference scenarios'!$K$1,'Reference scenarios'!P72,IF($G$3='Reference scenarios'!$R$1,'Reference scenarios'!W72,IF($G$3='Reference scenarios'!$Y$1,'Reference scenarios'!AD72,NA()))) -> 0 | K88: 72 | L88: =E88/'Evolution Urbaine'!I103 -> 0 | M88: =F88/'Evolution Urbaine'!J103 -> 0 | N88: =G88/'Evolution Urbaine'!K103 -> 0 | O88: =H88/'Evolution Urbaine'!L103 -> 0 | P88: =I88/'Evolution Urbaine'!M103 -> 0 | Q88: =J88/'Evolution Urbaine'!N103 -> 0 | R88: 94
C89: III | D89: Tétouan (Mun.) | E89: =IF($G$3='Reference scenarios'!$K$1,'Reference scenarios'!K73,IF($G$3='Reference scenarios'!$R$1,'Reference scenarios'!R73,IF($G$3='Reference scenarios'!$Y$1,'Reference scenarios'!Y73,NA()))) -> 0 | F89: =IF($G$3='Reference scenarios'!$K$1,'Reference scenarios'!L73,IF($G$3='Reference scenarios'!$R$1,'Reference scenarios'!S73,IF($G$3='Reference scenarios'!$Y$1,'Reference scenarios'!Z73,NA()))) -> 0 | G89: =IF($G$3='Reference scenarios'!$K$1,'Reference scenarios'!M73,IF($G$3='Reference scenarios'!$R$1,'Reference scenarios'!T73,IF($G$3='Reference scenarios'!$Y$1,'Reference scenarios'!AA73,NA()))) -> 0 | H89: =IF($G$3='Reference scenarios'!$K$1,'Reference scenarios'!N73,IF($G$3='Reference scenarios'!$R$1,'Reference scenarios'!U73,IF($G$3='Reference scenarios'!$Y$1,'Reference scenarios'!AB73,NA()))) -> 0 | I89: =IF($G$3='Reference scenarios'!$K$1,'Reference scenarios'!O73,IF($G$3='Reference scenarios'!$R$1,'Reference scenarios'!V73,IF($G$3='Reference scenarios'!$Y$1,'Reference scenarios'!AC73,NA()))) -> 0 | J89: =IF($G$3='Reference scenarios'!$K$1,'Reference scenarios'!P73,IF($G$3='Reference scenarios'!$R$1,'Reference scenarios'!W73,IF($G$3='Reference scenarios'!$Y$1,'Reference scenarios'!AD73,NA()))) -> 0 | K89: 73 | L89: =E89/'Evolution Urbaine'!I104 -> 0 | M89: =F89/'Evolution Urbaine'!J104 -> 0 | N89: =G89/'Evolution Urbaine'!K104 -> 0 | O89: =H89/'Evolution Urbaine'!L104 -> 0 | P89: =I89/'Evolution Urbaine'!M104 -> 0 | Q89: =J89/'Evolution Urbaine'!N104 -> 0 | R89: 95
C90: III | D90: Khouribga (Mun.) | E90: =IF($G$3='Reference scenarios'!$K$1,'Reference scenarios'!K74,IF($G$3='Reference scenarios'!$R$1,'Reference scenarios'!R74,IF($G$3='Reference scenarios'!$Y$1,'Reference scenarios'!Y74,NA()))) -> 0 | F90: =IF($G$3='Reference scenarios'!$K$1,'Reference scenarios'!L74,IF($G$3='Reference scenarios'!$R$1,'Reference scenarios'!S74,IF($G$3='Reference scenarios'!$Y$1,'Reference scenarios'!Z74,NA()))) -> 0 | G90: =IF($G$3='Reference scenarios'!$K$1,'Reference scenarios'!M74,IF($G$3='Reference scenarios'!$R$1,'Reference scenarios'!T74,IF($G$3='Reference scenarios'!$Y$1,'Reference scenarios'!AA74,NA()))) -> 0 | H90: =IF($G$3='Reference scenarios'!$K$1,'Reference scenarios'!N74,IF($G$3='Reference scenarios'!$R$1,'Reference scenarios'!U74,IF($G$3='Reference scenarios'!$Y$1,'Reference scenarios'!AB74,NA()))) -> 0 | I90: =IF($G$3='Reference scenarios'!$K$1,'Reference scenarios'!O74,IF($G$3='Reference scenarios'!$R$1,'Reference scenarios'!V74,IF($G$3='Reference scenarios'!$Y$1,'Reference scenarios'!AC74,NA()))) -> 0 | J90: =IF($G$3='Reference scenarios'!$K$1,'Reference scenarios'!P74,IF($G$3='Reference scenarios'!$R$1,'Reference scenarios'!W74,IF($G$3='Reference scenarios'!$Y$1,'Reference scenarios'!AD74,NA()))) -> 0 | K90: 74 | L90: =E90/'Evolution Urbaine'!I105 -> 0 | M90: =F90/'Evolution Urbaine'!J105 -> 0 | N90: =G90/'Evolution Urbaine'!K105 -> 0 | O90: =H90/'Evolution Urbaine'!L105 -> 0 | P90: =I90/'Evolution Urbaine'!M105 -> 0 | Q90: =J90/'Evolution Urbaine'!N105 -> 0 | R90: 96
C91: III | D91: El Jadida (Mun.) | E91: =IF($G$3='Reference scenarios'!$K$1,'Reference scenarios'!K75,IF($G$3='Reference scenarios'!$R$1,'Reference scenarios'!R75,IF($G$3='Reference scenarios'!$Y$1,'Reference scenarios'!Y75,NA()))) -> 0 | F91: =IF($G$3='Reference scenarios'!$K$1,'Reference scenarios'!L75,IF($G$3='Reference scenarios'!$R$1,'Reference scenarios'!S75,IF($G$3='Reference scenarios'!$Y$1,'Reference scenarios'!Z75,NA()))) -> 0 | G91: =IF($G$3='Reference scenarios'!$K$1,'Reference scenarios'!M75,IF($G$3='Reference scenarios'!$R$1,'Reference scenarios'!T75,IF($G$3='Reference scenarios'!$Y$1,'Reference scenarios'!AA75,NA()))) -> 0 | H91: =IF($G$3='Reference scenarios'!$K$1,'Reference scenarios'!N75,IF($G$3='Reference scenarios'!$R$1,'Reference scenarios'!U75,IF($G$3='Reference scenarios'!$Y$1,'Reference scenarios'!AB75,NA()))) -> 0 | I91: =IF($G$3='Reference scenarios'!$K$1,'Reference scenarios'!O75,IF($G$3='Reference scenarios'!$R$1,'Reference scenarios'!V75,IF($G$3='Reference scenarios'!$Y$1,'Reference scenarios'!AC75,NA()))) -> 0 | J91: =IF($G$3='Reference scenarios'!$K$1,'Reference scenarios'!P75,IF($G$3='Reference scenarios'!$R$1,'Reference scenarios'!W75,IF($G$3='Reference scenarios'!$Y$1,'Reference scenarios'!AD75,NA()))) -> 0 | K91: 75 | L91: =E91/'Evolution Urbaine'!I106 -> 0 | M91: =F91/'Evolution Urbaine'!J106 -> 0 | N91: =G91/'Evolution Urbaine'!K106 -> 0 | O91: =H91/'Evolution Urbaine'!L106 -> 0 | P91: =I91/'Evolution Urbaine'!M106 -> 0 | Q91: =J91/'Evolution Urbaine'!N106 -> 0 | R91: 97
C92: III | D92: Berrechid (Mun.) | E92: =IF($G$3='Reference scenarios'!$K$1,'Reference scenarios'!K76,IF($G$3='Reference scenarios'!$R$1,'Reference scenarios'!R76,IF($G$3='Reference scenarios'!$Y$1,'Reference scenarios'!Y76,NA()))) -> 0 | F92: =IF($G$3='Reference scenarios'!$K$1,'Reference scenarios'!L76,IF($G$3='Reference scenarios'!$R$1,'Reference scenarios'!S76,IF($G$3='Reference scenarios'!$Y$1,'Reference scenarios'!Z76,NA()))) -> 0 | G92: =IF($G$3='Reference scenarios'!$K$1,'Reference scenarios'!M76,IF($G$3='Reference scenarios'!$R$1,'Reference scenarios'!T76,IF($G$3='Reference scenarios'!$Y$1,'Reference scenarios'!AA76,NA()))) -> 0 | H92: =IF($G$3='Reference scenarios'!$K$1,'Reference scenarios'!N76,IF($G$3='Reference scenarios'!$R$1,'Reference scenarios'!U76,IF($G$3='Reference scenarios'!$Y$1,'Reference scenarios'!AB76,NA()))) -> 0 | I92: =IF($G$3='Reference scenarios'!$K$1,'Reference scenarios'!O76,IF($G$3='Reference scenarios'!$R$1,'Reference scenarios'!V76,IF($G$3='Reference scenarios'!$Y$1,'Reference scenarios'!AC76,NA()))) -> 0 | J92: =IF($G$3='Reference scenarios'!$K$1,'Reference scenarios'!P76,IF($G$3='Reference scenarios'!$R$1,'Reference scenarios'!W76,IF($G$3='Reference scenarios'!$Y$1,'Reference scenarios'!AD76,NA()))) -> 0 | K92: 76 | L92: =E92/'Evolution Urbaine'!I107 -> 0 | M92: =F92/'Evolution Urbaine'!J107 -> 0 | N92: =G92/'Evolution Urbaine'!K107 -> 0 | O92: =H92/'Evolution Urbaine'!L107 -> 0 | P92: =I92/'Evolution Urbaine'!M107 -> 0 | Q92: =J92/'Evolution Urbaine'!N107 -> 0 | R92: 98
C93: III | D93: Safi (Mun.) | E93: =IF($G$3='Reference scenarios'!$K$1,'Reference scenarios'!K77,IF($G$3='Reference scenarios'!$R$1,'Reference scenarios'!R77,IF($G$3='Reference scenarios'!$Y$1,'Reference scenarios'!Y77,NA()))) -> 0 | F93: =IF($G$3='Reference scenarios'!$K$1,'Reference scenarios'!L77,IF($G$3='Reference scenarios'!$R$1,'Reference scenarios'!S77,IF($G$3='Reference scenarios'!$Y$1,'Reference scenarios'!Z77,NA()))) -> 0 | G93: =IF($G$3='Reference scenarios'!$K$1,'Reference scenarios'!M77,IF($G$3='Reference scenarios'!$R$1,'Reference scenarios'!T77,IF($G$3='Reference scenarios'!$Y$1,'Reference scenarios'!AA77,NA()))) -> 0 | H93: =IF($G$3='Reference scenarios'!$K$1,'Reference scenarios'!N77,IF($G$3='Reference scenarios'!$R$1,'Reference scenarios'!U77,IF($G$3='Reference scenarios'!$Y$1,'Reference scenarios'!AB77,NA()))) -> 0 | I93: =IF($G$3='Reference scenarios'!$K$1,'Reference scenarios'!O77,IF($G$3='Reference scenarios'!$R$1,'Reference scenarios'!V77,IF($G$3='Reference scenarios'!$Y$1,'Reference scenarios'!AC77,NA()))) -> 0 | J93: =IF($G$3='Reference scenarios'!$K$1,'Reference scenarios'!P77,IF($G$3='Reference scenarios'!$R$1,'Reference scenarios'!W77,IF($G$3='Reference scenarios'!$Y$1,'Reference scenarios'!AD77,NA()))) -> 0 | K93: 77 | L93: =E93/'Evolution Urbaine'!I108 -> 0 | M93: =F93/'Evolution Urbaine'!J108 -> 0 | N93: =G93/'Evolution Urbaine'!K108 -> 0 | O93: =H93/'Evolution Urbaine'!L108 -> 0 | P93: =I93/'Evolution Urbaine'!M108 -> 0 | Q93: =J93/'Evolution Urbaine'!N108 -> 0 | R93: 99
C94: III | D94: Béni Mellal (Mun.) | E94: =IF($G$3='Reference scenarios'!$K$1,'Reference scenarios'!K78,IF($G$3='Reference scenarios'!$R$1,'Reference scenarios'!R78,IF($G$3='Reference scenarios'!$Y$1,'Reference scenarios'!Y78,NA()))) -> 0 | F94: =IF($G$3='Reference scenarios'!$K$1,'Reference scenarios'!L78,IF($G$3='Reference scenarios'!$R$1,'Reference scenarios'!S78,IF($G$3='Reference scenarios'!$Y$1,'Reference scenarios'!Z78,NA()))) -> 0 | G94: =IF($G$3='Reference scenarios'!$K$1,'Reference scenarios'!M78,IF($G$3='Reference scenarios'!$R$1,'Reference scenarios'!T78,IF($G$3='Reference scenarios'!$Y$1,'Reference scenarios'!AA78,NA()))) -> 0 | H94: =IF($G$3='Reference scenarios'!$K$1,'Reference scenarios'!N78,IF($G$3='Reference scenarios'!$R$1,'Reference scenarios'!U78,IF($G$3='Reference scenarios'!$Y$1,'Reference scenarios'!AB78,NA()))) -> 0 | I94: =IF($G$3='Reference scenarios'!$K$1,'Reference scenarios'!O78,IF($G$3='Reference scenarios'!$R$1,'Reference scenarios'!V78,IF($G$3='Reference scenarios'!$Y$1,'Reference scenarios'!AC78,NA()))) -> 0 | J94: =IF($G$3='Reference scenarios'!$K$1,'Reference scenarios'!P78,IF($G$3='Reference scenarios'!$R$1,'Reference scenarios'!W78,IF($G$3='Reference scenarios'!$Y$1,'Reference scenarios'!AD78,NA()))) -> 0 | K94: 78 | L94: =E94/'Evolution Urbaine'!I109 -> 0 | M94: =F94/'Evolution Urbaine'!J109 -> 0 | N94: =G94/'Evolution Urbaine'!K109 -> 0 | O94: =H94/'Evolution Urbaine'!L109 -> 0 | P94: =I94/'Evolution Urbaine'!M109 -> 0 | Q94: =J94/'Evolution Urbaine'!N109 -> 0 | R94: 100
C95: =ROMAN(4) -> IV | D95: Khémisset (Mun.) | E95: =IF($G$3='Reference scenarios'!$K$1,'Reference scenarios'!K79,IF($G$3='Reference scenarios'!$R$1,'Reference scenarios'!R79,IF($G$3='Reference scenarios'!$Y$1,'Reference scenarios'!Y79,NA()))) -> 0 | F95: =IF($G$3='Reference scenarios'!$K$1,'Reference scenarios'!L79,IF($G$3='Reference scenarios'!$R$1,'Reference scenarios'!S79,IF($G$3='Reference scenarios'!$Y$1,'Reference scenarios'!Z79,NA()))) -> 0 | G95: =IF($G$3='Reference scenarios'!$K$1,'Reference scenarios'!M79,IF($G$3='Reference scenarios'!$R$1,'Reference scenarios'!T79,IF($G$3='Reference scenarios'!$Y$1,'Reference scenarios'!AA79,NA()))) -> 0 | H95: =IF($G$3='Reference scenarios'!$K$1,'Reference scenarios'!N79,IF($G$3='Reference scenarios'!$R$1,'Reference scenarios'!U79,IF($G$3='Reference scenarios'!$Y$1,'Reference scenarios'!AB79,NA()))) -> 0 | I95: =IF($G$3='Reference scenarios'!$K$1,'Reference scenarios'!O79,IF($G$3='Reference scenarios'!$R$1,'Reference scenarios'!V79,IF($G$3='Reference scenarios'!$Y$1,'Reference scenarios'!AC79,NA()))) -> 0 | J95: =IF($G$3='Reference scenarios'!$K$1,'Reference scenarios'!P79,IF($G$3='Reference scenarios'!$R$1,'Reference scenarios'!W79,IF($G$3='Reference scenarios'!$Y$1,'Reference scenarios'!AD79,NA()))) -> 0 | K95: 79 | L95: =E95/'Evolution Urbaine'!I110 -> 0 | M95: =F95/'Evolution Urbaine'!J110 -> 0 | N95: =G95/'Evolution Urbaine'!K110 -> 0 | O95: =H95/'Evolution Urbaine'!L110 -> 0 | P95: =I95/'Evolution Urbaine'!M110 -> 0 | Q95: =J95/'Evolution Urbaine'!N110 -> 0 | R95: 101
C96: IV | D96: Larache (Mun.) | E96: =IF($G$3='Reference scenarios'!$K$1,'Reference scenarios'!K80,IF($G$3='Reference scenarios'!$R$1,'Reference scenarios'!R80,IF($G$3='Reference scenarios'!$Y$1,'Reference scenarios'!Y80,NA()))) -> 0 | F96: =IF($G$3='Reference scenarios'!$K$1,'Reference scenarios'!L80,IF($G$3='Reference scenarios'!$R$1,'Reference scenarios'!S80,IF($G$3='Reference scenarios'!$Y$1,'Reference scenarios'!Z80,NA()))) -> 0 | G96: =IF($G$3='Reference scenarios'!$K$1,'Reference scenarios'!M80,IF($G$3='Reference scenarios'!$R$1,'Reference scenarios'!T80,IF($G$3='Reference scenarios'!$Y$1,'Reference scenarios'!AA80,NA()))) -> 0 | H96: =IF($G$3='Reference scenarios'!$K$1,'Reference scenarios'!N80,IF($G$3='Reference scenarios'!$R$1,'Reference scenarios'!U80,IF($G$3='Reference scenarios'!$Y$1,'Reference scenarios'!AB80,NA()))) -> 0 | I96: =IF($G$3='Reference scenarios'!$K$1,'Reference scenarios'!O80,IF($G$3='Reference scenarios'!$R$1,'Reference scenarios'!V80,IF($G$3='Reference scenarios'!$Y$1,'Reference scenarios'!AC80,NA()))) -> 0 | J96: =IF($G$3='Reference scenarios'!$K$1,'Reference scenarios'!P80,IF($G$3='Reference scenarios'!$R$1,'Reference scenarios'!W80,IF($G$3='Reference scenarios'!$Y$1,'Reference scenarios'!AD80,NA()))) -> 0 | K96: 80 | L96: =E96/'Evolution Urbaine'!I111 -> 0 | M96: =F96/'Evolution Urbaine'!J111 -> 0 | N96: =G96/'Evolution Urbaine'!K111 -> 0 | O96: =H96/'Evolution Urbaine'!L111 -> 0 | P96: =I96/'Evolution Urbaine'!M111 -> 0 | Q96: =J96/'Evolution Urbaine'!N111 -> 0 | R96: 102
C97: IV | D97: Laayoune (Mun.) | E97: =IF($G$3='Reference scenarios'!$K$1,'Reference scenarios'!K81,IF($G$3='Reference scenarios'!$R$1,'Reference scenarios'!R81,IF($G$3='Reference scenarios'!$Y$1,'Reference scenarios'!Y81,NA()))) -> 0 | F97: =IF($G$3='Reference scenarios'!$K$1,'Reference scenarios'!L81,IF($G$3='Reference scenarios'!$R$1,'Reference scenarios'!S81,IF($G$3='Reference scenarios'!$Y$1,'Reference scenarios'!Z81,NA()))) -> 0 | G97: =IF($G$3='Reference scenarios'!$K$1,'Reference scenarios'!M81,IF($G$3='Reference scenarios'!$R$1,'Reference scenarios'!T81,IF($G$3='Reference scenarios'!$Y$1,'Reference scenarios'!AA81,NA()))) -> 0 | H97: =IF($G$3='Reference scenarios'!$K$1,'Reference scenarios'!N81,IF($G$3='Reference scenarios'!$R$1,'Reference scenarios'!U81,IF($G$3='Reference scenarios'!$Y$1,'Reference scenarios'!AB81,NA()))) -> 0 | I97: =IF($G$3='Reference scenarios'!$K$1,'Reference scenarios'!O81,IF($G$3='Reference scenarios'!$R$1,'Reference scenarios'!V81,IF($G$3='Reference scenarios'!$Y$1,'Reference scenarios'!AC81,NA()))) -> 0 | J97: =IF($G$3='Reference scenarios'!$K$1,'Reference scenarios'!P81,IF($G$3='Reference scenarios'!$R$1,'Reference scenarios'!W81,IF($G$3='Reference scenarios'!$Y$1,'Reference scenarios'!AD81,NA()))) -> 0 | K97: 81 | L97: =E97/'Evolution Urbaine'!I112 -> 0 | M97: =F97/'Evolution Urbaine'!J112 -> 0 | N97: =G97/'Evolution Urbaine'!K112 -> 0 | O97: =H97/'Evolution Urbaine'!L112 -> 0 | P97: =I97/'Evolution Urbaine'!M112 -> 0 | Q97: =J97/'Evolution Urbaine'!N112 -> 0 | R97: 103
C98: IV | D98: Khenifra (Mun.) | E98: =IF($G$3='Reference scenarios'!$K$1,'Reference scenarios'!K82,IF($G$3='Reference scenarios'!$R$1,'Reference scenarios'!R82,IF($G$3='Reference scenarios'!$Y$1,'Reference scenarios'!Y82,NA()))) -> 0 | F98: =IF($G$3='Reference scenarios'!$K$1,'Reference scenarios'!L82,IF($G$3='Reference scenarios'!$R$1,'Reference scenarios'!S82,IF($G$3='Reference scenarios'!$Y$1,'Reference scenarios'!Z82,NA()))) -> 0 | G98: =IF($G$3='Reference scenarios'!$K$1,'Reference scenarios'!M82,IF($G$3='Reference scenarios'!$R$1,'Reference scenarios'!T82,IF($G$3='Reference scenarios'!$Y$1,'Reference scenarios'!AA82,NA()))) -> 0 | H98: =IF($G$3='Reference scenarios'!$K$1,'Reference scenarios'!N82,IF($G$3='Reference scenarios'!$R$1,'Reference scenarios'!U82,IF($G$3='Reference scenarios'!$Y$1,'Reference scenarios'!AB82,NA()))) -> 0 | I98: =IF($G$3='Reference scenarios'!$K$1,'Reference scenarios'!O82,IF($G$3='Reference scenarios'!$R$1,'Reference scenarios'!V82,IF($G$3='Reference scenarios'!$Y$1,'Reference scenarios'!AC82,NA()))) -> 0 | J98: =IF($G$3='Reference scenarios'!$K$1,'Reference scenarios'!P82,IF($G$3='Reference scenarios'!$R$1,'Reference scenarios'!W82,IF($G$3='Reference scenarios'!$Y$1,'Reference scenarios'!AD82,NA()))) -> 0 | K98: 82 | L98: =E98/'Evolution Urbaine'!I113 -> 0 | M98: =F98/'Evolution Urbaine'!J113 -> 0 | N98: =G98/'Evolution Urbaine'!K113 -> 0 | O98: =H98/'Evolution Urbaine'!L113 -> 0 | P98: =I98/'Evolution Urbaine'!M113 -> 0 | Q98: =J98/'Evolution Urbaine'!N113 -> 0 | R98: 104
C99: IV | D99: Settat (Mun.) | E99: =IF($G$3='Reference scenarios'!$K$1,'Reference scenarios'!K83,IF($G$3='Reference scenarios'!$R$1,'Reference scenarios'!R83,IF($G$3='Reference scenarios'!$Y$1,'Reference scenarios'!Y83,NA()))) -> 0 | F99: =IF($G$3='Reference scenarios'!$K$1,'Reference scenarios'!L83,IF($G$3='Reference scenarios'!$R$1,'Reference scenarios'!S83,IF($G$3='Reference scenarios'!$Y$1,'Reference scenarios'!Z83,NA()))) -> 0 | G99: =IF($G$3='Reference scenarios'!$K$1,'Reference scenarios'!M83,IF($G$3='Reference scenarios'!$R$1,'Reference scenarios'!T83,IF($G$3='Reference scenarios'!$Y$1,'Reference scenarios'!AA83,NA()))) -> 0 | H99: =IF($G$3='Reference scenarios'!$K$1,'Reference scenarios'!N83,IF($G$3='Reference scenarios'!$R$1,'Reference scenarios'!U83,IF($G$3='Reference scenarios'!$Y$1,'Reference scenarios'!AB83,NA()))) -> 0 | I99: =IF($G$3='Reference scenarios'!$K$1,'Reference scenarios'!O83,IF($G$3='Reference scenarios'!$R$1,'Reference scenarios'!V83,IF($G$3='Reference scenarios'!$Y$1,'Reference scenarios'!AC83,NA()))) -> 0 | J99: =IF($G$3='Reference scenarios'!$K$1,'Reference scenarios'!P83,IF($G$3='Reference scenarios'!$R$1,'Reference scenarios'!W83,IF($G$3='Reference scenarios'!$Y$1,'Reference scenarios'!AD83,NA()))) -> 0 | K99: 83 | L99: =E99/'Evolution Urbaine'!I114 -> 0 | M99: =F99/'Evolution Urbaine'!J114 -> 0 | N99: =G99/'Evolution Urbaine'!K114 -> 0 | O99: =H99/'Evolution Urbaine'!L114 -> 0 | P99: =I99/'Evolution Urbaine'!M114 -> 0 | Q99: =J99/'Evolution Urbaine'!N114 -> 0 | R99: 105
C100: IV | D100: Fquih Ben Salah (Mun.) | E100: =IF($G$3='Reference scenarios'!$K$1,'Reference scenarios'!K84,IF($G$3='Reference scenarios'!$R$1,'Reference scenarios'!R84,IF($G$3='Reference scenarios'!$Y$1,'Reference scenarios'!Y84,NA()))) -> 0 | F100: =IF($G$3='Reference scenarios'!$K$1,'Reference scenarios'!L84,IF($G$3='Reference scenarios'!$R$1,'Reference scenarios'!S84,IF($G$3='Reference scenarios'!$Y$1,'Reference scenarios'!Z84,NA()))) -> 0 | G100: =IF($G$3='Reference scenarios'!$K$1,'Reference scenarios'!M84,IF($G$3='Reference scenarios'!$R$1,'Reference scenarios'!T84,IF($G$3='Reference scenarios'!$Y$1,'Reference scenarios'!AA84,NA()))) -> 0 | H100: =IF($G$3='Reference scenarios'!$K$1,'Reference scenarios'!N84,IF($G$3='Reference scenarios'!$R$1,'Reference scenarios'!U84,IF($G$3='Reference scenarios'!$Y$1,'Reference scenarios'!AB84,NA()))) -> 0 | I100: =IF($G$3='Reference scenarios'!$K$1,'Reference scenarios'!O84,IF($G$3='Reference scenarios'!$R$1,'Reference scenarios'!V84,IF($G$3='Reference scenarios'!$Y$1,'Reference scenarios'!AC84,NA()))) -> 0 | J100: =IF($G$3='Reference scenarios'!$K$1,'Reference scenarios'!P84,IF($G$3='Reference scenarios'!$R$1,'Reference scenarios'!W84,IF($G$3='Reference scenarios'!$Y$1,'Reference scenarios'!AD84,NA()))) -> 0 | K100: 84 | L100: =E100/'Evolution Urbaine'!I115 -> 0 | M100: =F100/'Evolution Urbaine'!J115 -> 0 | N100: =G100/'Evolution Urbaine'!K115 -> 0 | O100: =H100/'Evolution Urbaine'!L115 -> 0 | P100: =I100/'Evolution Urbaine'!M115 -> 0 | Q100: =J100/'Evolution Urbaine'!N115 -> 0 | R100: 106
C101: IV | D101: Taza (Mun.) | E101: =IF($G$3='Reference scenarios'!$K$1,'Reference scenarios'!K85,IF($G$3='Reference scenarios'!$R$1,'Reference scenarios'!R85,IF($G$3='Reference scenarios'!$Y$1,'Reference scenarios'!Y85,NA()))) -> 0 | F101: =IF($G$3='Reference scenarios'!$K$1,'Reference scenarios'!L85,IF($G$3='Reference scenarios'!$R$1,'Reference scenarios'!S85,IF($G$3='Reference scenarios'!$Y$1,'Reference scenarios'!Z85,NA()))) -> 0 | G101: =IF($G$3='Reference scenarios'!$K$1,'Reference scenarios'!M85,IF($G$3='Reference scenarios'!$R$1,'Reference scenarios'!T85,IF($G$3='Reference scenarios'!$Y$1,'Reference scenarios'!AA85,NA()))) -> 0 | H101: =IF($G$3='Reference scenarios'!$K$1,'Reference scenarios'!N85,IF($G$3='Reference scenarios'!$R$1,'Reference scenarios'!U85,IF($G$3='Reference scenarios'!$Y$1,'Reference scenarios'!AB85,NA()))) -> 0 | I101: =IF($G$3='Reference scenarios'!$K$1,'Reference scenarios'!O85,IF($G$3='Reference scenarios'!$R$1,'Reference scenarios'!V85,IF($G$3='Reference scenarios'!$Y$1,'Reference scenarios'!AC85,NA()))) -> 0 | J101: =IF($G$3='Reference scenarios'!$K$1,'Reference scenarios'!P85,IF($G$3='Reference scenarios'!$R$1,'Reference scenarios'!W85,IF($G$3='Reference scenarios'!$Y$1,'Reference scenarios'!AD85,NA()))) -> 0 | K101: 85 | L101: =E101/'Evolution Urbaine'!I116 -> 0 | M101: =F101/'Evolution Urbaine'!J116 -> 0 | N101: =G101/'Evolution Urbaine'!K116 -> 0 | O101: =H101/'Evolution Urbaine'!L116 -> 0 | P101: =I101/'Evolution Urbaine'!M116 -> 0 | Q101: =J101/'Evolution Urbaine'!N116 -> 0 | R101: 107
C102: IV | D102: Berkane | E102: =IF($G$3='Reference scenarios'!$K$1,'Reference scenarios'!K86,IF($G$3='Reference scenarios'!$R$1,'Reference scenarios'!R86,IF($G$3='Reference scenarios'!$Y$1,'Reference scenarios'!Y86,NA()))) -> 0 | F102: =IF($G$3='Reference scenarios'!$K$1,'Reference scenarios'!L86,IF($G$3='Reference scenarios'!$R$1,'Reference scenarios'!S86,IF($G$3='Reference scenarios'!$Y$1,'Reference scenarios'!Z86,NA()))) -> 0 | G102: =IF($G$3='Reference scenarios'!$K$1,'Reference scenarios'!M86,IF($G$3='Reference scenarios'!$R$1,'Reference scenarios'!T86,IF($G$3='Reference scenarios'!$Y$1,'Reference scenarios'!AA86,NA()))) -> 0 | H102: =IF($G$3='Reference scenarios'!$K$1,'Reference scenarios'!N86,IF($G$3='Reference scenarios'!$R$1,'Reference scenarios'!U86,IF($G$3='Reference scenarios'!$Y$1,'Reference scenarios'!AB86,NA()))) -> 0 | I102: =IF($G$3='Reference scenarios'!$K$1,'Reference scenarios'!O86,IF($G$3='Reference scenarios'!$R$1,'Reference scenarios'!V86,IF($G$3='Reference scenarios'!$Y$1,'Reference scenarios'!AC86,NA()))) -> 0 | J102: =IF($G$3='Reference scenarios'!$K$1,'Reference scenarios'!P86,IF($G$3='Reference scenarios'!$R$1,'Reference scenarios'!W86,IF($G$3='Reference scenarios'!$Y$1,'Reference scenarios'!AD86,NA()))) -> 0 | K102: 86 | L102: =E102/'Evolution Urbaine'!I117 -> 0 | M102: =F102/'Evolution Urbaine'!J117 -> 0 | N102: =G102/'Evolution Urbaine'!K117 -> 0 | O102: =H102/'Evolution Urbaine'!L117 -> 0 | P102: =I102/'Evolution Urbaine'!M117 -> 0 | Q102: =J102/'Evolution Urbaine'!N117 -> 0 | R102: 108
C103: IV | D103: Errachidia | E103: =IF($G$3='Reference scenarios'!$K$1,'Reference scenarios'!K87,IF($G$3='Reference scenarios'!$R$1,'Reference scenarios'!R87,IF($G$3='Reference scenarios'!$Y$1,'Reference scenarios'!Y87,NA()))) -> 0 | F103: =IF($G$3='Reference scenarios'!$K$1,'Reference scenarios'!L87,IF($G$3='Reference scenarios'!$R$1,'Reference scenarios'!S87,IF($G$3='Reference scenarios'!$Y$1,'Reference scenarios'!Z87,NA()))) -> 0 | G103: =IF($G$3='Reference scenarios'!$K$1,'Reference scenarios'!M87,IF($G$3='Reference scenarios'!$R$1,'Reference scenarios'!T87,IF($G$3='Reference scenarios'!$Y$1,'Reference scenarios'!AA87,NA()))) -> 0 | H103: =IF($G$3='Reference scenarios'!$K$1,'Reference scenarios'!N87,IF($G$3='Reference scenarios'!$R$1,'Reference scenarios'!U87,IF($G$3='Reference scenarios'!$Y$1,'Reference scenarios'!AB87,NA()))) -> 0 | I103: =IF($G$3='Reference scenarios'!$K$1,'Reference scenarios'!O87,IF($G$3='Reference scenarios'!$R$1,'Reference scenarios'!V87,IF($G$3='Reference scenarios'!$Y$1,'Reference scenarios'!AC87,NA()))) -> 0 | J103: =IF($G$3='Reference scenarios'!$K$1,'Reference scenarios'!P87,IF($G$3='Reference scenarios'!$R$1,'Reference scenarios'!W87,IF($G$3='Reference scenarios'!$Y$1,'Reference scenarios'!AD87,NA()))) -> 0 | K103: 87 | L103: =E103/'Evolution Urbaine'!I118 -> 0 | M103: =F103/'Evolution Urbaine'!J118 -> 0 | N103: =G103/'Evolution Urbaine'!K118 -> 0 | O103: =H103/'Evolution Urbaine'!L118 -> 0 | P103: =I103/'Evolution Urbaine'!M118 -> 0 | Q103: =J103/'Evolution Urbaine'!N118 -> 0 | R103: 109
B105: Flotte de bus de transport en commun (Nombre total de véhicules en circulation) | L105: Densité correspondante (véhicules pour 1000 habitants)
C106: Catégorie | D106: Aire urbaine | E106: Valeur pour 2025 | F106: Valeur pour 2030 | G106: Valeur pour 2035 | H106: Valeur pour 2040 | I106: Valeur pour 2045 | J106: Valeur pour 2050 | L106: Valeur pour 2025 | M106: Valeur pour 2030 | N106: Valeur pour 2035 | O106: Valeur pour 2040 | P106: Valeur pour 2045 | Q106: Valeur pour 2050
C107: =ROMAN(1) -> I | D107: Grand Casablanca | E107: =IF($G$3='Reference scenarios'!$K$1,'Reference scenarios'!K88,IF($G$3='Reference scenarios'!$R$1,'Reference scenarios'!R88,IF($G$3='Reference scenarios'!$Y$1,'Reference scenarios'!Y88,NA()))) -> 700 | F107: =IF($G$3='Reference scenarios'!$K$1,'Reference scenarios'!L88,IF($G$3='Reference scenarios'!$R$1,'Reference scenarios'!S88,IF($G$3='Reference scenarios'!$Y$1,'Reference scenarios'!Z88,NA()))) -> 700 | G107: =IF($G$3='Reference scenarios'!$K$1,'Reference scenarios'!M88,IF($G$3='Reference scenarios'!$R$1,'Reference scenarios'!T88,IF($G$3='Reference scenarios'!$Y$1,'Reference scenarios'!AA88,NA()))) -> 700 | H107: =IF($G$3='Reference scenarios'!$K$1,'Reference scenarios'!N88,IF($G$3='Reference scenarios'!$R$1,'Reference scenarios'!U88,IF($G$3='Reference scenarios'!$Y$1,'Reference scenarios'!AB88,NA()))) -> 700 | I107: =IF($G$3='Reference scenarios'!$K$1,'Reference scenarios'!O88,IF($G$3='Reference scenarios'!$R$1,'Reference scenarios'!V88,IF($G$3='Reference scenarios'!$Y$1,'Reference scenarios'!AC88,NA()))) -> 700 | J107: =IF($G$3='Reference scenarios'!$K$1,'Reference scenarios'!P88,IF($G$3='Reference scenarios'!$R$1,'Reference scenarios'!W88,IF($G$3='Reference scenarios'!$Y$1,'Reference scenarios'!AD88,NA()))) -> 700 | K107: 88 | L107: =E107/'Evolution Urbaine'!I10*1000 -> 0.1447546997 | M107: =F107/'Evolution Urbaine'!J10*1000 -> 0.1354672129 | N107: =G107/'Evolution Urbaine'!K10*1000 -> 0.1262762996 | O107: =H107/'Evolution Urbaine'!L10*1000 -> 0.1188805909 | P107: =I107/'Evolution Urbaine'!M10*1000 -> 0.1129165852 | Q107: =J107/'Evolution Urbaine'!N10*1000 -> 0.1080668647 | R107: 120
C108: =ROMAN(1) -> I | D108: Rabat-Salé-Skhirate-Temara | E108: =IF($G$3='Reference scenarios'!$K$1,'Reference scenarios'!K89,IF($G$3='Reference scenarios'!$R$1,'Reference scenarios'!R89,IF($G$3='Reference scenarios'!$Y$1,'Reference scenarios'!Y89,NA()))) -> 350 | F108: =IF($G$3='Reference scenarios'!$K$1,'Reference scenarios'!L89,IF($G$3='Reference scenarios'!$R$1,'Reference scenarios'!S89,IF($G$3='Reference scenarios'!$Y$1,'Reference scenarios'!Z89,NA()))) -> 350 | G108: =IF($G$3='Reference scenarios'!$K$1,'Reference scenarios'!M89,IF($G$3='Reference scenarios'!$R$1,'Reference scenarios'!T89,IF($G$3='Reference scenarios'!$Y$1,'Reference scenarios'!AA89,NA()))) -> 350 | H108: =IF($G$3='Reference scenarios'!$K$1,'Reference scenarios'!N89,IF($G$3='Reference scenarios'!$R$1,'Reference scenarios'!U89,IF($G$3='Reference scenarios'!$Y$1,'Reference scenarios'!AB89,NA()))) -> 350 | I108: =IF($G$3='Reference scenarios'!$K$1,'Reference scenarios'!O89,IF($G$3='Reference scenarios'!$R$1,'Reference scenarios'!V89,IF($G$3='Reference scenarios'!$Y$1,'Reference scenarios'!AC89,NA()))) -> 350 | J108: =IF($G$3='Reference scenarios'!$K$1,'Reference scenarios'!P89,IF($G$3='Reference scenarios'!$R$1,'Reference scenarios'!W89,IF($G$3='Reference scenarios'!$Y$1,'Reference scenarios'!AD89,NA()))) -> 350 | K108: 89 | L108: =E108/'Evolution Urbaine'!I11*1000 -> 0.1497260868 | M108: =F108/'Evolution Urbaine'!J11*1000 -> 0.1415963573 | N108: =G108/'Evolution Urbaine'!K11*1000 -> 0.1335690159 | O108: =H108/'Evolution Urbaine'!L11*1000 -> 0.1272508899 | P108: =I108/'Evolution Urbaine'!M11*1000 -> 0.1223132773 | Q108: =J108/'Evolution Urbaine'!N11*1000 -> 0.1184607322 | R108: 121
C109: =ROMAN(2) -> II | D109: Fès | E109: =IF($G$3='Reference scenarios'!$K$1,'Reference scenarios'!K90,IF($G$3='Reference scenarios'!$R$1,'Reference scenarios'!R90,IF($G$3='Reference scenarios'!$Y$1,'Reference scenarios'!Y90,NA()))) -> 202 | F109: =IF($G$3='Reference scenarios'!$K$1,'Reference scenarios'!L90,IF($G$3='Reference scenarios'!$R$1,'Reference scenarios'!S90,IF($G$3='Reference scenarios'!$Y$1,'Reference scenarios'!Z90,NA()))) -> 202 | G109: =IF($G$3='Reference scenarios'!$K$1,'Reference scenarios'!M90,IF($G$3='Reference scenarios'!$R$1,'Reference scenarios'!T90,IF($G$3='Reference scenarios'!$Y$1,'Reference scenarios'!AA90,NA()))) -> 202 | H109: =IF($G$3='Reference scenarios'!$K$1,'Reference scenarios'!N90,IF($G$3='Reference scenarios'!$R$1,'Reference scenarios'!U90,IF($G$3='Reference scenarios'!$Y$1,'Reference scenarios'!AB90,NA()))) -> 202 | I109: =IF($G$3='Reference scenarios'!$K$1,'Reference scenarios'!O90,IF($G$3='Reference scenarios'!$R$1,'Reference scenarios'!V90,IF($G$3='Reference scenarios'!$Y$1,'Reference scenarios'!AC90,NA()))) -> 202 | J109: =IF($G$3='Reference scenarios'!$K$1,'Reference scenarios'!P90,IF($G$3='Reference scenarios'!$R$1,'Reference scenarios'!W90,IF($G$3='Reference scenarios'!$Y$1,'Reference scenarios'!AD90,NA()))) -> 202 | K109: 90 | L109: =E109/'Evolution Urbaine'!I12*1000 -> 0.1546987051 | M109: =F109/'Evolution Urbaine'!J12*1000 -> 0.147584006 | N109: =G109/'Evolution Urbaine'!K12*1000 -> 0.1398461785 | O109: =H109/'Evolution Urbaine'!L12*1000 -> 0.1338330478 | P109: =I109/'Evolution Urbaine'!M12*1000 -> 0.1292212109 | Q109: =J109/'Evolution Urbaine'!N12*1000 -> 0.1257164993 | R109: 122
C110: =ROMAN(2) -> II | D110: Agadir-Ida-Ou-Tanane-Inezgane- Ait Melloul | E110: =IF($G$3='Reference scenarios'!$K$1,'Reference scenarios'!K91,IF($G$3='Reference scenarios'!$R$1,'Reference scenarios'!R91,IF($G$3='Reference scenarios'!$Y$1,'Reference scenarios'!Y91,NA()))) -> 201 | F110: =IF($G$3='Reference scenarios'!$K$1,'Reference scenarios'!L91,IF($G$3='Reference scenarios'!$R$1,'Reference scenarios'!S91,IF($G$3='Reference scenarios'!$Y$1,'Reference scenarios'!Z91,NA()))) -> 201 | G110: =IF($G$3='Reference scenarios'!$K$1,'Reference scenarios'!M91,IF($G$3='Reference scenarios'!$R$1,'Reference scenarios'!T91,IF($G$3='Reference scenarios'!$Y$1,'Reference scenarios'!AA91,NA()))) -> 201 | H110: =IF($G$3='Reference scenarios'!$K$1,'Reference scenarios'!N91,IF($G$3='Reference scenarios'!$R$1,'Reference scenarios'!U91,IF($G$3='Reference scenarios'!$Y$1,'Reference scenarios'!AB91,NA()))) -> 201 | I110: =IF($G$3='Reference scenarios'!$K$1,'Reference scenarios'!O91,IF($G$3='Reference scenarios'!$R$1,'Reference scenarios'!V91,IF($G$3='Reference scenarios'!$Y$1,'Reference scenarios'!AC91,NA()))) -> 201 | J110: =IF($G$3='Reference scenarios'!$K$1,'Reference scenarios'!P91,IF($G$3='Reference scenarios'!$R$1,'Reference scenarios'!W91,IF($G$3='Reference scenarios'!$Y$1,'Reference scenarios'!AD91,NA()))) -> 201 | K110: 91 | L110: =E110/'Evolution Urbaine'!I13*1000 -> 0.1477903142 | M110: =F110/'Evolution Urbaine'!J13*1000 -> 0.1321231467 | N110: =G110/'Evolution Urbaine'!K13*1000 -> 0.1173870912 | O110: =H110/'Evolution Urbaine'!L13*1000 -> 0.1053327035 | P110: =I110/'Evolution Urbaine'!M13*1000 -> 0.09535946228 | Q110: =J110/'Evolution Urbaine'!N13*1000 -> 0.08698660695 | R110: 123
C111: =ROMAN(2) -> II | D111: Tanger-Assilah | E111: =IF($G$3='Reference scenarios'!$K$1,'Reference scenarios'!K92,IF($G$3='Reference scenarios'!$R$1,'Reference scenarios'!R92,IF($G$3='Reference scenarios'!$Y$1,'Reference scenarios'!Y92,NA()))) -> 155 | F111: =IF($G$3='Reference scenarios'!$K$1,'Reference scenarios'!L92,IF($G$3='Reference scenarios'!$R$1,'Reference scenarios'!S92,IF($G$3='Reference scenarios'!$Y$1,'Reference scenarios'!Z92,NA()))) -> 155 | G111: =IF($G$3='Reference scenarios'!$K$1,'Reference scenarios'!M92,IF($G$3='Reference scenarios'!$R$1,'Reference scenarios'!T92,IF($G$3='Reference scenarios'!$Y$1,'Reference scenarios'!AA92,NA()))) -> 155 | H111: =IF($G$3='Reference scenarios'!$K$1,'Reference scenarios'!N92,IF($G$3='Reference scenarios'!$R$1,'Reference scenarios'!U92,IF($G$3='Reference scenarios'!$Y$1,'Reference scenarios'!AB92,NA()))) -> 155 | I111: =IF($G$3='Reference scenarios'!$K$1,'Reference scenarios'!O92,IF($G$3='Reference scenarios'!$R$1,'Reference scenarios'!V92,IF($G$3='Reference scenarios'!$Y$1,'Reference scenarios'!AC92,NA()))) -> 155 | J111: =IF($G$3='Reference scenarios'!$K$1,'Reference scenarios'!P92,IF($G$3='Reference scenarios'!$R$1,'Reference scenarios'!W92,IF($G$3='Reference scenarios'!$Y$1,'Reference scenarios'!AD92,NA()))) -> 155 | K111: 92 | L111: =E111/'Evolution Urbaine'!I14*1000 -> 0.1211334023 | M111: =F111/'Evolution Urbaine'!J14*1000 -> 0.1105530362 | N111: =G111/'Evolution Urbaine'!K14*1000 -> 0.1002396833 | O111: =H111/'Evolution Urbaine'!L14*1000 -> 0.09179312472 | P111: =I111/'Evolution Urbaine'!M14*1000 -> 0.08480828767 | Q111: =J111/'Evolution Urbaine'!N14*1000 -> 0.07895042467 | R111: 124
C112: =ROMAN(2) -> II | D112: Marrakech | E112: =IF($G$3='Reference scenarios'!$K$1,'Reference scenarios'!K93,IF($G$3='Reference scenarios'!$R$1,'Reference scenarios'!R93,IF($G$3='Reference scenarios'!$Y$1,'Reference scenarios'!Y93,NA()))) -> 212 | F112: =IF($G$3='Reference scenarios'!$K$1,'Reference scenarios'!L93,IF($G$3='Reference scenarios'!$R$1,'Reference scenarios'!S93,IF($G$3='Reference scenarios'!$Y$1,'Reference scenarios'!Z93,NA()))) -> 212 | G112: =IF($G$3='Reference scenarios'!$K$1,'Reference scenarios'!M93,IF($G$3='Reference scenarios'!$R$1,'Reference scenarios'!T93,IF($G$3='Reference scenarios'!$Y$1,'Reference scenarios'!AA93,NA()))) -> 212 | H112: =IF($G$3='Reference scenarios'!$K$1,'Reference scenarios'!N93,IF($G$3='Reference scenarios'!$R$1,'Reference scenarios'!U93,IF($G$3='Reference scenarios'!$Y$1,'Reference scenarios'!AB93,NA()))) -> 212 | I112: =IF($G$3='Reference scenarios'!$K$1,'Reference scenarios'!O93,IF($G$3='Reference scenarios'!$R$1,'Reference scenarios'!V93,IF($G$3='Reference scenarios'!$Y$1,'Reference scenarios'!AC93,NA()))) -> 212 | J112: =IF($G$3='Reference scenarios'!$K$1,'Reference scenarios'!P93,IF($G$3='Reference scenarios'!$R$1,'Reference scenarios'!W93,IF($G$3='Reference scenarios'!$Y$1,'Reference scenarios'!AD93,NA()))) -> 212 | K112: 93 | L112: =E112/'Evolution Urbaine'!I15*1000 -> 0.1946203984 | M112: =F112/'Evolution Urbaine'!J15*1000 -> 0.1891369378 | N112: =G112/'Evolution Urbaine'!K15*1000 -> 0.1825040597 | O112: =H112/'Evolution Urbaine'!L15*1000 -> 0.1778566724 | P112: =I112/'Evolution Urbaine'!M15*1000 -> 0.1748740904 | Q112: =J112/'Evolution Urbaine'!N15*1000 -> 0.1732482311 | R112: 125
C113: =ROMAN(3) -> III | D113: Meknès (Mun.) | E113: =IF($G$3='Reference scenarios'!$K$1,'Reference scenarios'!K94,IF($G$3='Reference scenarios'!$R$1,'Reference scenarios'!R94,IF($G$3='Reference scenarios'!$Y$1,'Reference scenarios'!Y94,NA()))) -> 80 | F113: =IF($G$3='Reference scenarios'!$K$1,'Reference scenarios'!L94,IF($G$3='Reference scenarios'!$R$1,'Reference scenarios'!S94,IF($G$3='Reference scenarios'!$Y$1,'Reference scenarios'!Z94,NA()))) -> 80 | G113: =IF($G$3='Reference scenarios'!$K$1,'Reference scenarios'!M94,IF($G$3='Reference scenarios'!$R$1,'Reference scenarios'!T94,IF($G$3='Reference scenarios'!$Y$1,'Reference scenarios'!AA94,NA()))) -> 80 | H113: =IF($G$3='Reference scenarios'!$K$1,'Reference scenarios'!N94,IF($G$3='Reference scenarios'!$R$1,'Reference scenarios'!U94,IF($G$3='Reference scenarios'!$Y$1,'Reference scenarios'!AB94,NA()))) -> 80 | I113: =IF($G$3='Reference scenarios'!$K$1,'Reference scenarios'!O94,IF($G$3='Reference scenarios'!$R$1,'Reference scenarios'!V94,IF($G$3='Reference scenarios'!$Y$1,'Reference scenarios'!AC94,NA()))) -> 80 | J113: =IF($G$3='Reference scenarios'!$K$1,'Reference scenarios'!P94,IF($G$3='Reference scenarios'!$R$1,'Reference scenarios'!W94,IF($G$3='Reference scenarios'!$Y$1,'Reference scenarios'!AD94,NA()))) -> 80 | K113: 94 | L113: =E113/'Evolution Urbaine'!I16*1000 -> 0.09901443507 | M113: =F113/'Evolution Urbaine'!J16*1000 -> 0.09374124838 | N113: =G113/'Evolution Urbaine'!K16*1000 -> 0.08815677118 | O113: =H113/'Evolution Urbaine'!L16*1000 -> 0.08373018963 | P113: =I113/'Evolution Urbaine'!M16*1000 -> 0.08023542305 | Q113: =J113/'Evolution Urbaine'!N16*1000 -> 0.07747083802 | R113: 126
C114: III | D114: Kenitra | E114: =IF($G$3='Reference scenarios'!$K$1,'Reference scenarios'!K95,IF($G$3='Reference scenarios'!$R$1,'Reference scenarios'!R95,IF($G$3='Reference scenarios'!$Y$1,'Reference scenarios'!Y95,NA()))) -> 138 | F114: =IF($G$3='Reference scenarios'!$K$1,'Reference scenarios'!L95,IF($G$3='Reference scenarios'!$R$1,'Reference scenarios'!S95,IF($G$3='Reference scenarios'!$Y$1,'Reference scenarios'!Z95,NA()))) -> 138 | G114: =IF($G$3='Reference scenarios'!$K$1,'Reference scenarios'!M95,IF($G$3='Reference scenarios'!$R$1,'Reference scenarios'!T95,IF($G$3='Reference scenarios'!$Y$1,'Reference scenarios'!AA95,NA()))) -> 138 | H114: =IF($G$3='Reference scenarios'!$K$1,'Reference scenarios'!N95,IF($G$3='Reference scenarios'!$R$1,'Reference scenarios'!U95,IF($G$3='Reference scenarios'!$Y$1,'Reference scenarios'!AB95,NA()))) -> 138 | I114: =IF($G$3='Reference scenarios'!$K$1,'Reference scenarios'!O95,IF($G$3='Reference scenarios'!$R$1,'Reference scenarios'!V95,IF($G$3='Reference scenarios'!$Y$1,'Reference scenarios'!AC95,NA()))) -> 138 | J114: =IF($G$3='Reference scenarios'!$K$1,'Reference scenarios'!P95,IF($G$3='Reference scenarios'!$R$1,'Reference scenarios'!W95,IF($G$3='Reference scenarios'!$Y$1,'Reference scenarios'!AD95,NA()))) -> 138 | K114: 95 | L114: =E114/'Evolution Urbaine'!I17*1000 -> 0.1787865832 | M114: =F114/'Evolution Urbaine'!J17*1000 -> 0.1638118301 | N114: =G114/'Evolution Urbaine'!K17*1000 -> 0.1487676524 | O114: =H114/'Evolution Urbaine'!L17*1000 -> 0.1364498976 | P114: =I114/'Evolution Urbaine'!M17*1000 -> 0.1262686657 | Q114: =J114/'Evolution Urbaine'!N17*1000 -> 0.1177351126 | R114: 127
C115: III | D115: Oujda-Angad (Mun.) | E115: =IF($G$3='Reference scenarios'!$K$1,'Reference scenarios'!K96,IF($G$3='Reference scenarios'!$R$1,'Reference scenarios'!R96,IF($G$3='Reference scenarios'!$Y$1,'Reference scenarios'!Y96,NA()))) -> 150 | F115: =IF($G$3='Reference scenarios'!$K$1,'Reference scenarios'!L96,IF($G$3='Reference scenarios'!$R$1,'Reference scenarios'!S96,IF($G$3='Reference scenarios'!$Y$1,'Reference scenarios'!Z96,NA()))) -> 150 | G115: =IF($G$3='Reference scenarios'!$K$1,'Reference scenarios'!M96,IF($G$3='Reference scenarios'!$R$1,'Reference scenarios'!T96,IF($G$3='Reference scenarios'!$Y$1,'Reference scenarios'!AA96,NA()))) -> 150 | H115: =IF($G$3='Reference scenarios'!$K$1,'Reference scenarios'!N96,IF($G$3='Reference scenarios'!$R$1,'Reference scenarios'!U96,IF($G$3='Reference scenarios'!$Y$1,'Reference scenarios'!AB96,NA()))) -> 150 | I115: =IF($G$3='Reference scenarios'!$K$1,'Reference scenarios'!O96,IF($G$3='Reference scenarios'!$R$1,'Reference scenarios'!V96,IF($G$3='Reference scenarios'!$Y$1,'Reference scenarios'!AC96,NA()))) -> 150 | J115: =IF($G$3='Reference scenarios'!$K$1,'Reference scenarios'!P96,IF($G$3='Reference scenarios'!$R$1,'Reference scenarios'!W96,IF($G$3='Reference scenarios'!$Y$1,'Reference scenarios'!AD96,NA()))) -> 150 | K115: 96 | L115: =E115/'Evolution Urbaine'!I18*1000 -> 0.2281341064 | M115: =F115/'Evolution Urbaine'!J18*1000 -> 0.2058773877 | N115: =G115/'Evolution Urbaine'!K18*1000 -> 0.1848645246 | O115: =H115/'Evolution Urbaine'!L18*1000 -> 0.1676486129 | P115: =I115/'Evolution Urbaine'!M18*1000 -> 0.1550743865 | Q115: =J115/'Evolution Urbaine'!N18*1000 -> 0.1443524876 | R115: 128
C116: III | D116: Nador (Mun.) | E116: =IF($G$3='Reference scenarios'!$K$1,'Reference scenarios'!K97,IF($G$3='Reference scenarios'!$R$1,'Reference scenarios'!R97,IF($G$3='Reference scenarios'!$Y$1,'Reference scenarios'!Y97,NA()))) -> 165 | F116: =IF($G$3='Reference scenarios'!$K$1,'Reference scenarios'!L97,IF($G$3='Reference scenarios'!$R$1,'Reference scenarios'!S97,IF($G$3='Reference scenarios'!$Y$1,'Reference scenarios'!Z97,NA()))) -> 165 | G116: =IF($G$3='Reference scenarios'!$K$1,'Reference scenarios'!M97,IF($G$3='Reference scenarios'!$R$1,'Reference scenarios'!T97,IF($G$3='Reference scenarios'!$Y$1,'Reference scenarios'!AA97,NA()))) -> 165 | H116: =IF($G$3='Reference scenarios'!$K$1,'Reference scenarios'!N97,IF($G$3='Reference scenarios'!$R$1,'Reference scenarios'!U97,IF($G$3='Reference scenarios'!$Y$1,'Reference scenarios'!AB97,NA()))) -> 165 | I116: =IF($G$3='Reference scenarios'!$K$1,'Reference scenarios'!O97,IF($G$3='Reference scenarios'!$R$1,'Reference scenarios'!V97,IF($G$3='Reference scenarios'!$Y$1,'Reference scenarios'!AC97,NA()))) -> 165 | J116: =IF($G$3='Reference scenarios'!$K$1,'Reference scenarios'!P97,IF($G$3='Reference scenarios'!$R$1,'Reference scenarios'!W97,IF($G$3='Reference scenarios'!$Y$1,'Reference scenarios'!AD97,NA()))) -> 165 | K116: 97 | L116: =E116/'Evolution Urbaine'!I19*1000 -> 0.3309597834 | M116: =F116/'Evolution Urbaine'!J19*1000 -> 0.3017898884 | N116: =G116/'Evolution Urbaine'!K19*1000 -> 0.2737892534 | O116: =H116/'Evolution Urbaine'!L19*1000 -> 0.2508589311 | P116: =I116/'Evolution Urbaine'!M19*1000 -> 0.2318998192 | Q116: =J116/'Evolution Urbaine'!N19*1000 -> 0.2160027536 | R116: 129
C117: III | D117: Tétouan (Mun.) | E117: =IF($G$3='Reference scenarios'!$K$1,'Reference scenarios'!K98,IF($G$3='Reference scenarios'!$R$1,'Reference scenarios'!R98,IF($G$3='Reference scenarios'!$Y$1,'Reference scenarios'!Y98,NA()))) -> 87 | F117: =IF($G$3='Reference scenarios'!$K$1,'Reference scenarios'!L98,IF($G$3='Reference scenarios'!$R$1,'Reference scenarios'!S98,IF($G$3='Reference scenarios'!$Y$1,'Reference scenarios'!Z98,NA()))) -> 87 | G117: =IF($G$3='Reference scenarios'!$K$1,'Reference scenarios'!M98,IF($G$3='Reference scenarios'!$R$1,'Reference scenarios'!T98,IF($G$3='Reference scenarios'!$Y$1,'Reference scenarios'!AA98,NA()))) -> 87 | H117: =IF($G$3='Reference scenarios'!$K$1,'Reference scenarios'!N98,IF($G$3='Reference scenarios'!$R$1,'Reference scenarios'!U98,IF($G$3='Reference scenarios'!$Y$1,'Reference scenarios'!AB98,NA()))) -> 87 | I117: =IF($G$3='Reference scenarios'!$K$1,'Reference scenarios'!O98,IF($G$3='Reference scenarios'!$R$1,'Reference scenarios'!V98,IF($G$3='Reference scenarios'!$Y$1,'Reference scenarios'!AC98,NA()))) -> 87 | J117: =IF($G$3='Reference scenarios'!$K$1,'Reference scenarios'!P98,IF($G$3='Reference scenarios'!$R$1,'Reference scenarios'!W98,IF($G$3='Reference scenarios'!$Y$1,'Reference scenarios'!AD98,NA()))) -> 87 | K117: 98 | L117: =E117/'Evolution Urbaine'!I20*1000 -> 0.1996301106 | M117: =F117/'Evolution Urbaine'!J20*1000 -> 0.1951928707 | N117: =G117/'Evolution Urbaine'!K20*1000 -> 0.1895562698 | O117: =H117/'Evolution Urbaine'!L20*1000 -> 0.1859147354 | P117: =I117/'Evolution Urbaine'!M20*1000 -> 0.1839700578 | Q117: =J117/'Evolution Urbaine'!N20*1000 -> 0.1834292168 | R117: 130
C118: III | D118: Khouribga (Mun.) | E118: =IF($G$3='Reference scenarios'!$K$1,'Reference scenarios'!K99,IF($G$3='Reference scenarios'!$R$1,'Reference scenarios'!R99,IF($G$3='Reference scenarios'!$Y$1,'Reference scenarios'!Y99,NA()))) -> 40 | F118: =IF($G$3='Reference scenarios'!$K$1,'Reference scenarios'!L99,IF($G$3='Reference scenarios'!$R$1,'Reference scenarios'!S99,IF($G$3='Reference scenarios'!$Y$1,'Reference scenarios'!Z99,NA()))) -> 40 | G118: =IF($G$3='Reference scenarios'!$K$1,'Reference scenarios'!M99,IF($G$3='Reference scenarios'!$R$1,'Reference scenarios'!T99,IF($G$3='Reference scenarios'!$Y$1,'Reference scenarios'!AA99,NA()))) -> 40 | H118: =IF($G$3='Reference scenarios'!$K$1,'Reference scenarios'!N99,IF($G$3='Reference scenarios'!$R$1,'Reference scenarios'!U99,IF($G$3='Reference scenarios'!$Y$1,'Reference scenarios'!AB99,NA()))) -> 40 | I118: =IF($G$3='Reference scenarios'!$K$1,'Reference scenarios'!O99,IF($G$3='Reference scenarios'!$R$1,'Reference scenarios'!V99,IF($G$3='Reference scenarios'!$Y$1,'Reference scenarios'!AC99,NA()))) -> 40 | J118: =IF($G$3='Reference scenarios'!$K$1,'Reference scenarios'!P99,IF($G$3='Reference scenarios'!$R$1,'Reference scenarios'!W99,IF($G$3='Reference scenarios'!$Y$1,'Reference scenarios'!AD99,NA()))) -> 40 | K118: 99 | L118: =E118/'Evolution Urbaine'!I21*1000 -> 0.09063800089 | M118: =F118/'Evolution Urbaine'!J21*1000 -> 0.08578849276 | N118: =G118/'Evolution Urbaine'!K21*1000 -> 0.08081887803 | O118: =H118/'Evolution Urbaine'!L21*1000 -> 0.0768949915 | P118: =I118/'Evolution Urbaine'!M21*1000 -> 0.0738143776 | Q118: =J118/'Evolution Urbaine'!N21*1000 -> 0.07139567534 | R118: 131
C119: III | D119: El Jadida (Mun.) | E119: =IF($G$3='Reference scenarios'!$K$1,'Reference scenarios'!K100,IF($G$3='Reference scenarios'!$R$1,'Reference scenarios'!R100,IF($G$3='Reference scenarios'!$Y$1,'Reference scenarios'!Y100,NA()))) -> 62 | F119: =IF($G$3='Reference scenarios'!$K$1,'Reference scenarios'!L100,IF($G$3='Reference scenarios'!$R$1,'Reference scenarios'!S100,IF($G$3='Reference scenarios'!$Y$1,'Reference scenarios'!Z100,NA()))) -> 62 | G119: =IF($G$3='Reference scenarios'!$K$1,'Reference scenarios'!M100,IF($G$3='Reference scenarios'!$R$1,'Reference scenarios'!T100,IF($G$3='Reference scenarios'!$Y$1,'Reference scenarios'!AA100,NA()))) -> 62 | H119: =IF($G$3='Reference scenarios'!$K$1,'Reference scenarios'!N100,IF($G$3='Reference scenarios'!$R$1,'Reference scenarios'!U100,IF($G$3='Reference scenarios'!$Y$1,'Reference scenarios'!AB100,NA()))) -> 62 | I119: =IF($G$3='Reference scenarios'!$K$1,'Reference scenarios'!O100,IF($G$3='Reference scenarios'!$R$1,'Reference scenarios'!V100,IF($G$3='Reference scenarios'!$Y$1,'Reference scenarios'!AC100,NA()))) -> 62 | J119: =IF($G$3='Reference scenarios'!$K$1,'Reference scenarios'!P100,IF($G$3='Reference scenarios'!$R$1,'Reference scenarios'!W100,IF($G$3='Reference scenarios'!$Y$1,'Reference scenarios'!AD100,NA()))) -> 62 | K119: 100 | L119: =E119/'Evolution Urbaine'!I22*1000 -> 0.1512066043 | M119: =F119/'Evolution Urbaine'!J22*1000 -> 0.1370717062 | N119: =G119/'Evolution Urbaine'!K22*1000 -> 0.1228314914 | O119: =H119/'Evolution Urbaine'!L22*1000 -> 0.1111662839 | P119: =I119/'Evolution Urbaine'!M22*1000 -> 0.1015065633 | Q119: =J119/'Evolution Urbaine'!N22*1000 -> 0.09339060631 | R119: 132
C120: III | D120: Berrechid (Mun.) | E120: =IF($G$3='Reference scenarios'!$K$1,'Reference scenarios'!K101,IF($G$3='Reference scenarios'!$R$1,'Reference scenarios'!R101,IF($G$3='Reference scenarios'!$Y$1,'Reference scenarios'!Y101,NA()))) -> 15 | F120: =IF($G$3='Reference scenarios'!$K$1,'Reference scenarios'!L101,IF($G$3='Reference scenarios'!$R$1,'Reference scenarios'!S101,IF($G$3='Reference scenarios'!$Y$1,'Reference scenarios'!Z101,NA()))) -> 15 | G120: =IF($G$3='Reference scenarios'!$K$1,'Reference scenarios'!M101,IF($G$3='Reference scenarios'!$R$1,'Reference scenarios'!T101,IF($G$3='Reference scenarios'!$Y$1,'Reference scenarios'!AA101,NA()))) -> 15 | H120: =IF($G$3='Reference scenarios'!$K$1,'Reference scenarios'!N101,IF($G$3='Reference scenarios'!$R$1,'Reference scenarios'!U101,IF($G$3='Reference scenarios'!$Y$1,'Reference scenarios'!AB101,NA()))) -> 15 | I120: =IF($G$3='Reference scenarios'!$K$1,'Reference scenarios'!O101,IF($G$3='Reference scenarios'!$R$1,'Reference scenarios'!V101,IF($G$3='Reference scenarios'!$Y$1,'Reference scenarios'!AC101,NA()))) -> 15 | J120: =IF($G$3='Reference scenarios'!$K$1,'Reference scenarios'!P101,IF($G$3='Reference scenarios'!$R$1,'Reference scenarios'!W101,IF($G$3='Reference scenarios'!$Y$1,'Reference scenarios'!AD101,NA()))) -> 15 | K120: 101 | L120: =E120/'Evolution Urbaine'!I23*1000 -> 0.03417541557 | M120: =F120/'Evolution Urbaine'!J23*1000 -> 0.02831208983 | N120: =G120/'Evolution Urbaine'!K23*1000 -> 0.0231779711 | O120: =H120/'Evolution Urbaine'!L23*1000 -> 0.01916374412 | P120: =I120/'Evolution Urbaine'!M23*1000 -> 0.01598611682 | Q120: =J120/'Evolution Urbaine'!N23*1000 -> 0.01364165322 | R120: 133
C121: III | D121: Safi (Mun.) | E121: =IF($G$3='Reference scenarios'!$K$1,'Reference scenarios'!K102,IF($G$3='Reference scenarios'!$R$1,'Reference scenarios'!R102,IF($G$3='Reference scenarios'!$Y$1,'Reference scenarios'!Y102,NA()))) -> 90 | F121: =IF($G$3='Reference scenarios'!$K$1,'Reference scenarios'!L102,IF($G$3='Reference scenarios'!$R$1,'Reference scenarios'!S102,IF($G$3='Reference scenarios'!$Y$1,'Reference scenarios'!Z102,NA()))) -> 90 | G121: =IF($G$3='Reference scenarios'!$K$1,'Reference scenarios'!M102,IF($G$3='Reference scenarios'!$R$1,'Reference scenarios'!T102,IF($G$3='Reference scenarios'!$Y$1,'Reference scenarios'!AA102,NA()))) -> 110 | H121: =IF($G$3='Reference scenarios'!$K$1,'Reference scenarios'!N102,IF($G$3='Reference scenarios'!$R$1,'Reference scenarios'!U102,IF($G$3='Reference scenarios'!$Y$1,'Reference scenarios'!AB102,NA()))) -> 110 | I121: =IF($G$3='Reference scenarios'!$K$1,'Reference scenarios'!O102,IF($G$3='Reference scenarios'!$R$1,'Reference scenarios'!V102,IF($G$3='Reference scenarios'!$Y$1,'Reference scenarios'!AC102,NA()))) -> 110 | J121: =IF($G$3='Reference scenarios'!$K$1,'Reference scenarios'!P102,IF($G$3='Reference scenarios'!$R$1,'Reference scenarios'!W102,IF($G$3='Reference scenarios'!$Y$1,'Reference scenarios'!AD102,NA()))) -> 110 | K121: 102 | L121: =E121/'Evolution Urbaine'!I24*1000 -> 0.2448173527 | M121: =F121/'Evolution Urbaine'!J24*1000 -> 0.2409103198 | N121: =G121/'Evolution Urbaine'!K24*1000 -> 0.2907483183 | O121: =H121/'Evolution Urbaine'!L24*1000 -> 0.2876734723 | P121: =I121/'Evolution Urbaine'!M24*1000 -> 0.2852250466 | Q121: =J121/'Evolution Urbaine'!N24*1000 -> 0.2830966954 | R121: 134
C122: III | D122: Béni Mellal (Mun.) | E122: =IF($G$3='Reference scenarios'!$K$1,'Reference scenarios'!K103,IF($G$3='Reference scenarios'!$R$1,'Reference scenarios'!R103,IF($G$3='Reference scenarios'!$Y$1,'Reference scenarios'!Y103,NA()))) -> 45 | F122: =IF($G$3='Reference scenarios'!$K$1,'Reference scenarios'!L103,IF($G$3='Reference scenarios'!$R$1,'Reference scenarios'!S103,IF($G$3='Reference scenarios'!$Y$1,'Reference scenarios'!Z103,NA()))) -> 45 | G122: =IF($G$3='Reference scenarios'!$K$1,'Reference scenarios'!M103,IF($G$3='Reference scenarios'!$R$1,'Reference scenarios'!T103,IF($G$3='Reference scenarios'!$Y$1,'Reference scenarios'!AA103,NA()))) -> 45 | H122: =IF($G$3='Reference scenarios'!$K$1,'Reference scenarios'!N103,IF($G$3='Reference scenarios'!$R$1,'Reference scenarios'!U103,IF($G$3='Reference scenarios'!$Y$1,'Reference scenarios'!AB103,NA()))) -> 45 | I122: =IF($G$3='Reference scenarios'!$K$1,'Reference scenarios'!O103,IF($G$3='Reference scenarios'!$R$1,'Reference scenarios'!V103,IF($G$3='Reference scenarios'!$Y$1,'Reference scenarios'!AC103,NA()))) -> 45 | J122: =IF($G$3='Reference scenarios'!$K$1,'Reference scenarios'!P103,IF($G$3='Reference scenarios'!$R$1,'Reference scenarios'!W103,IF($G$3='Reference scenarios'!$Y$1,'Reference scenarios'!AD103,NA()))) -> 45 | K122: 103 | L122: =E122/'Evolution Urbaine'!I25*1000 -> 0.1206680181 | M122: =F122/'Evolution Urbaine'!J25*1000 -> 0.1153313855 | N122: =G122/'Evolution Urbaine'!K25*1000 -> 0.1097013531 | O122: =H122/'Evolution Urbaine'!L25*1000 -> 0.1053847856 | P122: =I122/'Evolution Urbaine'!M25*1000 -> 0.1021413328 | Q122: =J122/'Evolution Urbaine'!N25*1000 -> 0.09975005871 | R122: 135
C123: =ROMAN(4) -> IV | D123: Khémisset (Mun.) | E123: =IF($G$3='Reference scenarios'!$K$1,'Reference scenarios'!K104,IF($G$3='Reference scenarios'!$R$1,'Reference scenarios'!R104,IF($G$3='Reference scenarios'!$Y$1,'Reference scenarios'!Y104,NA()))) -> 40 | F123: =IF($G$3='Reference scenarios'!$K$1,'Reference scenarios'!L104,IF($G$3='Reference scenarios'!$R$1,'Reference scenarios'!S104,IF($G$3='Reference scenarios'!$Y$1,'Reference scenarios'!Z104,NA()))) -> 40 | G123: =IF($G$3='Reference scenarios'!$K$1,'Reference scenarios'!M104,IF($G$3='Reference scenarios'!$R$1,'Reference scenarios'!T104,IF($G$3='Reference scenarios'!$Y$1,'Reference scenarios'!AA104,NA()))) -> 40 | H123: =IF($G$3='Reference scenarios'!$K$1,'Reference scenarios'!N104,IF($G$3='Reference scenarios'!$R$1,'Reference scenarios'!U104,IF($G$3='Reference scenarios'!$Y$1,'Reference scenarios'!AB104,NA()))) -> 40 | I123: =IF($G$3='Reference scenarios'!$K$1,'Reference scenarios'!O104,IF($G$3='Reference scenarios'!$R$1,'Reference scenarios'!V104,IF($G$3='Reference scenarios'!$Y$1,'Reference scenarios'!AC104,NA()))) -> 40 | J123: =IF($G$3='Reference scenarios'!$K$1,'Reference scenarios'!P104,IF($G$3='Reference scenarios'!$R$1,'Reference scenarios'!W104,IF($G$3='Reference scenarios'!$Y$1,'Reference scenarios'!AD104,NA()))) -> 40 | K123: 104 | L123: =E123/'Evolution Urbaine'!I26*1000 -> 0.12258282 | M123: =F123/'Evolution Urbaine'!J26*1000 -> 0.1170504458 | N123: =G123/'Evolution Urbaine'!K26*1000 -> 0.1107905865 | O123: =H123/'Evolution Urbaine'!L26*1000 -> 0.1059093023 | P123: =I123/'Evolution Urbaine'!M26*1000 -> 0.1021463907 | Q123: =J123/'Evolution Urbaine'!N26*1000 -> 0.09926587596 | R123: 136
C124: IV | D124: Larache (Mun.) | E124: =IF($G$3='Reference scenarios'!$K$1,'Reference scenarios'!K105,IF($G$3='Reference scenarios'!$R$1,'Reference scenarios'!R105,IF($G$3='Reference scenarios'!$Y$1,'Reference scenarios'!Y105,NA()))) -> 28 | F124: =IF($G$3='Reference scenarios'!$K$1,'Reference scenarios'!L105,IF($G$3='Reference scenarios'!$R$1,'Reference scenarios'!S105,IF($G$3='Reference scenarios'!$Y$1,'Reference scenarios'!Z105,NA()))) -> 28 | G124: =IF($G$3='Reference scenarios'!$K$1,'Reference scenarios'!M105,IF($G$3='Reference scenarios'!$R$1,'Reference scenarios'!T105,IF($G$3='Reference scenarios'!$Y$1,'Reference scenarios'!AA105,NA()))) -> 28 | H124: =IF($G$3='Reference scenarios'!$K$1,'Reference scenarios'!N105,IF($G$3='Reference scenarios'!$R$1,'Reference scenarios'!U105,IF($G$3='Reference scenarios'!$Y$1,'Reference scenarios'!AB105,NA()))) -> 28 | I124: =IF($G$3='Reference scenarios'!$K$1,'Reference scenarios'!O105,IF($G$3='Reference scenarios'!$R$1,'Reference scenarios'!V105,IF($G$3='Reference scenarios'!$Y$1,'Reference scenarios'!AC105,NA()))) -> 28 | J124: =IF($G$3='Reference scenarios'!$K$1,'Reference scenarios'!P105,IF($G$3='Reference scenarios'!$R$1,'Reference scenarios'!W105,IF($G$3='Reference scenarios'!$Y$1,'Reference scenarios'!AD105,NA()))) -> 28 | K124: 105 | L124: =E124/'Evolution Urbaine'!I27*1000 -> 0.09879226457 | M124: =F124/'Evolution Urbaine'!J27*1000 -> 0.09776809408 | N124: =G124/'Evolution Urbaine'!K27*1000 -> 0.09608342172 | O124: =H124/'Evolution Urbaine'!L27*1000 -> 0.09536768256 | P124: =I124/'Evolution Urbaine'!M27*1000 -> 0.09473257371 | Q124: =J124/'Evolution Urbaine'!N27*1000 -> 0.09416816519 | R124: 137
C125: IV | D125: Laayoune (Mun.) | E125: =IF($G$3='Reference scenarios'!$K$1,'Reference scenarios'!K106,IF($G$3='Reference scenarios'!$R$1,'Reference scenarios'!R106,IF($G$3='Reference scenarios'!$Y$1,'Reference scenarios'!Y106,NA()))) -> 45 | F125: =IF($G$3='Reference scenarios'!$K$1,'Reference scenarios'!L106,IF($G$3='Reference scenarios'!$R$1,'Reference scenarios'!S106,IF($G$3='Reference scenarios'!$Y$1,'Reference scenarios'!Z106,NA()))) -> 45 | G125: =IF($G$3='Reference scenarios'!$K$1,'Reference scenarios'!M106,IF($G$3='Reference scenarios'!$R$1,'Reference scenarios'!T106,IF($G$3='Reference scenarios'!$Y$1,'Reference scenarios'!AA106,NA()))) -> 45 | H125: =IF($G$3='Reference scenarios'!$K$1,'Reference scenarios'!N106,IF($G$3='Reference scenarios'!$R$1,'Reference scenarios'!U106,IF($G$3='Reference scenarios'!$Y$1,'Reference scenarios'!AB106,NA()))) -> 45 | I125: =IF($G$3='Reference scenarios'!$K$1,'Reference scenarios'!O106,IF($G$3='Reference scenarios'!$R$1,'Reference scenarios'!V106,IF($G$3='Reference scenarios'!$Y$1,'Reference scenarios'!AC106,NA()))) -> 45 | J125: =IF($G$3='Reference scenarios'!$K$1,'Reference scenarios'!P106,IF($G$3='Reference scenarios'!$R$1,'Reference scenarios'!W106,IF($G$3='Reference scenarios'!$Y$1,'Reference scenarios'!AD106,NA()))) -> 45 | K125: 106 | L125: =E125/'Evolution Urbaine'!I28*1000 -> 0.1621434645 | M125: =F125/'Evolution Urbaine'!J28*1000 -> 0.1531179927 | N125: =G125/'Evolution Urbaine'!K28*1000 -> 0.1447750358 | O125: =H125/'Evolution Urbaine'!L28*1000 -> 0.1377773374 | P125: =I125/'Evolution Urbaine'!M28*1000 -> 0.1317471986 | Q125: =J125/'Evolution Urbaine'!N28*1000 -> 0.1266687827 | R125: 138
C126: IV | D126: Khenifra (Mun.) | E126: =IF($G$3='Reference scenarios'!$K$1,'Reference scenarios'!K107,IF($G$3='Reference scenarios'!$R$1,'Reference scenarios'!R107,IF($G$3='Reference scenarios'!$Y$1,'Reference scenarios'!Y107,NA()))) -> 48 | F126: =IF($G$3='Reference scenarios'!$K$1,'Reference scenarios'!L107,IF($G$3='Reference scenarios'!$R$1,'Reference scenarios'!S107,IF($G$3='Reference scenarios'!$Y$1,'Reference scenarios'!Z107,NA()))) -> 48 | G126: =IF($G$3='Reference scenarios'!$K$1,'Reference scenarios'!M107,IF($G$3='Reference scenarios'!$R$1,'Reference scenarios'!T107,IF($G$3='Reference scenarios'!$Y$1,'Reference scenarios'!AA107,NA()))) -> 48 | H126: =IF($G$3='Reference scenarios'!$K$1,'Reference scenarios'!N107,IF($G$3='Reference scenarios'!$R$1,'Reference scenarios'!U107,IF($G$3='Reference scenarios'!$Y$1,'Reference scenarios'!AB107,NA()))) -> 48 | I126: =IF($G$3='Reference scenarios'!$K$1,'Reference scenarios'!O107,IF($G$3='Reference scenarios'!$R$1,'Reference scenarios'!V107,IF($G$3='Reference scenarios'!$Y$1,'Reference scenarios'!AC107,NA()))) -> 48 | J126: =IF($G$3='Reference scenarios'!$K$1,'Reference scenarios'!P107,IF($G$3='Reference scenarios'!$R$1,'Reference scenarios'!W107,IF($G$3='Reference scenarios'!$Y$1,'Reference scenarios'!AD107,NA()))) -> 48 | K126: 107 | L126: =E126/'Evolution Urbaine'!I29*1000 -> 0.1805733203 | M126: =F126/'Evolution Urbaine'!J29*1000 -> 0.1712677021 | N126: =G126/'Evolution Urbaine'!K29*1000 -> 0.1616790925 | O126: =H126/'Evolution Urbaine'!L29*1000 -> 0.1541465154 | P126: =I126/'Evolution Urbaine'!M29*1000 -> 0.1482761268 | Q126: =J126/'Evolution Urbaine'!N29*1000 -> 0.1437132429 | R126: 139
C127: IV | D127: Settat (Mun.) | E127: =IF($G$3='Reference scenarios'!$K$1,'Reference scenarios'!K108,IF($G$3='Reference scenarios'!$R$1,'Reference scenarios'!R108,IF($G$3='Reference scenarios'!$Y$1,'Reference scenarios'!Y108,NA()))) -> 18 | F127: =IF($G$3='Reference scenarios'!$K$1,'Reference scenarios'!L108,IF($G$3='Reference scenarios'!$R$1,'Reference scenarios'!S108,IF($G$3='Reference scenarios'!$Y$1,'Reference scenarios'!Z108,NA()))) -> 18 | G127: =IF($G$3='Reference scenarios'!$K$1,'Reference scenarios'!M108,IF($G$3='Reference scenarios'!$R$1,'Reference scenarios'!T108,IF($G$3='Reference scenarios'!$Y$1,'Reference scenarios'!AA108,NA()))) -> 18 | H127: =IF($G$3='Reference scenarios'!$K$1,'Reference scenarios'!N108,IF($G$3='Reference scenarios'!$R$1,'Reference scenarios'!U108,IF($G$3='Reference scenarios'!$Y$1,'Reference scenarios'!AB108,NA()))) -> 18 | I127: =IF($G$3='Reference scenarios'!$K$1,'Reference scenarios'!O108,IF($G$3='Reference scenarios'!$R$1,'Reference scenarios'!V108,IF($G$3='Reference scenarios'!$Y$1,'Reference scenarios'!AC108,NA()))) -> 18 | J127: =IF($G$3='Reference scenarios'!$K$1,'Reference scenarios'!P108,IF($G$3='Reference scenarios'!$R$1,'Reference scenarios'!W108,IF($G$3='Reference scenarios'!$Y$1,'Reference scenarios'!AD108,NA()))) -> 18 | K127: 108 | L127: =E127/'Evolution Urbaine'!I30*1000 -> 0.07005744711 | M127: =F127/'Evolution Urbaine'!J30*1000 -> 0.06669161427 | N127: =G127/'Evolution Urbaine'!K30*1000 -> 0.06273439992 | O127: =H127/'Evolution Urbaine'!L30*1000 -> 0.05959937747 | P127: =I127/'Evolution Urbaine'!M30*1000 -> 0.05712620466 | Q127: =J127/'Evolution Urbaine'!N30*1000 -> 0.05517178745 | R127: 140
C128: IV | D128: Fquih Ben Salah (Mun.) | E128: =IF($G$3='Reference scenarios'!$K$1,'Reference scenarios'!K109,IF($G$3='Reference scenarios'!$R$1,'Reference scenarios'!R109,IF($G$3='Reference scenarios'!$Y$1,'Reference scenarios'!Y109,NA()))) -> 13 | F128: =IF($G$3='Reference scenarios'!$K$1,'Reference scenarios'!L109,IF($G$3='Reference scenarios'!$R$1,'Reference scenarios'!S109,IF($G$3='Reference scenarios'!$Y$1,'Reference scenarios'!Z109,NA()))) -> 13 | G128: =IF($G$3='Reference scenarios'!$K$1,'Reference scenarios'!M109,IF($G$3='Reference scenarios'!$R$1,'Reference scenarios'!T109,IF($G$3='Reference scenarios'!$Y$1,'Reference scenarios'!AA109,NA()))) -> 13 | H128: =IF($G$3='Reference scenarios'!$K$1,'Reference scenarios'!N109,IF($G$3='Reference scenarios'!$R$1,'Reference scenarios'!U109,IF($G$3='Reference scenarios'!$Y$1,'Reference scenarios'!AB109,NA()))) -> 13 | I128: =IF($G$3='Reference scenarios'!$K$1,'Reference scenarios'!O109,IF($G$3='Reference scenarios'!$R$1,'Reference scenarios'!V109,IF($G$3='Reference scenarios'!$Y$1,'Reference scenarios'!AC109,NA()))) -> 13 | J128: =IF($G$3='Reference scenarios'!$K$1,'Reference scenarios'!P109,IF($G$3='Reference scenarios'!$R$1,'Reference scenarios'!W109,IF($G$3='Reference scenarios'!$Y$1,'Reference scenarios'!AD109,NA()))) -> 13 | K128: 109 | L128: =E128/'Evolution Urbaine'!I31*1000 -> 0.05410106912 | M128: =F128/'Evolution Urbaine'!J31*1000 -> 0.05121013488 | N128: =G128/'Evolution Urbaine'!K31*1000 -> 0.0482472118 | O128: =H128/'Evolution Urbaine'!L31*1000 -> 0.04590816969 | P128: =I128/'Evolution Urbaine'!M31*1000 -> 0.04407226885 | Q128: =J128/'Evolution Urbaine'!N31*1000 -> 0.04263132923 | R128: 141
C129: IV | D129: Taza (Mun.) | E129: =IF($G$3='Reference scenarios'!$K$1,'Reference scenarios'!K110,IF($G$3='Reference scenarios'!$R$1,'Reference scenarios'!R110,IF($G$3='Reference scenarios'!$Y$1,'Reference scenarios'!Y110,NA()))) -> 48 | F129: =IF($G$3='Reference scenarios'!$K$1,'Reference scenarios'!L110,IF($G$3='Reference scenarios'!$R$1,'Reference scenarios'!S110,IF($G$3='Reference scenarios'!$Y$1,'Reference scenarios'!Z110,NA()))) -> 48 | G129: =IF($G$3='Reference scenarios'!$K$1,'Reference scenarios'!M110,IF($G$3='Reference scenarios'!$R$1,'Reference scenarios'!T110,IF($G$3='Reference scenarios'!$Y$1,'Reference scenarios'!AA110,NA()))) -> 48 | H129: =IF($G$3='Reference scenarios'!$K$1,'Reference scenarios'!N110,IF($G$3='Reference scenarios'!$R$1,'Reference scenarios'!U110,IF($G$3='Reference scenarios'!$Y$1,'Reference scenarios'!AB110,NA()))) -> 48 | I129: =IF($G$3='Reference scenarios'!$K$1,'Reference scenarios'!O110,IF($G$3='Reference scenarios'!$R$1,'Reference scenarios'!V110,IF($G$3='Reference scenarios'!$Y$1,'Reference scenarios'!AC110,NA()))) -> 48 | J129: =IF($G$3='Reference scenarios'!$K$1,'Reference scenarios'!P110,IF($G$3='Reference scenarios'!$R$1,'Reference scenarios'!W110,IF($G$3='Reference scenarios'!$Y$1,'Reference scenarios'!AD110,NA()))) -> 48 | K129: 110 | L129: =E129/'Evolution Urbaine'!I32*1000 -> 0.2170286071 | M129: =F129/'Evolution Urbaine'!J32*1000 -> 0.2152109291 | N129: =G129/'Evolution Urbaine'!K32*1000 -> 0.2118509068 | O129: =H129/'Evolution Urbaine'!L32*1000 -> 0.2106191176 | P129: =I129/'Evolution Urbaine'!M32*1000 -> 0.2095226908 | Q129: =J129/'Evolution Urbaine'!N32*1000 -> 0.2085456213 | R129: 142
C130: IV | D130: Berkane | E130: =IF($G$3='Reference scenarios'!$K$1,'Reference scenarios'!K111,IF($G$3='Reference scenarios'!$R$1,'Reference scenarios'!R111,IF($G$3='Reference scenarios'!$Y$1,'Reference scenarios'!Y111,NA()))) -> 52 | F130: =IF($G$3='Reference scenarios'!$K$1,'Reference scenarios'!L111,IF($G$3='Reference scenarios'!$R$1,'Reference scenarios'!S111,IF($G$3='Reference scenarios'!$Y$1,'Reference scenarios'!Z111,NA()))) -> 52 | G130: =IF($G$3='Reference scenarios'!$K$1,'Reference scenarios'!M111,IF($G$3='Reference scenarios'!$R$1,'Reference scenarios'!T111,IF($G$3='Reference scenarios'!$Y$1,'Reference scenarios'!AA111,NA()))) -> 52 | H130: =IF($G$3='Reference scenarios'!$K$1,'Reference scenarios'!N111,IF($G$3='Reference scenarios'!$R$1,'Reference scenarios'!U111,IF($G$3='Reference scenarios'!$Y$1,'Reference scenarios'!AB111,NA()))) -> 52 | I130: =IF($G$3='Reference scenarios'!$K$1,'Reference scenarios'!O111,IF($G$3='Reference scenarios'!$R$1,'Reference scenarios'!V111,IF($G$3='Reference scenarios'!$Y$1,'Reference scenarios'!AC111,NA()))) -> 52 | J130: =IF($G$3='Reference scenarios'!$K$1,'Reference scenarios'!P111,IF($G$3='Reference scenarios'!$R$1,'Reference scenarios'!W111,IF($G$3='Reference scenarios'!$Y$1,'Reference scenarios'!AD111,NA()))) -> 52 | K130: 111 | L130: =E130/'Evolution Urbaine'!I33*1000 -> 0.2305138242 | M130: =F130/'Evolution Urbaine'!J33*1000 -> 0.212939341 | N130: =G130/'Evolution Urbaine'!K33*1000 -> 0.1956685665 | O130: =H130/'Evolution Urbaine'!L33*1000 -> 0.1815882227 | P130: =I130/'Evolution Urbaine'!M33*1000 -> 0.1700246796 | Q130: =J130/'Evolution Urbaine'!N33*1000 -> 0.1604073585 | R130: 143
C131: IV | D131: Errachidia | E131: =IF($G$3='Reference scenarios'!$K$1,'Reference scenarios'!K112,IF($G$3='Reference scenarios'!$R$1,'Reference scenarios'!R112,IF($G$3='Reference scenarios'!$Y$1,'Reference scenarios'!Y112,NA()))) -> 26 | F131: =IF($G$3='Reference scenarios'!$K$1,'Reference scenarios'!L112,IF($G$3='Reference scenarios'!$R$1,'Reference scenarios'!S112,IF($G$3='Reference scenarios'!$Y$1,'Reference scenarios'!Z112,NA()))) -> 26 | G131: =IF($G$3='Reference scenarios'!$K$1,'Reference scenarios'!M112,IF($G$3='Reference scenarios'!$R$1,'Reference scenarios'!T112,IF($G$3='Reference scenarios'!$Y$1,'Reference scenarios'!AA112,NA()))) -> 26 | H131: =IF($G$3='Reference scenarios'!$K$1,'Reference scenarios'!N112,IF($G$3='Reference scenarios'!$R$1,'Reference scenarios'!U112,IF($G$3='Reference scenarios'!$Y$1,'Reference scenarios'!AB112,NA()))) -> 26 | I131: =IF($G$3='Reference scenarios'!$K$1,'Reference scenarios'!O112,IF($G$3='Reference scenarios'!$R$1,'Reference scenarios'!V112,IF($G$3='Reference scenarios'!$Y$1,'Reference scenarios'!AC112,NA()))) -> 26 | J131: =IF($G$3='Reference scenarios'!$K$1,'Reference scenarios'!P112,IF($G$3='Reference scenarios'!$R$1,'Reference scenarios'!W112,IF($G$3='Reference scenarios'!$Y$1,'Reference scenarios'!AD112,NA()))) -> 26 | K131: 112 | L131: =E131/'Evolution Urbaine'!I34*1000 -> 0.1207241592 | M131: =F131/'Evolution Urbaine'!J34*1000 -> 0.1171287245 | N131: =G131/'Evolution Urbaine'!K34*1000 -> 0.1130027162 | O131: =H131/'Evolution Urbaine'!L34*1000 -> 0.1101072226 | P131: =I131/'Evolution Urbaine'!M34*1000 -> 0.108243146 | Q131: =J131/'Evolution Urbaine'!N34*1000 -> 0.1072193178 | R131: 144
A134: Promotion des Transports en Commun
B136: Amélioration du service de bus (temps moyen entre deux bus en min)
C137: Catégorie | D137: Année de mise en place | E137: Objectif initial | F137: Objectif 2050
C138: I | D138: =IF($G$3='Reference scenarios'!$K$1,'Reference scenarios'!K115,IF($G$3='Reference scenarios'!$R$1,'Reference scenarios'!R115,IF($G$3='Reference scenarios'!$Y$1,'Reference scenarios'!Y115,NA()))) -> 2025 | E138: ='Reference scenarios'!$D$115 -> 24 | F138: ='Reference scenarios'!$E$115 -> 24 | K138: 115 | R138: 157
C139: II | D139: =IF($G$3='Reference scenarios'!$K$1,'Reference scenarios'!K116,IF($G$3='Reference scenarios'!$R$1,'Reference scenarios'!R116,IF($G$3='Reference scenarios'!$Y$1,'Reference scenarios'!Y116,NA()))) -> 2025 | E139: =IF($G$3='Reference scenarios'!$K$1,'Reference scenarios'!L116,IF($G$3='Reference scenarios'!$R$1,'Reference scenarios'!S116,IF($G$3='Reference scenarios'!$Y$1,'Reference scenarios'!Z116,NA()))) -> 24 | F139: =IF($G$3='Reference scenarios'!$K$1,'Reference scenarios'!M116,IF($G$3='Reference scenarios'!$R$1,'Reference scenarios'!T116,IF($G$3='Reference scenarios'!$Y$1,'Reference scenarios'!AA116,NA()))) -> 24 | K139: 116 | R139: 158
C140: III | D140: =IF($G$3='Reference scenarios'!$K$1,'Reference scenarios'!K117,IF($G$3='Reference scenarios'!$R$1,'Reference scenarios'!R117,IF($G$3='Reference scenarios'!$Y$1,'Reference scenarios'!Y117,NA()))) -> 2025 | E140: =IF($G$3='Reference scenarios'!$K$1,'Reference scenarios'!L117,IF($G$3='Reference scenarios'!$R$1,'Reference scenarios'!S117,IF($G$3='Reference scenarios'!$Y$1,'Reference scenarios'!Z117,NA()))) -> 24 | F140: =IF($G$3='Reference scenarios'!$K$1,'Reference scenarios'!M117,IF($G$3='Reference scenarios'!$R$1,'Reference scenarios'!T117,IF($G$3='Reference scenarios'!$Y$1,'Reference scenarios'!AA117,NA()))) -> 24 | K140: 117 | R140: 159
C141: IV | D141: =IF($G$3='Reference scenarios'!$K$1,'Reference scenarios'!K118,IF($G$3='Reference scenarios'!$R$1,'Reference scenarios'!R118,IF($G$3='Reference scenarios'!$Y$1,'Reference scenarios'!Y118,NA()))) -> 2025 | E141: ='Reference scenarios'!$D$118 -> 24 | F141: =IF($G$3='Reference scenarios'!$K$1,'Reference scenarios'!M118,IF($G$3='Reference scenarios'!$R$1,'Reference scenarios'!T118,IF($G$3='Reference scenarios'!$Y$1,'Reference scenarios'!AA118,NA()))) -> 24 | K141: 118 | R141: 160
B143: Priorisation du réseau bus (% du réseau bus priorisé avec des couloirs ou priorités aux intersections)
C144: Catégorie | D144: Année de mise en place | E144: Objectif initial | F144: Objectif 2050
C145: I | D145: =IF($G$3='Reference scenarios'!$K$1,'Reference scenarios'!K119,IF($G$3='Reference scenarios'!$R$1,'Reference scenarios'!R119,IF($G$3='Reference scenarios'!$Y$1,'Reference scenarios'!Y119,NA()))) -> 2030 | E145: =IF($G$3='Reference scenarios'!$K$1,'Reference scenarios'!L119,IF($G$3='Reference scenarios'!$R$1,'Reference scenarios'!S119,IF($G$3='Reference scenarios'!$Y$1,'Reference scenarios'!Z119,NA()))) -> 0.2 | F145: =IF($G$3='Reference scenarios'!$K$1,'Reference scenarios'!M119,IF($G$3='Reference scenarios'!$R$1,'Reference scenarios'!T119,IF($G$3='Reference scenarios'!$Y$1,'Reference scenarios'!AA119,NA()))) -> 0.3 | K145: 119 | R145: 162
C146: II | D146: =IF($G$3='Reference scenarios'!$K$1,'Reference scenarios'!K120,IF($G$3='Reference scenarios'!$R$1,'Reference scenarios'!R120,IF($G$3='Reference scenarios'!$Y$1,'Reference scenarios'!Y120,NA()))) -> 2030 | E146: =IF($G$3='Reference scenarios'!$K$1,'Reference scenarios'!L120,IF($G$3='Reference scenarios'!$R$1,'Reference scenarios'!S120,IF($G$3='Reference scenarios'!$Y$1,'Reference scenarios'!Z120,NA()))) -> 0.1 | F146: =IF($G$3='Reference scenarios'!$K$1,'Reference scenarios'!M120,IF($G$3='Reference scenarios'!$R$1,'Reference scenarios'!T120,IF($G$3='Reference scenarios'!$Y$1,'Reference scenarios'!AA120,NA()))) -> 0.2 | K146: 120 | R146: 163
C147: III | D147: =IF($G$3='Reference scenarios'!$K$1,'Reference scenarios'!K121,IF($G$3='Reference scenarios'!$R$1,'Reference scenarios'!R121,IF($G$3='Reference scenarios'!$Y$1,'Reference scenarios'!Y121,NA()))) -> 2030 | E147: =IF($G$3='Reference scenarios'!$K$1,'Reference scenarios'!L121,IF($G$3='Reference scenarios'!$R$1,'Reference scenarios'!S121,IF($G$3='Reference scenarios'!$Y$1,'Reference scenarios'!Z121,NA()))) -> 0 | F147: =IF($G$3='Reference scenarios'!$K$1,'Reference scenarios'!M121,IF($G$3='Reference scenarios'!$R$1,'Reference scenarios'!T121,IF($G$3='Reference scenarios'!$Y$1,'Reference scenarios'!AA121,NA()))) -> 0.1 | K147: 121 | R147: 164
C148: IV | D148: =IF($G$3='Reference scenarios'!$K$1,'Reference scenarios'!K122,IF($G$3='Reference scenarios'!$R$1,'Reference scenarios'!R122,IF($G$3='Reference scenarios'!$Y$1,'Reference scenarios'!Y122,NA()))) -> 2030 | E148: =IF($G$3='Reference scenarios'!$K$1,'Reference scenarios'!L122,IF($G$3='Reference scenarios'!$R$1,'Reference scenarios'!S122,IF($G$3='Reference scenarios'!$Y$1,'Reference scenarios'!Z122,NA()))) -> 0 | F148: =IF($G$3='Reference scenarios'!$K$1,'Reference scenarios'!M122,IF($G$3='Reference scenarios'!$R$1,'Reference scenarios'!T122,IF($G$3='Reference scenarios'!$Y$1,'Reference scenarios'!AA122,NA()))) -> 0.05 | K148: 122 | R148: 165
B150: Intégration tarifaire (% de réduction du coût moyen d'un déplacement en transport pour un usager)
C151: Catégorie | D151: Année de mise en place | E151: Objectif initial | F151: Objectif 2050
C152: I | D152: ='Reference scenarios'!$C$123 -> 2025 | E152: ='Reference scenarios'!$D$123 -> 0 | F152: ='Reference scenarios'!$E$123 -> 0 | K152: 123 | R152: 167
C153: II | D153: =IF($G$3='Reference scenarios'!$K$1,'Reference scenarios'!K124,IF($G$3='Reference scenarios'!$R$1,'Reference scenarios'!R124,IF($G$3='Reference scenarios'!$Y$1,'Reference scenarios'!Y124,NA()))) -> 2025 | E153: ='Reference scenarios'!$D$124 -> 0 | F153: ='Reference scenarios'!$E$124 -> 0 | K153: 124 | R153: 168
C154: III | D154: =IF($G$3='Reference scenarios'!$K$1,'Reference scenarios'!K125,IF($G$3='Reference scenarios'!$R$1,'Reference scenarios'!R125,IF($G$3='Reference scenarios'!$Y$1,'Reference scenarios'!Y125,NA()))) -> 2025 | E154: ='Reference scenarios'!$D$125 -> 0 | F154: ='Reference scenarios'!$E$125 -> 0 | K154: 125 | R154: 169
C155: IV | D155: =IF($G$3='Reference scenarios'!$K$1,'Reference scenarios'!K126,IF($G$3='Reference scenarios'!$R$1,'Reference scenarios'!R126,IF($G$3='Reference scenarios'!$Y$1,'Reference scenarios'!Y126,NA()))) -> 2025 | E155: ='Reference scenarios'!$D$126 -> 0 | F155: ='Reference scenarios'!$E$126 -> 0 | K155: 126 | R155: 170
A159: Mesure restrictive
B161: Part des stationnements payants (en %)
C162: Catégorie | D162: Année de mise en place | E162: Objectif initial | F162: Objectif 2050
C163: I | D163: =IF($G$3='Reference scenarios'!$K$1,'Reference scenarios'!K128,IF($G$3='Reference scenarios'!$R$1,'Reference scenarios'!R128,IF($G$3='Reference scenarios'!$Y$1,'Reference scenarios'!Y128,NA()))) -> 2025 | E163: ='Reference scenarios'!$D$128 -> 0.6 | F163: ='Reference scenarios'!$E$128 -> 0.6 | K163: 128 | R163: 179
C164: II | D164: =IF($G$3='Reference scenarios'!$K$1,'Reference scenarios'!K129,IF($G$3='Reference scenarios'!$R$1,'Reference scenarios'!R129,IF($G$3='Reference scenarios'!$Y$1,'Reference scenarios'!Y129,NA()))) -> 2025 | E164: =IF($G$3='Reference scenarios'!$K$1,'Reference scenarios'!L129,IF($G$3='Reference scenarios'!$R$1,'Reference scenarios'!S129,IF($G$3='Reference scenarios'!$Y$1,'Reference scenarios'!Z129,NA()))) -> 0.6 | F164: =IF($G$3='Reference scenarios'!$K$1,'Reference scenarios'!M129,IF($G$3='Reference scenarios'!$R$1,'Reference scenarios'!T129,IF($G$3='Reference scenarios'!$Y$1,'Reference scenarios'!AA129,NA()))) -> 0.6 | K164: 129 | R164: 180
C165: III | D165: =IF($G$3='Reference scenarios'!$K$1,'Reference scenarios'!K130,IF($G$3='Reference scenarios'!$R$1,'Reference scenarios'!R130,IF($G$3='Reference scenarios'!$Y$1,'Reference scenarios'!Y130,NA()))) -> 2025 | E165: =IF($G$3='Reference scenarios'!$K$1,'Reference scenarios'!L130,IF($G$3='Reference scenarios'!$R$1,'Reference scenarios'!S130,IF($G$3='Reference scenarios'!$Y$1,'Reference scenarios'!Z130,NA()))) -> 0.6 | F165: =IF($G$3='Reference scenarios'!$K$1,'Reference scenarios'!M130,IF($G$3='Reference scenarios'!$R$1,'Reference scenarios'!T130,IF($G$3='Reference scenarios'!$Y$1,'Reference scenarios'!AA130,NA()))) -> 0.6 | K165: 130 | R165: 181
C166: IV | D166: =IF($G$3='Reference scenarios'!$K$1,'Reference scenarios'!K131,IF($G$3='Reference scenarios'!$R$1,'Reference scenarios'!R131,IF($G$3='Reference scenarios'!$Y$1,'Reference scenarios'!Y131,NA()))) -> 2025 | E166: =IF($G$3='Reference scenarios'!$K$1,'Reference scenarios'!L131,IF($G$3='Reference scenarios'!$R$1,'Reference scenarios'!S131,IF($G$3='Reference scenarios'!$Y$1,'Reference scenarios'!Z131,NA()))) -> 0.6 | F166: =IF($G$3='Reference scenarios'!$K$1,'Reference scenarios'!M131,IF($G$3='Reference scenarios'!$R$1,'Reference scenarios'!T131,IF($G$3='Reference scenarios'!$Y$1,'Reference scenarios'!AA131,NA()))) -> 0.6 | K166: 131 | R166: 182
A169: Mesures tarifaires
B171: Tarification du stationnement (% d'augmentation du coût du stationnement dû à des politiques dédiées)
C172: Catégorie | D172: Année de mise en place | E172: Objectif initial | F172: Objectif 2050
C173: I | D173: =IF($G$3='Reference scenarios'!$K$1,'Reference scenarios'!K133,IF($G$3='Reference scenarios'!$R$1,'Reference scenarios'!R133,IF($G$3='Reference scenarios'!$Y$1,'Reference scenarios'!Y133,NA()))) -> 2025 | E173: ='Reference scenarios'!D133 -> 0 | F173: =IF($G$3='Reference scenarios'!$K$1,'Reference scenarios'!M133,IF($G$3='Reference scenarios'!$R$1,'Reference scenarios'!T133,IF($G$3='Reference scenarios'!$Y$1,'Reference scenarios'!AA133,NA()))) -> 0 | K173: 133 | R173: 185
C174: II | D174: =IF($G$3='Reference scenarios'!$K$1,'Reference scenarios'!K134,IF($G$3='Reference scenarios'!$R$1,'Reference scenarios'!R134,IF($G$3='Reference scenarios'!$Y$1,'Reference scenarios'!Y134,NA()))) -> 2025 | E174: =IF($G$3='Reference scenarios'!$K$1,'Reference scenarios'!L134,IF($G$3='Reference scenarios'!$R$1,'Reference scenarios'!S134,IF($G$3='Reference scenarios'!$Y$1,'Reference scenarios'!Z134,NA()))) -> 0 | F174: =IF($G$3='Reference scenarios'!$K$1,'Reference scenarios'!M134,IF($G$3='Reference scenarios'!$R$1,'Reference scenarios'!T134,IF($G$3='Reference scenarios'!$Y$1,'Reference scenarios'!AA134,NA()))) -> 0 | K174: 134 | R174: 186
C175: III | D175: =IF($G$3='Reference scenarios'!$K$1,'Reference scenarios'!K135,IF($G$3='Reference scenarios'!$R$1,'Reference scenarios'!R135,IF($G$3='Reference scenarios'!$Y$1,'Reference scenarios'!Y135,NA()))) -> 2025 | E175: =IF($G$3='Reference scenarios'!$K$1,'Reference scenarios'!L135,IF($G$3='Reference scenarios'!$R$1,'Reference scenarios'!S135,IF($G$3='Reference scenarios'!$Y$1,'Reference scenarios'!Z135,NA()))) -> 0 | F175: =IF($G$3='Reference scenarios'!$K$1,'Reference scenarios'!M135,IF($G$3='Reference scenarios'!$R$1,'Reference scenarios'!T135,IF($G$3='Reference scenarios'!$Y$1,'Reference scenarios'!AA135,NA()))) -> 0 | K175: 135 | R175: 187
C176: IV | D176: =IF($G$3='Reference scenarios'!$K$1,'Reference scenarios'!K136,IF($G$3='Reference scenarios'!$R$1,'Reference scenarios'!R136,IF($G$3='Reference scenarios'!$Y$1,'Reference scenarios'!Y136,NA()))) -> 2025 | E176: =IF($G$3='Reference scenarios'!$K$1,'Reference scenarios'!L136,IF($G$3='Reference scenarios'!$R$1,'Reference scenarios'!S136,IF($G$3='Reference scenarios'!$Y$1,'Reference scenarios'!Z136,NA()))) -> 0 | F176: =IF($G$3='Reference scenarios'!$K$1,'Reference scenarios'!M136,IF($G$3='Reference scenarios'!$R$1,'Reference scenarios'!T136,IF($G$3='Reference scenarios'!$Y$1,'Reference scenarios'!AA136,NA()))) -> 0 | K176: 136 | R176: 188
B178: Tarification de la congestion (USD)
C179: Catégorie | D179: Année de mise en place | E179: Objectif initial | F179: Objectif 2050
C180: I | D180: =IF($G$3='Reference scenarios'!$K$1,'Reference scenarios'!K137,IF($G$3='Reference scenarios'!$R$1,'Reference scenarios'!R137,IF($G$3='Reference scenarios'!$Y$1,'Reference scenarios'!Y137,NA()))) -> 2025 | E180: ='Reference scenarios'!$D$137 -> 0 | F180: =IF($G$3='Reference scenarios'!$K$1,'Reference scenarios'!M137,IF($G$3='Reference scenarios'!$R$1,'Reference scenarios'!T137,IF($G$3='Reference scenarios'!$Y$1,'Reference scenarios'!AA137,NA()))) -> 0 | K180: 137 | R180: 190
C181: II | D181: =IF($G$3='Reference scenarios'!$K$1,'Reference scenarios'!K138,IF($G$3='Reference scenarios'!$R$1,'Reference scenarios'!R138,IF($G$3='Reference scenarios'!$Y$1,'Reference scenarios'!Y138,NA()))) -> 2025 | E181: =IF($G$3='Reference scenarios'!$K$1,'Reference scenarios'!L138,IF($G$3='Reference scenarios'!$R$1,'Reference scenarios'!S138,IF($G$3='Reference scenarios'!$Y$1,'Reference scenarios'!Z138,NA()))) -> 0 | F181: =IF($G$3='Reference scenarios'!$K$1,'Reference scenarios'!M138,IF($G$3='Reference scenarios'!$R$1,'Reference scenarios'!T138,IF($G$3='Reference scenarios'!$Y$1,'Reference scenarios'!AA138,NA()))) -> 0 | K181: 138 | R181: 191
C182: III | D182: =IF($G$3='Reference scenarios'!$K$1,'Reference scenarios'!K139,IF($G$3='Reference scenarios'!$R$1,'Reference scenarios'!R139,IF($G$3='Reference scenarios'!$Y$1,'Reference scenarios'!Y139,NA()))) -> 2025 | E182: =IF($G$3='Reference scenarios'!$K$1,'Reference scenarios'!L139,IF($G$3='Reference scenarios'!$R$1,'Reference scenarios'!S139,IF($G$3='Reference scenarios'!$Y$1,'Reference scenarios'!Z139,NA()))) -> 0 | F182: =IF($G$3='Reference scenarios'!$K$1,'Reference scenarios'!M139,IF($G$3='Reference scenarios'!$R$1,'Reference scenarios'!T139,IF($G$3='Reference scenarios'!$Y$1,'Reference scenarios'!AA139,NA()))) -> 0 | K182: 139 | R182: 192
C183: IV | D183: =IF($G$3='Reference scenarios'!$K$1,'Reference scenarios'!K140,IF($G$3='Reference scenarios'!$R$1,'Reference scenarios'!R140,IF($G$3='Reference scenarios'!$Y$1,'Reference scenarios'!Y140,NA()))) -> 2025 | E183: =IF($G$3='Reference scenarios'!$K$1,'Reference scenarios'!L140,IF($G$3='Reference scenarios'!$R$1,'Reference scenarios'!S140,IF($G$3='Reference scenarios'!$Y$1,'Reference scenarios'!Z140,NA()))) -> 0 | F183: =IF($G$3='Reference scenarios'!$K$1,'Reference scenarios'!M140,IF($G$3='Reference scenarios'!$R$1,'Reference scenarios'!T140,IF($G$3='Reference scenarios'!$Y$1,'Reference scenarios'!AA140,NA()))) -> 0 | K183: 140 | R183: 193
D184: Ratio du coût entre les motocycles et les automobiles | E184: ='Reference scenarios'!$D$141 -> 0.5 | K184: 141 | R184: 195
D185: Part des véhicules soumis à la taxe | E185: ='Reference scenarios'!$D$142 -> 0.3 | K185: 142 | R185: 196
B187: Taxe sur les carburants (% d'augmentation du coût de l'essence et du diesel dû à des politiques dédiées)
C188: Périmètre | D188: Année de mise en place | E188: Objectif initial | F188: Objectif 2050
C189: Toutes les énergies fossiles | D189: =IF($G$3='Reference scenarios'!$K$1,'Reference scenarios'!K143,IF($G$3='Reference scenarios'!$R$1,'Reference scenarios'!R143,IF($G$3='Reference scenarios'!$Y$1,'Reference scenarios'!Y143,NA()))) -> 2025 | E189: ='Reference scenarios'!$D$143 -> 0 | F189: =IF($G$3='Reference scenarios'!$K$1,'Reference scenarios'!M143,IF($G$3='Reference scenarios'!$R$1,'Reference scenarios'!T143,IF($G$3='Reference scenarios'!$Y$1,'Reference scenarios'!AA143,NA()))) -> 0 | K189: 143 | R189: 197
B191: Taxe sur l'achat et la détention de véhicule (% d'augmentation du prix en plus du taux actuel)
C192: Périmètre | D192: Année de mise en place | E192: Objectif initial | F192: Objectif 2050
C193: Motocycles | D193: =IF($G$3='Reference scenarios'!$K$1,'Reference scenarios'!K144,IF($G$3='Reference scenarios'!$R$1,'Reference scenarios'!R144,IF($G$3='Reference scenarios'!$Y$1,'Reference scenarios'!Y144,NA()))) -> 2025 | E193: ='Reference scenarios'!$D$144 -> 0 | F193: ='Reference scenarios'!$E$144 -> 0 | K193: 144 | R193: 198
C194: Automobiles | D194: =IF($G$3='Reference scenarios'!$K$1,'Reference scenarios'!K145,IF($G$3='Reference scenarios'!$R$1,'Reference scenarios'!R145,IF($G$3='Reference scenarios'!$Y$1,'Reference scenarios'!Y145,NA()))) -> 2025 | E194: ='Reference scenarios'!$D$145 -> 0 | F194: ='Reference scenarios'!$E$145 -> 0 | K194: 145 | R194: 199
A197: Autre mesure
B199: Augmentation de la densité urbaine de population (en %)
C200: Catégorie | D200: Année de mise en place | E200: Objectif initial | F200: Objectif 2050
C201: I | D201: =IF($G$3='Reference scenarios'!$K$1,'Reference scenarios'!K147,IF($G$3='Reference scenarios'!$R$1,'Reference scenarios'!R147,IF($G$3='Reference scenarios'!$Y$1,'Reference scenarios'!Y147,NA()))) -> 2030 | E201: ='Reference scenarios'!$D$147 -> 0.04 | F201: ='Reference scenarios'!$E$147 -> 0.075 | K201: 147 | R201: 201
C202: II | D202: =IF($G$3='Reference scenarios'!$K$1,'Reference scenarios'!K148,IF($G$3='Reference scenarios'!$R$1,'Reference scenarios'!R148,IF($G$3='Reference scenarios'!$Y$1,'Reference scenarios'!Y148,NA()))) -> 2030 | E202: =IF($G$3='Reference scenarios'!$K$1,'Reference scenarios'!L148,IF($G$3='Reference scenarios'!$R$1,'Reference scenarios'!S148,IF($G$3='Reference scenarios'!$Y$1,'Reference scenarios'!Z148,NA()))) -> 0.04 | F202: =IF($G$3='Reference scenarios'!$K$1,'Reference scenarios'!M148,IF($G$3='Reference scenarios'!$R$1,'Reference scenarios'!T148,IF($G$3='Reference scenarios'!$Y$1,'Reference scenarios'!AA148,NA()))) -> 0.075 | K202: 148 | R202: 202
C203: III | D203: =IF($G$3='Reference scenarios'!$K$1,'Reference scenarios'!K149,IF($G$3='Reference scenarios'!$R$1,'Reference scenarios'!R149,IF($G$3='Reference scenarios'!$Y$1,'Reference scenarios'!Y149,NA()))) -> 2030 | E203: =IF($G$3='Reference scenarios'!$K$1,'Reference scenarios'!L149,IF($G$3='Reference scenarios'!$R$1,'Reference scenarios'!S149,IF($G$3='Reference scenarios'!$Y$1,'Reference scenarios'!Z149,NA()))) -> 0.04 | F203: =IF($G$3='Reference scenarios'!$K$1,'Reference scenarios'!M149,IF($G$3='Reference scenarios'!$R$1,'Reference scenarios'!T149,IF($G$3='Reference scenarios'!$Y$1,'Reference scenarios'!AA149,NA()))) -> 0.075 | K203: 149 | R203: 203
C204: IV | D204: =IF($G$3='Reference scenarios'!$K$1,'Reference scenarios'!K150,IF($G$3='Reference scenarios'!$R$1,'Reference scenarios'!R150,IF($G$3='Reference scenarios'!$Y$1,'Reference scenarios'!Y150,NA()))) -> 2030 | E204: =IF($G$3='Reference scenarios'!$K$1,'Reference scenarios'!L150,IF($G$3='Reference scenarios'!$R$1,'Reference scenarios'!S150,IF($G$3='Reference scenarios'!$Y$1,'Reference scenarios'!Z150,NA()))) -> 0 | F204: =IF($G$3='Reference scenarios'!$K$1,'Reference scenarios'!M150,IF($G$3='Reference scenarios'!$R$1,'Reference scenarios'!T150,IF($G$3='Reference scenarios'!$Y$1,'Reference scenarios'!AA150,NA()))) -> 0 | K204: 150 | R204: 204
A207: Développements technologiques
B209: Promotion des véhicules électriques - Automobiles (% du parc qui est électrifié)
C210: Périmètre | D210: Année de mise en place | E210: Objectif initial | F210: Objectif 2050
C211: Valeur nationale | D211: =IF($G$3='Reference scenarios'!$K$1,'Reference scenarios'!K152,IF($G$3='Reference scenarios'!$R$1,'Reference scenarios'!R152,IF($G$3='Reference scenarios'!$Y$1,'Reference scenarios'!Y152,NA()))) -> 2035 | E211: =IF($G$3='Reference scenarios'!$K$1,'Reference scenarios'!L152,IF($G$3='Reference scenarios'!$R$1,'Reference scenarios'!S152,IF($G$3='Reference scenarios'!$Y$1,'Reference scenarios'!Z152,NA()))) -> 0.05 | F211: ='Reference scenarios'!E152 -> 0.14 | K211: 152 | R211: 207
B213: Promotion des véhicules électriques - Motocycles (% du parc qui est électrifié)
C214: Périmètre | D214: Année de mise en place | E214: Objectif initial | F214: Objectif 2050
C215: Valeur nationale | D215: =IF($G$3='Reference scenarios'!$K$1,'Reference scenarios'!K153,IF($G$3='Reference scenarios'!$R$1,'Reference scenarios'!R153,IF($G$3='Reference scenarios'!$Y$1,'Reference scenarios'!Y153,NA()))) -> 2035 | E215: ='Reference scenarios'!$D$153 -> 0.1 | F215: =IF($G$3='Reference scenarios'!$K$1,'Reference scenarios'!M153,IF($G$3='Reference scenarios'!$R$1,'Reference scenarios'!T153,IF($G$3='Reference scenarios'!$Y$1,'Reference scenarios'!AA153,NA()))) -> 0.3 | K215: 153 | R215: 208
B217: Promotion des véhicules électriques - Bus (% du parc qui est électrifié)
C218: Catégorie | D218: Année de mise en place | E218: Objectif initial | F218: Objectif 2050
C219: I | D219: =IF($G$3='Reference scenarios'!$K$1,'Reference scenarios'!K154,IF($G$3='Reference scenarios'!$R$1,'Reference scenarios'!R154,IF($G$3='Reference scenarios'!$Y$1,'Reference scenarios'!Y154,NA()))) -> 2030 | E219: =IF($G$3='Reference scenarios'!$K$1,'Reference scenarios'!L154,IF($G$3='Reference scenarios'!$R$1,'Reference scenarios'!S154,IF($G$3='Reference scenarios'!$Y$1,'Reference scenarios'!Z154,NA()))) -> 0.1 | F219: =IF($G$3='Reference scenarios'!$K$1,'Reference scenarios'!M154,IF($G$3='Reference scenarios'!$R$1,'Reference scenarios'!T154,IF($G$3='Reference scenarios'!$Y$1,'Reference scenarios'!AA154,NA()))) -> 0.25 | K219: 154 | R219: 209
C220: II | D220: =IF($G$3='Reference scenarios'!$K$1,'Reference scenarios'!K155,IF($G$3='Reference scenarios'!$R$1,'Reference scenarios'!R155,IF($G$3='Reference scenarios'!$Y$1,'Reference scenarios'!Y155,NA()))) -> 2035 | E220: =IF($G$3='Reference scenarios'!$K$1,'Reference scenarios'!L155,IF($G$3='Reference scenarios'!$R$1,'Reference scenarios'!S155,IF($G$3='Reference scenarios'!$Y$1,'Reference scenarios'!Z155,NA()))) -> 0.05 | F220: =IF($G$3='Reference scenarios'!$K$1,'Reference scenarios'!M155,IF($G$3='Reference scenarios'!$R$1,'Reference scenarios'!T155,IF($G$3='Reference scenarios'!$Y$1,'Reference scenarios'!AA155,NA()))) -> 0.15 | K220: 155 | R220: 210
C221: III | D221: =IF($G$3='Reference scenarios'!$K$1,'Reference scenarios'!K156,IF($G$3='Reference scenarios'!$R$1,'Reference scenarios'!R156,IF($G$3='Reference scenarios'!$Y$1,'Reference scenarios'!Y156,NA()))) -> 2035 | E221: =IF($G$3='Reference scenarios'!$K$1,'Reference scenarios'!L156,IF($G$3='Reference scenarios'!$R$1,'Reference scenarios'!S156,IF($G$3='Reference scenarios'!$Y$1,'Reference scenarios'!Z156,NA()))) -> 0.05 | F221: =IF($G$3='Reference scenarios'!$K$1,'Reference scenarios'!M156,IF($G$3='Reference scenarios'!$R$1,'Reference scenarios'!T156,IF($G$3='Reference scenarios'!$Y$1,'Reference scenarios'!AA156,NA()))) -> 0.15 | K221: 156 | R221: 211
C222: IV | D222: =IF($G$3='Reference scenarios'!$K$1,'Reference scenarios'!K157,IF($G$3='Reference scenarios'!$R$1,'Reference scenarios'!R157,IF($G$3='Reference scenarios'!$Y$1,'Reference scenarios'!Y157,NA()))) -> 2035 | E222: =IF($G$3='Reference scenarios'!$K$1,'Reference scenarios'!L157,IF($G$3='Reference scenarios'!$R$1,'Reference scenarios'!S157,IF($G$3='Reference scenarios'!$Y$1,'Reference scenarios'!Z157,NA()))) -> 0.05 | F222: =IF($G$3='Reference scenarios'!$K$1,'Reference scenarios'!M157,IF($G$3='Reference scenarios'!$R$1,'Reference scenarios'!T157,IF($G$3='Reference scenarios'!$Y$1,'Reference scenarios'!AA157,NA()))) -> 0.15 | K222: 157 | R222: 212
B224: Efficacité énergétique
C225: Périmètre | D225: Scénario pré-défini | E225: Scenario description | J225: 2050 target
C226: Valeur nationale | D226: =IF(J226=0,"Aucun développement après 2024",IF(J226=1,"Ambition actuelle du FIT",IF(J226=2,"Hautes Ambitions du FIT",NA()))) -> Ambition actuelle du FIT | E226: =IF(J226=0,"L'efficacité de consommation de carburant et d'émission des véhicules reste constante après 2024",IF(J226=1,"Evolution de la consommation et des émissions moyennes selon la trajectoire du scénario Ambition actuelle des Perspectives des Transports du FIT 2023",IF(J226=2,"Evolution de la consommation et des émissions moyennes selon la trajectoire du scénario Hautes Ambitions des Perspectives des Transports du FIT 2023",NA()))) -> Evolution de la consommation et des émissions moyennes selon la trajectoire du scénario Ambition actuelle des Perspectives des Transports du FIT 2023 | J226: ='Reference scenarios'!C158 -> 1 | K226: 158 | R226: 214
B228: Rendre le mix énergétique plus propre (% de la production d'électricité à faible émissions)
C229: Périmètre | D229: Année de mise en place | E229: Objectif initial | F229: Objectif 2050
C230: Valeur nationale | D230: =IF($G$3='Reference scenarios'!$K$1,'Reference scenarios'!K159,IF($G$3='Reference scenarios'!$R$1,'Reference scenarios'!R159,IF($G$3='Reference scenarios'!$Y$1,'Reference scenarios'!Y159,NA()))) -> 2030 | E230: =IF($G$3='Reference scenarios'!$K$1,'Reference scenarios'!L159,IF($G$3='Reference scenarios'!$R$1,'Reference scenarios'!S159,IF($G$3='Reference scenarios'!$Y$1,'Reference scenarios'!Z159,NA()))) -> 0.19 | F230: ='Reference scenarios'!E159 -> 0.25 | K230: 159 | R230: 215
B232: Electrification des grands taxis (% de la flotte de grands taxis électrifiée)
C233: Périmètre | D233: Année de mise en place | E233: Objectif initial | F233: Objectif 2050
... 4 more rows

Sheet Reference scenarios (hidden)
D1: Scénario: | E1: Ambition limitée | J1: Manual | K1: =Listes!A1 -> Manuel | L1: 0 | R1: =Listes!A2 -> Ambition limitée | S1: 1 | Y1: =Listes!A3 -> Ambition élevée | Z1: 2
A2: Infrastructure enhancement
B3: UA_Category | C3: Start year | D3: Start value | E3: 2050 value | K3: Start year | L3: Start value | M3: 2050 value | R3: Start year | S3: Start value | T3: 2050 value | Y3: Start year | Z3: Start value | AA3: 2050 value
A4: Pedestrian | B4: =ROMAN(1) -> I | C4: =IF('Definition de scénario'!$G$3=$K$1,K4,IF('Definition de scénario'!$G$3=$R$1,R4,IF('Definition de scénario'!$G$3=$Y$1,Y4,IF('Definition de scénario'!$G$3=$J$1,'Definition de scénario'!D9,NA())))) -> 2030 | D4: =IF('Definition de scénario'!$G$3=$K$1,L4,IF('Definition de scénario'!$G$3=$R$1,S4,IF('Definition de scénario'!$G$3=$Y$1,Z4,IF('Definition de scénario'!$G$3=$J$1,'Definition de scénario'!E9,NA())))) -> 0.431 | E4: =IF('Definition de scénario'!$G$3=$K$1,M4,IF('Definition de scénario'!$G$3=$R$1,T4,IF('Definition de scénario'!$G$3=$Y$1,AA4,IF('Definition de scénario'!$G$3=$J$1,'Definition de scénario'!F9,NA())))) -> 0.431 | K4: 2030 | L4: 0.38 | M4: 0.38 | R4: 2030 | S4: 0.431 | T4: 0.431 | Y4: 2035 | Z4: 0.55 | AA4: 0.65
B5: =ROMAN(2) -> II | C5: =IF('Definition de scénario'!$G$3=$K$1,K5,IF('Definition de scénario'!$G$3=$R$1,R5,IF('Definition de scénario'!$G$3=$Y$1,Y5,IF('Definition de scénario'!$G$3=$J$1,'Definition de scénario'!D10,NA())))) -> 2030 | D5: =IF('Definition de scénario'!$G$3=$K$1,L5,IF('Definition de scénario'!$G$3=$R$1,S5,IF('Definition de scénario'!$G$3=$Y$1,Z5,IF('Definition de scénario'!$G$3=$J$1,'Definition de scénario'!E10,NA())))) -> 0.44 | E5: =IF('Definition de scénario'!$G$3=$K$1,M5,IF('Definition de scénario'!$G$3=$R$1,T5,IF('Definition de scénario'!$G$3=$Y$1,AA5,IF('Definition de scénario'!$G$3=$J$1,'Definition de scénario'!F10,NA())))) -> 0.44 | K5: 2030 | L5: 0.44 | M5: 0.44 | R5: 2030 | S5: 0.44 | T5: 0.44 | Y5: 2035 | Z5: 0.5 | AA5: 0.57
B6: =ROMAN(3) -> III | C6: =IF('Definition de scénario'!$G$3=$K$1,K6,IF('Definition de scénario'!$G$3=$R$1,R6,IF('Definition de scénario'!$G$3=$Y$1,Y6,IF('Definition de scénario'!$G$3=$J$1,'Definition de scénario'!D11,NA())))) -> 2030 | D6: =IF('Definition de scénario'!$G$3=$K$1,L6,IF('Definition de scénario'!$G$3=$R$1,S6,IF('Definition de scénario'!$G$3=$Y$1,Z6,IF('Definition de scénario'!$G$3=$J$1,'Definition de scénario'!E11,NA())))) -> 0.44 | E6: =IF('Definition de scénario'!$G$3=$K$1,M6,IF('Definition de scénario'!$G$3=$R$1,T6,IF('Definition de scénario'!$G$3=$Y$1,AA6,IF('Definition de scénario'!$G$3=$J$1,'Definition de scénario'!F11,NA())))) -> 0.44 | K6: 2030 | L6: 0.44 | M6: 0.44 | R6: 2030 | S6: 0.44 | T6: 0.44 | Y6: 2035 | Z6: 0.5 | AA6: 0.57
B7: =ROMAN(4) -> IV | C7: =IF('Definition de scénario'!$G$3=$K$1,K7,IF('Definition de scénario'!$G$3=$R$1,R7,IF('Definition de scénario'!$G$3=$Y$1,Y7,IF('Definition de scénario'!$G$3=$J$1,'Definition de scénario'!D12,NA())))) -> 2030 | D7: =IF('Definition de scénario'!$G$3=$K$1,L7,IF('Definition de scénario'!$G$3=$R$1,S7,IF('Definition de scénario'!$G$3=$Y$1,Z7,IF('Definition de scénario'!$G$3=$J$1,'Definition de scénario'!E12,NA())))) -> 0.26 | E7: =IF('Definition de scénario'!$G$3=$K$1,M7,IF('Definition de scénario'!$G$3=$R$1,T7,IF('Definition de scénario'!$G$3=$Y$1,AA7,IF('Definition de scénario'!$G$3=$J$1,'Definition de scénario'!F12,NA())))) -> 0.26 | K7: 2030 | L7: 0.26 | M7: 0.26 | R7: 2030 | S7: 0.26 | T7: 0.26 | Y7: 2035 | Z7: 0.35 | AA7: 0.55
A8: Cycling | B8: =ROMAN(1) -> I | C8: =IF('Definition de scénario'!$G$3=$K$1,K8,IF('Definition de scénario'!$G$3=$R$1,R8,IF('Definition de scénario'!$G$3=$Y$1,Y8,IF('Definition de scénario'!$G$3=$J$1,'Definition de scénario'!D16,NA())))) -> 2025 | D8: =IF('Definition de scénario'!$G$3=$K$1,L8,IF('Definition de scénario'!$G$3=$R$1,S8,IF('Definition de scénario'!$G$3=$Y$1,Z8,IF('Definition de scénario'!$G$3=$J$1,'Definition de scénario'!E16,NA())))) -> 0 | E8: =IF('Definition de scénario'!$G$3=$K$1,M8,IF('Definition de scénario'!$G$3=$R$1,T8,IF('Definition de scénario'!$G$3=$Y$1,AA8,IF('Definition de scénario'!$G$3=$J$1,'Definition de scénario'!F16,NA())))) -> 0 | K8: 2025 | L8: 0 | M8: 0 | R8: 2025 | S8: 0 | T8: 0 | Y8: 2030 | Z8: 100 | AA8: 200
B9: =ROMAN(2) -> II | C9: =IF('Definition de scénario'!$G$3=$K$1,K9,IF('Definition de scénario'!$G$3=$R$1,R9,IF('Definition de scénario'!$G$3=$Y$1,Y9,IF('Definition de scénario'!$G$3=$J$1,'Definition de scénario'!D17,NA())))) -> 2025 | D9: =IF('Definition de scénario'!$G$3=$K$1,L9,IF('Definition de scénario'!$G$3=$R$1,S9,IF('Definition de scénario'!$G$3=$Y$1,Z9,IF('Definition de scénario'!$G$3=$J$1,'Definition de scénario'!E17,NA())))) -> 0 | E9: =IF('Definition de scénario'!$G$3=$K$1,M9,IF('Definition de scénario'!$G$3=$R$1,T9,IF('Definition de scénario'!$G$3=$Y$1,AA9,IF('Definition de scénario'!$G$3=$J$1,'Definition de scénario'!F17,NA())))) -> 0 | K9: 2025 | L9: 0 | M9: 0 | R9: 2025 | S9: 0 | T9: 0 | Y9: 2030 | Z9: 30 | AA9: 60
B10: =ROMAN(3) -> III | C10: =IF('Definition de scénario'!$G$3=$K$1,K10,IF('Definition de scénario'!$G$3=$R$1,R10,IF('Definition de scénario'!$G$3=$Y$1,Y10,IF('Definition de scénario'!$G$3=$J$1,'Definition de scénario'!D18,NA())))) -> 2025 | D10: =IF('Definition de scénario'!$G$3=$K$1,L10,IF('Definition de scénario'!$G$3=$R$1,S10,IF('Definition de scénario'!$G$3=$Y$1,Z10,IF('Definition de scénario'!$G$3=$J$1,'Definition de scénario'!E18,NA())))) -> 0 | E10: =IF('Definition de scénario'!$G$3=$K$1,M10,IF('Definition de scénario'!$G$3=$R$1,T10,IF('Definition de scénario'!$G$3=$Y$1,AA10,IF('Definition de scénario'!$G$3=$J$1,'Definition de scénario'!F18,NA())))) -> 0 | K10: 2025 | L10: 0 | M10: 0 | R10: 2025 | S10: 0 | T10: 0 | Y10: 2030 | Z10: 15 | AA10: 30
B11: =ROMAN(4) -> IV | C11: =IF('Definition de scénario'!$G$3=$K$1,K11,IF('Definition de scénario'!$G$3=$R$1,R11,IF('Definition de scénario'!$G$3=$Y$1,Y11,IF('Definition de scénario'!$G$3=$J$1,'Definition de scénario'!D19,NA())))) -> 2025 | D11: =IF('Definition de scénario'!$G$3=$K$1,L11,IF('Definition de scénario'!$G$3=$R$1,S11,IF('Definition de scénario'!$G$3=$Y$1,Z11,IF('Definition de scénario'!$G$3=$J$1,'Definition de scénario'!E19,NA())))) -> 0 | E11: =IF('Definition de scénario'!$G$3=$K$1,M11,IF('Definition de scénario'!$G$3=$R$1,T11,IF('Definition de scénario'!$G$3=$Y$1,AA11,IF('Definition de scénario'!$G$3=$J$1,'Definition de scénario'!F19,NA())))) -> 0 | K11: 2025 | L11: 0 | M11: 0 | R11: 2025 | S11: 0 | T11: 0 | Y11: 2025 | Z11: 0 | AA11: 0
B12: UA_Category | C12: 2025 value | D12: 2030 value | E12: 2035 value | F12: 2040 value | G12: 2045 value | H12: 2050 value
A13: BHNS | B13: Grand Casablanca | C13: =IF('Definition de scénario'!$G$3=$K$1,K13,IF('Definition de scénario'!$G$3=$R$1,R13,IF('Definition de scénario'!$G$3=$Y$1,Y13,IF('Definition de scénario'!$G$3=$J$1,'Definition de scénario'!E23,NA())))) -> 24 | D13: =IF('Definition de scénario'!$G$3=$K$1,L13,IF('Definition de scénario'!$G$3=$R$1,S13,IF('Definition de scénario'!$G$3=$Y$1,Z13,IF('Definition de scénario'!$G$3=$J$1,'Definition de scénario'!F23,NA())))) -> 24 | E13: =IF('Definition de scénario'!$G$3=$K$1,M13,IF('Definition de scénario'!$G$3=$R$1,T13,IF('Definition de scénario'!$G$3=$Y$1,AA13,IF('Definition de scénario'!$G$3=$J$1,'Definition de scénario'!G23,NA())))) -> 24 | F13: =IF('Definition de scénario'!$G$3=$K$1,N13,IF('Definition de scénario'!$G$3=$R$1,U13,IF('Definition de scénario'!$G$3=$Y$1,AB13,IF('Definition de scénario'!$G$3=$J$1,'Definition de scénario'!H23,NA())))) -> 24 | G13: =IF('Definition de scénario'!$G$3=$K$1,O13,IF('Definition de scénario'!$G$3=$R$1,V13,IF('Definition de scénario'!$G$3=$Y$1,AC13,IF('Definition de scénario'!$G$3=$J$1,'Definition de scénario'!I23,NA())))) -> 24 | H13: =IF('Definition de scénario'!$G$3=$K$1,P13,IF('Definition de scénario'!$G$3=$R$1,W13,IF('Definition de scénario'!$G$3=$Y$1,AD13,IF('Definition de scénario'!$G$3=$J$1,'Definition de scénario'!J23,NA())))) -> 24 | J13: BRT | K13: 24 | L13: 24 | M13: 24 | N13: 24 | O13: 24 | P13: 24 | R13: 24 | S13: 24 | T13: 24 | U13: 24 | V13: 24 | W13: 24 | Y13: 24 | Z13: 82.9 | AA13: 82.9 | AB13: 82.9 | AC13: 82.9 | AD13: 82.9
B14: Rabat-Salé-Skhirate-Temara | C14: =IF('Definition de scénario'!$G$3=$K$1,K14,IF('Definition de scénario'!$G$3=$R$1,R14,IF('Definition de scénario'!$G$3=$Y$1,Y14,IF('Definition de scénario'!$G$3=$J$1,'Definition de scénario'!E24,NA())))) -> 0 | D14: =IF('Definition de scénario'!$G$3=$K$1,L14,IF('Definition de scénario'!$G$3=$R$1,S14,IF('Definition de scénario'!$G$3=$Y$1,Z14,IF('Definition de scénario'!$G$3=$J$1,'Definition de scénario'!F24,NA())))) -> 45 | E14: =IF('Definition de scénario'!$G$3=$K$1,M14,IF('Definition de scénario'!$G$3=$R$1,T14,IF('Definition de scénario'!$G$3=$Y$1,AA14,IF('Definition de scénario'!$G$3=$J$1,'Definition de scénario'!G24,NA())))) -> 45 | F14: =IF('Definition de scénario'!$G$3=$K$1,N14,IF('Definition de scénario'!$G$3=$R$1,U14,IF('Definition de scénario'!$G$3=$Y$1,AB14,IF('Definition de scénario'!$G$3=$J$1,'Definition de scénario'!H24,NA())))) -> 100 | G14: =IF('Definition de scénario'!$G$3=$K$1,O14,IF('Definition de scénario'!$G$3=$R$1,V14,IF('Definition de scénario'!$G$3=$Y$1,AC14,IF('Definition de scénario'!$G$3=$J$1,'Definition de scénario'!I24,NA())))) -> 100 | H14: =IF('Definition de scénario'!$G$3=$K$1,P14,IF('Definition de scénario'!$G$3=$R$1,W14,IF('Definition de scénario'!$G$3=$Y$1,AD14,IF('Definition de scénario'!$G$3=$J$1,'Definition de scénario'!J24,NA())))) -> 100 | K14: 0 | L14: 0 | M14: 0 | N14: 0 | O14: 0 | P14: 0 | R14: 0 | S14: 45 | T14: 45 | U14: 100 | V14: 100 | W14: 100 | Y14: 0 | Z14: 64 | AA14: 100 | AB14: 120 | AC14: 130 | AD14: 140
B15: Fès | C15: =IF('Definition de scénario'!$G$3=$K$1,K15,IF('Definition de scénario'!$G$3=$R$1,R15,IF('Definition de scénario'!$G$3=$Y$1,Y15,IF('Definition de scénario'!$G$3=$J$1,'Definition de scénario'!E25,NA())))) -> 0 | D15: =IF('Definition de scénario'!$G$3=$K$1,L15,IF('Definition de scénario'!$G$3=$R$1,S15,IF('Definition de scénario'!$G$3=$Y$1,Z15,IF('Definition de scénario'!$G$3=$J$1,'Definition de scénario'!F25,NA())))) -> 0 | E15: =IF('Definition de scénario'!$G$3=$K$1,M15,IF('Definition de scénario'!$G$3=$R$1,T15,IF('Definition de scénario'!$G$3=$Y$1,AA15,IF('Definition de scénario'!$G$3=$J$1,'Definition de scénario'!G25,NA())))) -> 0 | F15: =IF('Definition de scénario'!$G$3=$K$1,N15,IF('Definition de scénario'!$G$3=$R$1,U15,IF('Definition de scénario'!$G$3=$Y$1,AB15,IF('Definition de scénario'!$G$3=$J$1,'Definition de scénario'!H25,NA())))) -> 0 | G15: =IF('Definition de scénario'!$G$3=$K$1,O15,IF('Definition de scénario'!$G$3=$R$1,V15,IF('Definition de scénario'!$G$3=$Y$1,AC15,IF('Definition de scénario'!$G$3=$J$1,'Definition de scénario'!I25,NA())))) -> 0 | H15: =IF('Definition de scénario'!$G$3=$K$1,P15,IF('Definition de scénario'!$G$3=$R$1,W15,IF('Definition de scénario'!$G$3=$Y$1,AD15,IF('Definition de scénario'!$G$3=$J$1,'Definition de scénario'!J25,NA())))) -> 0 | K15: 0 | L15: 0 | M15: 0 | N15: 0 | O15: 0 | P15: 0 | R15: 0 | S15: 0 | T15: 0 | U15: 0 | V15: 0 | W15: 0 | Y15: 10.5 | Z15: 10.5 | AA15: 10.5 | AB15: 10.5 | AC15: 10.5 | AD15: 10.5
B16: Agadir-Ida-Ou-Tanane-Inezgane- Ait Melloul | C16: =IF('Definition de scénario'!$G$3=$K$1,K16,IF('Definition de scénario'!$G$3=$R$1,R16,IF('Definition de scénario'!$G$3=$Y$1,Y16,IF('Definition de scénario'!$G$3=$J$1,'Definition de scénario'!E26,NA())))) -> 15.5 | D16: =IF('Definition de scénario'!$G$3=$K$1,L16,IF('Definition de scénario'!$G$3=$R$1,S16,IF('Definition de scénario'!$G$3=$Y$1,Z16,IF('Definition de scénario'!$G$3=$J$1,'Definition de scénario'!F26,NA())))) -> 47.5 | E16: =IF('Definition de scénario'!$G$3=$K$1,M16,IF('Definition de scénario'!$G$3=$R$1,T16,IF('Definition de scénario'!$G$3=$Y$1,AA16,IF('Definition de scénario'!$G$3=$J$1,'Definition de scénario'!G26,NA())))) -> 47.5 | F16: =IF('Definition de scénario'!$G$3=$K$1,N16,IF('Definition de scénario'!$G$3=$R$1,U16,IF('Definition de scénario'!$G$3=$Y$1,AB16,IF('Definition de scénario'!$G$3=$J$1,'Definition de scénario'!H26,NA())))) -> 47.5 | G16: =IF('Definition de scénario'!$G$3=$K$1,O16,IF('Definition de scénario'!$G$3=$R$1,V16,IF('Definition de scénario'!$G$3=$Y$1,AC16,IF('Definition de scénario'!$G$3=$J$1,'Definition de scénario'!I26,NA())))) -> 47.5 | H16: =IF('Definition de scénario'!$G$3=$K$1,P16,IF('Definition de scénario'!$G$3=$R$1,W16,IF('Definition de scénario'!$G$3=$Y$1,AD16,IF('Definition de scénario'!$G$3=$J$1,'Definition de scénario'!J26,NA())))) -> 47.5 | K16: 16 | L16: 16 | M16: 16 | N16: 16 | O16: 16 | P16: 16 | R16: 15.5 | S16: 47.5 | T16: 47.5 | U16: 47.5 | V16: 47.5 | W16: 47.5 | Y16: 15.5 | Z16: 47.5 | AA16: 47.5 | AB16: 47.5 | AC16: 47.5 | AD16: 47.5
B17: Tanger-Assilah | C17: =IF('Definition de scénario'!$G$3=$K$1,K17,IF('Definition de scénario'!$G$3=$R$1,R17,IF('Definition de scénario'!$G$3=$Y$1,Y17,IF('Definition de scénario'!$G$3=$J$1,'Definition de scénario'!E27,NA())))) -> 21 | D17: =IF('Definition de scénario'!$G$3=$K$1,L17,IF('Definition de scénario'!$G$3=$R$1,S17,IF('Definition de scénario'!$G$3=$Y$1,Z17,IF('Definition de scénario'!$G$3=$J$1,'Definition de scénario'!F27,NA())))) -> 37.2 | E17: =IF('Definition de scénario'!$G$3=$K$1,M17,IF('Definition de scénario'!$G$3=$R$1,T17,IF('Definition de scénario'!$G$3=$Y$1,AA17,IF('Definition de scénario'!$G$3=$J$1,'Definition de scénario'!G27,NA())))) -> 37.2 | F17: =IF('Definition de scénario'!$G$3=$K$1,N17,IF('Definition de scénario'!$G$3=$R$1,U17,IF('Definition de scénario'!$G$3=$Y$1,AB17,IF('Definition de scénario'!$G$3=$J$1,'Definition de scénario'!H27,NA())))) -> 37.2 | G17: =IF('Definition de scénario'!$G$3=$K$1,O17,IF('Definition de scénario'!$G$3=$R$1,V17,IF('Definition de scénario'!$G$3=$Y$1,AC17,IF('Definition de scénario'!$G$3=$J$1,'Definition de scénario'!I27,NA())))) -> 37.2 | H17: =IF('Definition de scénario'!$G$3=$K$1,P17,IF('Definition de scénario'!$G$3=$R$1,W17,IF('Definition de scénario'!$G$3=$Y$1,AD17,IF('Definition de scénario'!$G$3=$J$1,'Definition de scénario'!J27,NA())))) -> 37.2 | K17: 21 | L17: 21 | M17: 21 | N17: 21 | O17: 21 | P17: 21 | R17: 21 | S17: 37.2 | T17: 37.2 | U17: 37.2 | V17: 37.2 | W17: 37.2 | Y17: 21 | Z17: 37.2 | AA17: 74.9 | AB17: 74.9 | AC17: 74.9 | AD17: 74.9
B18: Marrakech | C18: =IF('Definition de scénario'!$G$3=$K$1,K18,IF('Definition de scénario'!$G$3=$R$1,R18,IF('Definition de scénario'!$G$3=$Y$1,Y18,IF('Definition de scénario'!$G$3=$J$1,'Definition de scénario'!E28,NA())))) -> 8 | D18: =IF('Definition de scénario'!$G$3=$K$1,L18,IF('Definition de scénario'!$G$3=$R$1,S18,IF('Definition de scénario'!$G$3=$Y$1,Z18,IF('Definition de scénario'!$G$3=$J$1,'Definition de scénario'!F28,NA())))) -> 34 | E18: =IF('Definition de scénario'!$G$3=$K$1,M18,IF('Definition de scénario'!$G$3=$R$1,T18,IF('Definition de scénario'!$G$3=$Y$1,AA18,IF('Definition de scénario'!$G$3=$J$1,'Definition de scénario'!G28,NA())))) -> 34 | F18: =IF('Definition de scénario'!$G$3=$K$1,N18,IF('Definition de scénario'!$G$3=$R$1,U18,IF('Definition de scénario'!$G$3=$Y$1,AB18,IF('Definition de scénario'!$G$3=$J$1,'Definition de scénario'!H28,NA())))) -> 34 | G18: =IF('Definition de scénario'!$G$3=$K$1,O18,IF('Definition de scénario'!$G$3=$R$1,V18,IF('Definition de scénario'!$G$3=$Y$1,AC18,IF('Definition de scénario'!$G$3=$J$1,'Definition de scénario'!I28,NA())))) -> 34 | H18: =IF('Definition de scénario'!$G$3=$K$1,P18,IF('Definition de scénario'!$G$3=$R$1,W18,IF('Definition de scénario'!$G$3=$Y$1,AD18,IF('Definition de scénario'!$G$3=$J$1,'Definition de scénario'!J28,NA())))) -> 34 | K18: 8 | L18: 8 | M18: 8 | N18: 8 | O18: 8 | P18: 8 | R18: 8 | S18: 34 | T18: 34 | U18: 34 | V18: 34 | W18: 34 | Y18: 8 | Z18: 61.3 | AA18: 61.3 | AB18: 61.3 | AC18: 61.3 | AD18: 61.3
B19: Meknès (Mun.) | C19: =IF('Definition de scénario'!$G$3=$K$1,K19,IF('Definition de scénario'!$G$3=$R$1,R19,IF('Definition de scénario'!$G$3=$Y$1,Y19,IF('Definition de scénario'!$G$3=$J$1,'Definition de scénario'!E29,NA())))) -> 0 | D19: =IF('Definition de scénario'!$G$3=$K$1,L19,IF('Definition de scénario'!$G$3=$R$1,S19,IF('Definition de scénario'!$G$3=$Y$1,Z19,IF('Definition de scénario'!$G$3=$J$1,'Definition de scénario'!F29,NA())))) -> 0 | E19: =IF('Definition de scénario'!$G$3=$K$1,M19,IF('Definition de scénario'!$G$3=$R$1,T19,IF('Definition de scénario'!$G$3=$Y$1,AA19,IF('Definition de scénario'!$G$3=$J$1,'Definition de scénario'!G29,NA())))) -> 0 | F19: =IF('Definition de scénario'!$G$3=$K$1,N19,IF('Definition de scénario'!$G$3=$R$1,U19,IF('Definition de scénario'!$G$3=$Y$1,AB19,IF('Definition de scénario'!$G$3=$J$1,'Definition de scénario'!H29,NA())))) -> 0 | G19: =IF('Definition de scénario'!$G$3=$K$1,O19,IF('Definition de scénario'!$G$3=$R$1,V19,IF('Definition de scénario'!$G$3=$Y$1,AC19,IF('Definition de scénario'!$G$3=$J$1,'Definition de scénario'!I29,NA())))) -> 0 | H19: =IF('Definition de scénario'!$G$3=$K$1,P19,IF('Definition de scénario'!$G$3=$R$1,W19,IF('Definition de scénario'!$G$3=$Y$1,AD19,IF('Definition de scénario'!$G$3=$J$1,'Definition de scénario'!J29,NA())))) -> 0 | K19: 0 | L19: 0 | M19: 0 | N19: 0 | O19: 0 | P19: 0 | R19: 0 | S19: 0 | T19: 0 | U19: 0 | V19: 0 | W19: 0 | Y19: 0 | Z19: 0 | AA19: 0 | AB19: 0 | AC19: 0 | AD19: 0
B20: Kenitra | C20: =IF('Definition de scénario'!$G$3=$K$1,K20,IF('Definition de scénario'!$G$3=$R$1,R20,IF('Definition de scénario'!$G$3=$Y$1,Y20,IF('Definition de scénario'!$G$3=$J$1,'Definition de scénario'!E30,NA())))) -> 0 | D20: =IF('Definition de scénario'!$G$3=$K$1,L20,IF('Definition de scénario'!$G$3=$R$1,S20,IF('Definition de scénario'!$G$3=$Y$1,Z20,IF('Definition de scénario'!$G$3=$J$1,'Definition de scénario'!F30,NA())))) -> 0 | E20: =IF('Definition de scénario'!$G$3=$K$1,M20,IF('Definition de scénario'!$G$3=$R$1,T20,IF('Definition de scénario'!$G$3=$Y$1,AA20,IF('Definition de scénario'!$G$3=$J$1,'Definition de scénario'!G30,NA())))) -> 0 | F20: =IF('Definition de scénario'!$G$3=$K$1,N20,IF('Definition de scénario'!$G$3=$R$1,U20,IF('Definition de scénario'!$G$3=$Y$1,AB20,IF('Definition de scénario'!$G$3=$J$1,'Definition de scénario'!H30,NA())))) -> 0 | G20: =IF('Definition de scénario'!$G$3=$K$1,O20,IF('Definition de scénario'!$G$3=$R$1,V20,IF('Definition de scénario'!$G$3=$Y$1,AC20,IF('Definition de scénario'!$G$3=$J$1,'Definition de scénario'!I30,NA())))) -> 0 | H20: =IF('Definition de scénario'!$G$3=$K$1,P20,IF('Definition de scénario'!$G$3=$R$1,W20,IF('Definition de scénario'!$G$3=$Y$1,AD20,IF('Definition de scénario'!$G$3=$J$1,'Definition de scénario'!J30,NA())))) -> 0 | K20: 0 | L20: 0 | M20: 0 | N20: 0 | O20: 0 | P20: 0 | R20: 0 | S20: 0 | T20: 0 | U20: 0 | V20: 0 | W20: 0 | Y20: 17.5 | Z20: 17.5 | AA20: 17.5 | AB20: 17.5 | AC20: 17.5 | AD20: 17.5
B21: Oujda-Angad (Mun.) | C21: =IF('Definition de scénario'!$G$3=$K$1,K21,IF('Definition de scénario'!$G$3=$R$1,R21,IF('Definition de scénario'!$G$3=$Y$1,Y21,IF('Definition de scénario'!$G$3=$J$1,'Definition de scénario'!E31,NA())))) -> 0 | D21: =IF('Definition de scénario'!$G$3=$K$1,L21,IF('Definition de scénario'!$G$3=$R$1,S21,IF('Definition de scénario'!$G$3=$Y$1,Z21,IF('Definition de scénario'!$G$3=$J$1,'Definition de scénario'!F31,NA())))) -> 0 | E21: =IF('Definition de scénario'!$G$3=$K$1,M21,IF('Definition de scénario'!$G$3=$R$1,T21,IF('Definition de scénario'!$G$3=$Y$1,AA21,IF('Definition de scénario'!$G$3=$J$1,'Definition de scénario'!G31,NA())))) -> 0 | F21: =IF('Definition de scénario'!$G$3=$K$1,N21,IF('Definition de scénario'!$G$3=$R$1,U21,IF('Definition de scénario'!$G$3=$Y$1,AB21,IF('Definition de scénario'!$G$3=$J$1,'Definition de scénario'!H31,NA())))) -> 0 | G21: =IF('Definition de scénario'!$G$3=$K$1,O21,IF('Definition de scénario'!$G$3=$R$1,V21,IF('Definition de scénario'!$G$3=$Y$1,AC21,IF('Definition de scénario'!$G$3=$J$1,'Definition de scénario'!I31,NA())))) -> 0 | H21: =IF('Definition de scénario'!$G$3=$K$1,P21,IF('Definition de scénario'!$G$3=$R$1,W21,IF('Definition de scénario'!$G$3=$Y$1,AD21,IF('Definition de scénario'!$G$3=$J$1,'Definition de scénario'!J31,NA())))) -> 0 | K21: 0 | L21: 0 | M21: 0 | N21: 0 | O21: 0 | P21: 0 | R21: 0 | S21: 0 | T21: 0 | U21: 0 | V21: 0 | W21: 0 | Y21: 6.3 | Z21: 6.3 | AA21: 6.3 | AB21: 6.3 | AC21: 6.3 | AD21: 6.3
B22: Nador (Mun.) | C22: =IF('Definition de scénario'!$G$3=$K$1,K22,IF('Definition de scénario'!$G$3=$R$1,R22,IF('Definition de scénario'!$G$3=$Y$1,Y22,IF('Definition de scénario'!$G$3=$J$1,'Definition de scénario'!E32,NA())))) -> 0 | D22: =IF('Definition de scénario'!$G$3=$K$1,L22,IF('Definition de scénario'!$G$3=$R$1,S22,IF('Definition de scénario'!$G$3=$Y$1,Z22,IF('Definition de scénario'!$G$3=$J$1,'Definition de scénario'!F32,NA())))) -> 0 | E22: =IF('Definition de scénario'!$G$3=$K$1,M22,IF('Definition de scénario'!$G$3=$R$1,T22,IF('Definition de scénario'!$G$3=$Y$1,AA22,IF('Definition de scénario'!$G$3=$J$1,'Definition de scénario'!G32,NA())))) -> 0 | F22: =IF('Definition de scénario'!$G$3=$K$1,N22,IF('Definition de scénario'!$G$3=$R$1,U22,IF('Definition de scénario'!$G$3=$Y$1,AB22,IF('Definition de scénario'!$G$3=$J$1,'Definition de scénario'!H32,NA())))) -> 0 | G22: =IF('Definition de scénario'!$G$3=$K$1,O22,IF('Definition de scénario'!$G$3=$R$1,V22,IF('Definition de scénario'!$G$3=$Y$1,AC22,IF('Definition de scénario'!$G$3=$J$1,'Definition de scénario'!I32,NA())))) -> 0 | H22: =IF('Definition de scénario'!$G$3=$K$1,P22,IF('Definition de scénario'!$G$3=$R$1,W22,IF('Definition de scénario'!$G$3=$Y$1,AD22,IF('Definition de scénario'!$G$3=$J$1,'Definition de scénario'!J32,NA())))) -> 0 | K22: 0 | L22: 0 | M22: 0 | N22: 0 | O22: 0 | P22: 0 | R22: 0 | S22: 0 | T22: 0 | U22: 0 | V22: 0 | W22: 0 | Y22: 43 | Z22: 63 | AA22: 63 | AB22: 63 | AC22: 63 | AD22: 63
B23: Tétouan (Mun.) | C23: =IF('Definition de scénario'!$G$3=$K$1,K23,IF('Definition de scénario'!$G$3=$R$1,R23,IF('Definition de scénario'!$G$3=$Y$1,Y23,IF('Definition de scénario'!$G$3=$J$1,'Definition de scénario'!E33,NA())))) -> 0 | D23: =IF('Definition de scénario'!$G$3=$K$1,L23,IF('Definition de scénario'!$G$3=$R$1,S23,IF('Definition de scénario'!$G$3=$Y$1,Z23,IF('Definition de scénario'!$G$3=$J$1,'Definition de scénario'!F33,NA())))) -> 0 | E23: =IF('Definition de scénario'!$G$3=$K$1,M23,IF('Definition de scénario'!$G$3=$R$1,T23,IF('Definition de scénario'!$G$3=$Y$1,AA23,IF('Definition de scénario'!$G$3=$J$1,'Definition de scénario'!G33,NA())))) -> 0 | F23: =IF('Definition de scénario'!$G$3=$K$1,N23,IF('Definition de scénario'!$G$3=$R$1,U23,IF('Definition de scénario'!$G$3=$Y$1,AB23,IF('Definition de scénario'!$G$3=$J$1,'Definition de scénario'!H33,NA())))) -> 0 | G23: =IF('Definition de scénario'!$G$3=$K$1,O23,IF('Definition de scénario'!$G$3=$R$1,V23,IF('Definition de scénario'!$G$3=$Y$1,AC23,IF('Definition de scénario'!$G$3=$J$1,'Definition de scénario'!I33,NA())))) -> 0 | H23: =IF('Definition de scénario'!$G$3=$K$1,P23,IF('Definition de scénario'!$G$3=$R$1,W23,IF('Definition de scénario'!$G$3=$Y$1,AD23,IF('Definition de scénario'!$G$3=$J$1,'Definition de scénario'!J33,NA())))) -> 0 | K23: 0 | L23: 0 | M23: 0 | N23: 0 | O23: 0 | P23: 0 | R23: 0 | S23: 0 | T23: 0 | U23: 0 | V23: 0 | W23: 0 | Y23: 0 | Z23: 0 | AA23: 0 | AB23: 0 | AC23: 0 | AD23: 0
B24: Khouribga (Mun.) | C24: =IF('Definition de scénario'!$G$3=$K$1,K24,IF('Definition de scénario'!$G$3=$R$1,R24,IF('Definition de scénario'!$G$3=$Y$1,Y24,IF('Definition de scénario'!$G$3=$J$1,'Definition de scénario'!E34,NA())))) -> 0 | D24: =IF('Definition de scénario'!$G$3=$K$1,L24,IF('Definition de scénario'!$G$3=$R$1,S24,IF('Definition de scénario'!$G$3=$Y$1,Z24,IF('Definition de scénario'!$G$3=$J$1,'Definition de scénario'!F34,NA())))) -> 0 | E24: =IF('Definition de scénario'!$G$3=$K$1,M24,IF('Definition de scénario'!$G$3=$R$1,T24,IF('Definition de scénario'!$G$3=$Y$1,AA24,IF('Definition de scénario'!$G$3=$J$1,'Definition de scénario'!G34,NA())))) -> 0 | F24: =IF('Definition de scénario'!$G$3=$K$1,N24,IF('Definition de scénario'!$G$3=$R$1,U24,IF('Definition de scénario'!$G$3=$Y$1,AB24,IF('Definition de scénario'!$G$3=$J$1,'Definition de scénario'!H34,NA())))) -> 0 | G24: =IF('Definition de scénario'!$G$3=$K$1,O24,IF('Definition de scénario'!$G$3=$R$1,V24,IF('Definition de scénario'!$G$3=$Y$1,AC24,IF('Definition de scénario'!$G$3=$J$1,'Definition de scénario'!I34,NA())))) -> 0 | H24: =IF('Definition de scénario'!$G$3=$K$1,P24,IF('Definition de scénario'!$G$3=$R$1,W24,IF('Definition de scénario'!$G$3=$Y$1,AD24,IF('Definition de scénario'!$G$3=$J$1,'Definition de scénario'!J34,NA())))) -> 0 | K24: 0 | L24: 0 | M24: 0 | N24: 0 | O24: 0 | P24: 0 | R24: 0 | S24: 0 | T24: 0 | U24: 0 | V24: 0 | W24: 0 | Y24: 0 | Z24: 0 | AA24: 0 | AB24: 0 | AC24: 0 | AD24: 0
B25: El Jadida (Mun.) | C25: =IF('Definition de scénario'!$G$3=$K$1,K25,IF('Definition de scénario'!$G$3=$R$1,R25,IF('Definition de scénario'!$G$3=$Y$1,Y25,IF('Definition de scénario'!$G$3=$J$1,'Definition de scénario'!E35,NA())))) -> 0 | D25: =IF('Definition de scénario'!$G$3=$K$1,L25,IF('Definition de scénario'!$G$3=$R$1,S25,IF('Definition de scénario'!$G$3=$Y$1,Z25,IF('Definition de scénario'!$G$3=$J$1,'Definition de scénario'!F35,NA())))) -> 0 | E25: =IF('Definition de scénario'!$G$3=$K$1,M25,IF('Definition de scénario'!$G$3=$R$1,T25,IF('Definition de scénario'!$G$3=$Y$1,AA25,IF('Definition de scénario'!$G$3=$J$1,'Definition de scénario'!G35,NA())))) -> 0 | F25: =IF('Definition de scénario'!$G$3=$K$1,N25,IF('Definition de scénario'!$G$3=$R$1,U25,IF('Definition de scénario'!$G$3=$Y$1,AB25,IF('Definition de scénario'!$G$3=$J$1,'Definition de scénario'!H35,NA())))) -> 0 | G25: =IF('Definition de scénario'!$G$3=$K$1,O25,IF('Definition de scénario'!$G$3=$R$1,V25,IF('Definition de scénario'!$G$3=$Y$1,AC25,IF('Definition de scénario'!$G$3=$J$1,'Definition de scénario'!I35,NA())))) -> 0 | H25: =IF('Definition de scénario'!$G$3=$K$1,P25,IF('Definition de scénario'!$G$3=$R$1,W25,IF('Definition de scénario'!$G$3=$Y$1,AD25,IF('Definition de scénario'!$G$3=$J$1,'Definition de scénario'!J35,NA())))) -> 0 | K25: 0 | L25: 0 | M25: 0 | N25: 0 | O25: 0 | P25: 0 | R25: 0 | S25: 0 | T25: 0 | U25: 0 | V25: 0 | W25: 0 | Y25: 4 | Z25: 30 | AA25: 53 | AB25: 53 | AC25: 53 | AD25: 53
B26: Berrechid (Mun.) | C26: =IF('Definition de scénario'!$G$3=$K$1,K26,IF('Definition de scénario'!$G$3=$R$1,R26,IF('Definition de scénario'!$G$3=$Y$1,Y26,IF('Definition de scénario'!$G$3=$J$1,'Definition de scénario'!E36,NA())))) -> 0 | D26: =IF('Definition de scénario'!$G$3=$K$1,L26,IF('Definition de scénario'!$G$3=$R$1,S26,IF('Definition de scénario'!$G$3=$Y$1,Z26,IF('Definition de scénario'!$G$3=$J$1,'Definition de scénario'!F36,NA())))) -> 0 | E26: =IF('Definition de scénario'!$G$3=$K$1,M26,IF('Definition de scénario'!$G$3=$R$1,T26,IF('Definition de scénario'!$G$3=$Y$1,AA26,IF('Definition de scénario'!$G$3=$J$1,'Definition de scénario'!G36,NA())))) -> 0 | F26: =IF('Definition de scénario'!$G$3=$K$1,N26,IF('Definition de scénario'!$G$3=$R$1,U26,IF('Definition de scénario'!$G$3=$Y$1,AB26,IF('Definition de scénario'!$G$3=$J$1,'Definition de scénario'!H36,NA())))) -> 0 | G26: =IF('Definition de scénario'!$G$3=$K$1,O26,IF('Definition de scénario'!$G$3=$R$1,V26,IF('Definition de scénario'!$G$3=$Y$1,AC26,IF('Definition de scénario'!$G$3=$J$1,'Definition de scénario'!I36,NA())))) -> 0 | H26: =IF('Definition de scénario'!$G$3=$K$1,P26,IF('Definition de scénario'!$G$3=$R$1,W26,IF('Definition de scénario'!$G$3=$Y$1,AD26,IF('Definition de scénario'!$G$3=$J$1,'Definition de scénario'!J36,NA())))) -> 0 | K26: 0 | L26: 0 | M26: 0 | N26: 0 | O26: 0 | P26: 0 | R26: 0 | S26: 0 | T26: 0 | U26: 0 | V26: 0 | W26: 0 | Y26: 0 | Z26: 0 | AA26: 0 | AB26: 0 | AC26: 0 | AD26: 0
B27: Safi (Mun.) | C27: =IF('Definition de scénario'!$G$3=$K$1,K27,IF('Definition de scénario'!$G$3=$R$1,R27,IF('Definition de scénario'!$G$3=$Y$1,Y27,IF('Definition de scénario'!$G$3=$J$1,'Definition de scénario'!E37,NA())))) -> 0 | D27: =IF('Definition de scénario'!$G$3=$K$1,L27,IF('Definition de scénario'!$G$3=$R$1,S27,IF('Definition de scénario'!$G$3=$Y$1,Z27,IF('Definition de scénario'!$G$3=$J$1,'Definition de scénario'!F37,NA())))) -> 0 | E27: =IF('Definition de scénario'!$G$3=$K$1,M27,IF('Definition de scénario'!$G$3=$R$1,T27,IF('Definition de scénario'!$G$3=$Y$1,AA27,IF('Definition de scénario'!$G$3=$J$1,'Definition de scénario'!G37,NA())))) -> 0 | F27: =IF('Definition de scénario'!$G$3=$K$1,N27,IF('Definition de scénario'!$G$3=$R$1,U27,IF('Definition de scénario'!$G$3=$Y$1,AB27,IF('Definition de scénario'!$G$3=$J$1,'Definition de scénario'!H37,NA())))) -> 0 | G27: =IF('Definition de scénario'!$G$3=$K$1,O27,IF('Definition de scénario'!$G$3=$R$1,V27,IF('Definition de scénario'!$G$3=$Y$1,AC27,IF('Definition de scénario'!$G$3=$J$1,'Definition de scénario'!I37,NA())))) -> 0 | H27: =IF('Definition de scénario'!$G$3=$K$1,P27,IF('Definition de scénario'!$G$3=$R$1,W27,IF('Definition de scénario'!$G$3=$Y$1,AD27,IF('Definition de scénario'!$G$3=$J$1,'Definition de scénario'!J37,NA())))) -> 0 | K27: 0 | L27: 0 | M27: 0 | N27: 0 | O27: 0 | P27: 0 | R27: 0 | S27: 0 | T27: 0 | U27: 0 | V27: 0 | W27: 0 | Y27: 0 | Z27: 0 | AA27: 0 | AB27: 0 | AC27: 0 | AD27: 0
B28: Béni Mellal (Mun.) | C28: =IF('Definition de scénario'!$G$3=$K$1,K28,IF('Definition de scénario'!$G$3=$R$1,R28,IF('Definition de scénario'!$G$3=$Y$1,Y28,IF('Definition de scénario'!$G$3=$J$1,'Definition de scénario'!E38,NA())))) -> 0 | D28: =IF('Definition de scénario'!$G$3=$K$1,L28,IF('Definition de scénario'!$G$3=$R$1,S28,IF('Definition de scénario'!$G$3=$Y$1,Z28,IF('Definition de scénario'!$G$3=$J$1,'Definition de scénario'!F38,NA())))) -> 0 | E28: =IF('Definition de scénario'!$G$3=$K$1,M28,IF('Definition de scénario'!$G$3=$R$1,T28,IF('Definition de scénario'!$G$3=$Y$1,AA28,IF('Definition de scénario'!$G$3=$J$1,'Definition de scénario'!G38,NA())))) -> 0 | F28: =IF('Definition de scénario'!$G$3=$K$1,N28,IF('Definition de scénario'!$G$3=$R$1,U28,IF('Definition de scénario'!$G$3=$Y$1,AB28,IF('Definition de scénario'!$G$3=$J$1,'Definition de scénario'!H38,NA())))) -> 0 | G28: =IF('Definition de scénario'!$G$3=$K$1,O28,IF('Definition de scénario'!$G$3=$R$1,V28,IF('Definition de scénario'!$G$3=$Y$1,AC28,IF('Definition de scénario'!$G$3=$J$1,'Definition de scénario'!I38,NA())))) -> 0 | H28: =IF('Definition de scénario'!$G$3=$K$1,P28,IF('Definition de scénario'!$G$3=$R$1,W28,IF('Definition de scénario'!$G$3=$Y$1,AD28,IF('Definition de scénario'!$G$3=$J$1,'Definition de scénario'!J38,NA())))) -> 0 | K28: 0 | L28: 0 | M28: 0 | N28: 0 | O28: 0 | P28: 0 | R28: 0 | S28: 0 | T28: 0 | U28: 0 | V28: 0 | W28: 0 | Y28: 5 | Z28: 5 | AA28: 5 | AB28: 5 | AC28: 5 | AD28: 5
B29: Khémisset (Mun.) | C29: =IF('Definition de scénario'!$G$3=$K$1,K29,IF('Definition de scénario'!$G$3=$R$1,R29,IF('Definition de scénario'!$G$3=$Y$1,Y29,IF('Definition de scénario'!$G$3=$J$1,'Definition de scénario'!E39,NA())))) -> 0 | D29: =IF('Definition de scénario'!$G$3=$K$1,L29,IF('Definition de scénario'!$G$3=$R$1,S29,IF('Definition de scénario'!$G$3=$Y$1,Z29,IF('Definition de scénario'!$G$3=$J$1,'Definition de scénario'!F39,NA())))) -> 0 | E29: =IF('Definition de scénario'!$G$3=$K$1,M29,IF('Definition de scénario'!$G$3=$R$1,T29,IF('Definition de scénario'!$G$3=$Y$1,AA29,IF('Definition de scénario'!$G$3=$J$1,'Definition de scénario'!G39,NA())))) -> 0 | F29: =IF('Definition de scénario'!$G$3=$K$1,N29,IF('Definition de scénario'!$G$3=$R$1,U29,IF('Definition de scénario'!$G$3=$Y$1,AB29,IF('Definition de scénario'!$G$3=$J$1,'Definition de scénario'!H39,NA())))) -> 0 | G29: =IF('Definition de scénario'!$G$3=$K$1,O29,IF('Definition de scénario'!$G$3=$R$1,V29,IF('Definition de scénario'!$G$3=$Y$1,AC29,IF('Definition de scénario'!$G$3=$J$1,'Definition de scénario'!I39,NA())))) -> 0 | H29: =IF('Definition de scénario'!$G$3=$K$1,P29,IF('Definition de scénario'!$G$3=$R$1,W29,IF('Definition de scénario'!$G$3=$Y$1,AD29,IF('Definition de scénario'!$G$3=$J$1,'Definition de scénario'!J39,NA())))) -> 0 | K29: 0 | L29: 0 | M29: 0 | N29: 0 | O29: 0 | P29: 0 | R29: 0 | S29: 0 | T29: 0 | U29: 0 | V29: 0 | W29: 0 | Y29: 0 | Z29: 0 | AA29: 0 | AB29: 0 | AC29: 0 | AD29: 0
B30: Larache (Mun.) | C30: =IF('Definition de scénario'!$G$3=$K$1,K30,IF('Definition de scénario'!$G$3=$R$1,R30,IF('Definition de scénario'!$G$3=$Y$1,Y30,IF('Definition de scénario'!$G$3=$J$1,'Definition de scénario'!E40,NA())))) -> 0 | D30: =IF('Definition de scénario'!$G$3=$K$1,L30,IF('Definition de scénario'!$G$3=$R$1,S30,IF('Definition de scénario'!$G$3=$Y$1,Z30,IF('Definition de scénario'!$G$3=$J$1,'Definition de scénario'!F40,NA())))) -> 0 | E30: =IF('Definition de scénario'!$G$3=$K$1,M30,IF('Definition de scénario'!$G$3=$R$1,T30,IF('Definition de scénario'!$G$3=$Y$1,AA30,IF('Definition de scénario'!$G$3=$J$1,'Definition de scénario'!G40,NA())))) -> 0 | F30: =IF('Definition de scénario'!$G$3=$K$1,N30,IF('Definition de scénario'!$G$3=$R$1,U30,IF('Definition de scénario'!$G$3=$Y$1,AB30,IF('Definition de scénario'!$G$3=$J$1,'Definition de scénario'!H40,NA())))) -> 0 | G30: =IF('Definition de scénario'!$G$3=$K$1,O30,IF('Definition de scénario'!$G$3=$R$1,V30,IF('Definition de scénario'!$G$3=$Y$1,AC30,IF('Definition de scénario'!$G$3=$J$1,'Definition de scénario'!I40,NA())))) -> 0 | H30: =IF('Definition de scénario'!$G$3=$K$1,P30,IF('Definition de scénario'!$G$3=$R$1,W30,IF('Definition de scénario'!$G$3=$Y$1,AD30,IF('Definition de scénario'!$G$3=$J$1,'Definition de scénario'!J40,NA())))) -> 0 | K30: 0 | L30: 0 | M30: 0 | N30: 0 | O30: 0 | P30: 0 | R30: 0 | S30: 0 | T30: 0 | U30: 0 | V30: 0 | W30: 0 | Y30: 0 | Z30: 0 | AA30: 0 | AB30: 0 | AC30: 0 | AD30: 0
B31: Laayoune (Mun.) | C31: =IF('Definition de scénario'!$G$3=$K$1,K31,IF('Definition de scénario'!$G$3=$R$1,R31,IF('Definition de scénario'!$G$3=$Y$1,Y31,IF('Definition de scénario'!$G$3=$J$1,'Definition de scénario'!E41,NA())))) -> 0 | D31: =IF('Definition de scénario'!$G$3=$K$1,L31,IF('Definition de scénario'!$G$3=$R$1,S31,IF('Definition de scénario'!$G$3=$Y$1,Z31,IF('Definition de scénario'!$G$3=$J$1,'Definition de scénario'!F41,NA())))) -> 0 | E31: =IF('Definition de scénario'!$G$3=$K$1,M31,IF('Definition de scénario'!$G$3=$R$1,T31,IF('Definition de scénario'!$G$3=$Y$1,AA31,IF('Definition de scénario'!$G$3=$J$1,'Definition de scénario'!G41,NA())))) -> 0 | F31: =IF('Definition de scénario'!$G$3=$K$1,N31,IF('Definition de scénario'!$G$3=$R$1,U31,IF('Definition de scénario'!$G$3=$Y$1,AB31,IF('Definition de scénario'!$G$3=$J$1,'Definition de scénario'!H41,NA())))) -> 0 | G31: =IF('Definition de scénario'!$G$3=$K$1,O31,IF('Definition de scénario'!$G$3=$R$1,V31,IF('Definition de scénario'!$G$3=$Y$1,AC31,IF('Definition de scénario'!$G$3=$J$1,'Definition de scénario'!I41,NA())))) -> 0 | H31: =IF('Definition de scénario'!$G$3=$K$1,P31,IF('Definition de scénario'!$G$3=$R$1,W31,IF('Definition de scénario'!$G$3=$Y$1,AD31,IF('Definition de scénario'!$G$3=$J$1,'Definition de scénario'!J41,NA())))) -> 0 | K31: 0 | L31: 0 | M31: 0 | N31: 0 | O31: 0 | P31: 0 | R31: 0 | S31: 0 | T31: 0 | U31: 0 | V31: 0 | W31: 0 | Y31: 0 | Z31: 0 | AA31: 0 | AB31: 0 | AC31: 0 | AD31: 0
B32: Khenifra (Mun.) | C32: =IF('Definition de scénario'!$G$3=$K$1,K32,IF('Definition de scénario'!$G$3=$R$1,R32,IF('Definition de scénario'!$G$3=$Y$1,Y32,IF('Definition de scénario'!$G$3=$J$1,'Definition de scénario'!E42,NA())))) -> 0 | D32: =IF('Definition de scénario'!$G$3=$K$1,L32,IF('Definition de scénario'!$G$3=$R$1,S32,IF('Definition de scénario'!$G$3=$Y$1,Z32,IF('Definition de scénario'!$G$3=$J$1,'Definition de scénario'!F42,NA())))) -> 0 | E32: =IF('Definition de scénario'!$G$3=$K$1,M32,IF('Definition de scénario'!$G$3=$R$1,T32,IF('Definition de scénario'!$G$3=$Y$1,AA32,IF('Definition de scénario'!$G$3=$J$1,'Definition de scénario'!G42,NA())))) -> 0 | F32: =IF('Definition de scénario'!$G$3=$K$1,N32,IF('Definition de scénario'!$G$3=$R$1,U32,IF('Definition de scénario'!$G$3=$Y$1,AB32,IF('Definition de scénario'!$G$3=$J$1,'Definition de scénario'!H42,NA())))) -> 0 | G32: =IF('Definition de scénario'!$G$3=$K$1,O32,IF('Definition de scénario'!$G$3=$R$1,V32,IF('Definition de scénario'!$G$3=$Y$1,AC32,IF('Definition de scénario'!$G$3=$J$1,'Definition de scénario'!I42,NA())))) -> 0 | H32: =IF('Definition de scénario'!$G$3=$K$1,P32,IF('Definition de scénario'!$G$3=$R$1,W32,IF('Definition de scénario'!$G$3=$Y$1,AD32,IF('Definition de scénario'!$G$3=$J$1,'Definition de scénario'!J42,NA())))) -> 0 | K32: 0 | L32: 0 | M32: 0 | N32: 0 | O32: 0 | P32: 0 | R32: 0 | S32: 0 | T32: 0 | U32: 0 | V32: 0 | W32: 0 | Y32: 0 | Z32: 0 | AA32: 0 | AB32: 0 | AC32: 0 | AD32: 0
B33: Settat (Mun.) | C33: =IF('Definition de scénario'!$G$3=$K$1,K33,IF('Definition de scénario'!$G$3=$R$1,R33,IF('Definition de scénario'!$G$3=$Y$1,Y33,IF('Definition de scénario'!$G$3=$J$1,'Definition de scénario'!E43,NA())))) -> 0 | D33: =IF('Definition de scénario'!$G$3=$K$1,L33,IF('Definition de scénario'!$G$3=$R$1,S33,IF('Definition de scénario'!$G$3=$Y$1,Z33,IF('Definition de scénario'!$G$3=$J$1,'Definition de scénario'!F43,NA())))) -> 0 | E33: =IF('Definition de scénario'!$G$3=$K$1,M33,IF('Definition de scénario'!$G$3=$R$1,T33,IF('Definition de scénario'!$G$3=$Y$1,AA33,IF('Definition de scénario'!$G$3=$J$1,'Definition de scénario'!G43,NA())))) -> 0 | F33: =IF('Definition de scénario'!$G$3=$K$1,N33,IF('Definition de scénario'!$G$3=$R$1,U33,IF('Definition de scénario'!$G$3=$Y$1,AB33,IF('Definition de scénario'!$G$3=$J$1,'Definition de scénario'!H43,NA())))) -> 0 | G33: =IF('Definition de scénario'!$G$3=$K$1,O33,IF('Definition de scénario'!$G$3=$R$1,V33,IF('Definition de scénario'!$G$3=$Y$1,AC33,IF('Definition de scénario'!$G$3=$J$1,'Definition de scénario'!I43,NA())))) -> 0 | H33: =IF('Definition de scénario'!$G$3=$K$1,P33,IF('Definition de scénario'!$G$3=$R$1,W33,IF('Definition de scénario'!$G$3=$Y$1,AD33,IF('Definition de scénario'!$G$3=$J$1,'Definition de scénario'!J43,NA())))) -> 0 | K33: 0 | L33: 0 | M33: 0 | N33: 0 | O33: 0 | P33: 0 | R33: 0 | S33: 0 | T33: 0 | U33: 0 | V33: 0 | W33: 0 | Y33: 7.8 | Z33: 7.8 | AA33: 7.8 | AB33: 7.8 | AC33: 7.8 | AD33: 7.8
B34: Fquih Ben Salah (Mun.) | C34: =IF('Definition de scénario'!$G$3=$K$1,K34,IF('Definition de scénario'!$G$3=$R$1,R34,IF('Definition de scénario'!$G$3=$Y$1,Y34,IF('Definition de scénario'!$G$3=$J$1,'Definition de scénario'!E44,NA())))) -> 0 | D34: =IF('Definition de scénario'!$G$3=$K$1,L34,IF('Definition de scénario'!$G$3=$R$1,S34,IF('Definition de scénario'!$G$3=$Y$1,Z34,IF('Definition de scénario'!$G$3=$J$1,'Definition de scénario'!F44,NA())))) -> 0 | E34: =IF('Definition de scénario'!$G$3=$K$1,M34,IF('Definition de scénario'!$G$3=$R$1,T34,IF('Definition de scénario'!$G$3=$Y$1,AA34,IF('Definition de scénario'!$G$3=$J$1,'Definition de scénario'!G44,NA())))) -> 0 | F34: =IF('Definition de scénario'!$G$3=$K$1,N34,IF('Definition de scénario'!$G$3=$R$1,U34,IF('Definition de scénario'!$G$3=$Y$1,AB34,IF('Definition de scénario'!$G$3=$J$1,'Definition de scénario'!H44,NA())))) -> 0 | G34: =IF('Definition de scénario'!$G$3=$K$1,O34,IF('Definition de scénario'!$G$3=$R$1,V34,IF('Definition de scénario'!$G$3=$Y$1,AC34,IF('Definition de scénario'!$G$3=$J$1,'Definition de scénario'!I44,NA())))) -> 0 | H34: =IF('Definition de scénario'!$G$3=$K$1,P34,IF('Definition de scénario'!$G$3=$R$1,W34,IF('Definition de scénario'!$G$3=$Y$1,AD34,IF('Definition de scénario'!$G$3=$J$1,'Definition de scénario'!J44,NA())))) -> 0 | K34: 0 | L34: 0 | M34: 0 | N34: 0 | O34: 0 | P34: 0 | R34: 0 | S34: 0 | T34: 0 | U34: 0 | V34: 0 | W34: 0 | Y34: 0 | Z34: 0 | AA34: 0 | AB34: 0 | AC34: 0 | AD34: 0
B35: Taza (Mun.) | C35: =IF('Definition de scénario'!$G$3=$K$1,K35,IF('Definition de scénario'!$G$3=$R$1,R35,IF('Definition de scénario'!$G$3=$Y$1,Y35,IF('Definition de scénario'!$G$3=$J$1,'Definition de scénario'!E45,NA())))) -> 0 | D35: =IF('Definition de scénario'!$G$3=$K$1,L35,IF('Definition de scénario'!$G$3=$R$1,S35,IF('Definition de scénario'!$G$3=$Y$1,Z35,IF('Definition de scénario'!$G$3=$J$1,'Definition de scénario'!F45,NA())))) -> 0 | E35: =IF('Definition de scénario'!$G$3=$K$1,M35,IF('Definition de scénario'!$G$3=$R$1,T35,IF('Definition de scénario'!$G$3=$Y$1,AA35,IF('Definition de scénario'!$G$3=$J$1,'Definition de scénario'!G45,NA())))) -> 0 | F35: =IF('Definition de scénario'!$G$3=$K$1,N35,IF('Definition de scénario'!$G$3=$R$1,U35,IF('Definition de scénario'!$G$3=$Y$1,AB35,IF('Definition de scénario'!$G$3=$J$1,'Definition de scénario'!H45,NA())))) -> 0 | G35: =IF('Definition de scénario'!$G$3=$K$1,O35,IF('Definition de scénario'!$G$3=$R$1,V35,IF('Definition de scénario'!$G$3=$Y$1,AC35,IF('Definition de scénario'!$G$3=$J$1,'Definition de scénario'!I45,NA())))) -> 0 | H35: =IF('Definition de scénario'!$G$3=$K$1,P35,IF('Definition de scénario'!$G$3=$R$1,W35,IF('Definition de scénario'!$G$3=$Y$1,AD35,IF('Definition de scénario'!$G$3=$J$1,'Definition de scénario'!J45,NA())))) -> 0 | K35: 0 | L35: 0 | M35: 0 | N35: 0 | O35: 0 | P35: 0 | R35: 0 | S35: 0 | T35: 0 | U35: 0 | V35: 0 | W35: 0 | Y35: 0 | Z35: 0 | AA35: 0 | AB35: 0 | AC35: 0 | AD35: 0
B36: Berkane | C36: =IF('Definition de scénario'!$G$3=$K$1,K36,IF('Definition de scénario'!$G$3=$R$1,R36,IF('Definition de scénario'!$G$3=$Y$1,Y36,IF('Definition de scénario'!$G$3=$J$1,'Definition de scénario'!E46,NA())))) -> 0 | D36: =IF('Definition de scénario'!$G$3=$K$1,L36,IF('Definition de scénario'!$G$3=$R$1,S36,IF('Definition de scénario'!$G$3=$Y$1,Z36,IF('Definition de scénario'!$G$3=$J$1,'Definition de scénario'!F46,NA())))) -> 0 | E36: =IF('Definition de scénario'!$G$3=$K$1,M36,IF('Definition de scénario'!$G$3=$R$1,T36,IF('Definition de scénario'!$G$3=$Y$1,AA36,IF('Definition de scénario'!$G$3=$J$1,'Definition de scénario'!G46,NA())))) -> 0 | F36: =IF('Definition de scénario'!$G$3=$K$1,N36,IF('Definition de scénario'!$G$3=$R$1,U36,IF('Definition de scénario'!$G$3=$Y$1,AB36,IF('Definition de scénario'!$G$3=$J$1,'Definition de scénario'!H46,NA())))) -> 0 | G36: =IF('Definition de scénario'!$G$3=$K$1,O36,IF('Definition de scénario'!$G$3=$R$1,V36,IF('Definition de scénario'!$G$3=$Y$1,AC36,IF('Definition de scénario'!$G$3=$J$1,'Definition de scénario'!I46,NA())))) -> 0 | H36: =IF('Definition de scénario'!$G$3=$K$1,P36,IF('Definition de scénario'!$G$3=$R$1,W36,IF('Definition de scénario'!$G$3=$Y$1,AD36,IF('Definition de scénario'!$G$3=$J$1,'Definition de scénario'!J46,NA())))) -> 0 | K36: 0 | L36: 0 | M36: 0 | N36: 0 | O36: 0 | P36: 0 | R36: 0 | S36: 0 | T36: 0 | U36: 0 | V36: 0 | W36: 0 | Y36: 0 | Z36: 0 | AA36: 0 | AB36: 0 | AC36: 0 | AD36: 0
B37: Errachidia | C37: =IF('Definition de scénario'!$G$3=$K$1,K37,IF('Definition de scénario'!$G$3=$R$1,R37,IF('Definition de scénario'!$G$3=$Y$1,Y37,IF('Definition de scénario'!$G$3=$J$1,'Definition de scénario'!E47,NA())))) -> 0 | D37: =IF('Definition de scénario'!$G$3=$K$1,L37,IF('Definition de scénario'!$G$3=$R$1,S37,IF('Definition de scénario'!$G$3=$Y$1,Z37,IF('Definition de scénario'!$G$3=$J$1,'Definition de scénario'!F47,NA())))) -> 0 | E37: =IF('Definition de scénario'!$G$3=$K$1,M37,IF('Definition de scénario'!$G$3=$R$1,T37,IF('Definition de scénario'!$G$3=$Y$1,AA37,IF('Definition de scénario'!$G$3=$J$1,'Definition de scénario'!G47,NA())))) -> 0 | F37: =IF('Definition de scénario'!$G$3=$K$1,N37,IF('Definition de scénario'!$G$3=$R$1,U37,IF('Definition de scénario'!$G$3=$Y$1,AB37,IF('Definition de scénario'!$G$3=$J$1,'Definition de scénario'!H47,NA())))) -> 0 | G37: =IF('Definition de scénario'!$G$3=$K$1,O37,IF('Definition de scénario'!$G$3=$R$1,V37,IF('Definition de scénario'!$G$3=$Y$1,AC37,IF('Definition de scénario'!$G$3=$J$1,'Definition de scénario'!I47,NA())))) -> 0 | H37: =IF('Definition de scénario'!$G$3=$K$1,P37,IF('Definition de scénario'!$G$3=$R$1,W37,IF('Definition de scénario'!$G$3=$Y$1,AD37,IF('Definition de scénario'!$G$3=$J$1,'Definition de scénario'!J47,NA())))) -> 0 | K37: 0 | L37: 0 | M37: 0 | N37: 0 | O37: 0 | P37: 0 | R37: 0 | S37: 0 | T37: 0 | U37: 0 | V37: 0 | W37: 0 | Y37: 0 | Z37: 0 | AA37: 0 | AB37: 0 | AC37: 0 | AD37: 0
A38: Tram | B38: Grand Casablanca | C38: =IF('Definition de scénario'!$G$3=$K$1,K38,IF('Definition de scénario'!$G$3=$R$1,R38,IF('Definition de scénario'!$G$3=$Y$1,Y38,IF('Definition de scénario'!$G$3=$J$1,'Definition de scénario'!E48,NA())))) -> 71 | D38: =IF('Definition de scénario'!$G$3=$K$1,L38,IF('Definition de scénario'!$G$3=$R$1,S38,IF('Definition de scénario'!$G$3=$Y$1,Z38,IF('Definition de scénario'!$G$3=$J$1,'Definition de scénario'!F48,NA())))) -> 71 | E38: =IF('Definition de scénario'!$G$3=$K$1,M38,IF('Definition de scénario'!$G$3=$R$1,T38,IF('Definition de scénario'!$G$3=$Y$1,AA38,IF('Definition de scénario'!$G$3=$J$1,'Definition de scénario'!G48,NA())))) -> 71 | F38: =IF('Definition de scénario'!$G$3=$K$1,N38,IF('Definition de scénario'!$G$3=$R$1,U38,IF('Definition de scénario'!$G$3=$Y$1,AB38,IF('Definition de scénario'!$G$3=$J$1,'Definition de scénario'!H48,NA())))) -> 71 | G38: =IF('Definition de scénario'!$G$3=$K$1,O38,IF('Definition de scénario'!$G$3=$R$1,V38,IF('Definition de scénario'!$G$3=$Y$1,AC38,IF('Definition de scénario'!$G$3=$J$1,'Definition de scénario'!I48,NA())))) -> 71 | H38: =IF('Definition de scénario'!$G$3=$K$1,P38,IF('Definition de scénario'!$G$3=$R$1,W38,IF('Definition de scénario'!$G$3=$Y$1,AD38,IF('Definition de scénario'!$G$3=$J$1,'Definition de scénario'!J48,NA())))) -> 71 | J38: Tram | K38: 71 | L38: 71 | M38: 71 | N38: 71 | O38: 71 | P38: 71 | R38: 71 | S38: 71 | T38: 71 | U38: 71 | V38: 71 | W38: 71 | Y38: 71 | Z38: 71 | AA38: 71 | AB38: 71 | AC38: 71 | AD38: 71
B39: Rabat-Salé-Skhirate-Temara | C39: =IF('Definition de scénario'!$G$3=$K$1,K39,IF('Definition de scénario'!$G$3=$R$1,R39,IF('Definition de scénario'!$G$3=$Y$1,Y39,IF('Definition de scénario'!$G$3=$J$1,'Definition de scénario'!E49,NA())))) -> 26.6 | D39: =IF('Definition de scénario'!$G$3=$K$1,L39,IF('Definition de scénario'!$G$3=$R$1,S39,IF('Definition de scénario'!$G$3=$Y$1,Z39,IF('Definition de scénario'!$G$3=$J$1,'Definition de scénario'!F49,NA())))) -> 60 | E39: =IF('Definition de scénario'!$G$3=$K$1,M39,IF('Definition de scénario'!$G$3=$R$1,T39,IF('Definition de scénario'!$G$3=$Y$1,AA39,IF('Definition de scénario'!$G$3=$J$1,'Definition de scénario'!G49,NA())))) -> 60 | F39: =IF('Definition de scénario'!$G$3=$K$1,N39,IF('Definition de scénario'!$G$3=$R$1,U39,IF('Definition de scénario'!$G$3=$Y$1,AB39,IF('Definition de scénario'!$G$3=$J$1,'Definition de scénario'!H49,NA())))) -> 91 | G39: =IF('Definition de scénario'!$G$3=$K$1,O39,IF('Definition de scénario'!$G$3=$R$1,V39,IF('Definition de scénario'!$G$3=$Y$1,AC39,IF('Definition de scénario'!$G$3=$J$1,'Definition de scénario'!I49,NA())))) -> 91 | H39: =IF('Definition de scénario'!$G$3=$K$1,P39,IF('Definition de scénario'!$G$3=$R$1,W39,IF('Definition de scénario'!$G$3=$Y$1,AD39,IF('Definition de scénario'!$G$3=$J$1,'Definition de scénario'!J49,NA())))) -> 91 | K39: 26.6 | L39: 26.6 | M39: 26.6 | N39: 26.6 | O39: 26.6 | P39: 26.6 | R39: 26.6 | S39: 60 | T39: 60 | U39: 91 | V39: 91 | W39: 91 | Y39: 26.6 | Z39: 71.6 | AA39: 86.2 | AB39: 100 | AC39: 110 | AD39: 120
B40: Fès | C40: =IF('Definition de scénario'!$G$3=$K$1,K40,IF('Definition de scénario'!$G$3=$R$1,R40,IF('Definition de scénario'!$G$3=$Y$1,Y40,IF('Definition de scénario'!$G$3=$J$1,'Definition de scénario'!E50,NA())))) -> 0 | D40: =IF('Definition de scénario'!$G$3=$K$1,L40,IF('Definition de scénario'!$G$3=$R$1,S40,IF('Definition de scénario'!$G$3=$Y$1,Z40,IF('Definition de scénario'!$G$3=$J$1,'Definition de scénario'!F50,NA())))) -> 0 | E40: =IF('Definition de scénario'!$G$3=$K$1,M40,IF('Definition de scénario'!$G$3=$R$1,T40,IF('Definition de scénario'!$G$3=$Y$1,AA40,IF('Definition de scénario'!$G$3=$J$1,'Definition de scénario'!G50,NA())))) -> 0 | F40: =IF('Definition de scénario'!$G$3=$K$1,N40,IF('Definition de scénario'!$G$3=$R$1,U40,IF('Definition de scénario'!$G$3=$Y$1,AB40,IF('Definition de scénario'!$G$3=$J$1,'Definition de scénario'!H50,NA())))) -> 0 | G40: =IF('Definition de scénario'!$G$3=$K$1,O40,IF('Definition de scénario'!$G$3=$R$1,V40,IF('Definition de scénario'!$G$3=$Y$1,AC40,IF('Definition de scénario'!$G$3=$J$1,'Definition de scénario'!I50,NA())))) -> 0 | H40: =IF('Definition de scénario'!$G$3=$K$1,P40,IF('Definition de scénario'!$G$3=$R$1,W40,IF('Definition de scénario'!$G$3=$Y$1,AD40,IF('Definition de scénario'!$G$3=$J$1,'Definition de scénario'!J50,NA())))) -> 0 | K40: 0 | L40: 0 | M40: 0 | N40: 0 | O40: 0 | P40: 0 | R40: 0 | S40: 0 | T40: 0 | U40: 0 | V40: 0 | W40: 0 | Y40: 16.9 | Z40: 16.9 | AA40: 26.3 | AB40: 26.3 | AC40: 26.3 | AD40: 26.3
B41: Agadir-Ida-Ou-Tanane-Inezgane- Ait Melloul | C41: =IF('Definition de scénario'!$G$3=$K$1,K41,IF('Definition de scénario'!$G$3=$R$1,R41,IF('Definition de scénario'!$G$3=$Y$1,Y41,IF('Definition de scénario'!$G$3=$J$1,'Definition de scénario'!E51,NA())))) -> 0 | D41: =IF('Definition de scénario'!$G$3=$K$1,L41,IF('Definition de scénario'!$G$3=$R$1,S41,IF('Definition de scénario'!$G$3=$Y$1,Z41,IF('Definition de scénario'!$G$3=$J$1,'Definition de scénario'!F51,NA())))) -> 0 | E41: =IF('Definition de scénario'!$G$3=$K$1,M41,IF('Definition de scénario'!$G$3=$R$1,T41,IF('Definition de scénario'!$G$3=$Y$1,AA41,IF('Definition de scénario'!$G$3=$J$1,'Definition de scénario'!G51,NA())))) -> 0 | F41: =IF('Definition de scénario'!$G$3=$K$1,N41,IF('Definition de scénario'!$G$3=$R$1,U41,IF('Definition de scénario'!$G$3=$Y$1,AB41,IF('Definition de scénario'!$G$3=$J$1,'Definition de scénario'!H51,NA())))) -> 0 | G41: =IF('Definition de scénario'!$G$3=$K$1,O41,IF('Definition de scénario'!$G$3=$R$1,V41,IF('Definition de scénario'!$G$3=$Y$1,AC41,IF('Definition de scénario'!$G$3=$J$1,'Definition de scénario'!I51,NA())))) -> 0 | H41: =IF('Definition de scénario'!$G$3=$K$1,P41,IF('Definition de scénario'!$G$3=$R$1,W41,IF('Definition de scénario'!$G$3=$Y$1,AD41,IF('Definition de scénario'!$G$3=$J$1,'Definition de scénario'!J51,NA())))) -> 0 | K41: 0 | L41: 0 | M41: 0 | N41: 0 | O41: 0 | P41: 0 | R41: 0 | S41: 0 | T41: 0 | U41: 0 | V41: 0 | W41: 0 | Y41: 0 | Z41: 0 | AA41: 0 | AB41: 0 | AC41: 0 | AD41: 0
B42: Tanger-Assilah | C42: =IF('Definition de scénario'!$G$3=$K$1,K42,IF('Definition de scénario'!$G$3=$R$1,R42,IF('Definition de scénario'!$G$3=$Y$1,Y42,IF('Definition de scénario'!$G$3=$J$1,'Definition de scénario'!E52,NA())))) -> 0 | D42: =IF('Definition de scénario'!$G$3=$K$1,L42,IF('Definition de scénario'!$G$3=$R$1,S42,IF('Definition de scénario'!$G$3=$Y$1,Z42,IF('Definition de scénario'!$G$3=$J$1,'Definition de scénario'!F52,NA())))) -> 0 | E42: =IF('Definition de scénario'!$G$3=$K$1,M42,IF('Definition de scénario'!$G$3=$R$1,T42,IF('Definition de scénario'!$G$3=$Y$1,AA42,IF('Definition de scénario'!$G$3=$J$1,'Definition de scénario'!G52,NA())))) -> 0 | F42: =IF('Definition de scénario'!$G$3=$K$1,N42,IF('Definition de scénario'!$G$3=$R$1,U42,IF('Definition de scénario'!$G$3=$Y$1,AB42,IF('Definition de scénario'!$G$3=$J$1,'Definition de scénario'!H52,NA())))) -> 0 | G42: =IF('Definition de scénario'!$G$3=$K$1,O42,IF('Definition de scénario'!$G$3=$R$1,V42,IF('Definition de scénario'!$G$3=$Y$1,AC42,IF('Definition de scénario'!$G$3=$J$1,'Definition de scénario'!I52,NA())))) -> 0 | H42: =IF('Definition de scénario'!$G$3=$K$1,P42,IF('Definition de scénario'!$G$3=$R$1,W42,IF('Definition de scénario'!$G$3=$Y$1,AD42,IF('Definition de scénario'!$G$3=$J$1,'Definition de scénario'!J52,NA())))) -> 0 | K42: 0 | L42: 0 | M42: 0 | N42: 0 | O42: 0 | P42: 0 | R42: 0 | S42: 0 | T42: 0 | U42: 0 | V42: 0 | W42: 0 | Y42: 0 | Z42: 11 | AA42: 11 | AB42: 11 | AC42: 11 | AD42: 11
B43: Marrakech | C43: =IF('Definition de scénario'!$G$3=$K$1,K43,IF('Definition de scénario'!$G$3=$R$1,R43,IF('Definition de scénario'!$G$3=$Y$1,Y43,IF('Definition de scénario'!$G$3=$J$1,'Definition de scénario'!E53,NA())))) -> 0 | D43: =IF('Definition de scénario'!$G$3=$K$1,L43,IF('Definition de scénario'!$G$3=$R$1,S43,IF('Definition de scénario'!$G$3=$Y$1,Z43,IF('Definition de scénario'!$G$3=$J$1,'Definition de scénario'!F53,NA())))) -> 0 | E43: =IF('Definition de scénario'!$G$3=$K$1,M43,IF('Definition de scénario'!$G$3=$R$1,T43,IF('Definition de scénario'!$G$3=$Y$1,AA43,IF('Definition de scénario'!$G$3=$J$1,'Definition de scénario'!G53,NA())))) -> 0 | F43: =IF('Definition de scénario'!$G$3=$K$1,N43,IF('Definition de scénario'!$G$3=$R$1,U43,IF('Definition de scénario'!$G$3=$Y$1,AB43,IF('Definition de scénario'!$G$3=$J$1,'Definition de scénario'!H53,NA())))) -> 0 | G43: =IF('Definition de scénario'!$G$3=$K$1,O43,IF('Definition de scénario'!$G$3=$R$1,V43,IF('Definition de scénario'!$G$3=$Y$1,AC43,IF('Definition de scénario'!$G$3=$J$1,'Definition de scénario'!I53,NA())))) -> 0 | H43: =IF('Definition de scénario'!$G$3=$K$1,P43,IF('Definition de scénario'!$G$3=$R$1,W43,IF('Definition de scénario'!$G$3=$Y$1,AD43,IF('Definition de scénario'!$G$3=$J$1,'Definition de scénario'!J53,NA())))) -> 0 | K43: 0 | L43: 0 | M43: 0 | N43: 0 | O43: 0 | P43: 0 | R43: 0 | S43: 0 | T43: 0 | U43: 0 | V43: 0 | W43: 0 | Y43: 0 | Z43: 0 | AA43: 0 | AB43: 0 | AC43: 0 | AD43: 0
B44: Meknès (Mun.) | C44: =IF('Definition de scénario'!$G$3=$K$1,K44,IF('Definition de scénario'!$G$3=$R$1,R44,IF('Definition de scénario'!$G$3=$Y$1,Y44,IF('Definition de scénario'!$G$3=$J$1,'Definition de scénario'!E54,NA())))) -> 0 | D44: =IF('Definition de scénario'!$G$3=$K$1,L44,IF('Definition de scénario'!$G$3=$R$1,S44,IF('Definition de scénario'!$G$3=$Y$1,Z44,IF('Definition de scénario'!$G$3=$J$1,'Definition de scénario'!F54,NA())))) -> 0 | E44: =IF('Definition de scénario'!$G$3=$K$1,M44,IF('Definition de scénario'!$G$3=$R$1,T44,IF('Definition de scénario'!$G$3=$Y$1,AA44,IF('Definition de scénario'!$G$3=$J$1,'Definition de scénario'!G54,NA())))) -> 0 | F44: =IF('Definition de scénario'!$G$3=$K$1,N44,IF('Definition de scénario'!$G$3=$R$1,U44,IF('Definition de scénario'!$G$3=$Y$1,AB44,IF('Definition de scénario'!$G$3=$J$1,'Definition de scénario'!H54,NA())))) -> 0 | G44: =IF('Definition de scénario'!$G$3=$K$1,O44,IF('Definition de scénario'!$G$3=$R$1,V44,IF('Definition de scénario'!$G$3=$Y$1,AC44,IF('Definition de scénario'!$G$3=$J$1,'Definition de scénario'!I54,NA())))) -> 0 | H44: =IF('Definition de scénario'!$G$3=$K$1,P44,IF('Definition de scénario'!$G$3=$R$1,W44,IF('Definition de scénario'!$G$3=$Y$1,AD44,IF('Definition de scénario'!$G$3=$J$1,'Definition de scénario'!J54,NA())))) -> 0 | K44: 0 | L44: 0 | M44: 0 | N44: 0 | O44: 0 | P44: 0 | R44: 0 | S44: 0 | T44: 0 | U44: 0 | V44: 0 | W44: 0 | Y44: 0 | Z44: 0 | AA44: 0 | AB44: 0 | AC44: 0 | AD44: 0
B45: Kenitra | C45: =IF('Definition de scénario'!$G$3=$K$1,K45,IF('Definition de scénario'!$G$3=$R$1,R45,IF('Definition de scénario'!$G$3=$Y$1,Y45,IF('Definition de scénario'!$G$3=$J$1,'Definition de scénario'!E55,NA())))) -> 0 | D45: =IF('Definition de scénario'!$G$3=$K$1,L45,IF('Definition de scénario'!$G$3=$R$1,S45,IF('Definition de scénario'!$G$3=$Y$1,Z45,IF('Definition de scénario'!$G$3=$J$1,'Definition de scénario'!F55,NA())))) -> 0 | E45: =IF('Definition de scénario'!$G$3=$K$1,M45,IF('Definition de scénario'!$G$3=$R$1,T45,IF('Definition de scénario'!$G$3=$Y$1,AA45,IF('Definition de scénario'!$G$3=$J$1,'Definition de scénario'!G55,NA())))) -> 0 | F45: =IF('Definition de scénario'!$G$3=$K$1,N45,IF('Definition de scénario'!$G$3=$R$1,U45,IF('Definition de scénario'!$G$3=$Y$1,AB45,IF('Definition de scénario'!$G$3=$J$1,'Definition de scénario'!H55,NA())))) -> 0 | G45: =IF('Definition de scénario'!$G$3=$K$1,O45,IF('Definition de scénario'!$G$3=$R$1,V45,IF('Definition de scénario'!$G$3=$Y$1,AC45,IF('Definition de scénario'!$G$3=$J$1,'Definition de scénario'!I55,NA())))) -> 0 | H45: =IF('Definition de scénario'!$G$3=$K$1,P45,IF('Definition de scénario'!$G$3=$R$1,W45,IF('Definition de scénario'!$G$3=$Y$1,AD45,IF('Definition de scénario'!$G$3=$J$1,'Definition de scénario'!J55,NA())))) -> 0 | K45: 0 | L45: 0 | M45: 0 | N45: 0 | O45: 0 | P45: 0 | R45: 0 | S45: 0 | T45: 0 | U45: 0 | V45: 0 | W45: 0 | Y45: 0 | Z45: 0 | AA45: 0 | AB45: 0 | AC45: 0 | AD45: 0
B46: Oujda-Angad (Mun.) | C46: =IF('Definition de scénario'!$G$3=$K$1,K46,IF('Definition de scénario'!$G$3=$R$1,R46,IF('Definition de scénario'!$G$3=$Y$1,Y46,IF('Definition de scénario'!$G$3=$J$1,'Definition de scénario'!E56,NA())))) -> 0 | D46: =IF('Definition de scénario'!$G$3=$K$1,L46,IF('Definition de scénario'!$G$3=$R$1,S46,IF('Definition de scénario'!$G$3=$Y$1,Z46,IF('Definition de scénario'!$G$3=$J$1,'Definition de scénario'!F56,NA())))) -> 0 | E46: =IF('Definition de scénario'!$G$3=$K$1,M46,IF('Definition de scénario'!$G$3=$R$1,T46,IF('Definition de scénario'!$G$3=$Y$1,AA46,IF('Definition de scénario'!$G$3=$J$1,'Definition de scénario'!G56,NA())))) -> 0 | F46: =IF('Definition de scénario'!$G$3=$K$1,N46,IF('Definition de scénario'!$G$3=$R$1,U46,IF('Definition de scénario'!$G$3=$Y$1,AB46,IF('Definition de scénario'!$G$3=$J$1,'Definition de scénario'!H56,NA())))) -> 0 | G46: =IF('Definition de scénario'!$G$3=$K$1,O46,IF('Definition de scénario'!$G$3=$R$1,V46,IF('Definition de scénario'!$G$3=$Y$1,AC46,IF('Definition de scénario'!$G$3=$J$1,'Definition de scénario'!I56,NA())))) -> 0 | H46: =IF('Definition de scénario'!$G$3=$K$1,P46,IF('Definition de scénario'!$G$3=$R$1,W46,IF('Definition de scénario'!$G$3=$Y$1,AD46,IF('Definition de scénario'!$G$3=$J$1,'Definition de scénario'!J56,NA())))) -> 0 | K46: 0 | L46: 0 | M46: 0 | N46: 0 | O46: 0 | P46: 0 | R46: 0 | S46: 0 | T46: 0 | U46: 0 | V46: 0 | W46: 0 | Y46: 29 | Z46: 29 | AA46: 29 | AB46: 29 | AC46: 29 | AD46: 29
B47: Nador (Mun.) | C47: =IF('Definition de scénario'!$G$3=$K$1,K47,IF('Definition de scénario'!$G$3=$R$1,R47,IF('Definition de scénario'!$G$3=$Y$1,Y47,IF('Definition de scénario'!$G$3=$J$1,'Definition de scénario'!E57,NA())))) -> 0 | D47: =IF('Definition de scénario'!$G$3=$K$1,L47,IF('Definition de scénario'!$G$3=$R$1,S47,IF('Definition de scénario'!$G$3=$Y$1,Z47,IF('Definition de scénario'!$G$3=$J$1,'Definition de scénario'!F57,NA())))) -> 0 | E47: =IF('Definition de scénario'!$G$3=$K$1,M47,IF('Definition de scénario'!$G$3=$R$1,T47,IF('Definition de scénario'!$G$3=$Y$1,AA47,IF('Definition de scénario'!$G$3=$J$1,'Definition de scénario'!G57,NA())))) -> 0 | F47: =IF('Definition de scénario'!$G$3=$K$1,N47,IF('Definition de scénario'!$G$3=$R$1,U47,IF('Definition de scénario'!$G$3=$Y$1,AB47,IF('Definition de scénario'!$G$3=$J$1,'Definition de scénario'!H57,NA())))) -> 0 | G47: =IF('Definition de scénario'!$G$3=$K$1,O47,IF('Definition de scénario'!$G$3=$R$1,V47,IF('Definition de scénario'!$G$3=$Y$1,AC47,IF('Definition de scénario'!$G$3=$J$1,'Definition de scénario'!I57,NA())))) -> 0 | H47: =IF('Definition de scénario'!$G$3=$K$1,P47,IF('Definition de scénario'!$G$3=$R$1,W47,IF('Definition de scénario'!$G$3=$Y$1,AD47,IF('Definition de scénario'!$G$3=$J$1,'Definition de scénario'!J57,NA())))) -> 0 | K47: 0 | L47: 0 | M47: 0 | N47: 0 | O47: 0 | P47: 0 | R47: 0 | S47: 0 | T47: 0 | U47: 0 | V47: 0 | W47: 0 | Y47: 0 | Z47: 0 | AA47: 0 | AB47: 0 | AC47: 0 | AD47: 0
B48: Tétouan (Mun.) | C48: =IF('Definition de scénario'!$G$3=$K$1,K48,IF('Definition de scénario'!$G$3=$R$1,R48,IF('Definition de scénario'!$G$3=$Y$1,Y48,IF('Definition de scénario'!$G$3=$J$1,'Definition de scénario'!E58,NA())))) -> 0 | D48: =IF('Definition de scénario'!$G$3=$K$1,L48,IF('Definition de scénario'!$G$3=$R$1,S48,IF('Definition de scénario'!$G$3=$Y$1,Z48,IF('Definition de scénario'!$G$3=$J$1,'Definition de scénario'!F58,NA())))) -> 0 | E48: =IF('Definition de scénario'!$G$3=$K$1,M48,IF('Definition de scénario'!$G$3=$R$1,T48,IF('Definition de scénario'!$G$3=$Y$1,AA48,IF('Definition de scénario'!$G$3=$J$1,'Definition de scénario'!G58,NA())))) -> 0 | F48: =IF('Definition de scénario'!$G$3=$K$1,N48,IF('Definition de scénario'!$G$3=$R$1,U48,IF('Definition de scénario'!$G$3=$Y$1,AB48,IF('Definition de scénario'!$G$3=$J$1,'Definition de scénario'!H58,NA())))) -> 0 | G48: =IF('Definition de scénario'!$G$3=$K$1,O48,IF('Definition de scénario'!$G$3=$R$1,V48,IF('Definition de scénario'!$G$3=$Y$1,AC48,IF('Definition de scénario'!$G$3=$J$1,'Definition de scénario'!I58,NA())))) -> 0 | H48: =IF('Definition de scénario'!$G$3=$K$1,P48,IF('Definition de scénario'!$G$3=$R$1,W48,IF('Definition de scénario'!$G$3=$Y$1,AD48,IF('Definition de scénario'!$G$3=$J$1,'Definition de scénario'!J58,NA())))) -> 0 | K48: 0 | L48: 0 | M48: 0 | N48: 0 | O48: 0 | P48: 0 | R48: 0 | S48: 0 | T48: 0 | U48: 0 | V48: 0 | W48: 0 | Y48: 0 | Z48: 0 | AA48: 0 | AB48: 0 | AC48: 0 | AD48: 0
B49: Khouribga (Mun.) | C49: =IF('Definition de scénario'!$G$3=$K$1,K49,IF('Definition de scénario'!$G$3=$R$1,R49,IF('Definition de scénario'!$G$3=$Y$1,Y49,IF('Definition de scénario'!$G$3=$J$1,'Definition de scénario'!E59,NA())))) -> 0 | D49: =IF('Definition de scénario'!$G$3=$K$1,L49,IF('Definition de scénario'!$G$3=$R$1,S49,IF('Definition de scénario'!$G$3=$Y$1,Z49,IF('Definition de scénario'!$G$3=$J$1,'Definition de scénario'!F59,NA())))) -> 0 | E49: =IF('Definition de scénario'!$G$3=$K$1,M49,IF('Definition de scénario'!$G$3=$R$1,T49,IF('Definition de scénario'!$G$3=$Y$1,AA49,IF('Definition de scénario'!$G$3=$J$1,'Definition de scénario'!G59,NA())))) -> 0 | F49: =IF('Definition de scénario'!$G$3=$K$1,N49,IF('Definition de scénario'!$G$3=$R$1,U49,IF('Definition de scénario'!$G$3=$Y$1,AB49,IF('Definition de scénario'!$G$3=$J$1,'Definition de scénario'!H59,NA())))) -> 0 | G49: =IF('Definition de scénario'!$G$3=$K$1,O49,IF('Definition de scénario'!$G$3=$R$1,V49,IF('Definition de scénario'!$G$3=$Y$1,AC49,IF('Definition de scénario'!$G$3=$J$1,'Definition de scénario'!I59,NA())))) -> 0 | H49: =IF('Definition de scénario'!$G$3=$K$1,P49,IF('Definition de scénario'!$G$3=$R$1,W49,IF('Definition de scénario'!$G$3=$Y$1,AD49,IF('Definition de scénario'!$G$3=$J$1,'Definition de scénario'!J59,NA())))) -> 0 | K49: 0 | L49: 0 | M49: 0 | N49: 0 | O49: 0 | P49: 0 | R49: 0 | S49: 0 | T49: 0 | U49: 0 | V49: 0 | W49: 0 | Y49: 0 | Z49: 0 | AA49: 0 | AB49: 0 | AC49: 0 | AD49: 0
B50: El Jadida (Mun.) | C50: =IF('Definition de scénario'!$G$3=$K$1,K50,IF('Definition de scénario'!$G$3=$R$1,R50,IF('Definition de scénario'!$G$3=$Y$1,Y50,IF('Definition de scénario'!$G$3=$J$1,'Definition de scénario'!E60,NA())))) -> 0 | D50: =IF('Definition de scénario'!$G$3=$K$1,L50,IF('Definition de scénario'!$G$3=$R$1,S50,IF('Definition de scénario'!$G$3=$Y$1,Z50,IF('Definition de scénario'!$G$3=$J$1,'Definition de scénario'!F60,NA())))) -> 0 | E50: =IF('Definition de scénario'!$G$3=$K$1,M50,IF('Definition de scénario'!$G$3=$R$1,T50,IF('Definition de scénario'!$G$3=$Y$1,AA50,IF('Definition de scénario'!$G$3=$J$1,'Definition de scénario'!G60,NA())))) -> 0 | F50: =IF('Definition de scénario'!$G$3=$K$1,N50,IF('Definition de scénario'!$G$3=$R$1,U50,IF('Definition de scénario'!$G$3=$Y$1,AB50,IF('Definition de scénario'!$G$3=$J$1,'Definition de scénario'!H60,NA())))) -> 0 | G50: =IF('Definition de scénario'!$G$3=$K$1,O50,IF('Definition de scénario'!$G$3=$R$1,V50,IF('Definition de scénario'!$G$3=$Y$1,AC50,IF('Definition de scénario'!$G$3=$J$1,'Definition de scénario'!I60,NA())))) -> 0 | H50: =IF('Definition de scénario'!$G$3=$K$1,P50,IF('Definition de scénario'!$G$3=$R$1,W50,IF('Definition de scénario'!$G$3=$Y$1,AD50,IF('Definition de scénario'!$G$3=$J$1,'Definition de scénario'!J60,NA())))) -> 0 | K50: 0 | L50: 0 | M50: 0 | N50: 0 | O50: 0 | P50: 0 | R50: 0 | S50: 0 | T50: 0 | U50: 0 | V50: 0 | W50: 0 | Y50: 0 | Z50: 0 | AA50: 0 | AB50: 0 | AC50: 0 | AD50: 0
B51: Berrechid (Mun.) | C51: =IF('Definition de scénario'!$G$3=$K$1,K51,IF('Definition de scénario'!$G$3=$R$1,R51,IF('Definition de scénario'!$G$3=$Y$1,Y51,IF('Definition de scénario'!$G$3=$J$1,'Definition de scénario'!E61,NA())))) -> 0 | D51: =IF('Definition de scénario'!$G$3=$K$1,L51,IF('Definition de scénario'!$G$3=$R$1,S51,IF('Definition de scénario'!$G$3=$Y$1,Z51,IF('Definition de scénario'!$G$3=$J$1,'Definition de scénario'!F61,NA())))) -> 0 | E51: =IF('Definition de scénario'!$G$3=$K$1,M51,IF('Definition de scénario'!$G$3=$R$1,T51,IF('Definition de scénario'!$G$3=$Y$1,AA51,IF('Definition de scénario'!$G$3=$J$1,'Definition de scénario'!G61,NA())))) -> 0 | F51: =IF('Definition de scénario'!$G$3=$K$1,N51,IF('Definition de scénario'!$G$3=$R$1,U51,IF('Definition de scénario'!$G$3=$Y$1,AB51,IF('Definition de scénario'!$G$3=$J$1,'Definition de scénario'!H61,NA())))) -> 0 | G51: =IF('Definition de scénario'!$G$3=$K$1,O51,IF('Definition de scénario'!$G$3=$R$1,V51,IF('Definition de scénario'!$G$3=$Y$1,AC51,IF('Definition de scénario'!$G$3=$J$1,'Definition de scénario'!I61,NA())))) -> 0 | H51: =IF('Definition de scénario'!$G$3=$K$1,P51,IF('Definition de scénario'!$G$3=$R$1,W51,IF('Definition de scénario'!$G$3=$Y$1,AD51,IF('Definition de scénario'!$G$3=$J$1,'Definition de scénario'!J61,NA())))) -> 0 | K51: 0 | L51: 0 | M51: 0 | N51: 0 | O51: 0 | P51: 0 | R51: 0 | S51: 0 | T51: 0 | U51: 0 | V51: 0 | W51: 0 | Y51: 0 | Z51: 0 | AA51: 0 | AB51: 0 | AC51: 0 | AD51: 0
B52: Safi (Mun.) | C52: =IF('Definition de scénario'!$G$3=$K$1,K52,IF('Definition de scénario'!$G$3=$R$1,R52,IF('Definition de scénario'!$G$3=$Y$1,Y52,IF('Definition de scénario'!$G$3=$J$1,'Definition de scénario'!E62,NA())))) -> 0 | D52: =IF('Definition de scénario'!$G$3=$K$1,L52,IF('Definition de scénario'!$G$3=$R$1,S52,IF('Definition de scénario'!$G$3=$Y$1,Z52,IF('Definition de scénario'!$G$3=$J$1,'Definition de scénario'!F62,NA())))) -> 0 | E52: =IF('Definition de scénario'!$G$3=$K$1,M52,IF('Definition de scénario'!$G$3=$R$1,T52,IF('Definition de scénario'!$G$3=$Y$1,AA52,IF('Definition de scénario'!$G$3=$J$1,'Definition de scénario'!G62,NA())))) -> 0 | F52: =IF('Definition de scénario'!$G$3=$K$1,N52,IF('Definition de scénario'!$G$3=$R$1,U52,IF('Definition de scénario'!$G$3=$Y$1,AB52,IF('Definition de scénario'!$G$3=$J$1,'Definition de scénario'!H62,NA())))) -> 0 | G52: =IF('Definition de scénario'!$G$3=$K$1,O52,IF('Definition de scénario'!$G$3=$R$1,V52,IF('Definition de scénario'!$G$3=$Y$1,AC52,IF('Definition de scénario'!$G$3=$J$1,'Definition de scénario'!I62,NA())))) -> 0 | H52: =IF('Definition de scénario'!$G$3=$K$1,P52,IF('Definition de scénario'!$G$3=$R$1,W52,IF('Definition de scénario'!$G$3=$Y$1,AD52,IF('Definition de scénario'!$G$3=$J$1,'Definition de scénario'!J62,NA())))) -> 0 | K52: 0 | L52: 0 | M52: 0 | N52: 0 | O52: 0 | P52: 0 | R52: 0 | S52: 0 | T52: 0 | U52: 0 | V52: 0 | W52: 0 | Y52: 0 | Z52: 0 | AA52: 0 | AB52: 0 | AC52: 0 | AD52: 0
B53: Béni Mellal (Mun.) | C53: =IF('Definition de scénario'!$G$3=$K$1,K53,IF('Definition de scénario'!$G$3=$R$1,R53,IF('Definition de scénario'!$G$3=$Y$1,Y53,IF('Definition de scénario'!$G$3=$J$1,'Definition de scénario'!E63,NA())))) -> 0 | D53: =IF('Definition de scénario'!$G$3=$K$1,L53,IF('Definition de scénario'!$G$3=$R$1,S53,IF('Definition de scénario'!$G$3=$Y$1,Z53,IF('Definition de scénario'!$G$3=$J$1,'Definition de scénario'!F63,NA())))) -> 0 | E53: =IF('Definition de scénario'!$G$3=$K$1,M53,IF('Definition de scénario'!$G$3=$R$1,T53,IF('Definition de scénario'!$G$3=$Y$1,AA53,IF('Definition de scénario'!$G$3=$J$1,'Definition de scénario'!G63,NA())))) -> 0 | F53: =IF('Definition de scénario'!$G$3=$K$1,N53,IF('Definition de scénario'!$G$3=$R$1,U53,IF('Definition de scénario'!$G$3=$Y$1,AB53,IF('Definition de scénario'!$G$3=$J$1,'Definition de scénario'!H63,NA())))) -> 0 | G53: =IF('Definition de scénario'!$G$3=$K$1,O53,IF('Definition de scénario'!$G$3=$R$1,V53,IF('Definition de scénario'!$G$3=$Y$1,AC53,IF('Definition de scénario'!$G$3=$J$1,'Definition de scénario'!I63,NA())))) -> 0 | H53: =IF('Definition de scénario'!$G$3=$K$1,P53,IF('Definition de scénario'!$G$3=$R$1,W53,IF('Definition de scénario'!$G$3=$Y$1,AD53,IF('Definition de scénario'!$G$3=$J$1,'Definition de scénario'!J63,NA())))) -> 0 | K53: 0 | L53: 0 | M53: 0 | N53: 0 | O53: 0 | P53: 0 | R53: 0 | S53: 0 | T53: 0 | U53: 0 | V53: 0 | W53: 0 | Y53: 0 | Z53: 0 | AA53: 0 | AB53: 0 | AC53: 0 | AD53: 0
B54: Khémisset (Mun.) | C54: =IF('Definition de scénario'!$G$3=$K$1,K54,IF('Definition de scénario'!$G$3=$R$1,R54,IF('Definition de scénario'!$G$3=$Y$1,Y54,IF('Definition de scénario'!$G$3=$J$1,'Definition de scénario'!E64,NA())))) -> 0 | D54: =IF('Definition de scénario'!$G$3=$K$1,L54,IF('Definition de scénario'!$G$3=$R$1,S54,IF('Definition de scénario'!$G$3=$Y$1,Z54,IF('Definition de scénario'!$G$3=$J$1,'Definition de scénario'!F64,NA())))) -> 0 | E54: =IF('Definition de scénario'!$G$3=$K$1,M54,IF('Definition de scénario'!$G$3=$R$1,T54,IF('Definition de scénario'!$G$3=$Y$1,AA54,IF('Definition de scénario'!$G$3=$J$1,'Definition de scénario'!G64,NA())))) -> 0 | F54: =IF('Definition de scénario'!$G$3=$K$1,N54,IF('Definition de scénario'!$G$3=$R$1,U54,IF('Definition de scénario'!$G$3=$Y$1,AB54,IF('Definition de scénario'!$G$3=$J$1,'Definition de scénario'!H64,NA())))) -> 0 | G54: =IF('Definition de scénario'!$G$3=$K$1,O54,IF('Definition de scénario'!$G$3=$R$1,V54,IF('Definition de scénario'!$G$3=$Y$1,AC54,IF('Definition de scénario'!$G$3=$J$1,'Definition de scénario'!I64,NA())))) -> 0 | H54: =IF('Definition de scénario'!$G$3=$K$1,P54,IF('Definition de scénario'!$G$3=$R$1,W54,IF('Definition de scénario'!$G$3=$Y$1,AD54,IF('Definition de scénario'!$G$3=$J$1,'Definition de scénario'!J64,NA())))) -> 0 | K54: 0 | L54: 0 | M54: 0 | N54: 0 | O54: 0 | P54: 0 | R54: 0 | S54: 0 | T54: 0 | U54: 0 | V54: 0 | W54: 0 | Y54: 0 | Z54: 0 | AA54: 0 | AB54: 0 | AC54: 0 | AD54: 0
B55: Larache (Mun.) | C55: =IF('Definition de scénario'!$G$3=$K$1,K55,IF('Definition de scénario'!$G$3=$R$1,R55,IF('Definition de scénario'!$G$3=$Y$1,Y55,IF('Definition de scénario'!$G$3=$J$1,'Definition de scénario'!E65,NA())))) -> 0 | D55: =IF('Definition de scénario'!$G$3=$K$1,L55,IF('Definition de scénario'!$G$3=$R$1,S55,IF('Definition de scénario'!$G$3=$Y$1,Z55,IF('Definition de scénario'!$G$3=$J$1,'Definition de scénario'!F65,NA())))) -> 0 | E55: =IF('Definition de scénario'!$G$3=$K$1,M55,IF('Definition de scénario'!$G$3=$R$1,T55,IF('Definition de scénario'!$G$3=$Y$1,AA55,IF('Definition de scénario'!$G$3=$J$1,'Definition de scénario'!G65,NA())))) -> 0 | F55: =IF('Definition de scénario'!$G$3=$K$1,N55,IF('Definition de scénario'!$G$3=$R$1,U55,IF('Definition de scénario'!$G$3=$Y$1,AB55,IF('Definition de scénario'!$G$3=$J$1,'Definition de scénario'!H65,NA())))) -> 0 | G55: =IF('Definition de scénario'!$G$3=$K$1,O55,IF('Definition de scénario'!$G$3=$R$1,V55,IF('Definition de scénario'!$G$3=$Y$1,AC55,IF('Definition de scénario'!$G$3=$J$1,'Definition de scénario'!I65,NA())))) -> 0 | H55: =IF('Definition de scénario'!$G$3=$K$1,P55,IF('Definition de scénario'!$G$3=$R$1,W55,IF('Definition de scénario'!$G$3=$Y$1,AD55,IF('Definition de scénario'!$G$3=$J$1,'Definition de scénario'!J65,NA())))) -> 0 | K55: 0 | L55: 0 | M55: 0 | N55: 0 | O55: 0 | P55: 0 | R55: 0 | S55: 0 | T55: 0 | U55: 0 | V55: 0 | W55: 0 | Y55: 0 | Z55: 0 | AA55: 0 | AB55: 0 | AC55: 0 | AD55: 0
B56: Laayoune (Mun.) | C56: =IF('Definition de scénario'!$G$3=$K$1,K56,IF('Definition de scénario'!$G$3=$R$1,R56,IF('Definition de scénario'!$G$3=$Y$1,Y56,IF('Definition de scénario'!$G$3=$J$1,'Definition de scénario'!E66,NA())))) -> 0 | D56: =IF('Definition de scénario'!$G$3=$K$1,L56,IF('Definition de scénario'!$G$3=$R$1,S56,IF('Definition de scénario'!$G$3=$Y$1,Z56,IF('Definition de scénario'!$G$3=$J$1,'Definition de scénario'!F66,NA())))) -> 0 | E56: =IF('Definition de scénario'!$G$3=$K$1,M56,IF('Definition de scénario'!$G$3=$R$1,T56,IF('Definition de scénario'!$G$3=$Y$1,AA56,IF('Definition de scénario'!$G$3=$J$1,'Definition de scénario'!G66,NA())))) -> 0 | F56: =IF('Definition de scénario'!$G$3=$K$1,N56,IF('Definition de scénario'!$G$3=$R$1,U56,IF('Definition de scénario'!$G$3=$Y$1,AB56,IF('Definition de scénario'!$G$3=$J$1,'Definition de scénario'!H66,NA())))) -> 0 | G56: =IF('Definition de scénario'!$G$3=$K$1,O56,IF('Definition de scénario'!$G$3=$R$1,V56,IF('Definition de scénario'!$G$3=$Y$1,AC56,IF('Definition de scénario'!$G$3=$J$1,'Definition de scénario'!I66,NA())))) -> 0 | H56: =IF('Definition de scénario'!$G$3=$K$1,P56,IF('Definition de scénario'!$G$3=$R$1,W56,IF('Definition de scénario'!$G$3=$Y$1,AD56,IF('Definition de scénario'!$G$3=$J$1,'Definition de scénario'!J66,NA())))) -> 0 | K56: 0 | L56: 0 | M56: 0 | N56: 0 | O56: 0 | P56: 0 | R56: 0 | S56: 0 | T56: 0 | U56: 0 | V56: 0 | W56: 0 | Y56: 0 | Z56: 0 | AA56: 0 | AB56: 0 | AC56: 0 | AD56: 0
B57: Khenifra (Mun.) | C57: =IF('Definition de scénario'!$G$3=$K$1,K57,IF('Definition de scénario'!$G$3=$R$1,R57,IF('Definition de scénario'!$G$3=$Y$1,Y57,IF('Definition de scénario'!$G$3=$J$1,'Definition de scénario'!E67,NA())))) -> 0 | D57: =IF('Definition de scénario'!$G$3=$K$1,L57,IF('Definition de scénario'!$G$3=$R$1,S57,IF('Definition de scénario'!$G$3=$Y$1,Z57,IF('Definition de scénario'!$G$3=$J$1,'Definition de scénario'!F67,NA())))) -> 0 | E57: =IF('Definition de scénario'!$G$3=$K$1,M57,IF('Definition de scénario'!$G$3=$R$1,T57,IF('Definition de scénario'!$G$3=$Y$1,AA57,IF('Definition de scénario'!$G$3=$J$1,'Definition de scénario'!G67,NA())))) -> 0 | F57: =IF('Definition de scénario'!$G$3=$K$1,N57,IF('Definition de scénario'!$G$3=$R$1,U57,IF('Definition de scénario'!$G$3=$Y$1,AB57,IF('Definition de scénario'!$G$3=$J$1,'Definition de scénario'!H67,NA())))) -> 0 | G57: =IF('Definition de scénario'!$G$3=$K$1,O57,IF('Definition de scénario'!$G$3=$R$1,V57,IF('Definition de scénario'!$G$3=$Y$1,AC57,IF('Definition de scénario'!$G$3=$J$1,'Definition de scénario'!I67,NA())))) -> 0 | H57: =IF('Definition de scénario'!$G$3=$K$1,P57,IF('Definition de scénario'!$G$3=$R$1,W57,IF('Definition de scénario'!$G$3=$Y$1,AD57,IF('Definition de scénario'!$G$3=$J$1,'Definition de scénario'!J67,NA())))) -> 0 | K57: 0 | L57: 0 | M57: 0 | N57: 0 | O57: 0 | P57: 0 | R57: 0 | S57: 0 | T57: 0 | U57: 0 | V57: 0 | W57: 0 | Y57: 0 | Z57: 0 | AA57: 0 | AB57: 0 | AC57: 0 | AD57: 0
B58: Settat (Mun.) | C58: =IF('Definition de scénario'!$G$3=$K$1,K58,IF('Definition de scénario'!$G$3=$R$1,R58,IF('Definition de scénario'!$G$3=$Y$1,Y58,IF('Definition de scénario'!$G$3=$J$1,'Definition de scénario'!E68,NA())))) -> 0 | D58: =IF('Definition de scénario'!$G$3=$K$1,L58,IF('Definition de scénario'!$G$3=$R$1,S58,IF('Definition de scénario'!$G$3=$Y$1,Z58,IF('Definition de scénario'!$G$3=$J$1,'Definition de scénario'!F68,NA())))) -> 0 | E58: =IF('Definition de scénario'!$G$3=$K$1,M58,IF('Definition de scénario'!$G$3=$R$1,T58,IF('Definition de scénario'!$G$3=$Y$1,AA58,IF('Definition de scénario'!$G$3=$J$1,'Definition de scénario'!G68,NA())))) -> 0 | F58: =IF('Definition de scénario'!$G$3=$K$1,N58,IF('Definition de scénario'!$G$3=$R$1,U58,IF('Definition de scénario'!$G$3=$Y$1,AB58,IF('Definition de scénario'!$G$3=$J$1,'Definition de scénario'!H68,NA())))) -> 0 | G58: =IF('Definition de scénario'!$G$3=$K$1,O58,IF('Definition de scénario'!$G$3=$R$1,V58,IF('Definition de scénario'!$G$3=$Y$1,AC58,IF('Definition de scénario'!$G$3=$J$1,'Definition de scénario'!I68,NA())))) -> 0 | H58: =IF('Definition de scénario'!$G$3=$K$1,P58,IF('Definition de scénario'!$G$3=$R$1,W58,IF('Definition de scénario'!$G$3=$Y$1,AD58,IF('Definition de scénario'!$G$3=$J$1,'Definition de scénario'!J68,NA())))) -> 0 | K58: 0 | L58: 0 | M58: 0 | N58: 0 | O58: 0 | P58: 0 | R58: 0 | S58: 0 | T58: 0 | U58: 0 | V58: 0 | W58: 0 | Y58: 0 | Z58: 0 | AA58: 0 | AB58: 0 | AC58: 0 | AD58: 0
B59: Fquih Ben Salah (Mun.) | C59: =IF('Definition de scénario'!$G$3=$K$1,K59,IF('Definition de scénario'!$G$3=$R$1,R59,IF('Definition de scénario'!$G$3=$Y$1,Y59,IF('Definition de scénario'!$G$3=$J$1,'Definition de scénario'!E69,NA())))) -> 0 | D59: =IF('Definition de scénario'!$G$3=$K$1,L59,IF('Definition de scénario'!$G$3=$R$1,S59,IF('Definition de scénario'!$G$3=$Y$1,Z59,IF('Definition de scénario'!$G$3=$J$1,'Definition de scénario'!F69,NA())))) -> 0 | E59: =IF('Definition de scénario'!$G$3=$K$1,M59,IF('Definition de scénario'!$G$3=$R$1,T59,IF('Definition de scénario'!$G$3=$Y$1,AA59,IF('Definition de scénario'!$G$3=$J$1,'Definition de scénario'!G69,NA())))) -> 0 | F59: =IF('Definition de scénario'!$G$3=$K$1,N59,IF('Definition de scénario'!$G$3=$R$1,U59,IF('Definition de scénario'!$G$3=$Y$1,AB59,IF('Definition de scénario'!$G$3=$J$1,'Definition de scénario'!H69,NA())))) -> 0 | G59: =IF('Definition de scénario'!$G$3=$K$1,O59,IF('Definition de scénario'!$G$3=$R$1,V59,IF('Definition de scénario'!$G$3=$Y$1,AC59,IF('Definition de scénario'!$G$3=$J$1,'Definition de scénario'!I69,NA())))) -> 0 | H59: =IF('Definition de scénario'!$G$3=$K$1,P59,IF('Definition de scénario'!$G$3=$R$1,W59,IF('Definition de scénario'!$G$3=$Y$1,AD59,IF('Definition de scénario'!$G$3=$J$1,'Definition de scénario'!J69,NA())))) -> 0 | K59: 0 | L59: 0 | M59: 0 | N59: 0 | O59: 0 | P59: 0 | R59: 0 | S59: 0 | T59: 0 | U59: 0 | V59: 0 | W59: 0 | Y59: 0 | Z59: 0 | AA59: 0 | AB59: 0 | AC59: 0 | AD59: 0
B60: Taza (Mun.) | C60: =IF('Definition de scénario'!$G$3=$K$1,K60,IF('Definition de scénario'!$G$3=$R$1,R60,IF('Definition de scénario'!$G$3=$Y$1,Y60,IF('Definition de scénario'!$G$3=$J$1,'Definition de scénario'!E70,NA())))) -> 0 | D60: =IF('Definition de scénario'!$G$3=$K$1,L60,IF('Definition de scénario'!$G$3=$R$1,S60,IF('Definition de scénario'!$G$3=$Y$1,Z60,IF('Definition de scénario'!$G$3=$J$1,'Definition de scénario'!F70,NA())))) -> 0 | E60: =IF('Definition de scénario'!$G$3=$K$1,M60,IF('Definition de scénario'!$G$3=$R$1,T60,IF('Definition de scénario'!$G$3=$Y$1,AA60,IF('Definition de scénario'!$G$3=$J$1,'Definition de scénario'!G70,NA())))) -> 0 | F60: =IF('Definition de scénario'!$G$3=$K$1,N60,IF('Definition de scénario'!$G$3=$R$1,U60,IF('Definition de scénario'!$G$3=$Y$1,AB60,IF('Definition de scénario'!$G$3=$J$1,'Definition de scénario'!H70,NA())))) -> 0 | G60: =IF('Definition de scénario'!$G$3=$K$1,O60,IF('Definition de scénario'!$G$3=$R$1,V60,IF('Definition de scénario'!$G$3=$Y$1,AC60,IF('Definition de scénario'!$G$3=$J$1,'Definition de scénario'!I70,NA())))) -> 0 | H60: =IF('Definition de scénario'!$G$3=$K$1,P60,IF('Definition de scénario'!$G$3=$R$1,W60,IF('Definition de scénario'!$G$3=$Y$1,AD60,IF('Definition de scénario'!$G$3=$J$1,'Definition de scénario'!J70,NA())))) -> 0 | K60: 0 | L60: 0 | M60: 0 | N60: 0 | O60: 0 | P60: 0 | R60: 0 | S60: 0 | T60: 0 | U60: 0 | V60: 0 | W60: 0 | Y60: 0 | Z60: 0 | AA60: 0 | AB60: 0 | AC60: 0 | AD60: 0
B61: Berkane | C61: =IF('Definition de scénario'!$G$3=$K$1,K61,IF('Definition de scénario'!$G$3=$R$1,R61,IF('Definition de scénario'!$G$3=$Y$1,Y61,IF('Definition de scénario'!$G$3=$J$1,'Definition de scénario'!E71,NA())))) -> 0 | D61: =IF('Definition de scénario'!$G$3=$K$1,L61,IF('Definition de scénario'!$G$3=$R$1,S61,IF('Definition de scénario'!$G$3=$Y$1,Z61,IF('Definition de scénario'!$G$3=$J$1,'Definition de scénario'!F71,NA())))) -> 0 | E61: =IF('Definition de scénario'!$G$3=$K$1,M61,IF('Definition de scénario'!$G$3=$R$1,T61,IF('Definition de scénario'!$G$3=$Y$1,AA61,IF('Definition de scénario'!$G$3=$J$1,'Definition de scénario'!G71,NA())))) -> 0 | F61: =IF('Definition de scénario'!$G$3=$K$1,N61,IF('Definition de scénario'!$G$3=$R$1,U61,IF('Definition de scénario'!$G$3=$Y$1,AB61,IF('Definition de scénario'!$G$3=$J$1,'Definition de scénario'!H71,NA())))) -> 0 | G61: =IF('Definition de scénario'!$G$3=$K$1,O61,IF('Definition de scénario'!$G$3=$R$1,V61,IF('Definition de scénario'!$G$3=$Y$1,AC61,IF('Definition de scénario'!$G$3=$J$1,'Definition de scénario'!I71,NA())))) -> 0 | H61: =IF('Definition de scénario'!$G$3=$K$1,P61,IF('Definition de scénario'!$G$3=$R$1,W61,IF('Definition de scénario'!$G$3=$Y$1,AD61,IF('Definition de scénario'!$G$3=$J$1,'Definition de scénario'!J71,NA())))) -> 0 | K61: 0 | L61: 0 | M61: 0 | N61: 0 | O61: 0 | P61: 0 | R61: 0 | S61: 0 | T61: 0 | U61: 0 | V61: 0 | W61: 0 | Y61: 0 | Z61: 0 | AA61: 0 | AB61: 0 | AC61: 0 | AD61: 0
B62: Errachidia | C62: =IF('Definition de scénario'!$G$3=$K$1,K62,IF('Definition de scénario'!$G$3=$R$1,R62,IF('Definition de scénario'!$G$3=$Y$1,Y62,IF('Definition de scénario'!$G$3=$J$1,'Definition de scénario'!E72,NA())))) -> 0 | D62: =IF('Definition de scénario'!$G$3=$K$1,L62,IF('Definition de scénario'!$G$3=$R$1,S62,IF('Definition de scénario'!$G$3=$Y$1,Z62,IF('Definition de scénario'!$G$3=$J$1,'Definition de scénario'!F72,NA())))) -> 0 | E62: =IF('Definition de scénario'!$G$3=$K$1,M62,IF('Definition de scénario'!$G$3=$R$1,T62,IF('Definition de scénario'!$G$3=$Y$1,AA62,IF('Definition de scénario'!$G$3=$J$1,'Definition de scénario'!G72,NA())))) -> 0 | F62: =IF('Definition de scénario'!$G$3=$K$1,N62,IF('Definition de scénario'!$G$3=$R$1,U62,IF('Definition de scénario'!$G$3=$Y$1,AB62,IF('Definition de scénario'!$G$3=$J$1,'Definition de scénario'!H72,NA())))) -> 0 | G62: =IF('Definition de scénario'!$G$3=$K$1,O62,IF('Definition de scénario'!$G$3=$R$1,V62,IF('Definition de scénario'!$G$3=$Y$1,AC62,IF('Definition de scénario'!$G$3=$J$1,'Definition de scénario'!I72,NA())))) -> 0 | H62: =IF('Definition de scénario'!$G$3=$K$1,P62,IF('Definition de scénario'!$G$3=$R$1,W62,IF('Definition de scénario'!$G$3=$Y$1,AD62,IF('Definition de scénario'!$G$3=$J$1,'Definition de scénario'!J72,NA())))) -> 0 | K62: 0 | L62: 0 | M62: 0 | N62: 0 | O62: 0 | P62: 0 | R62: 0 | S62: 0 | T62: 0 | U62: 0 | V62: 0 | W62: 0 | Y62: 0 | Z62: 0 | AA62: 0 | AB62: 0 | AC62: 0 | AD62: 0
A63: RER | B63: Grand Casablanca | C63: =IF('Definition de scénario'!$G$3=$K$1,K63,IF('Definition de scénario'!$G$3=$R$1,R63,IF('Definition de scénario'!$G$3=$Y$1,Y63,IF('Definition de scénario'!$G$3=$J$1,'Definition de scénario'!E73,NA())))) -> 0 | D63: =IF('Definition de scénario'!$G$3=$K$1,L63,IF('Definition de scénario'!$G$3=$R$1,S63,IF('Definition de scénario'!$G$3=$Y$1,Z63,IF('Definition de scénario'!$G$3=$J$1,'Definition de scénario'!F73,NA())))) -> 131 | E63: =IF('Definition de scénario'!$G$3=$K$1,M63,IF('Definition de scénario'!$G$3=$R$1,T63,IF('Definition de scénario'!$G$3=$Y$1,AA63,IF('Definition de scénario'!$G$3=$J$1,'Definition de scénario'!G73,NA())))) -> 131 | F63: =IF('Definition de scénario'!$G$3=$K$1,N63,IF('Definition de scénario'!$G$3=$R$1,U63,IF('Definition de scénario'!$G$3=$Y$1,AB63,IF('Definition de scénario'!$G$3=$J$1,'Definition de scénario'!H73,NA())))) -> 131 | G63: =IF('Definition de scénario'!$G$3=$K$1,O63,IF('Definition de scénario'!$G$3=$R$1,V63,IF('Definition de scénario'!$G$3=$Y$1,AC63,IF('Definition de scénario'!$G$3=$J$1,'Definition de scénario'!I73,NA())))) -> 131 | H63: =IF('Definition de scénario'!$G$3=$K$1,P63,IF('Definition de scénario'!$G$3=$R$1,W63,IF('Definition de scénario'!$G$3=$Y$1,AD63,IF('Definition de scénario'!$G$3=$J$1,'Definition de scénario'!J73,NA())))) -> 131 | K63: 0 | L63: 0 | M63: 0 | N63: 0 | O63: 0 | P63: 0 | Q63: RER | R63: 0 | S63: 131 | T63: 131 | U63: 131 | V63: 131 | W63: 131 | Y63: 0 | Z63: 131 | AA63: 131 | AB63: 131 | AC63: 131 | AD63: 131
B64: Rabat-Salé-Skhirate-Temara | C64: =IF('Definition de scénario'!$G$3=$K$1,K64,IF('Definition de scénario'!$G$3=$R$1,R64,IF('Definition de scénario'!$G$3=$Y$1,Y64,IF('Definition de scénario'!$G$3=$J$1,'Definition de scénario'!E74,NA())))) -> 0 | D64: =IF('Definition de scénario'!$G$3=$K$1,L64,IF('Definition de scénario'!$G$3=$R$1,S64,IF('Definition de scénario'!$G$3=$Y$1,Z64,IF('Definition de scénario'!$G$3=$J$1,'Definition de scénario'!F74,NA())))) -> 66 | E64: =IF('Definition de scénario'!$G$3=$K$1,M64,IF('Definition de scénario'!$G$3=$R$1,T64,IF('Definition de scénario'!$G$3=$Y$1,AA64,IF('Definition de scénario'!$G$3=$J$1,'Definition de scénario'!G74,NA())))) -> 66 | F64: =IF('Definition de scénario'!$G$3=$K$1,N64,IF('Definition de scénario'!$G$3=$R$1,U64,IF('Definition de scénario'!$G$3=$Y$1,AB64,IF('Definition de scénario'!$G$3=$J$1,'Definition de scénario'!H74,NA())))) -> 66 | G64: =IF('Definition de scénario'!$G$3=$K$1,O64,IF('Definition de scénario'!$G$3=$R$1,V64,IF('Definition de scénario'!$G$3=$Y$1,AC64,IF('Definition de scénario'!$G$3=$J$1,'Definition de scénario'!I74,NA())))) -> 66 | H64: =IF('Definition de scénario'!$G$3=$K$1,P64,IF('Definition de scénario'!$G$3=$R$1,W64,IF('Definition de scénario'!$G$3=$Y$1,AD64,IF('Definition de scénario'!$G$3=$J$1,'Definition de scénario'!J74,NA())))) -> 66 | K64: 0 | L64: 0 | M64: 0 | N64: 0 | O64: 0 | P64: 0 | R64: 0 | S64: 66 | T64: 66 | U64: 66 | V64: 66 | W64: 66 | Y64: 0 | Z64: 66 | AA64: 66 | AB64: 66 | AC64: 66 | AD64: 66
B65: Fès | C65: =IF('Definition de scénario'!$G$3=$K$1,K65,IF('Definition de scénario'!$G$3=$R$1,R65,IF('Definition de scénario'!$G$3=$Y$1,Y65,IF('Definition de scénario'!$G$3=$J$1,'Definition de scénario'!E75,NA())))) -> 0 | D65: =IF('Definition de scénario'!$G$3=$K$1,L65,IF('Definition de scénario'!$G$3=$R$1,S65,IF('Definition de scénario'!$G$3=$Y$1,Z65,IF('Definition de scénario'!$G$3=$J$1,'Definition de scénario'!F75,NA())))) -> 0 | E65: =IF('Definition de scénario'!$G$3=$K$1,M65,IF('Definition de scénario'!$G$3=$R$1,T65,IF('Definition de scénario'!$G$3=$Y$1,AA65,IF('Definition de scénario'!$G$3=$J$1,'Definition de scénario'!G75,NA())))) -> 0 | F65: =IF('Definition de scénario'!$G$3=$K$1,N65,IF('Definition de scénario'!$G$3=$R$1,U65,IF('Definition de scénario'!$G$3=$Y$1,AB65,IF('Definition de scénario'!$G$3=$J$1,'Definition de scénario'!H75,NA())))) -> 0 | G65: =IF('Definition de scénario'!$G$3=$K$1,O65,IF('Definition de scénario'!$G$3=$R$1,V65,IF('Definition de scénario'!$G$3=$Y$1,AC65,IF('Definition de scénario'!$G$3=$J$1,'Definition de scénario'!I75,NA())))) -> 0 | H65: =IF('Definition de scénario'!$G$3=$K$1,P65,IF('Definition de scénario'!$G$3=$R$1,W65,IF('Definition de scénario'!$G$3=$Y$1,AD65,IF('Definition de scénario'!$G$3=$J$1,'Definition de scénario'!J75,NA())))) -> 0 | K65: 0 | L65: 0 | M65: 0 | N65: 0 | O65: 0 | P65: 0 | R65: 0 | S65: 0 | T65: 0 | U65: 0 | V65: 0 | W65: 0 | Y65: 0 | Z65: 18 | AA65: 18 | AB65: 18 | AC65: 18 | AD65: 18
B66: Agadir-Ida-Ou-Tanane-Inezgane- Ait Melloul | C66: =IF('Definition de scénario'!$G$3=$K$1,K66,IF('Definition de scénario'!$G$3=$R$1,R66,IF('Definition de scénario'!$G$3=$Y$1,Y66,IF('Definition de scénario'!$G$3=$J$1,'Definition de scénario'!E76,NA())))) -> 0 | D66: =IF('Definition de scénario'!$G$3=$K$1,L66,IF('Definition de scénario'!$G$3=$R$1,S66,IF('Definition de scénario'!$G$3=$Y$1,Z66,IF('Definition de scénario'!$G$3=$J$1,'Definition de scénario'!F76,NA())))) -> 0 | E66: =IF('Definition de scénario'!$G$3=$K$1,M66,IF('Definition de scénario'!$G$3=$R$1,T66,IF('Definition de scénario'!$G$3=$Y$1,AA66,IF('Definition de scénario'!$G$3=$J$1,'Definition de scénario'!G76,NA())))) -> 0 | F66: =IF('Definition de scénario'!$G$3=$K$1,N66,IF('Definition de scénario'!$G$3=$R$1,U66,IF('Definition de scénario'!$G$3=$Y$1,AB66,IF('Definition de scénario'!$G$3=$J$1,'Definition de scénario'!H76,NA())))) -> 0 | G66: =IF('Definition de scénario'!$G$3=$K$1,O66,IF('Definition de scénario'!$G$3=$R$1,V66,IF('Definition de scénario'!$G$3=$Y$1,AC66,IF('Definition de scénario'!$G$3=$J$1,'Definition de scénario'!I76,NA())))) -> 0 | H66: =IF('Definition de scénario'!$G$3=$K$1,P66,IF('Definition de scénario'!$G$3=$R$1,W66,IF('Definition de scénario'!$G$3=$Y$1,AD66,IF('Definition de scénario'!$G$3=$J$1,'Definition de scénario'!J76,NA())))) -> 0 | K66: 0 | L66: 0 | M66: 0 | N66: 0 | O66: 0 | P66: 0 | R66: 0 | S66: 0 | T66: 0 | U66: 0 | V66: 0 | W66: 0 | Y66: 0 | Z66: 0 | AA66: 0 | AB66: 0 | AC66: 0 | AD66: 0
B67: Tanger-Assilah | C67: =IF('Definition de scénario'!$G$3=$K$1,K67,IF('Definition de scénario'!$G$3=$R$1,R67,IF('Definition de scénario'!$G$3=$Y$1,Y67,IF('Definition de scénario'!$G$3=$J$1,'Definition de scénario'!E77,NA())))) -> 0 | D67: =IF('Definition de scénario'!$G$3=$K$1,L67,IF('Definition de scénario'!$G$3=$R$1,S67,IF('Definition de scénario'!$G$3=$Y$1,Z67,IF('Definition de scénario'!$G$3=$J$1,'Definition de scénario'!F77,NA())))) -> 0 | E67: =IF('Definition de scénario'!$G$3=$K$1,M67,IF('Definition de scénario'!$G$3=$R$1,T67,IF('Definition de scénario'!$G$3=$Y$1,AA67,IF('Definition de scénario'!$G$3=$J$1,'Definition de scénario'!G77,NA())))) -> 0 | F67: =IF('Definition de scénario'!$G$3=$K$1,N67,IF('Definition de scénario'!$G$3=$R$1,U67,IF('Definition de scénario'!$G$3=$Y$1,AB67,IF('Definition de scénario'!$G$3=$J$1,'Definition de scénario'!H77,NA())))) -> 0 | G67: =IF('Definition de scénario'!$G$3=$K$1,O67,IF('Definition de scénario'!$G$3=$R$1,V67,IF('Definition de scénario'!$G$3=$Y$1,AC67,IF('Definition de scénario'!$G$3=$J$1,'Definition de scénario'!I77,NA())))) -> 0 | H67: =IF('Definition de scénario'!$G$3=$K$1,P67,IF('Definition de scénario'!$G$3=$R$1,W67,IF('Definition de scénario'!$G$3=$Y$1,AD67,IF('Definition de scénario'!$G$3=$J$1,'Definition de scénario'!J77,NA())))) -> 0 | K67: 0 | L67: 0 | M67: 0 | N67: 0 | O67: 0 | P67: 0 | R67: 0 | S67: 0 | T67: 0 | U67: 0 | V67: 0 | W67: 0 | Y67: 0 | Z67: 0 | AA67: 0 | AB67: 0 | AC67: 0 | AD67: 0
B68: Marrakech | C68: =IF('Definition de scénario'!$G$3=$K$1,K68,IF('Definition de scénario'!$G$3=$R$1,R68,IF('Definition de scénario'!$G$3=$Y$1,Y68,IF('Definition de scénario'!$G$3=$J$1,'Definition de scénario'!E78,NA())))) -> 0 | D68: =IF('Definition de scénario'!$G$3=$K$1,L68,IF('Definition de scénario'!$G$3=$R$1,S68,IF('Definition de scénario'!$G$3=$Y$1,Z68,IF('Definition de scénario'!$G$3=$J$1,'Definition de scénario'!F78,NA())))) -> 0 | E68: =IF('Definition de scénario'!$G$3=$K$1,M68,IF('Definition de scénario'!$G$3=$R$1,T68,IF('Definition de scénario'!$G$3=$Y$1,AA68,IF('Definition de scénario'!$G$3=$J$1,'Definition de scénario'!G78,NA())))) -> 0 | F68: =IF('Definition de scénario'!$G$3=$K$1,N68,IF('Definition de scénario'!$G$3=$R$1,U68,IF('Definition de scénario'!$G$3=$Y$1,AB68,IF('Definition de scénario'!$G$3=$J$1,'Definition de scénario'!H78,NA())))) -> 0 | G68: =IF('Definition de scénario'!$G$3=$K$1,O68,IF('Definition de scénario'!$G$3=$R$1,V68,IF('Definition de scénario'!$G$3=$Y$1,AC68,IF('Definition de scénario'!$G$3=$J$1,'Definition de scénario'!I78,NA())))) -> 0 | H68: =IF('Definition de scénario'!$G$3=$K$1,P68,IF('Definition de scénario'!$G$3=$R$1,W68,IF('Definition de scénario'!$G$3=$Y$1,AD68,IF('Definition de scénario'!$G$3=$J$1,'Definition de scénario'!J78,NA())))) -> 0 | K68: 0 | L68: 0 | M68: 0 | N68: 0 | O68: 0 | P68: 0 | R68: 0 | S68: 0 | T68: 0 | U68: 0 | V68: 0 | W68: 0 | Y68: 0 | Z68: 0 | AA68: 0 | AB68: 0 | AC68: 0 | AD68: 0
B69: Meknès (Mun.) | C69: =IF('Definition de scénario'!$G$3=$K$1,K69,IF('Definition de scénario'!$G$3=$R$1,R69,IF('Definition de scénario'!$G$3=$Y$1,Y69,IF('Definition de scénario'!$G$3=$J$1,'Definition de scénario'!E79,NA())))) -> 0 | D69: =IF('Definition de scénario'!$G$3=$K$1,L69,IF('Definition de scénario'!$G$3=$R$1,S69,IF('Definition de scénario'!$G$3=$Y$1,Z69,IF('Definition de scénario'!$G$3=$J$1,'Definition de scénario'!F79,NA())))) -> 0 | E69: =IF('Definition de scénario'!$G$3=$K$1,M69,IF('Definition de scénario'!$G$3=$R$1,T69,IF('Definition de scénario'!$G$3=$Y$1,AA69,IF('Definition de scénario'!$G$3=$J$1,'Definition de scénario'!G79,NA())))) -> 0 | F69: =IF('Definition de scénario'!$G$3=$K$1,N69,IF('Definition de scénario'!$G$3=$R$1,U69,IF('Definition de scénario'!$G$3=$Y$1,AB69,IF('Definition de scénario'!$G$3=$J$1,'Definition de scénario'!H79,NA())))) -> 0 | G69: =IF('Definition de scénario'!$G$3=$K$1,O69,IF('Definition de scénario'!$G$3=$R$1,V69,IF('Definition de scénario'!$G$3=$Y$1,AC69,IF('Definition de scénario'!$G$3=$J$1,'Definition de scénario'!I79,NA())))) -> 0 | H69: =IF('Definition de scénario'!$G$3=$K$1,P69,IF('Definition de scénario'!$G$3=$R$1,W69,IF('Definition de scénario'!$G$3=$Y$1,AD69,IF('Definition de scénario'!$G$3=$J$1,'Definition de scénario'!J79,NA())))) -> 0 | K69: 0 | L69: 0 | M69: 0 | N69: 0 | O69: 0 | P69: 0 | R69: 0 | S69: 0 | T69: 0 | U69: 0 | V69: 0 | W69: 0 | Y69: 0 | Z69: 0 | AA69: 0 | AB69: 0 | AC69: 0 | AD69: 0
B70: Kenitra | C70: =IF('Definition de scénario'!$G$3=$K$1,K70,IF('Definition de scénario'!$G$3=$R$1,R70,IF('Definition de scénario'!$G$3=$Y$1,Y70,IF('Definition de scénario'!$G$3=$J$1,'Definition de scénario'!E80,NA())))) -> 0 | D70: =IF('Definition de scénario'!$G$3=$K$1,L70,IF('Definition de scénario'!$G$3=$R$1,S70,IF('Definition de scénario'!$G$3=$Y$1,Z70,IF('Definition de scénario'!$G$3=$J$1,'Definition de scénario'!F80,NA())))) -> 0 | E70: =IF('Definition de scénario'!$G$3=$K$1,M70,IF('Definition de scénario'!$G$3=$R$1,T70,IF('Definition de scénario'!$G$3=$Y$1,AA70,IF('Definition de scénario'!$G$3=$J$1,'Definition de scénario'!G80,NA())))) -> 0 | F70: =IF('Definition de scénario'!$G$3=$K$1,N70,IF('Definition de scénario'!$G$3=$R$1,U70,IF('Definition de scénario'!$G$3=$Y$1,AB70,IF('Definition de scénario'!$G$3=$J$1,'Definition de scénario'!H80,NA())))) -> 0 | G70: =IF('Definition de scénario'!$G$3=$K$1,O70,IF('Definition de scénario'!$G$3=$R$1,V70,IF('Definition de scénario'!$G$3=$Y$1,AC70,IF('Definition de scénario'!$G$3=$J$1,'Definition de scénario'!I80,NA())))) -> 0 | H70: =IF('Definition de scénario'!$G$3=$K$1,P70,IF('Definition de scénario'!$G$3=$R$1,W70,IF('Definition de scénario'!$G$3=$Y$1,AD70,IF('Definition de scénario'!$G$3=$J$1,'Definition de scénario'!J80,NA())))) -> 0 | K70: 0 | L70: 0 | M70: 0 | N70: 0 | O70: 0 | P70: 0 | R70: 0 | S70: 0 | T70: 0 | U70: 0 | V70: 0 | W70: 0 | Y70: 0 | Z70: 0 | AA70: 0 | AB70: 0 | AC70: 0 | AD70: 0
B71: Oujda-Angad (Mun.) | C71: =IF('Definition de scénario'!$G$3=$K$1,K71,IF('Definition de scénario'!$G$3=$R$1,R71,IF('Definition de scénario'!$G$3=$Y$1,Y71,IF('Definition de scénario'!$G$3=$J$1,'Definition de scénario'!E81,NA())))) -> 0 | D71: =IF('Definition de scénario'!$G$3=$K$1,L71,IF('Definition de scénario'!$G$3=$R$1,S71,IF('Definition de scénario'!$G$3=$Y$1,Z71,IF('Definition de scénario'!$G$3=$J$1,'Definition de scénario'!F81,NA())))) -> 0 | E71: =IF('Definition de scénario'!$G$3=$K$1,M71,IF('Definition de scénario'!$G$3=$R$1,T71,IF('Definition de scénario'!$G$3=$Y$1,AA71,IF('Definition de scénario'!$G$3=$J$1,'Definition de scénario'!G81,NA())))) -> 0 | F71: =IF('Definition de scénario'!$G$3=$K$1,N71,IF('Definition de scénario'!$G$3=$R$1,U71,IF('Definition de scénario'!$G$3=$Y$1,AB71,IF('Definition de scénario'!$G$3=$J$1,'Definition de scénario'!H81,NA())))) -> 0 | G71: =IF('Definition de scénario'!$G$3=$K$1,O71,IF('Definition de scénario'!$G$3=$R$1,V71,IF('Definition de scénario'!$G$3=$Y$1,AC71,IF('Definition de scénario'!$G$3=$J$1,'Definition de scénario'!I81,NA())))) -> 0 | H71: =IF('Definition de scénario'!$G$3=$K$1,P71,IF('Definition de scénario'!$G$3=$R$1,W71,IF('Definition de scénario'!$G$3=$Y$1,AD71,IF('Definition de scénario'!$G$3=$J$1,'Definition de scénario'!J81,NA())))) -> 0 | K71: 0 | L71: 0 | M71: 0 | N71: 0 | O71: 0 | P71: 0 | R71: 0 | S71: 0 | T71: 0 | U71: 0 | V71: 0 | W71: 0 | Y71: 0 | Z71: 0 | AA71: 0 | AB71: 0 | AC71: 0 | AD71: 0
B72: Nador (Mun.) | C72: =IF('Definition de scénario'!$G$3=$K$1,K72,IF('Definition de scénario'!$G$3=$R$1,R72,IF('Definition de scénario'!$G$3=$Y$1,Y72,IF('Definition de scénario'!$G$3=$J$1,'Definition de scénario'!E82,NA())))) -> 0 | D72: =IF('Definition de scénario'!$G$3=$K$1,L72,IF('Definition de scénario'!$G$3=$R$1,S72,IF('Definition de scénario'!$G$3=$Y$1,Z72,IF('Definition de scénario'!$G$3=$J$1,'Definition de scénario'!F82,NA())))) -> 0 | E72: =IF('Definition de scénario'!$G$3=$K$1,M72,IF('Definition de scénario'!$G$3=$R$1,T72,IF('Definition de scénario'!$G$3=$Y$1,AA72,IF('Definition de scénario'!$G$3=$J$1,'Definition de scénario'!G82,NA())))) -> 0 | F72: =IF('Definition de scénario'!$G$3=$K$1,N72,IF('Definition de scénario'!$G$3=$R$1,U72,IF('Definition de scénario'!$G$3=$Y$1,AB72,IF('Definition de scénario'!$G$3=$J$1,'Definition de scénario'!H82,NA())))) -> 0 | G72: =IF('Definition de scénario'!$G$3=$K$1,O72,IF('Definition de scénario'!$G$3=$R$1,V72,IF('Definition de scénario'!$G$3=$Y$1,AC72,IF('Definition de scénario'!$G$3=$J$1,'Definition de scénario'!I82,NA())))) -> 0 | H72: =IF('Definition de scénario'!$G$3=$K$1,P72,IF('Definition de scénario'!$G$3=$R$1,W72,IF('Definition de scénario'!$G$3=$Y$1,AD72,IF('Definition de scénario'!$G$3=$J$1,'Definition de scénario'!J82,NA())))) -> 0 | K72: 0 | L72: 0 | M72: 0 | N72: 0 | O72: 0 | P72: 0 | R72: 0 | S72: 0 | T72: 0 | U72: 0 | V72: 0 | W72: 0 | Y72: 0 | Z72: 0 | AA72: 0 | AB72: 0 | AC72: 0 | AD72: 0
B73: Tétouan (Mun.) | C73: =IF('Definition de scénario'!$G$3=$K$1,K73,IF('Definition de scénario'!$G$3=$R$1,R73,IF('Definition de scénario'!$G$3=$Y$1,Y73,IF('Definition de scénario'!$G$3=$J$1,'Definition de scénario'!E83,NA())))) -> 0 | D73: =IF('Definition de scénario'!$G$3=$K$1,L73,IF('Definition de scénario'!$G$3=$R$1,S73,IF('Definition de scénario'!$G$3=$Y$1,Z73,IF('Definition de scénario'!$G$3=$J$1,'Definition de scénario'!F83,NA())))) -> 0 | E73: =IF('Definition de scénario'!$G$3=$K$1,M73,IF('Definition de scénario'!$G$3=$R$1,T73,IF('Definition de scénario'!$G$3=$Y$1,AA73,IF('Definition de scénario'!$G$3=$J$1,'Definition de scénario'!G83,NA())))) -> 0 | F73: =IF('Definition de scénario'!$G$3=$K$1,N73,IF('Definition de scénario'!$G$3=$R$1,U73,IF('Definition de scénario'!$G$3=$Y$1,AB73,IF('Definition de scénario'!$G$3=$J$1,'Definition de scénario'!H83,NA())))) -> 0 | G73: =IF('Definition de scénario'!$G$3=$K$1,O73,IF('Definition de scénario'!$G$3=$R$1,V73,IF('Definition de scénario'!$G$3=$Y$1,AC73,IF('Definition de scénario'!$G$3=$J$1,'Definition de scénario'!I83,NA())))) -> 0 | H73: =IF('Definition de scénario'!$G$3=$K$1,P73,IF('Definition de scénario'!$G$3=$R$1,W73,IF('Definition de scénario'!$G$3=$Y$1,AD73,IF('Definition de scénario'!$G$3=$J$1,'Definition de scénario'!J83,NA())))) -> 0 | K73: 0 | L73: 0 | M73: 0 | N73: 0 | O73: 0 | P73: 0 | R73: 0 | S73: 0 | T73: 0 | U73: 0 | V73: 0 | W73: 0 | Y73: 0 | Z73: 0 | AA73: 0 | AB73: 0 | AC73: 0 | AD73: 0
B74: Khouribga (Mun.) | C74: =IF('Definition de scénario'!$G$3=$K$1,K74,IF('Definition de scénario'!$G$3=$R$1,R74,IF('Definition de scénario'!$G$3=$Y$1,Y74,IF('Definition de scénario'!$G$3=$J$1,'Definition de scénario'!E84,NA())))) -> 0 | D74: =IF('Definition de scénario'!$G$3=$K$1,L74,IF('Definition de scénario'!$G$3=$R$1,S74,IF('Definition de scénario'!$G$3=$Y$1,Z74,IF('Definition de scénario'!$G$3=$J$1,'Definition de scénario'!F84,NA())))) -> 0 | E74: =IF('Definition de scénario'!$G$3=$K$1,M74,IF('Definition de scénario'!$G$3=$R$1,T74,IF('Definition de scénario'!$G$3=$Y$1,AA74,IF('Definition de scénario'!$G$3=$J$1,'Definition de scénario'!G84,NA())))) -> 0 | F74: =IF('Definition de scénario'!$G$3=$K$1,N74,IF('Definition de scénario'!$G$3=$R$1,U74,IF('Definition de scénario'!$G$3=$Y$1,AB74,IF('Definition de scénario'!$G$3=$J$1,'Definition de scénario'!H84,NA())))) -> 0 | G74: =IF('Definition de scénario'!$G$3=$K$1,O74,IF('Definition de scénario'!$G$3=$R$1,V74,IF('Definition de scénario'!$G$3=$Y$1,AC74,IF('Definition de scénario'!$G$3=$J$1,'Definition de scénario'!I84,NA())))) -> 0 | H74: =IF('Definition de scénario'!$G$3=$K$1,P74,IF('Definition de scénario'!$G$3=$R$1,W74,IF('Definition de scénario'!$G$3=$Y$1,AD74,IF('Definition de scénario'!$G$3=$J$1,'Definition de scénario'!J84,NA())))) -> 0 | K74: 0 | L74: 0 | M74: 0 | N74: 0 | O74: 0 | P74: 0 | R74: 0 | S74: 0 | T74: 0 | U74: 0 | V74: 0 | W74: 0 | Y74: 0 | Z74: 0 | AA74: 0 | AB74: 0 | AC74: 0 | AD74: 0
B75: El Jadida (Mun.) | C75: =IF('Definition de scénario'!$G$3=$K$1,K75,IF('Definition de scénario'!$G$3=$R$1,R75,IF('Definition de scénario'!$G$3=$Y$1,Y75,IF('Definition de scénario'!$G$3=$J$1,'Definition de scénario'!E85,NA())))) -> 0 | D75: =IF('Definition de scénario'!$G$3=$K$1,L75,IF('Definition de scénario'!$G$3=$R$1,S75,IF('Definition de scénario'!$G$3=$Y$1,Z75,IF('Definition de scénario'!$G$3=$J$1,'Definition de scénario'!F85,NA())))) -> 0 | E75: =IF('Definition de scénario'!$G$3=$K$1,M75,IF('Definition de scénario'!$G$3=$R$1,T75,IF('Definition de scénario'!$G$3=$Y$1,AA75,IF('Definition de scénario'!$G$3=$J$1,'Definition de scénario'!G85,NA())))) -> 0 | F75: =IF('Definition de scénario'!$G$3=$K$1,N75,IF('Definition de scénario'!$G$3=$R$1,U75,IF('Definition de scénario'!$G$3=$Y$1,AB75,IF('Definition de scénario'!$G$3=$J$1,'Definition de scénario'!H85,NA())))) -> 0 | G75: =IF('Definition de scénario'!$G$3=$K$1,O75,IF('Definition de scénario'!$G$3=$R$1,V75,IF('Definition de scénario'!$G$3=$Y$1,AC75,IF('Definition de scénario'!$G$3=$J$1,'Definition de scénario'!I85,NA())))) -> 0 | H75: =IF('Definition de scénario'!$G$3=$K$1,P75,IF('Definition de scénario'!$G$3=$R$1,W75,IF('Definition de scénario'!$G$3=$Y$1,AD75,IF('Definition de scénario'!$G$3=$J$1,'Definition de scénario'!J85,NA())))) -> 0 | K75: 0 | L75: 0 | M75: 0 | N75: 0 | O75: 0 | P75: 0 | R75: 0 | S75: 0 | T75: 0 | U75: 0 | V75: 0 | W75: 0 | Y75: 33 | Z75: 33 | AA75: 33 | AB75: 33 | AC75: 33 | AD75: 33
B76: Berrechid (Mun.) | C76: =IF('Definition de scénario'!$G$3=$K$1,K76,IF('Definition de scénario'!$G$3=$R$1,R76,IF('Definition de scénario'!$G$3=$Y$1,Y76,IF('Definition de scénario'!$G$3=$J$1,'Definition de scénario'!E86,NA())))) -> 0 | D76: =IF('Definition de scénario'!$G$3=$K$1,L76,IF('Definition de scénario'!$G$3=$R$1,S76,IF('Definition de scénario'!$G$3=$Y$1,Z76,IF('Definition de scénario'!$G$3=$J$1,'Definition de scénario'!F86,NA())))) -> 0 | E76: =IF('Definition de scénario'!$G$3=$K$1,M76,IF('Definition de scénario'!$G$3=$R$1,T76,IF('Definition de scénario'!$G$3=$Y$1,AA76,IF('Definition de scénario'!$G$3=$J$1,'Definition de scénario'!G86,NA())))) -> 0 | F76: =IF('Definition de scénario'!$G$3=$K$1,N76,IF('Definition de scénario'!$G$3=$R$1,U76,IF('Definition de scénario'!$G$3=$Y$1,AB76,IF('Definition de scénario'!$G$3=$J$1,'Definition de scénario'!H86,NA())))) -> 0 | G76: =IF('Definition de scénario'!$G$3=$K$1,O76,IF('Definition de scénario'!$G$3=$R$1,V76,IF('Definition de scénario'!$G$3=$Y$1,AC76,IF('Definition de scénario'!$G$3=$J$1,'Definition de scénario'!I86,NA())))) -> 0 | H76: =IF('Definition de scénario'!$G$3=$K$1,P76,IF('Definition de scénario'!$G$3=$R$1,W76,IF('Definition de scénario'!$G$3=$Y$1,AD76,IF('Definition de scénario'!$G$3=$J$1,'Definition de scénario'!J86,NA())))) -> 0 | K76: 0 | L76: 0 | M76: 0 | N76: 0 | O76: 0 | P76: 0 | R76: 0 | S76: 0 | T76: 0 | U76: 0 | V76: 0 | W76: 0 | Y76: 0 | Z76: 0 | AA76: 0 | AB76: 0 | AC76: 0 | AD76: 0
B77: Safi (Mun.) | C77: =IF('Definition de scénario'!$G$3=$K$1,K77,IF('Definition de scénario'!$G$3=$R$1,R77,IF('Definition de scénario'!$G$3=$Y$1,Y77,IF('Definition de scénario'!$G$3=$J$1,'Definition de scénario'!E87,NA())))) -> 0 | D77: =IF('Definition de scénario'!$G$3=$K$1,L77,IF('Definition de scénario'!$G$3=$R$1,S77,IF('Definition de scénario'!$G$3=$Y$1,Z77,IF('Definition de scénario'!$G$3=$J$1,'Definition de scénario'!F87,NA())))) -> 0 | E77: =IF('Definition de scénario'!$G$3=$K$1,M77,IF('Definition de scénario'!$G$3=$R$1,T77,IF('Definition de scénario'!$G$3=$Y$1,AA77,IF('Definition de scénario'!$G$3=$J$1,'Definition de scénario'!G87,NA())))) -> 0 | F77: =IF('Definition de scénario'!$G$3=$K$1,N77,IF('Definition de scénario'!$G$3=$R$1,U77,IF('Definition de scénario'!$G$3=$Y$1,AB77,IF('Definition de scénario'!$G$3=$J$1,'Definition de scénario'!H87,NA())))) -> 0 | G77: =IF('Definition de scénario'!$G$3=$K$1,O77,IF('Definition de scénario'!$G$3=$R$1,V77,IF('Definition de scénario'!$G$3=$Y$1,AC77,IF('Definition de scénario'!$G$3=$J$1,'Definition de scénario'!I87,NA())))) -> 0 | H77: =IF('Definition de scénario'!$G$3=$K$1,P77,IF('Definition de scénario'!$G$3=$R$1,W77,IF('Definition de scénario'!$G$3=$Y$1,AD77,IF('Definition de scénario'!$G$3=$J$1,'Definition de scénario'!J87,NA())))) -> 0 | K77: 0 | L77: 0 | M77: 0 | N77: 0 | O77: 0 | P77: 0 | R77: 0 | S77: 0 | T77: 0 | U77: 0 | V77: 0 | W77: 0 | Y77: 0 | Z77: 0 | AA77: 0 | AB77: 0 | AC77: 0 | AD77: 0
B78: Béni Mellal (Mun.) | C78: =IF('Definition de scénario'!$G$3=$K$1,K78,IF('Definition de scénario'!$G$3=$R$1,R78,IF('Definition de scénario'!$G$3=$Y$1,Y78,IF('Definition de scénario'!$G$3=$J$1,'Definition de scénario'!E88,NA())))) -> 0 | D78: =IF('Definition de scénario'!$G$3=$K$1,L78,IF('Definition de scénario'!$G$3=$R$1,S78,IF('Definition de scénario'!$G$3=$Y$1,Z78,IF('Definition de scénario'!$G$3=$J$1,'Definition de scénario'!F88,NA())))) -> 0 | E78: =IF('Definition de scénario'!$G$3=$K$1,M78,IF('Definition de scénario'!$G$3=$R$1,T78,IF('Definition de scénario'!$G$3=$Y$1,AA78,IF('Definition de scénario'!$G$3=$J$1,'Definition de scénario'!G88,NA())))) -> 0 | F78: =IF('Definition de scénario'!$G$3=$K$1,N78,IF('Definition de scénario'!$G$3=$R$1,U78,IF('Definition de scénario'!$G$3=$Y$1,AB78,IF('Definition de scénario'!$G$3=$J$1,'Definition de scénario'!H88,NA())))) -> 0 | G78: =IF('Definition de scénario'!$G$3=$K$1,O78,IF('Definition de scénario'!$G$3=$R$1,V78,IF('Definition de scénario'!$G$3=$Y$1,AC78,IF('Definition de scénario'!$G$3=$J$1,'Definition de scénario'!I88,NA())))) -> 0 | H78: =IF('Definition de scénario'!$G$3=$K$1,P78,IF('Definition de scénario'!$G$3=$R$1,W78,IF('Definition de scénario'!$G$3=$Y$1,AD78,IF('Definition de scénario'!$G$3=$J$1,'Definition de scénario'!J88,NA())))) -> 0 | K78: 0 | L78: 0 | M78: 0 | N78: 0 | O78: 0 | P78: 0 | R78: 0 | S78: 0 | T78: 0 | U78: 0 | V78: 0 | W78: 0 | Y78: 0 | Z78: 0 | AA78: 0 | AB78: 0 | AC78: 0 | AD78: 0
B79: Khémisset (Mun.) | C79: =IF('Definition de scénario'!$G$3=$K$1,K79,IF('Definition de scénario'!$G$3=$R$1,R79,IF('Definition de scénario'!$G$3=$Y$1,Y79,IF('Definition de scénario'!$G$3=$J$1,'Definition de scénario'!E89,NA())))) -> 0 | D79: =IF('Definition de scénario'!$G$3=$K$1,L79,IF('Definition de scénario'!$G$3=$R$1,S79,IF('Definition de scénario'!$G$3=$Y$1,Z79,IF('Definition de scénario'!$G$3=$J$1,'Definition de scénario'!F89,NA())))) -> 0 | E79: =IF('Definition de scénario'!$G$3=$K$1,M79,IF('Definition de scénario'!$G$3=$R$1,T79,IF('Definition de scénario'!$G$3=$Y$1,AA79,IF('Definition de scénario'!$G$3=$J$1,'Definition de scénario'!G89,NA())))) -> 0 | F79: =IF('Definition de scénario'!$G$3=$K$1,N79,IF('Definition de scénario'!$G$3=$R$1,U79,IF('Definition de scénario'!$G$3=$Y$1,AB79,IF('Definition de scénario'!$G$3=$J$1,'Definition de scénario'!H89,NA())))) -> 0 | G79: =IF('Definition de scénario'!$G$3=$K$1,O79,IF('Definition de scénario'!$G$3=$R$1,V79,IF('Definition de scénario'!$G$3=$Y$1,AC79,IF('Definition de scénario'!$G$3=$J$1,'Definition de scénario'!I89,NA())))) -> 0 | H79: =IF('Definition de scénario'!$G$3=$K$1,P79,IF('Definition de scénario'!$G$3=$R$1,W79,IF('Definition de scénario'!$G$3=$Y$1,AD79,IF('Definition de scénario'!$G$3=$J$1,'Definition de scénario'!J89,NA())))) -> 0 | K79: 0 | L79: 0 | M79: 0 | N79: 0 | O79: 0 | P79: 0 | R79: 0 | S79: 0 | T79: 0 | U79: 0 | V79: 0 | W79: 0 | Y79: 0 | Z79: 0 | AA79: 0 | AB79: 0 | AC79: 0 | AD79: 0
B80: Larache (Mun.) | C80: =IF('Definition de scénario'!$G$3=$K$1,K80,IF('Definition de scénario'!$G$3=$R$1,R80,IF('Definition de scénario'!$G$3=$Y$1,Y80,IF('Definition de scénario'!$G$3=$J$1,'Definition de scénario'!E90,NA())))) -> 0 | D80: =IF('Definition de scénario'!$G$3=$K$1,L80,IF('Definition de scénario'!$G$3=$R$1,S80,IF('Definition de scénario'!$G$3=$Y$1,Z80,IF('Definition de scénario'!$G$3=$J$1,'Definition de scénario'!F90,NA())))) -> 0 | E80: =IF('Definition de scénario'!$G$3=$K$1,M80,IF('Definition de scénario'!$G$3=$R$1,T80,IF('Definition de scénario'!$G$3=$Y$1,AA80,IF('Definition de scénario'!$G$3=$J$1,'Definition de scénario'!G90,NA())))) -> 0 | F80: =IF('Definition de scénario'!$G$3=$K$1,N80,IF('Definition de scénario'!$G$3=$R$1,U80,IF('Definition de scénario'!$G$3=$Y$1,AB80,IF('Definition de scénario'!$G$3=$J$1,'Definition de scénario'!H90,NA())))) -> 0 | G80: =IF('Definition de scénario'!$G$3=$K$1,O80,IF('Definition de scénario'!$G$3=$R$1,V80,IF('Definition de scénario'!$G$3=$Y$1,AC80,IF('Definition de scénario'!$G$3=$J$1,'Definition de scénario'!I90,NA())))) -> 0 | H80: =IF('Definition de scénario'!$G$3=$K$1,P80,IF('Definition de scénario'!$G$3=$R$1,W80,IF('Definition de scénario'!$G$3=$Y$1,AD80,IF('Definition de scénario'!$G$3=$J$1,'Definition de scénario'!J90,NA())))) -> 0 | K80: 0 | L80: 0 | M80: 0 | N80: 0 | O80: 0 | P80: 0 | R80: 0 | S80: 0 | T80: 0 | U80: 0 | V80: 0 | W80: 0 | Y80: 0 | Z80: 0 | AA80: 0 | AB80: 0 | AC80: 0 | AD80: 0
B81: Laayoune (Mun.) | C81: =IF('Definition de scénario'!$G$3=$K$1,K81,IF('Definition de scénario'!$G$3=$R$1,R81,IF('Definition de scénario'!$G$3=$Y$1,Y81,IF('Definition de scénario'!$G$3=$J$1,'Definition de scénario'!E91,NA())))) -> 0 | D81: =IF('Definition de scénario'!$G$3=$K$1,L81,IF('Definition de scénario'!$G$3=$R$1,S81,IF('Definition de scénario'!$G$3=$Y$1,Z81,IF('Definition de scénario'!$G$3=$J$1,'Definition de scénario'!F91,NA())))) -> 0 | E81: =IF('Definition de scénario'!$G$3=$K$1,M81,IF('Definition de scénario'!$G$3=$R$1,T81,IF('Definition de scénario'!$G$3=$Y$1,AA81,IF('Definition de scénario'!$G$3=$J$1,'Definition de scénario'!G91,NA())))) -> 0 | F81: =IF('Definition de scénario'!$G$3=$K$1,N81,IF('Definition de scénario'!$G$3=$R$1,U81,IF('Definition de scénario'!$G$3=$Y$1,AB81,IF('Definition de scénario'!$G$3=$J$1,'Definition de scénario'!H91,NA())))) -> 0 | G81: =IF('Definition de scénario'!$G$3=$K$1,O81,IF('Definition de scénario'!$G$3=$R$1,V81,IF('Definition de scénario'!$G$3=$Y$1,AC81,IF('Definition de scénario'!$G$3=$J$1,'Definition de scénario'!I91,NA())))) -> 0 | H81: =IF('Definition de scénario'!$G$3=$K$1,P81,IF('Definition de scénario'!$G$3=$R$1,W81,IF('Definition de scénario'!$G$3=$Y$1,AD81,IF('Definition de scénario'!$G$3=$J$1,'Definition de scénario'!J91,NA())))) -> 0 | K81: 0 | L81: 0 | M81: 0 | N81: 0 | O81: 0 | P81: 0 | R81: 0 | S81: 0 | T81: 0 | U81: 0 | V81: 0 | W81: 0 | Y81: 0 | Z81: 0 | AA81: 0 | AB81: 0 | AC81: 0 | AD81: 0
B82: Khenifra (Mun.) | C82: =IF('Definition de scénario'!$G$3=$K$1,K82,IF('Definition de scénario'!$G$3=$R$1,R82,IF('Definition de scénario'!$G$3=$Y$1,Y82,IF('Definition de scénario'!$G$3=$J$1,'Definition de scénario'!E92,NA())))) -> 0 | D82: =IF('Definition de scénario'!$G$3=$K$1,L82,IF('Definition de scénario'!$G$3=$R$1,S82,IF('Definition de scénario'!$G$3=$Y$1,Z82,IF('Definition de scénario'!$G$3=$J$1,'Definition de scénario'!F92,NA())))) -> 0 | E82: =IF('Definition de scénario'!$G$3=$K$1,M82,IF('Definition de scénario'!$G$3=$R$1,T82,IF('Definition de scénario'!$G$3=$Y$1,AA82,IF('Definition de scénario'!$G$3=$J$1,'Definition de scénario'!G92,NA())))) -> 0 | F82: =IF('Definition de scénario'!$G$3=$K$1,N82,IF('Definition de scénario'!$G$3=$R$1,U82,IF('Definition de scénario'!$G$3=$Y$1,AB82,IF('Definition de scénario'!$G$3=$J$1,'Definition de scénario'!H92,NA())))) -> 0 | G82: =IF('Definition de scénario'!$G$3=$K$1,O82,IF('Definition de scénario'!$G$3=$R$1,V82,IF('Definition de scénario'!$G$3=$Y$1,AC82,IF('Definition de scénario'!$G$3=$J$1,'Definition de scénario'!I92,NA())))) -> 0 | H82: =IF('Definition de scénario'!$G$3=$K$1,P82,IF('Definition de scénario'!$G$3=$R$1,W82,IF('Definition de scénario'!$G$3=$Y$1,AD82,IF('Definition de scénario'!$G$3=$J$1,'Definition de scénario'!J92,NA())))) -> 0 | K82: 0 | L82: 0 | M82: 0 | N82: 0 | O82: 0 | P82: 0 | R82: 0 | S82: 0 | T82: 0 | U82: 0 | V82: 0 | W82: 0 | Y82: 0 | Z82: 0 | AA82: 0 | AB82: 0 | AC82: 0 | AD82: 0
